Workbook

Sheet Master Data (hidden)
B2: Expiry Date | E2: Drop-down Selections | H2: HERDC | O2: Affiliates | R2: Org Structure | X2: Salaries | BK2: Operating Expenses | BO2: Stipends | BS2: Travel Expenses | BV2: Overhead Rates | BZ2: Indirect Cost Allocation | CF2: CPI Rate | CI2: Collaborator Expenses
B4: Date | E4: Project Type | H4: HERDC Category | I4: HERDC Name | O4: Organisation | R4: Faculty | S4: ABLE | T4: HMS | U4: SET | X4: Cont & Fixed Term Salaries | Y4: Level | Z4: Step | AA4: 2023 | AB4: 2024 | AC4: 2025 | AD4: 2026 | AE4: 2027 | AF4: 2028 | AG4: 2029 | AH4: 2030 | AI4: 2031 | AJ4: 2032 | AK4: 2033 | AL4: 2034 | AM4: 2035 | AO4: Level | AP4: Max Step | AR4: Segment | AT4: Levels | AU4: Employment Type | AW4: Month | AX4: Period | AY4: No. of months left in the year (1st yr) | AZ4: No. of mths to June (1st yr) | BA4: No. of mths to June (last yr) | BC4: Rate | BD4: Unit | BE4: Amount | BG4: Continuing & Fixed Term Oncost Type | BH4: % | BK4: Types | BL4: Quantity | BO4: Year | BP4: Amount | BS4: Purpose | BV4: Types | BW4: % | BZ4: Project Type - % of expense | CA4: Faculty | CB4: School | CC4: DRI | CF4: Rate | CI4: Types
B5: 45657 | E5: Consultancy | H5: Category 1 | I5: Australian Competetive Grant R&D Income | O5: NO Affiliate | R5: ABLE | S5: Adelaide Business School | T5: Adelaide Dental School | U5: AIML - Projects | X5: Level A-1 | Y5: Level A | Z5: 1 | AA5: 75888 | AB5: 78544 | AC5: 81293 | AD5: =AC5*(1+$X$120) -> 84138.255 | AE5: 87083.09392 | AF5: 90131.00221 | AG5: 93285.58729 | AH5: 96550.58284 | AI5: 99929.85324 | AJ5: 103427.3981 | AK5: 107047.357 | AL5: 110794.0145 | AM5: 114671.805 | AO5: Level A | AP5: 8 | AR5: Discretionary | AT5: Level A-1 | AU5: Academic | AW5: January | AX5: 1 | AY5: 12 | AZ5: 6 | BA5: 1 | BC5: Hourly | BD5: Number of hours | BE5: =BE7*36.75 -> 1617 | BG5: LSL | BH5: 0.0325 | BK5: High Performing Computer | BL5: Not required | BO5: 2024 | BP5: 34125 | BS5: Conference | BV5: Salary Overhead | BW5: 0.55 | BZ5: Contract Research | CA5: 0.1 | CB5: 0.05 | CC5: 0.05 | CI5: Salaries
E6: Contract Research | H6: Category 2 | I6: Other Public Sector R&D Income | O6: AWRI | R6: HMS | S6: Adelaide Law School | T6: Adelaide Medical School | U6: Centre for Auto Safety & Res | X6: Level A-2 | Y6: Level A | Z6: 2 | AA6: 80076 | AB6: 82879 | AC6: 85780 | AD6: =AC6*(1+$X$120) -> 88782.3 | AE6: 91889.6805 | AF6: 95105.81932 | AG6: 98434.52299 | AH6: 101879.7313 | AI6: 105445.5219 | AJ6: 109136.1152 | AK6: 112955.8792 | AL6: 116909.335 | AM6: 121001.1617 | AO6: Level B | AP6: 6 | AR6: Tied | AT6: Level A-2 | AU6: Academic | AW6: February | AX6: 2 | AY6: 11 | AZ6: 5 | BA6: 2 | BC6: Daily | BD6: Number of days | BE6: =BE7*5 -> 220 | BG6: Payroll | BH6: 0.0495 | BK6: Temporary/Agency Staff Costs | BL6: Hours per year | BO6: 2025 | BP6: =BP5*1.05 -> 35831.25 | BS6: Field | BV6: Operating Expenses Overhead | BW6: 0.15 | BZ6: Consultancy | CA6: 0.1167 | CB6: 0.0667 | CC6: 0.0666 | CF6: 0.041 | CI6: Operating Expenses
E7: Grant | H7: Category 3 | I7: Industry and Other R&D Income | O7: PIRSA SARDI | R7: SET | S7: Arts, Bus, Law & Econ Office | T7: Adelaide Nursing School | U7: Ctr for STEM Education & Innov | X7: Level A-3 | Y7: Level A | Z7: 3 | AA7: 84255 | AB7: 87204 | AC7: 90256 | AD7: =AC7*(1+$X$120) -> 93414.96 | AE7: 96684.4836 | AF7: 100068.4405 | AG7: 103570.8359 | AH7: 107195.8152 | AI7: 110947.6687 | AJ7: 114830.8371 | AK7: 118849.9164 | AL7: 123009.6635 | AM7: 127315.0017 | AO7: Level C | AP7: 6 | AR7: Combination | AT7: Level A-3 | AU7: Academic | AW7: March | AX7: 3 | AY7: 10 | AZ7: 4 | BA7: 3 | BC7: Weekly | BD7: Number of weeks | BE7: 44 | BG7: Super | BH7: 0.17 | BK7: Collaborator Payments | BL7: Not required | BO7: 2026 | BP7: =BP6*1.05 -> 37622.8125 | BS7: Other | BV7: Other Overhead | BW7: 0.1 | BZ7: Grant | CA7: 0.1 | CB7: 0.05 | CC7: 0.05 | CI7: Scholarships/Stipends
E8: Other | H8: Category 4 | I8: CRC R&D Income | O8: RAH | R8: Adelaide Microscopy | S8: Elder Conserv School Perf Arts | T8: Health & Med Sci Fac Office | U8: Sch Agriculture, Food & Wine | X8: Level A-4 | Y8: Level A | Z8: 4 | AA8: 88440 | AB8: 91535 | AC8: 94739 | AD8: =AC8*(1+$X$120) -> 98054.865 | AE8: 101486.7853 | AF8: 105038.8228 | AG8: 108715.1816 | AH8: 112520.2129 | AI8: 116458.4204 | AJ8: 120534.4651 | AK8: 124753.1714 | AL8: 129119.5324 | AM8: 133638.716 | AO8: Level D | AP8: 4 | AT8: Level A-4 | AU8: Academic | AW8: April | AX8: 4 | AY8: 9 | AZ8: 3 | BA8: 4 | BG8: Leave Loading | BH8: 0.015 | BK8: Subcontractor Payments | BL8: Not required | BO8: 2027 | BP8: =BP7*1.05 -> 39503.95312 | BZ8: Other | CA8: 0 | CB8: 0 | CC8: 0 | CI8: Travel Expenses
H9: Non HERDC | I9: Non HERDC | O9: SA Path | R9: Defence and Security Institute | S9: Sch of Economics & Public Pol | T9: Sch of Allied Hlth Sci & Prac | U9: Sch of Arch & Civil Eng | X9: Level A-5 | Y9: Level A | Z9: 5 | AA9: 91839 | AB9: 95053 | AC9: 98380 | AD9: =AC9*(1+$X$120) -> 101823.3 | AE9: 105387.1155 | AF9: 109075.6645 | AG9: 112893.3128 | AH9: 116844.5787 | AI9: 120934.139 | AJ9: 125166.8339 | AK9: 129547.6731 | AL9: 134081.8416 | AM9: 138774.7061 | AO9: Level E | AP9: 1 | AT9: Level A-5 | AU9: Academic | AW9: May | AX9: 5 | AY9: 8 | AZ9: 2 | BA9: 5 | BG9: Workcover | BH9: 0.005 | BK9: Capital Item > $10k | BL9: Not required | BO9: 2028 | BP9: =BP8*1.05 -> 41479.15078
O10: SAHMRI | R10: Environment Institute | S10: School - Humanities | T10: School of Biomedicine | U10: Sch of Elec & Mech Engineering | X10: Level A-6 | Y10: Level A | Z10: 6 | AA10: 95241 | AB10: 98574 | AC10: 102024 | AD10: =AC10*(1+$X$120) -> 105594.84 | AE10: 109290.6594 | AF10: 113115.8325 | AG10: 117074.8866 | AH10: 121172.5076 | AI10: 125413.5454 | AJ10: 129803.0195 | AK10: 134346.1252 | AL10: 139048.2396 | AM10: 143914.928 | AO10: HEO 1 | AP10: 7 | AT10: Level A-6 | AU10: Academic | AW10: June | AX10: 6 | AY10: 7 | AZ10: 1 | BA10: 6 | BG10: Other Contributions (parenting leave, admin fee contributions) | BH10: 0.028 | BK10: Other Operating Expenses | BL10: Quantity | BO10: 2029 | BP10: 43553.10832
O11: SAM | R11: Machine Learning | S11: School - Social Sciences | T11: School of Psychology | U11: Sch of Phys, Chem & Earth Sci | X11: Level A-7 | Y11: Level A | Z11: 7 | AA11: 98643 | AB11: 102096 | AC11: 105669 | AD11: =AC11*(1+$X$120) -> 109367.415 | AE11: 113195.2745 | AF11: 117157.1091 | AG11: 121257.608 | AH11: 125501.6242 | AI11: 129894.1811 | AJ11: 134440.4774 | AK11: 139145.8941 | AL11: 144016.0004 | AM11: 149056.5604 | AO11: HEO 2 | AP11: 7 | AT11: Level A-7 | AU11: Academic | AW11: July | AX11: 7 | AY11: 6 | AZ11: 0 | BA11: 6 | BG11: Total | BH11: =SUM(BH5:BH10) -> 0.3 | BO11: 2030 | BP11: 45730.76374
E12: Funding Source | H12: Category 1 | I12: Category 2 | J12: Category 3 | K12: Category 4 | L12: Non HERDC | O12: THRF | R12: SAIGENCI | S12: School of Education | T12: School of Public Health | U12: Schl Animal Veterinary Science | X12: Level A-8 | Y12: Level A | Z12: 8 | AA12: 102040 | AB12: 105611 | AC12: 109307 | AD12: =AC12*(1+$X$120) -> 113132.745 | AE12: 117092.3911 | AF12: 121190.6248 | AG12: 125432.2966 | AH12: 129822.427 | AI12: 134366.212 | AJ12: 139069.0294 | AK12: 143936.4454 | AL12: 148974.221 | AM12: 154188.3187 | AO12: HEO 3 | AP12: 8 | AT12: Level A-8 | AU12: Academic | AW12: August | AX12: 8 | AY12: 5 | AZ12: 0 | BA12: 6
E13: Funded | H13: 1.1 NHMRC | I13: 2.1 Commonwealth (Own Purpose) | J13: 3.1 Australian For Profit Organisations | K13: 4.1 Commonwealth Grant | L13: NA | O13: TQEH | R13: Sustainability, Energy & Resources | S13: Stretton Institute | U13: School of Biological Sciences | X13: Level B-1 | Y13: Level B | Z13: 1 | AA13: 102276 | AB13: 111031 | AC13: 114917 | AD13: =AC13*(1+$X$120) -> 118939.095 | AE13: 123101.9633 | AF13: 127410.532 | AG13: 131869.9007 | AH13: 136485.3472 | AI13: 141262.3343 | AJ13: 146206.516 | AK13: 151323.7441 | AL13: 156620.0751 | AM13: 162101.7778 | AO13: HEO 4 | AP13: 4 | AT13: Level B-1 | AU13: Academic | AW13: September | AX13: 9 | AY13: 4 | AZ13: 0 | BA13: 6 | BG13: Maximum AL loading | BH13: 1634
E14: Inkind | H14: 1.2 Research Council (ARC) | I14: 2.2 Commonwealth (Other) | J14: 3.2 Australian Not For Profit Organisations | K14: 4.2 Private Industry Participants | O14: WCHN | R14: Photonics & Advanced Sensing | U14: School of Chemical Engineering | X14: Level B-2 | Y14: Level B | Z14: 2 | AA14: 111198 | AB14: 115090 | AC14: 119118 | AD14: =AC14*(1+$X$120) -> 123287.13 | AE14: 127602.1795 | AF14: 132068.2558 | AG14: 136690.6448 | AH14: 141474.8174 | AI14: 146426.436 | AJ14: 151551.3612 | AK14: 156855.6589 | AL14: 162345.6069 | AM14: 168027.7032 | AO14: HEO 5 | AP14: 4 | AT14: Level B-2 | AU14: Academic | AW14: October | AX14: 10 | AY14: 3 | AZ14: 0 | BA14: 6 | BO14: YoY Increase
E15: Ineligible Expense | H15: 1.3 Medical Research Future Fund (MRFF) | I15: 2.3 State/Territory/Local (Own Purpose) | J15: 3.3 Australian Philanthropy | K15: 4.3 Other Sources | O15: WCHRI | R15: Robinson Research | U15: School of Comp & Math Sciences | X15: Level B-3 | Y15: Level B | Z15: 3 | AA15: 115116 | AB15: 119145 | AC15: 123315 | AD15: =AC15*(1+$X$120) -> 127631.025 | AE15: 132098.1109 | AF15: 136721.5448 | AG15: 141506.7988 | AH15: 146459.5368 | AI15: 151585.6206 | AJ15: 156891.1173 | AK15: 162382.3064 | AL15: 168065.6871 | AM15: 173947.9862 | AO15: HEO 6 | AP15: 4 | AT15: Level B-3 | AU15: Academic | AW15: November | AX15: 11 | AY15: 2 | AZ15: 0 | BA15: 6 | BG15: Casual Oncost Type - 2024 | BH15: % | BO15: 0.05
H16: 1.4 Rural R&D | I16: 2.4 State/Territory/Local (Other) | J16: 3.4 International For Profit Organisations | R16: Waite Research | U16: Sci, Eng & Tech Faculty Office | X16: Level B-4 | Y16: Level B | Z16: 4 | AA16: 119043 | AB16: 123210 | AC16: 127522 | AD16: =AC16*(1+$X$120) -> 131985.27 | AE16: 136604.7544 | AF16: 141385.9209 | AG16: 146334.4281 | AH16: 151456.1331 | AI16: 156757.0977 | AJ16: 162243.5961 | AK16: 167922.122 | AL16: 173799.3963 | AM16: 179882.3752 | AO16: HEO 7 | AP16: 5 | AT16: Level B-4 | AU16: Academic | AW16: December | AX16: 12 | AY16: 1 | AZ16: 0 | BA16: 6 | BG16: Payroll | BH16: 0.0495
H17: 1.5 Commonwealth Other | J17: 3.5 International Not For Profit Organisations | U17: Veterinary Teaching Hospital | X17: Level B-5 | Y17: Level B | Z17: 5 | AA17: 122964 | AB17: 127268 | AC17: 131722 | AD17: =AC17*(1+$X$120) -> 136332.27 | AE17: 141103.8994 | AF17: 146042.5359 | AG17: 151154.0247 | AH17: 156444.4156 | AI17: 161919.9701 | AJ17: 167587.1691 | AK17: 173452.72 | AL17: 179523.5652 | AM17: 185806.8899 | AO17: HEO 8 | AP17: 5 | AT17: Level B-5 | AU17: Academic | BG17: Super | BH17: 0.115 | BO17: Types
H18: 1.6 State/Territory/Local (Competitive) | J18: 3.6 International Philanthropy | U18: Waite Precinct | X18: Level B-6 | Y18: Level B | Z18: 6 | AA18: 126894 | AB18: 131335 | AC18: 135932 | AD18: =AC18*(1+$X$120) -> 140689.62 | AE18: 145613.7567 | AF18: 150710.2382 | AG18: 155985.0965 | AH18: 161444.5749 | AI18: 167095.135 | AJ18: 172943.4647 | AK18: 178996.486 | AL18: 185261.363 | AM18: 191745.5107 | AO18: HEO 9 | AP18: 3 | AT18: Level B-6 | AU18: Academic | BG18: Workcover | BH18: 0.005 | BO18: University Rate
E19: Exclusion Type | H19: 1.7 Other | J19: 3.7 International Government (Own Purpose) | X19: Level C-1 | Y19: Level C | Z19: 1 | AA19: 130810 | AB19: 135388 | AC19: 140127 | AD19: =AC19*(1+$X$120) -> 145031.445 | AE19: 150107.5456 | AF19: 155361.3097 | AG19: 160798.9555 | AH19: 166426.919 | AI19: 172251.8611 | AJ19: 178280.6763 | AK19: 184520.4999 | AL19: 190978.7174 | AM19: 197662.9725 | AO19: HEO 10 | AP19: 3 | AT19: Level C-1 | AU19: Academic | BG19: Total | BH19: =SUM(BH16:BH18) -> 0.1695 | BO19: Industry Funded
E20: % | J20: 3.8 International Government (Other) | X20: Level C-2 | Y20: Level C | Z20: 2 | AA20: 134735 | AB20: 139451 | AC20: 144332 | AD20: =AC20*(1+$X$120) -> 149383.62 | AE20: 154612.0467 | AF20: 160023.4683 | AG20: 165624.2897 | AH20: 171421.1399 | AI20: 177420.8798 | AJ20: 183630.6106 | AK20: 190057.6819 | AL20: 196709.7008 | AM20: 203594.5403 | AO20: Senior Manager | AP20: 3 | AT20: Level C-2 | AU20: Academic | BO20: Top-up to Industry Rate
E21: Amount | X21: Level C-3 | Y21: Level C | Z21: 3 | AA21: 138656 | AB21: 143509 | AC21: 148532 | AD21: =AC21*(1+$X$120) -> 153730.62 | AE21: 159111.1917 | AF21: 164680.0834 | AG21: 170443.8863 | AH21: 176409.4224 | AI21: 182583.7521 | AJ21: 188974.1835 | AK21: 195588.2799 | AL21: 202433.8697 | AM21: 209519.0551 | AT21: Level C-3 | AU21: Academic | BG21: Casual Oncost Type - 2025 onwards | BH21: %
X22: Level C-4 | Y22: Level C | Z22: 4 | AA22: 142576 | AB22: 147566 | AC22: 152731 | AD22: =AC22*(1+$X$120) -> 158076.585 | AE22: 163609.2655 | AF22: 169335.5898 | AG22: 175262.3354 | AH22: 181396.5171 | AI22: 187745.3952 | AJ22: 194316.4841 | AK22: 201117.561 | AL22: 208156.6757 | AM22: 215442.1593 | AT22: Level C-4 | AU22: Academic | BG22: Payroll | BH22: 0.0495
X23: Level C-5 | Y23: Level C | Z23: 5 | AA23: 146500 | AB23: 151628 | AC23: 156935 | AD23: =AC23*(1+$X$120) -> 162427.725 | AE23: 168112.6954 | AF23: 173996.6397 | AG23: 180086.5221 | AH23: 186389.5504 | AI23: 192913.1846 | AJ23: 199665.1461 | AK23: 206653.4262 | AL23: 213886.2961 | AM23: 221372.3165 | AT23: Level C-5 | AU23: Academic | BG23: Super | BH23: 0.12
H24: RSP returns | I24: c/$ | X24: Level C-6 | Y24: Level C | Z24: 6 | AA24: 150431 | AB24: 155696 | AC24: 161145 | AD24: =AC24*(1+$X$120) -> 166785.075 | AE24: 172622.5526 | AF24: 178664.342 | AG24: 184917.5939 | AH24: 191389.7097 | AI24: 198088.3496 | AJ24: 205021.4418 | AK24: 212197.1923 | AL24: 219624.094 | AM24: 227310.9373 | AT24: Level C-6 | AU24: Academic | BG24: Workcover | BH24: 0.005
E25: Surplus | H25: Category 1 | I25: 0.35 | X25: Level D-1 | Y25: Level D | Z25: 1 | AA25: 156966 | AB25: 162460 | AC25: 168146 | AD25: =AC25*(1+$X$120) -> 174031.11 | AE25: 180122.1988 | AF25: 186426.4758 | AG25: 192951.4025 | AH25: 199704.7015 | AI25: 206694.3661 | AJ25: 213928.6689 | AK25: 221416.1723 | AL25: 229165.7384 | AM25: 237186.5392 | AT25: Level D-1 | AU25: Academic | BG25: Total | BH25: =SUM(BH22:BH24) -> 0.1745
E26: Fixed Amount | H26: Category 2-4 | I26: 0.24 | X26: Level D-2 | Y26: Level D | Z26: 2 | AA26: 162193 | AB26: 167870 | AC26: 173745 | AD26: =AC26*(1+$X$120) -> 179826.075 | AE26: 186119.9876 | AF26: 192634.1872 | AG26: 199376.3837 | AH26: 206354.5572 | AI26: 213576.9667 | AJ26: 221052.1605 | AK26: 228788.9861 | AL26: 236796.6006 | AM26: 245084.4817 | AT26: Level D-2 | AU26: Academic
E27: % of Salary Expense | X27: Level D-3 | Y27: Level D | Z27: 3 | AA27: 167433 | AB27: 173293 | AC27: 179358 | AD27: =AC27*(1+$X$120) -> 185635.53 | AE27: 192132.7735 | AF27: 198857.4206 | AG27: 205817.4303 | AH27: 213021.0404 | AI27: 220476.7768 | AJ27: 228193.464 | AK27: 236180.2353 | AL27: 244446.5435 | AM27: 253002.1725 | AT27: Level D-3 | AU27: Academic
E28: % of Operating Expense | X28: Level D-4 | Y28: Level D | Z28: 4 | AA28: 172657 | AB28: 178700 | AC28: 184955 | AD28: =AC28*(1+$X$120) -> 191428.425 | AE28: 198128.4199 | AF28: 205062.9146 | AG28: 212240.1166 | AH28: 219668.5207 | AI28: 227356.9189 | AJ28: 235314.411 | AK28: 243550.4154 | AL28: 252074.68 | AM28: 260897.2938 | AT28: Level D-4 | AU28: Academic
X29: Level E | Y29: Level E | Z29: 1 | AA29: 201427 | AB29: 208477 | AC29: 215774 | AD29: =AC29*(1+$X$120) -> 223326.09 | AE29: 231142.5031 | AF29: 239232.4908 | AG29: 247605.6279 | AH29: 256271.8249 | AI29: 265241.3388 | AJ29: 274524.7856 | AK29: 284133.1531 | AL29: 294077.8135 | AM29: 304370.537 | AT29: Level E | AU29: Academic
X30: HEO 1-4 | Y30: HEO 1 | Z30: 4 | AA30: 53458 | AB30: 55329 | AC30: 57266 | AD30: =AC30*(1+$X$120) -> 59270.31 | AE30: 61344.77085 | AF30: 63491.83783 | AG30: 65714.05215 | AH30: 68014.04398 | AI30: 70394.53552 | AJ30: 72858.34426 | AK30: 75408.38631 | AL30: 78047.67983 | AM30: 80779.34863 | AT30: Academic | AU30: Academic
X31: HEO 1-5 | Y31: HEO 1 | Z31: 5 | AA31: 54030 | AB31: 55921 | AC31: 57878 | AD31: =AC31*(1+$X$120) -> 59903.73 | AE31: 62000.36055 | AF31: 64170.37317 | AG31: 66416.33623 | AH31: 68740.908 | AI31: 71146.83978 | AJ31: 73636.97917 | AK31: 76214.27344 | AL31: 78881.77301 | AM31: 81642.63507 | AT31: HEO 1-4 | AU31: Professional
E32: Year | X32: HEO 1-6 | Y32: HEO 1 | Z32: 6 | AA32: 54896 | AB32: 56817 | AC32: 58806 | AD32: =AC32*(1+$X$120) -> 60864.21 | AE32: 62994.45735 | AF32: 65199.26336 | AG32: 67481.23757 | AH32: 69843.08089 | AI32: 72287.58872 | AJ32: 74817.65433 | AK32: 77436.27223 | AL32: 80146.54176 | AM32: 82951.67072 | AT32: HEO 1-5 | AU32: Professional
E33: 2024 | X33: HEO 1-7 | Y33: HEO 1 | Z33: 7 | AA33: 55761 | AB33: 57713 | AC33: 59733 | AD33: =AC33*(1+$X$120) -> 61823.655 | AE33: 63987.48292 | AF33: 66227.04483 | AG33: 68544.9914 | AH33: 70944.0661 | AI33: 73427.10841 | AJ33: 75997.0572 | AK33: 78656.9542 | AL33: 81409.9476 | AM33: 84259.29577 | AT33: HEO 1-6 | AU33: Professional
E34: =E33+1 -> 2025 | X34: HEO 2-4 | Y34: HEO 2 | Z34: 4 | AA34: 57492 | AB34: 59504 | AC34: 61587 | AD34: =AC34*(1+$X$120) -> 63742.545 | AE34: 65973.53407 | AF34: 68282.60777 | AG34: 70672.49904 | AH34: 73146.03651 | AI34: 75706.14778 | AJ34: 78355.86296 | AK34: 81098.31816 | AL34: 83936.7593 | AM34: 86874.54587 | AT34: HEO 1-7 | AU34: Professional
E35: =E34+1 -> 2026 | X35: HEO 2-5 | Y35: HEO 2 | Z35: 5 | AA35: 58651 | AB35: 60704 | AC35: 62829 | AD35: =AC35*(1+$X$120) -> 65028.015 | AE35: 67303.99552 | AF35: 69659.63537 | AG35: 72097.72261 | AH35: 74621.1429 | AI35: 77232.8829 | AJ35: 79936.0338 | AK35: 82733.79498 | AL35: 85629.47781 | AM35: 88626.50953 | AT35: HEO 2-4 | AU35: Professional
E36: =E35+1 -> 2027 | X36: HEO 2-6 | Y36: HEO 2 | Z36: 6 | AA36: 59804 | AB36: 61897 | AC36: 64063 | AD36: =AC36*(1+$X$120) -> 66305.205 | AE36: 68625.88717 | AF36: 71027.79323 | AG36: 73513.76599 | AH36: 76086.7478 | AI36: 78749.78397 | AJ36: 81506.02641 | AK36: 84358.73733 | AL36: 87311.29314 | AM36: 90367.1884 | AT36: HEO 2-5 | AU36: Professional
E37: 2028 | X37: HEO 2-7 | Y37: HEO 2 | Z37: 7 | AA37: 60955 | AB37: 63088 | AC37: 65296 | AD37: =AC37*(1+$X$120) -> 67581.36 | AE37: 69946.7076 | AF37: 72394.84237 | AG37: 74928.66185 | AH37: 77551.16501 | AI37: 80265.45579 | AJ37: 83074.74674 | AK37: 85982.36288 | AL37: 88991.74558 | AM37: 92106.45667 | AT37: HEO 2-6 | AU37: Professional
E38: 2029 | X38: HEO 3-4 | Y38: HEO 3 | Z38: 4 | AA38: 60381 | AB38: 62494 | AC38: 64681 | AD38: =AC38*(1+$X$120) -> 66944.835 | AE38: 69287.90422 | AF38: 71712.98087 | AG38: 74222.9352 | AH38: 76820.73794 | AI38: 79509.46376 | AJ38: 82292.295 | AK38: 85172.52532 | AL38: 88153.56371 | AM38: 91238.93844 | AT38: HEO 2-7 | AU38: Professional
E39: 2030 | X39: HEO 3-5 | Y39: HEO 3 | Z39: 5 | AA39: 62399 | AB39: 64583 | AC39: 66843 | AD39: =AC39*(1+$X$120) -> 69182.505 | AE39: 71603.89267 | AF39: 74110.02892 | AG39: 76703.87993 | AH39: 79388.51573 | AI39: 82167.11378 | AJ39: 85042.96276 | AK39: 88019.46646 | AL39: 91100.14778 | AM39: 94288.65296 | AT39: HEO 3-4 | AU39: Professional
E40: 2031 | X40: HEO 3-6 | Y40: HEO 3 | Z40: 6 | AA40: 64426 | AB40: 66681 | AC40: 69015 | AD40: =AC40*(1+$X$120) -> 71430.525 | AE40: 73930.59337 | AF40: 76518.16414 | AG40: 79196.29989 | AH40: 81968.17038 | AI40: 84837.05635 | AJ40: 87806.35332 | AK40: 90879.57569 | AL40: 94060.36084 | AM40: 97352.47346 | AT40: HEO 3-5 | AU40: Professional
E41: 2032 | X41: HEO 3-7 | Y41: HEO 3 | Z41: 7 | AA41: 66444 | AB41: 68770 | AC41: 71177 | AD41: =AC41*(1+$X$120) -> 73668.195 | AE41: 76246.58182 | AF41: 78915.21219 | AG41: 81677.24462 | AH41: 84535.94818 | AI41: 87494.70636 | AJ41: 90557.02109 | AK41: 93726.51682 | AL41: 97006.94491 | AM41: 100402.188 | AT41: HEO 3-6 | AU41: Professional
E42: 2033 | X42: HEO 3-8 | Y42: HEO 3 | Z42: 8 | AA42: 68464 | AB42: 70860 | AC42: 73340 | AD42: =AC42*(1+$X$120) -> 75906.9 | AE42: 78563.6415 | AF42: 81313.36895 | AG42: 84159.33687 | AH42: 87104.91366 | AI42: 90153.58563 | AJ42: 93308.96113 | AK42: 96574.77477 | AL42: 99954.89189 | AM42: 103453.3131 | AT42: HEO 3-7 | AU42: Professional
E43: 2034 | X43: HEO 4-1 | Y43: HEO 4 | Z43: 1 | AA43: 69043 | AB43: 71460 | AC43: 73961 | AD43: =AC43*(1+$X$120) -> 76549.635 | AE43: 79228.87222 | AF43: 82001.88275 | AG43: 84871.94865 | AH43: 87842.46685 | AI43: 90916.95319 | AJ43: 94099.04655 | AK43: 97392.51318 | AL43: 100801.2511 | AM43: 104329.2949 | AT43: HEO 3-8 | AU43: Professional
E44: 2035 | X44: HEO 4-2 | Y44: HEO 4 | Z44: 2 | AA44: 71055 | AB44: 73542 | AC44: 76116 | AD44: =AC44*(1+$X$120) -> 78780.06 | AE44: 81537.3621 | AF44: 84391.16977 | AG44: 87344.86072 | AH44: 90401.93084 | AI44: 93565.99842 | AJ44: 96840.80836 | AK44: 100230.2367 | AL44: 103738.2949 | AM44: 107369.1353 | AT44: HEO 4-1 | AU44: Professional
X45: HEO 4-3 | Y45: HEO 4 | Z45: 3 | AA45: 73366 | AB45: 75934 | AC45: 78592 | AD45: =AC45*(1+$X$120) -> 81342.72 | AE45: 84189.7152 | AF45: 87136.35523 | AG45: 90186.12767 | AH45: 93342.64213 | AI45: 96609.63461 | AJ45: 99990.97182 | AK45: 103490.6558 | AL45: 107112.8288 | AM45: 110861.7778 | AT45: HEO 4-2 | AU45: Professional
X46: HEO 4-4 | Y46: HEO 4 | Z46: 4 | AA46: 75677 | AB46: 78326 | AC46: 81067 | AD46: =AC46*(1+$X$120) -> 83904.345 | AE46: 86840.99707 | AF46: 89880.43197 | AG46: 93026.24709 | AH46: 96282.16574 | AI46: 99652.04154 | AJ46: 103139.863 | AK46: 106749.7582 | AL46: 110485.9997 | AM46: 114353.0097 | AT46: HEO 4-3 | AU46: Professional
X47: HEO 5-1 | Y47: HEO 5 | Z47: 1 | AA47: 77409 | AB47: 80118 | AC47: 82922 | AD47: =AC47*(1+$X$120) -> 85824.27 | AE47: 88828.11945 | AF47: 91937.10363 | AG47: 95154.90226 | AH47: 98485.32384 | AI47: 101932.3102 | AJ47: 105499.941 | AK47: 109192.439 | AL47: 113014.1743 | AM47: 116969.6704 | AT47: HEO 4-4 | AU47: Professional
X48: HEO 5-2 | Y48: HEO 5 | Z48: 2 | AA48: 80004 | AB48: 82804 | AC48: 85702 | AD48: =AC48*(1+$X$120) -> 88701.57 | AE48: 91806.12495 | AF48: 95019.33932 | AG48: 98345.0162 | AH48: 101787.0918 | AI48: 105349.64 | AJ48: 109036.8774 | AK48: 112853.1681 | AL48: 116803.029 | AM48: 120891.135 | AT48: HEO 5-1 | AU48: Professional
X49: HEO 5-3 | Y49: HEO 5 | Z49: 3 | AA49: 82896 | AB49: 85797 | AC49: 88800 | AD49: =AC49*(1+$X$120) -> 91908 | AE49: 95124.78 | AF49: 98454.1473 | AG49: 101900.0425 | AH49: 105466.5439 | AI49: 109157.873 | AJ49: 112978.3985 | AK49: 116932.6425 | AL49: 121025.285 | AM49: 125261.1699 | AT49: HEO 5-2 | AU49: Professional
X50: HEO 5-4 | Y50: HEO 5 | Z50: 4 | AA50: 86072 | AB50: 89085 | AC50: 92203 | AD50: =AC50*(1+$X$120) -> 95430.105 | AE50: 98770.15867 | AF50: 102227.1142 | AG50: 105805.0632 | AH50: 109508.2404 | AI50: 113341.0289 | AJ50: 117307.9649 | AK50: 121413.7436 | AL50: 125663.2247 | AM50: 130061.4375 | AT50: HEO 5-3 | AU50: Professional
X51: HEO 6-1 | Y51: HEO 6 | Z51: 1 | AA51: 86360 | AB51: 89383 | AC51: 92511 | AD51: =AC51*(1+$X$120) -> 95748.885 | AE51: 99100.09597 | AF51: 102568.5993 | AG51: 106158.5003 | AH51: 109874.0478 | AI51: 113719.6395 | AJ51: 117699.8269 | AK51: 121819.3208 | AL51: 126082.997 | AM51: 130495.9019 | AT51: HEO 5-4 | AU51: Professional
X52: HEO 6-2 | Y52: HEO 6 | Z52: 2 | AA52: 88669 | AB52: 91772 | AC52: 94984 | AD52: =AC52*(1+$X$120) -> 98308.44 | AE52: 101749.2354 | AF52: 105310.4586 | AG52: 108996.3247 | AH52: 112811.1961 | AI52: 116759.5879 | AJ52: 120846.1735 | AK52: 125075.7896 | AL52: 129453.4422 | AM52: 133984.3127 | AT52: HEO 6-1 | AU52: Professional
X53: HEO 6-3 | Y53: HEO 6 | Z53: 3 | AA53: 90979 | AB53: 94163 | AC53: 97459 | AD53: =AC53*(1+$X$120) -> 100870.065 | AE53: 104400.5173 | AF53: 108054.5354 | AG53: 111836.4441 | AH53: 115750.7197 | AI53: 119801.9949 | AJ53: 123995.0647 | AK53: 128334.8919 | AL53: 132826.6132 | AM53: 137475.5446 | AT53: HEO 6-2 | AU53: Professional
X54: HEO 6-4 | Y54: HEO 6 | Z54: 4 | AA54: 93285 | AB54: 96550 | AC54: 99929 | AD54: =AC54*(1+$X$120) -> 103426.515 | AE54: 107046.443 | AF54: 110793.0685 | AG54: 114670.8259 | AH54: 118684.3048 | AI54: 122838.2555 | AJ54: 127137.5944 | AK54: 131587.4103 | AL54: 136192.9696 | AM54: 140959.7236 | AT54: HEO 6-3 | AU54: Professional
X55: HEO 7-1 | Y55: HEO 7 | Z55: 1 | AA55: 95017 | AB55: 98343 | AC55: 101785 | AD55: =AC55*(1+$X$120) -> 105347.475 | AE55: 109034.6366 | AF55: 112850.8489 | AG55: 116800.6286 | AH55: 120888.6506 | AI55: 125119.7534 | AJ55: 129498.9448 | AK55: 134031.4078 | AL55: 138722.5071 | AM55: 143577.7948 | AT55: HEO 6-4 | AU55: Professional
X56: HEO 7-2 | Y56: HEO 7 | Z56: 2 | AA56: 97612 | AB56: 101028 | AC56: 104564 | AD56: =AC56*(1+$X$120) -> 108223.74 | AE56: 112011.5709 | AF56: 115931.9759 | AG56: 119989.595 | AH56: 124189.2309 | AI56: 128535.8539 | AJ56: 133034.6088 | AK56: 137690.8201 | AL56: 142509.9988 | AM56: 147497.8488 | AT56: HEO 7-1 | AU56: Professional
X57: HEO 7-3 | Y57: HEO 7 | Z57: 3 | AA57: 100499 | AB57: 104016 | AC57: 107657 | AD57: =AC57*(1+$X$120) -> 111424.995 | AE57: 115324.8698 | AF57: 119361.2403 | AG57: 123538.8837 | AH57: 127862.7446 | AI57: 132337.9407 | AJ57: 136969.7686 | AK57: 141763.7105 | AL57: 146725.4404 | AM57: 151860.8308 | AT57: HEO 7-2 | AU57: Professional
X58: HEO 7-4 | Y58: HEO 7 | Z58: 4 | AA58: 103390 | AB58: 107009 | AC58: 110754 | AD58: =AC58*(1+$X$120) -> 114630.39 | AE58: 118642.4536 | AF58: 122794.9395 | AG58: 127092.7624 | AH58: 131541.0091 | AI58: 136144.9444 | AJ58: 140910.0175 | AK58: 145841.8681 | AL58: 150946.3335 | AM58: 156229.4551 | AT58: HEO 7-3 | AU58: Professional
X59: HEO 7-5 | Y59: HEO 7 | Z59: 5 | AA59: 106270 | AB59: 109989 | AC59: 113839 | AD59: =AC59*(1+$X$120) -> 117823.365 | AE59: 121947.1828 | AF59: 126215.3342 | AG59: 130632.8709 | AH59: 135205.0213 | AI59: 139937.1971 | AJ59: 144834.999 | AK59: 149904.224 | AL59: 155150.8718 | AM59: 160581.1523 | AT59: HEO 7-4 | AU59: Professional
X60: HEO 8-1 | Y60: HEO 8 | Z60: 1 | AA60: 106561 | AB60: 110291 | AC60: 114151 | AD60: =AC60*(1+$X$120) -> 118146.285 | AE60: 122281.405 | AF60: 126561.2541 | AG60: 130990.898 | AH60: 135575.5795 | AI60: 140320.7248 | AJ60: 145231.9501 | AK60: 150315.0684 | AL60: 155576.0958 | AM60: 161021.2591 | AT60: HEO 7-5 | AU60: Professional
X61: HEO 8-2 | Y61: HEO 8 | Z61: 2 | AA61: 109450 | AB61: 113281 | AC61: 117246 | AD61: =AC61*(1+$X$120) -> 121349.61 | AE61: 125596.8463 | AF61: 129992.736 | AG61: 134542.4817 | AH61: 139251.4686 | AI61: 144125.27 | AJ61: 149169.6544 | AK61: 154390.5923 | AL61: 159794.2631 | AM61: 165387.0623 | AT61: HEO 8-1 | AU61: Professional
X62: HEO 8-3 | Y62: HEO 8 | Z62: 3 | AA62: 112337 | AB62: 116269 | AC62: 120338 | AD62: =AC62*(1+$X$120) -> 124549.83 | AE62: 128909.074 | AF62: 133420.8916 | AG62: 138090.6228 | AH62: 142923.7946 | AI62: 147926.1275 | AJ62: 153103.5419 | AK62: 158462.1659 | AL62: 164008.3417 | AM62: 169748.6337 | AT62: HEO 8-2 | AU62: Professional
X63: HEO 8-4 | Y63: HEO 8 | Z63: 4 | AA63: 115794 | AB63: 119847 | AC63: 124042 | AD63: =AC63*(1+$X$120) -> 128383.47 | AE63: 132876.8914 | AF63: 137527.5827 | AG63: 142341.048 | AH63: 147322.9847 | AI63: 152479.2892 | AJ63: 157816.0643 | AK63: 163339.6266 | AL63: 169056.5135 | AM63: 174973.4915 | AT63: HEO 8-3 | AU63: Professional
X64: HEO 8-5 | Y64: HEO 8 | Z64: 5 | AA64: 119550 | AB64: 123734 | AC64: 128065 | AD64: =AC64*(1+$X$120) -> 132547.275 | AE64: 137186.4296 | AF64: 141987.9547 | AG64: 146957.5331 | AH64: 152101.0467 | AI64: 157424.5834 | AJ64: 162934.4438 | AK64: 168637.1493 | AL64: 174539.4495 | AM64: 180648.3303 | AT64: HEO 8-4 | AU64: Professional
X65: HEO 9-1 | Y65: HEO 9 | Z65: 1 | AA65: 123881 | AB65: 128217 | AC65: 132705 | AD65: =AC65*(1+$X$120) -> 137349.675 | AE65: 142156.9136 | AF65: 147132.4056 | AG65: 152282.0398 | AH65: 157611.9112 | AI65: 163128.3281 | AJ65: 168837.8196 | AK65: 174747.1433 | AL65: 180863.2933 | AM65: 187193.5085 | AT65: HEO 8-5 | AU65: Professional
X66: HEO 9-2 | Y66: HEO 9 | Z66: 2 | AA66: 127918 | AB66: 132395 | AC66: 137029 | AD66: =AC66*(1+$X$120) -> 141825.015 | AE66: 146788.8905 | AF66: 151926.5017 | AG66: 157243.9293 | AH66: 162747.4668 | AI66: 168443.6281 | AJ66: 174339.1551 | AK66: 180441.0255 | AL66: 186756.4614 | AM66: 193292.9376 | AT66: HEO 9-1 | AU66: Professional
X67: HEO 9-3 | Y67: HEO 9 | Z67: 3 | AA67: 132534 | AB67: 137173 | AC67: 141974 | AD67: =AC67*(1+$X$120) -> 146943.09 | AE67: 152086.0981 | AF67: 157409.1116 | AG67: 162918.4305 | AH67: 168620.5756 | AI67: 174522.2957 | AJ67: 180630.5761 | AK67: 186952.6462 | AL67: 193495.9888 | AM67: 200268.3484 | AT67: HEO 9-2 | AU67: Professional
X68: HEO 10-1 | Y68: HEO 10 | Z68: 1 | AA68: 136821 | AB68: 141610 | AC68: 146566 | AD68: =AC68*(1+$X$120) -> 151695.81 | AE68: 157005.1633 | AF68: 162500.3441 | AG68: 168187.8561 | AH68: 174074.4311 | AI68: 180167.0362 | AJ68: 186472.8824 | AK68: 192999.4333 | AL68: 199754.4135 | AM68: 206745.8179 | AT68: HEO 9-3 | AU68: Professional
X69: HEO 10-2 | Y69: HEO 10 | Z69: 2 | AA69: 141249 | AB69: 146193 | AC69: 151310 | AD69: =AC69*(1+$X$120) -> 156605.85 | AE69: 162087.0547 | AF69: 167760.1017 | AG69: 173631.7052 | AH69: 179708.8149 | AI69: 185998.6234 | AJ69: 192508.5752 | AK69: 199246.3754 | AL69: 206219.9985 | AM69: 213437.6985 | AT69: HEO 10-1 | AU69: Professional
X70: HEO 10-3 | Y70: HEO 10 | Z70: 3 | AA70: 145823 | AB70: 150927 | AC70: 156209 | AD70: =AC70*(1+$X$120) -> 161676.315 | AE70: 167334.986 | AF70: 173191.7105 | AG70: 179253.4204 | AH70: 185527.2901 | AI70: 192020.7453 | AJ70: 198741.4714 | AK70: 205697.4229 | AL70: 212896.8327 | AM70: 220348.2218 | AT70: HEO 10-2 | AU70: Professional
X71: Senior Manager 1 | Y71: Senior Manager | Z71: 1 | AA71: 156521 | AB71: 161999 | AC71: 167669 | AD71: =AC71*(1+$X$120) -> 173537.415 | AE71: 179611.2245 | AF71: 185897.6174 | AG71: 192404.034 | AH71: 199138.1752 | AI71: 206108.0113 | AJ71: 213321.7917 | AK71: 220788.0544 | AL71: 228515.6363 | AM71: 236513.6836 | AT71: HEO 10-3 | AU71: Professional
X72: Senior Manager 2 | Y72: Senior Manager | Z72: 2 | AA72: 175437 | AB72: 181577 | AC72: 187932 | AD72: =AC72*(1+$X$120) -> 194509.62 | AE72: 201317.4567 | AF72: 208363.5677 | AG72: 215656.2926 | AH72: 223204.2628 | AI72: 231016.412 | AJ72: 239101.9864 | AK72: 247470.5559 | AL72: 256132.0254 | AM72: 265096.6463 | AT72: Senior Manager 1 | AU72: Professional
X73: Senior Manager 3 | Y73: Senior Manager | Z73: 3 | AA73: 187255 | AB73: 193809 | AC73: 200592 | AD73: =AC73*(1+$X$120) -> 207612.72 | AE73: 214879.1652 | AF73: 222399.936 | AG73: 230183.9337 | AH73: 238240.3714 | AI73: 246578.7844 | AJ73: 255209.0419 | AK73: 264141.3583 | AL73: 273386.3059 | AM73: 282954.8266 | AT73: Senior Manager 2 | AU73: Professional
AT74: Senior Manager 3 | AU74: Professional
X75: Casual Salaries | AA75: 2024 | AB75: 2025 | AC75: 2026 | AD75: 2027 | AE75: 2028 | AF75: 2029 | AG75: 2030 | AH75: 2031 | AI75: 2032 | AJ75: 2033 | AK75: 2034 | AL75: 2035
X76: Academic | AA76: 53.13 | AB76: 54.99 | AC76: =AB76*(1+$X$120) -> 56.91465 | AD76: 58.90666275 | AE76: 60.96839595 | AF76: 63.1022898 | AG76: 65.31086995 | AH76: 67.5967504 | AI76: 69.96263666 | AJ76: 72.41132894 | AK76: 74.94572546 | AL76: 77.56882585
X77: HEO 1-4 | AA77: 36.19 | AB77: 37.46 | AC77: =AB77*(1+$X$120) -> 38.7711 | AD77: 40.1280885 | AE77: 41.5325716 | AF77: 42.9862116 | AG77: 44.49072901 | AH77: 46.04790452 | AI77: 47.65958118 | AJ77: 49.32766652 | AK77: 51.05413485 | AL77: 52.84102957
X78: HEO 1-5 | AA78: 36.58 | AB78: 37.86 | AC78: =AB78*(1+$X$120) -> 39.1851 | AD78: 40.5565785 | AE78: 41.97605875 | AF78: 43.4452208 | AG78: 44.96580353 | AH78: 46.53960666 | AI78: 48.16849289 | AJ78: 49.85439014 | AK78: 51.59929379 | AL78: 53.40526908
X79: HEO 1-6 | AA79: 37.16 | AB79: 38.47 | AC79: =AB79*(1+$X$120) -> 39.81645 | AD79: 41.21002575 | AE79: 42.65237665 | AF79: 44.14520983 | AG79: 45.69029218 | AH79: 47.2894524 | AI79: 48.94458324 | AJ79: 50.65764365 | AK79: 52.43066118 | AL79: 54.26573432
X80: HEO 1-7 | AA80: 37.75 | AB80: 39.07 | AC80: =AB80*(1+$X$120) -> 40.43745 | AD80: 41.85276075 | AE80: 43.31760738 | AF80: 44.83372363 | AG80: 46.40290396 | AH80: 48.0270056 | AI80: 49.7079508 | AJ80: 51.44772907 | AK80: 53.24839959 | AL80: 55.11209358
X81: HEO 2-4 | AA81: 38.92 | AB81: 40.28 | AC81: =AB81*(1+$X$120) -> 41.6898 | AD81: 43.148943 | AE81: 44.659156 | AF81: 46.22222647 | AG81: 47.84000439 | AH81: 49.51440455 | AI81: 51.2474087 | AJ81: 53.04106801 | AK81: 54.89750539 | AL81: 56.81891808
X82: HEO 2-5 | AA82: 39.71 | AB82: 41.1 | AC82: =AB82*(1+$X$120) -> 42.5385 | AD82: 44.0273475 | AE82: 45.56830466 | AF82: 47.16319533 | AG82: 48.81390716 | AH82: 50.52239391 | AI82: 52.2906777 | AJ82: 54.12085142 | AK82: 56.01508122 | AL82: 57.97560906
X83: HEO 2-6 | AA83: 40.49 | AB83: 41.9 | AC83: =AB83*(1+$X$120) -> 43.3665 | AD83: 44.8843275 | AE83: 46.45527896 | AF83: 48.08121373 | AG83: 49.76405621 | AH83: 51.50579817 | AI83: 53.30850111 | AJ83: 55.17429865 | AK83: 57.1053991 | AL83: 59.10408807
X84: HEO 2-7 | AA84: 41.27 | AB84: 42.71 | AC84: =AB84*(1+$X$120) -> 44.20485 | AD84: 45.75201975 | AE84: 47.35334044 | AF84: 49.01070736 | AG84: 50.72608211 | AH84: 52.50149499 | AI84: 54.33904731 | AJ84: 56.24091397 | AK84: 58.20934596 | AL84: 60.24667307
X85: HEO 3-4 | AA85: 40.88 | AB85: 42.31 | AC85: =AB85*(1+$X$120) -> 43.79085 | AD85: 45.32352975 | AE85: 46.90985329 | AF85: 48.55169816 | AG85: 50.25100759 | AH85: 52.00979286 | AI85: 53.83013561 | AJ85: 55.71419035 | AK85: 57.66418702 | AL85: 59.68243356
X86: HEO 3-5 | AA86: 42.24 | AB86: 43.72 | AC86: =AB86*(1+$X$120) -> 45.2502 | AD86: 46.833957 | AE86: 48.47314549 | AF86: 50.16970559 | AG86: 51.92564528 | AH86: 53.74304287 | AI86: 55.62404937 | AJ86: 57.5708911 | AK86: 59.58587228 | AL86: 61.67137781
X87: HEO 3-6 | AA87: 43.62 | AB87: 45.14 | AC87: =AB87*(1+$X$120) -> 46.7199 | AD87: 48.3550965 | AE87: 50.04752488 | AF87: 51.79918825 | AG87: 53.61215984 | AH87: 55.48858543 | AI87: 57.43068592 | AJ87: 59.44075993 | AK87: 61.52118653 | AL87: 63.67442805
X88: HEO 3-7 | AA88: 44.98 | AB88: 46.56 | AC88: =AB88*(1+$X$120) -> 48.1896 | AD88: 49.876236 | AE88: 51.62190426 | AF88: 53.42867091 | AG88: 55.29867439 | AH88: 57.23412799 | AI88: 59.23732247 | AJ88: 61.31062876 | AK88: 63.45650077 | AL88: 65.67747829
X89: HEO 3-8 | AA89: 46.35 | AB89: 47.97 | AC89: =AB89*(1+$X$120) -> 49.64895 | AD89: 51.38666325 | AE89: 53.18519646 | AF89: 55.04667834 | AG89: 56.97331208 | AH89: 58.967378 | AI89: 61.03123623 | AJ89: 63.1673295 | AK89: 65.37818604 | AL89: 67.66642255
X90: HEO 4-1 | AA90: 46.74 | AB90: 48.38 | AC90: =AB90*(1+$X$120) -> 50.0733 | AD90: 51.8258655 | AE90: 53.63977079 | AF90: 55.51716277 | AG90: 57.46026347 | AH90: 59.47137269 | AI90: 61.55287073 | AJ90: 63.70722121 | AK90: 65.93697395 | AL90: 68.24476804
X91: HEO 4-2 | AA91: 48.1 | AB91: 49.79 | AC91: =AB91*(1+$X$120) -> 51.53265 | AD91: 53.33629275 | AE91: 55.203063 | AF91: 57.1351702 | AG91: 59.13490116 | AH91: 61.2046227 | AI91: 63.34678449 | AJ91: 65.56392195 | AK91: 67.85865922 | AL91: 70.23371229
X92: HEO 4-3 | AA92: 49.67 | AB92: 51.41 | AC92: =AB92*(1+$X$120) -> 53.20935 | AD92: 55.07167725 | AE92: 56.99918595 | AF92: 58.99415746 | AG92: 61.05895297 | AH92: 63.19601633 | AI92: 65.4078769 | AJ92: 67.69715259 | AK92: 70.06655293 | AL92: 72.51888228
X93: HEO 4-4 | AA93: 51.23 | AB93: 53.03 | AC93: =AB93*(1+$X$120) -> 54.88605 | AD93: 56.80706175 | AE93: 58.79530891 | AF93: 60.85314472 | AG93: 62.98300479 | AH93: 65.18740996 | AI93: 67.4689693 | AJ93: 69.83038323 | AK93: 72.27444664 | AL93: 74.80405228
X94: HEO 5-1 | AA94: 52.41 | AB94: 54.24 | AC94: =AB94*(1+$X$120) -> 56.1384 | AD94: 58.103244 | AE94: 60.13685754 | AF94: 62.24164755 | AG94: 64.42010522 | AH94: 66.6748089 | AI94: 69.00842721 | AJ94: 71.42372216 | AK94: 73.92355244 | AL94: 76.51087678
X95: HEO 5-2 | AA95: 54.16 | AB95: 56.06 | AC95: =AB95*(1+$X$120) -> 58.0221 | AD95: 60.0528735 | AE95: 62.15472407 | AF95: 64.33013942 | AG95: 66.58169429 | AH95: 68.91205359 | AI95: 71.32397547 | AJ95: 73.82031461 | AK95: 76.40402562 | AL95: 79.07816652
X96: HEO 5-3 | AA96: 56.12 | AB96: 58.08 | AC96: =AB96*(1+$X$120) -> 60.1128 | AD96: 62.216748 | AE96: 64.39433418 | AF96: 66.64813588 | AG96: 68.98082063 | AH96: 71.39514935 | AI96: 73.89397958 | AJ96: 76.48026887 | AK96: 79.15707828 | AL96: 81.92757602
X97: HEO 5-4 | AA97: 58.27 | AB97: 60.31 | AC97: =AB97*(1+$X$120) -> 62.42085 | AD97: 64.60557975 | AE97: 66.86677504 | AF97: 69.20711217 | AG97: 71.62936109 | AH97: 74.13638873 | AI97: 76.73116234 | AJ97: 79.41675302 | AK97: 82.19633937 | AL97: 85.07321125
X98: HEO 6-1 | AA98: 58.47 | AB98: 60.51 | AC98: =AB98*(1+$X$120) -> 62.62785 | AD98: 64.81982475 | AE98: 67.08851862 | AF98: 69.43661677 | AG98: 71.86689835 | AH98: 74.3822398 | AI98: 76.98561819 | AJ98: 79.68011483 | AK98: 82.46891885 | AL98: 85.35533101
X99: HEO 6-2 | AA99: 60.03 | AB99: 62.13 | AC99: =AB99*(1+$X$120) -> 64.30455 | AD99: 66.55520925 | AE99: 68.88464157 | AF99: 71.29560403 | AG99: 73.79095017 | AH99: 76.37363343 | AI99: 79.0467106 | AJ99: 81.81334547 | AK99: 84.67681256 | AL99: 87.640501
X100: HEO 6-3 | AA100: 61.59 | AB100: 63.75 | AC100: =AB100*(1+$X$120) -> 65.98125 | AD100: 68.29059375 | AE100: 70.68076453 | AF100: 73.15459129 | AG100: 75.71500198 | AH100: 78.36502705 | AI100: 81.107803 | AJ100: 83.94657611 | AK100: 86.88470627 | AL100: 89.92567099
X101: HEO 6-4 | AA101: 63.15 | AB101: 65.36 | AC101: =AB101*(1+$X$120) -> 67.6476 | AD101: 70.015266 | AE101: 72.46580031 | AF101: 75.00210332 | AG101: 77.62717694 | AH101: 80.34412813 | AI101: 83.15617261 | AJ101: 86.06663866 | AK101: 89.07897101 | AL101: 92.19673499
X102: HEO 7-1 | AA102: 64.33 | AB102: 66.58 | AC102: =AB102*(1+$X$120) -> 68.9103 | AD102: 71.3221605 | AE102: 73.81843612 | AF102: 76.40208138 | AG102: 79.07615423 | AH102: 81.84381963 | AI102: 84.70835331 | AJ102: 87.67314568 | AK102: 90.74170578 | AL102: 93.91766548
X103: HEO 7-2 | AA103: 66.08 | AB103: 68.4 | AC103: =AB103*(1+$X$120) -> 70.794 | AD103: 73.27179 | AE103: 75.83630265 | AF103: 78.49057324 | AG103: 81.23774331 | AH103: 84.08106432 | AI103: 87.02390157 | AJ103: 90.06973813 | AK103: 93.22217896 | AL103: 96.48495523
X104: HEO 7-3 | AA104: 68.04 | AB104: 70.42 | AC104: =AB104*(1+$X$120) -> 72.8847 | AD104: 75.4356645 | AE104: 78.07591276 | AF104: 80.8085697 | AG104: 83.63686964 | AH104: 86.56416008 | AI104: 89.59390568 | AJ104: 92.72969238 | AK104: 95.97523162 | AL104: 99.33436472
X105: HEO 7-4 | AA105: 70 | AB105: 72.45 | AC105: =AB105*(1+$X$120) -> 74.98575 | AD105: 77.61025125 | AE105: 80.32661004 | AF105: 83.1380414 | AG105: 86.04787284 | AH105: 89.05954839 | AI105: 92.17663259 | AJ105: 95.40281473 | AK105: 98.74191324 | AL105: 102.1978802
X106: HEO 7-5 | AA106: 71.94 | AB106: 74.46 | AC106: =AB106*(1+$X$120) -> 77.0661 | AD106: 79.7634135 | AE106: 82.55513297 | AF106: 85.44456263 | AG106: 88.43512232 | AH106: 91.5303516 | AI106: 94.73391391 | AJ106: 98.04960089 | AK106: 101.4813369 | AL106: 105.0331837
X107: HEO 8-1 | AA107: 72.14 | AB107: 74.67 | AC107: =AB107*(1+$X$120) -> 77.28345 | AD107: 79.98837075 | AE107: 82.78796373 | AF107: 85.68554246 | AG107: 88.68453644 | AH107: 91.78849522 | AI107: 95.00109255 | AJ107: 98.32613079 | AK107: 101.7675454 | AL107: 105.3294095
X108: HEO 8-2 | AA108: 74.1 | AB108: 76.69 | AC108: =AB108*(1+$X$120) -> 79.37415 | AD108: 82.15224525 | AE108: 85.02757383 | AF108: 88.00353892 | AG108: 91.08366278 | AH108: 94.27159098 | AI108: 97.57109666 | AJ108: 100.986085 | AK108: 104.520598 | AL108: 108.178819
X109: HEO 8-3 | AA109: 76.05 | AB109: 78.71 | AC109: =AB109*(1+$X$120) -> 81.46485 | AD109: 84.31611975 | AE109: 87.26718394 | AF109: 90.32153538 | AG109: 93.48278912 | AH109: 96.75468674 | AI109: 100.1411008 | AJ109: 103.6460393 | AK109: 107.2736507 | AL109: 111.0282284
X110: HEO 8-4 | AA110: 78.39 | AB110: 81.14 | AC110: =AB110*(1+$X$120) -> 83.9799 | AD110: 86.9191965 | AE110: 89.96136838 | AF110: 93.11001627 | AG110: 96.36886684 | AH110: 99.74177718 | AI110: 103.2327394 | AJ110: 106.8458853 | AK110: 110.5854912 | AL110: 114.4559834
X111: HEO 8-5 | AA111: 80.94 | AB111: 83.77 | AC111: =AB111*(1+$X$120) -> 86.70195 | AD111: 89.73651825 | AE111: 92.87729639 | AF111: 96.12800176 | AG111: 99.49248182 | AH111: 102.9747187 | AI111: 106.5788338 | AJ111: 110.309093 | AK111: 114.1699113 | AL111: 118.1658582
X112: HEO 9-1 | AA112: 83.87 | AB112: 86.8 | AC112: =AB112*(1+$X$120) -> 89.838 | AD112: 92.98233 | AE112: 96.23671155 | AF112: 99.60499645 | AG112: 103.0911713 | AH112: 106.6993623 | AI112: 110.43384 | AJ112: 114.2990244 | AK112: 118.2994903 | AL112: 122.4399724
X113: HEO 9-2 | AA113: 86.6 | AB113: 89.63 | AC113: =AB113*(1+$X$120) -> 92.76705 | AD113: 96.01389675 | AE113: 99.37438314 | AF113: 102.8524865 | AG113: 106.4523236 | AH113: 110.1781549 | AI113: 114.0343903 | AJ113: 118.025594 | AK113: 122.1564898 | AL113: 126.4319669
X114: HEO 9-3 | AA114: 89.73 | AB114: 92.87 | AC114: =AB114*(1+$X$120) -> 96.12045 | AD114: 99.48466575 | AE114: 102.9666291 | AF114: 106.5704611 | AG114: 110.3004272 | AH114: 114.1609422 | AI114: 118.1565751 | AJ114: 122.2920553 | AK114: 126.5722772 | AL114: 131.0023069
X115: HEO 10-1 | AA115: 92.63 | AB115: 95.87 | AC115: =AB115*(1+$X$120) -> 99.22545 | AD115: 102.6983407 | AE115: 106.2927827 | AF115: 110.0130301 | AG115: 113.8634861 | AH115: 117.8487081 | AI115: 121.9734129 | AJ115: 126.2424824 | AK115: 130.6609693 | AL115: 135.2341032
X116: HEO 10-2 | AA116: 95.63 | AB116: 98.97 | AC116: =AB116*(1+$X$120) -> 102.43395 | AD116: 106.0191382 | AE116: 109.7298081 | AF116: 113.5703514 | AG116: 117.5453137 | AH116: 121.6593996 | AI116: 125.9174786 | AJ116: 130.3245904 | AK116: 134.8859511 | AL116: 139.6069593
X117: HEO 10-3 | AA117: 98.72 | AB117: 102.18 | AC117: =AB117*(1+$X$120) -> 105.7563 | AD117: 109.4577705 | AE117: 113.2887925 | AF117: 117.2539002 | AG117: 121.3577867 | AH117: 125.6053092 | AI117: 130.0014951 | AJ117: 134.5515474 | AK117: 139.2608516 | AL117: 144.1349814
X119: Indexation %
X120: 0.035
X122: Year | AA122: Indexation
X123: 0
X124: 1 | AA124: 0.035
X125: 2 | AA125: =AA124+0.035 -> 0.07
X126: 3 | AA126: =AA125+0.03 -> 0.1
X127: 4 | AA127: =AA126+0.03 -> 0.13
X128: 5 | AA128: 0.16
X129: 6 | AA129: 0.19
X130: 7 | AA130: 0.22
X131: 8 | AA131: 0.25
X132: 9 | AA132: 0.28
X133: 10 | AA133: 0.31
X134: 11 | AA134: 0.34

Sheet Change Log (hidden)
B2: Date | C2: Description of change(s)
B3: 45422 | C3: - Updated the instructions for the "Funding Source" column in the "Overhead Rates" section
B4: 45447 | C4: - Changed the oncost % for casuals to 16.95% in 2024 and 17.45% from 2025 onwards (as per HR’s advice)
C5: - Added “High Performing Computer” as an expense type in the Operating Expenses section
C6: - Replaced the “Quick Salary Calc – Optional” tab with the latest version from Alen
B7: 45455 | C7: - Added 15 rows each to the “Continuing & Fixed Term Salaries – Monthly/Annual” and “Continuing & Fixed Term Salaries – Hourly/Daily/Weekly” sections so both now have 30 rows but with only 10 rows showing
C8: - Replaced the “Quick Salary Calc” tab with the file that Alen sent through yesterday (now with 10 rows)
B9: 45484 | C9: - Aligned the salary calculation in the CPT to the quick salary & oncost calculator
C10: - “Salary & Oncost calculator” tab
C11: - Updated to the latest version from MAR team
C12: - Renamed the tab name from “Quick Salary Calc – Optional” to “Salary & Oncost Calculator”
C13: - Moved it to be after the “Expenditure Plan” tab
C14: - Added brief description of each tab’s purpose in the detailed instructions and quick user guide tabs
C15: - Fixed the data validation rule for the loadings period in the quick salary & oncost calculator
C16: - Added "Adelaide Microscopy" and "Defence & Security Institute" to the Faculty/Institute selection list
B17: 45516 | C17: - Added ability to change the ICA splits in the "Summary" tab for Contract Research and Consultancy projects
C18: - Continued & Fixed Term salaries calculation:
C19: - Included loadings in the LSL provision calculation
C20: - Included loadings in the annual leave loading calculation
C21: - Changed the conditional formatting for the salary transfers question in the Project Details section so that it displays for "Contract Research" projects as well
C22: - Changed the purpose for "Enter Details Here_Costing Tab" and "Salary & Oncost Calculator" tabs on the "Instructions" and "Quick User Guide" tabs
C23: - Replaced the "Salary & Oncost Calculator" tab with the latest file from Alen (fixed the calculation error for loadings that started part-way through a year)
B24: 45537 | C24: - Removed the 2023 casual rates from Casual Salaries table
C25: - Added "Note: There is only 1 rate for academic staff per HR's advice" note to the "Level of staff member" heading - previously, this was an embedded comment
C26: - Fixed the formula error in the Continuing & Fixed Salaries table
C27: - Changed the overhead rates calculation so that user input rates are only applied to Project Pricing (Funding) amounts only (i.e. default rates are always applied to the Project Costing, Inkind and Ineligible amounts)
C28: - Turned the sheet names in the Title page into hyperlinks
C29: - Updated the "Salary & Oncost calculator" tab to the latest version from MAR team
C30: - Added ICA amounts for Grant projects (split between faculty, school and DRI is the same as for Contract Research projects)
B31: 45552 | C31: - Upated the “Salary & Oncost calculator” tab to the latest version from MAR team
B32: 45562 | C32: - Fixed the error in the "Salary Details" tab which is causing errors in the "Salary & Oncost Calculator" tab

Sheet Title
D1: This file has expired. Existing CPMs can still be viewed. However, for new applications, please download the current file from
D4: https://www.adelaide.edu.au/finance/
D6: UoA Costing Pricing Tool (CPT)
D26: Version: | F26: 2024.1
D27: Last updated: | F27: 2024-09-27
D30: Sheet Name | I30: Purpose
D31: Enter Details Here_Costing Tab | I31: Used for full project costings
D32: Salary & Oncost Calculator | I32: Used for eForms and quick estimations

Sheet Instructions - detailed
C1: =Title!$D$1 -> This file has expired. Existing CPMs can still be viewed. However, for new applications, please download the current file from
C3: =Title!$D$4 -> https://www.adelaide.edu.au/finance/
C5: Sheet Name | E5: Purpose
C6: Enter Details Here_Costing Tab | E6: Used for full project costings
C7: Summary | E7: To summarise the total cost, pricing (to funder), inkind and ineligible expenses of the project
C8: Expenditure Plan | E8: To summarise the total funded expenditure by category
C9: Salary & Oncost Calculator | E9: Used for eForms and quick estimations
C10: Foreign Exchange - Optional | E10: To calculate the pricing (to funder) in the selected foreign currency
C11: In-kind Calculator - Optional | E11: To calculate direct and indirect University in-kind costs for research grants
C12: HERDC Info | E12: To provide information on the Higher Education Research Data Collection categories
C14: Please enter data in the yellow cells only in the "ENTER DETAILS HERE Costing tab".
B16: To access each section of the Costing Tab, press the Button at the top of the page.
B18: Project Details
B19: Information | C19: Cell Reference | D19: Data Entry Type | E19: Additional Information
B20: Preparation Date | C20: H13 | D20: Data entry
B21: Proposal Title | C21: H14 | D21: Data entry
B22: Sponsor Name (Funder) | C22: H15 | D22: Data entry
B23: Chief Investigator | C23: H16 | D23: Data entry
B24: Contract ID | C24: H17 | D24: Data entry
B25: Project ID (Internal Reference) | C25: H18 | D25: Data entry
B26: Funder ID (External Reference) | C26: H19 | D26: Data entry
B27: Lead Agency (Admin Organisation) | C27: H20 | D27: Data entry | E27: Use full name ie University of Adelaide
B28: Commencement Date | C28: H21 | D28: Data entry
B29: Completion Date | C29: H22 | D29: Data entry
B30: Project Type | C30: H24 | D30: Drop-down selection | E30: Consultancy, Contract Research, Limited Contract Research, Limited Consultancy, Grant, Collaboration Agreement, Other
B31: HERDC Category | C31: H25 | D31: Drop-down selection | E31: Category 1, Category 2, Category 3, Category 4
B32: HERDC SubCategory | C32: H27 | D32: Drop-down selection | E32: Selection is limited to the subcategories within the category selected in cell G25
B33: Affiliate Organisation | C33: H28 | D33: Drop-down selection | E33: E.g. PIRSA/SARDI
B34: Faculty/Institute | C34: H29 | D34: Drop-down selection | E34: ABLE, SET, H&MS
B35: School | C35: H30 | D35: Drop-down selection | E35: Selection is limited to the schools within the faculty selected in cell G29
B37: Total Project Budget
B38: - This section is only required to be completed if the University of Adelaide is not the lead agency.
B40: Additional question for consultancy projects (cell H32):
B41: Is salary listed already covered by other externally funded project and no back fill is required - if Yes finance will not transfer salaries to this project.
B43: Collaborators
B44: - This section allows users to list the collaborators working on the project.
B45: - This list is then available as a drop-down menu for each expense type (except for collaborator payments and subcontractor payments).
B47: Other Contributions
B48: Information | C48: Column Ref | D48: Data Entry Type
B49: Organisation | C49: Column F | D49: Data entry
B50: Brief Description | C50: Column H | D50: Data entry
B51: Start Year | C51: Column M | D51: Drop-down selection
B52: End Year | C52: Column N | D52: Drop-down selection
B53: Price | C53: Column O | D53: Data entry
B55: Salaries & Wages
B56: Continuing & Fixed Term Salaries - MONTHLY / ANNUAL
B57: Information | C57: Column Ref | D57: Data Entry Type | E57: Additional Information
B58: Salary Segment | C58: Column G | D58: Drop-down selection | E58: Discretionary, Tied, Combination
B59: Level of Staff Member | C59: Column H | D59: Drop-down selection
B60: Funding Source | C60: Column I | D60: Drop-down selection | E60: Funded, Inkind, Ineligible Expense
B61: Start Month | C61: Column J | D61: Drop-down selection
B62: Start Year | C62: Column K | D62: Drop-down selection
B63: End Month | C63: Column L | D63: Drop-down selection
B64: End Year | C64: Column M | D64: Drop-down selection
B65: FTE | C65: Column N | D65: Data entry
B66: Loadings | C66: Column O | D66: Data entry | E66: This will automatically increase with CPI. It will also take into if staff is only employed for part of the year.
B67: % included in Project Pricing | C67: Column AA | D67: Data entry | E67: Only required for funded expenses but the sponsor is only paying a % of the total cost
B68: Amount included in Project Pricing | C68: Column AB | D68: Data entry | E68: Only required for funded expenses but the sponsor's payment is capped
B69: Reason for the cost not being fully funded by the sponsor | C69: Column AC | D69: Data entry | E69: Only required for partly funded expenses
B71: Continuing & Fixed Term Salaries - HOURLY / DAILY / WEEKLY
B72: Information | C72: Column Ref | D72: Data Entry Type | E72: Additional Information
B73: Salary Segment | C73: Column G | D73: Drop-down selection | E73: Discretionary, Tied, Combination
B74: Level of Staff Member | C74: Column H | D74: Drop-down selection
B75: Funding Source | C75: Column I | D75: Drop-down selection | E75: Funded, Inkind, Ineligible Expense
B76: Year | C76: Column J | D76: Drop-down selection
B77: FTE | C77: Column K | D77: Data entry
B78: Rate | C78: Column L | D78: Drop-down selection | E78: Hourly, Daily, Weekly
B79: Unit | C79: Column M | D79: Data entry
B80: Loadings | C80: Column O | D80: Data entry | E80: This will automatically increase with CPI. It will also take into if staff is only employed for part of the year.
B81: % included in Project Pricing | C81: Column AA | D81: Data entry | E81: Only required for funded expenses but the sponsor is only paying a % of the total cost
B82: Amount included in Project Pricing | C82: Column AB | D82: Data entry | E82: Only required for funded expenses but the sponsor's payment is capped
B83: Reason for the cost not being fully funded by the sponsor | C83: Column AC | D83: Data entry | E83: Only required for partly funded expenses
B85: Casual Salaries
B86: Information | C86: Column Ref | D86: Data Entry Type | E86: Additional Information
B87: Salary Segment | C87: Column G | D87: Drop-down selection | E87: Discretionary, Tied
B88: Level of Staff Member | C88: Column I | D88: Drop-down selection
B89: Funding Source | C89: Column L | D89: Drop-down selection | E89: Funded, Inkind, Ineligible Expense
B90: Start Year | C90: Column M | D90: Drop-down selection
B91: End Year | C91: Column N | D91: Drop-down selection
B92: Hours per year | C92: Column O | D92: Data entry
B93: % included in Project Pricing | C93: Column AA | D93: Data entry | E93: Only required for funded expenses but the sponsor is only paying a % of the total cost
B94: Amount included in Project Pricing | C94: Column AB | D94: Data entry | E94: Only required for funded expenses but the sponsor's payment is capped
B95: Reason for the cost not being fully funded by the sponsor | C95: Column AC | D95: Data entry | E95: Only required for partly funded expenses
B97: Operating Expenses
B98: Operating Expenses - includes Temporary/Agency Staff Costs, Collaborator Payments, Subcontractor Payments, Capital Item > $10k, Other Operating Expenses
B99: Information | C99: Column Ref | D99: Data Entry Type | E99: Additional Information
B100: Expense Type | C100: Column F | D100: Drop-down selection | E100: Temporary/Agency Staff, Collaborator Payments, Subcontractor Payments, Capital Item > $10k, Other Operating Expenses
B101: Brief Description | C101: Column H | D101: Data entry
B102: Funding Source | C102: Column J | D102: Drop-down selection | E102: Funded, Inkind, Ineligible Expense
B103: Start Year | C103: Column K | D103: Drop-down selection
B104: End Year | C104: Column L | D104: Drop-down selection
B105: Quantity / Hours Per Year | C105: Column M | D105: Data entry | E105: Only required for Temporary/Agency Staff (hours per year) or Other Operating Expenses (quantity)
B106: Annual Cost / Hourly Rate | C106: Column O | D106: Data entry | E106: Hourly rate for Temporary/Agency Staff; Annual cost for other expense types
B107: % included in Project Pricing | C107: Column AA | D107: Data entry | E107: Only required for funded expenses but the sponsor is only paying a % of the total cost
B108: Amount included in Project Pricing | C108: Column AB | D108: Data entry | E108: Only required for funded expenses but the sponsor's payment is capped
B109: Reason for the cost not being fully funded by the sponsor | C109: Column AC | D109: Data entry | E109: Only required for partly funded expenses
B111: Stipends/Scholarships
B112: Information | C112: Column Ref | D112: Data Entry Type | E112: Additional Information
B113: Student Number (if known) | C113: Column F | D113: Data entry
B114: Student Name (if known) | C114: Column H | D114: Data entry
B115: Stipend Type | C115: Column J | D115: Drop-down selection | E115: University Rate, Industry Funded, Top-up to Industry Rate
B116: Funding Source | C116: Column K | D116: Drop-down selection | E116: Funded, Inkind, Ineligible Expense
B117: Start Year | C117: Column L | D117: Drop-down selection
B118: FTE | C118: Column M | D118: Data entry
B119: Amount | C119: Column N | D119: Data entry | E119: Only required for Industry Funded and Top-up to Industry Rate stipend types. This will be blank for University Rate stipend type.
B120: % included in Project Pricing | C120: Column AA | D120: Data entry | E120: Only required for funded expenses but the sponsor is only paying a % of the total cost
B121: Amount included in Project Pricing | C121: Column AB | D121: Data entry | E121: Only required for funded expenses but the sponsor's payment is capped
B122: Reason for the cost not being fully funded by the sponsor | C122: Column AC | D122: Data entry | E122: Only required for partly funded expenses
B124: Travel Expenses | C124: Enter Travel as allowed by Funder. Enter type of travel and destination
B125: Information | C125: Column Ref | D125: Data Entry Type | E125: Additional Information
B126: Destination & Type of Travel | C126: Column F | D126: Data entry
B127: Purpose | C127: Column I | D127: Drop-down selection | E127: Conference, Field, Other
B128: Funding Source | C128: Column J | D128: Drop-down selection | E128: Funded, Inkind, Ineligible Expense
B129: Year | C129: Column K | D129: Drop-down selection
B130: Airfares Cost | C130: Column L | D130: Data entry
B131: Accommodation Cost | C131: Column M | D131: Data entry
B132: Meals/Incidentals Cost | C132: Column N | D132: Data entry
B133: Other Cost | C133: Column O | D133: Data entry
B134: % included in Project Pricing | C134: Column AA | D134: Data entry | E134: Only required for funded expenses but the sponsor is only paying a % of the total cost
B135: Amount included in Project Pricing | C135: Column AB | D135: Data entry | E135: Only required for funded expenses but the sponsor's payment is capped
B136: Reason for the cost not being fully funded by the sponsor | C136: Column AC | D136: Data entry | E136: Only required for partly funded expenses
B138: Overhead Rates
B139: Rates used in the model:
B140: - Salary Recovery = 55%: Applied to direct salary costs
B141: - Operating Expenses Recovery = 15%: Applied to non salary costs except scholarships/stipends
B142: - Other = 10%: For consultancy & contract research projects only
B144: Information | C144: Column Ref | D144: Data Entry Type | E144: Additional Information
B145: Funding Source | C145: Column M | D145: Drop-down selection | E145: Funded, Inkind, Ineligible Expense
B146: Enter % if different from default rates | C146: Column N | D146: Data entry | E146: Optional; only required if % are different from the default rates
B148: Collaborator Epxenses (optional)
B149: Information | C149: Column Ref | D149: Data Entry Type | E149: Additional Information
B150: Collaborator | C150: Column F | D150: Data entry
B151: Expense Type | C151: Column J | D151: Drop-down selection | E151: Salaries, Operating Expenses, Scholarships/Stipends, Travel Expenses
B152: Brief description | C152: Column L | D152: Data entry
B153: Annual cost | C153: Columns P to Y | D153: Data entry
B157: Notes
B158: Pricing entered; are what acceptable under the funders guidelines

Sheet Quick User Guide
C1: =Title!$D$1 -> This file has expired. Existing CPMs can still be viewed. However, for new applications, please download the current file from
C3: =Title!$D$4 -> https://www.adelaide.edu.au/finance/
C5: ='Instructions - detailed'!C5 -> Sheet Name | E5: ='Instructions - detailed'!E5 -> Purpose
C6: ='Instructions - detailed'!C6 -> Enter Details Here_Costing Tab | E6: ='Instructions - detailed'!E6 -> Used for full project costings
C7: ='Instructions - detailed'!C7 -> Summary | E7: ='Instructions - detailed'!E7 -> To summarise the total cost, pricing (to funder), inkind and ineligible expenses of the project
C8: ='Instructions - detailed'!C8 -> Expenditure Plan | E8: ='Instructions - detailed'!E8 -> To summarise the total funded expenditure by category
C9: ='Instructions - detailed'!C9 -> Salary & Oncost Calculator | E9: ='Instructions - detailed'!E9 -> Used for eForms and quick estimations
C10: ='Instructions - detailed'!C10 -> Foreign Exchange - Optional | E10: ='Instructions - detailed'!E10 -> To calculate the pricing (to funder) in the selected foreign currency
C11: ='Instructions - detailed'!C11 -> In-kind Calculator - Optional | E11: ='Instructions - detailed'!E11 -> To calculate direct and indirect University in-kind costs for research grants
C12: ='Instructions - detailed'!C12 -> HERDC Info | E12: ='Instructions - detailed'!E12 -> To provide information on the Higher Education Research Data Collection categories
C14: Please enter data in the yellow cells only in the "ENTER DETAILS HERE Costing tab".
B16: To access each section of the Costing Tab, press the Button at the top of the page.
B18: Project Details
B20: Enter Fields highlighted in yellow with in the the Project details box.
B21: - hover over each field for details on what is required.
B22: - fields G24 to G30 are drop down fields for you to select from
B25: Total Project Budget
B26: - ONLY completed if the University of Adelaide is not the lead agency.
B27: - Enter total project figures
B29: Additional question for consultancy projects ONLY (cell H32):
B30: - If salary/ FTE listed is already covered by other externally funded project and no back fill is required - Selct "Yes" - Finance will not transfer salaries to this project.
B32: Collaborators
B33: - This section allows users to enter collaborators working on the project.
B34: - This list is then available as a drop-down menu for each expense type (except for collaborator payments and subcontractor payments).
B36: Other Contributions
B37: - hover over each field title for details on what is required.
B39: Salaries & Wages
B40: Continuing & Fixed Term Salaries - MONTHLY / ANNUAL
B41: - hover over each field title for details on what is required.
B43: Continuing & Fixed Term Salaries - HOURLY / DAILY / WEEKLY
B44: - hover over each field title for details on what is required.
B46: Casual Salaries
B47: - hover over each field title for details on what is required.
B49: Operating Expenses
B50: Operating Expenses - includes Temporary/Agency Staff Costs, Collaborator Payments, Subcontractor Payments, Capital Item > $10k, Other Operating Expenses
B51: - hover over each field title for details on what is required.
B53: Stipends/Scholarships
B54: - hover over each field title for details on what is required.
B56: Travel Expenses | C56: Enter Travel as allowed by Funder. Enter type of travel and destination
B57: - hover over each field title for details on what is required.
B59: Overhead Rates
B60: Rates used in the model are set as per below:-
B61: - Salary Recovery = 55%: Applied to direct salary costs
B62: - Operating Expenses Recovery = 15%: Applied to non salary costs except scholarships/stipends
B63: - Other = 10%: Applied to direct salary costs
B65: - hover over each field title for details on what is required.
B67: Collaborator Expenses (optional)
B68: - enter the annual costs for each collaborator.
B70: - hover over each field title for details on what is required.

Sheet ENTER DETAILS HERE_Costing Tab
F1: =" "&Title!$D$6 -> UoA Costing Pricing Tool (CPT) | Z1: Click on the "+" above to expand years | AO1: Click on the "+" above to expand years
G2: =Title!$D$1 -> This file has expired. Existing CPMs can still be viewed. However, for new applications, please download the current file from
G3: =Title!$D$4 -> https://www.adelaide.edu.au/finance/
F4: ** NOTE** Calculator for internal University of Adelaide use only. Must not be shared with External Parties. | P4: Project Costing | AE4: Project Pricing (Direct) | AQ4: Inkind and Ineligible Expenses
F10: Click on Buttons above for sections to be completed | K10: *** Complete yellow cells only ***
F12: Project Details | L12: =IF($H$20="University of Adelaide","Total Project Budget Not Required","Must Complete Total Project Budget") -> Must Complete Total Project Budget
F13: Preparation Date | L13: Total Project Budget (Only required if UoA is not Lead Agency)
F14: Proposal Title | L14: =IF(ISBLANK($H$20),"",$H$20) ->  | M14: Funded | N14: Inkind | O14: TOTAL
F15: Sponsor Name (Funder) | L15: Salaries | O15: =SUM(M15:N15) -> 0 | AA15: =TODAY()>31/12/2023 -> TRUE
F16: Chief Investigator (First Named) | L16: Operating | O16: =SUM(M16:N16) -> 0
F17: Contract ID | L17: Indirect Costs | O17: =SUM(M17:N17) -> 0
F18: Project ID (Internal Reference) | L18: Infrastructure | O18: =SUM(M18:N18) -> 0
F19: Funder Id (External Reference)
F20: Lead Agency (Admin Organisation) | L20: Total Proj Budget | M20: =SUM(M15:M19) -> 0 | N20: =SUM(N15:N19) -> 0 | O20: 0
F21: Commencement Date (DD/MM/YEAR) | L21: =IF($H$20="University of Adelaide","","This table outlines the total project budget when UoA is not the lead.") -> This table outlines the total project budget when UoA is not the lead.
F22: Completion Date (DD/MM/YEAR)
F23: No of Years | H23: =IF(DATEDIF(H21,H22,"YM")+1=12,DATEDIF(H21,H22,"y")+1&" Years, 0 Months",DATEDIF(H21,H22,"y")&" Years, "&DATEDIF(H21,H22,"YM")+1&" Months") -> 0 Years, 1 Months
F24: Project Type
F25: HERDC Category
F26: HERDC Name | H26: =IFERROR(VLOOKUP($H$25,HERDC_Name,2,FALSE),"") -> 
F27: HERDC SubCategory
F28: Affiliate Organisation
F29: Faculty / Institute
F30: School
F32: Consultancy and Contract Research Projects Only Is salary listed already covered by other externally funded project and no back fill is required - if Yes finance will not transfer salaries to this project.
P33: =YEAR($H$21) -> 1900 | Q33: =IFERROR(IF(P33+1<=YEAR($H$22),P38+1,""),"") ->  | R33: =IFERROR(IF(Q33+1<=YEAR($H$22),Q38+1,""),"") ->  | S33: =IFERROR(IF(R33+1<=YEAR($H$22),R38+1,""),"") ->  | Z33: Total | AE33: =P33 -> 1900 | AO33: Total | AQ33: Inkind | AR33: Ineligible Expense | AS33: Total Inkind + Ineligible Exp
F34: * All values exclude GST.
E35: Other Contributions
F36: Organisation | H36: Brief Description | L36: Funding Source | M36: Start Year | N36: End Year | O36: Price (per year) | P36: Project Revenue | AE36: Project Eligible Revenue
P37: Year 1 | Q37: Year 2 | R37: Year 3 | S37: Year 4 | T37: Year 5 | U37: Year 6 | V37: Year 7 | W37: Year 8 | X37: Year 9 | Y37: Year 10 | Z37: Total Revenue | AE37: Year 1 | AF37: Year 2 | AG37: Year 3 | AH37: Year 4 | AI37: Year 5 | AJ37: Year 6 | AK37: Year 7 | AL37: Year 8 | AM37: Year 9 | AN37: Year 10 | AO37: Total
P38: =P$33 -> 1900 | Q38: =Q$33 ->  | AE38: =AE$33 -> 1900 | AF38: =AF$33 -> 
E39: Example | F39: University of Adelaide | H39: Contribution from University of Adelaide | L39: Funded | M39: 2024 | N39: 2027 | O39: 25000 | P39: 25000 | Q39: 25000 | R39: 25000 | S39: 25000 | T39: 0 | U39: 0 | V39: 0 | W39: 0 | X39: 0 | Y39: 0 | Z39: =SUM(P39:Y39) -> 100000 | AE39: 25000 | AF39: 25000 | AG39: 25000 | AH39: 25000 | AI39: 0 | AJ39: 0 | AK39: 0 | AL39: 0 | AM39: 0 | AN39: 0 | AO39: =SUM(AE39:AN39) -> 100000
L40: =IF(ISBLANK($F40),"","Funded") ->  | P40: =IF(AND(P$38>=$M40,P$38<=$N40),$O40,0) -> 0 | Q40: 0 | R40: 0 | S40: 0 | T40: 0 | U40: 0 | V40: 0 | W40: 0 | X40: 0 | Y40: 0 | Z40: =SUM(P40:Y40) -> 0 | AE40: =P40 -> 0 | AF40: =Q40 -> 0 | AG40: =R40 -> 0 | AH40: =S40 -> 0 | AI40: =T40 -> 0 | AJ40: =U40 -> 0 | AK40: =V40 -> 0 | AL40: =W40 -> 0 | AM40: =X40 -> 0 | AN40: =Y40 -> 0 | AO40: =SUM(AE40:AN40) -> 0
L41: =IF(ISBLANK($F41),"","Funded") ->  | P41: 0 | Q41: 0 | R41: 0 | S41: 0 | T41: 0 | U41: 0 | V41: 0 | W41: 0 | X41: 0 | Y41: 0 | Z41: =SUM(P41:Y41) -> 0 | AE41: =P41 -> 0 | AF41: 0 | AG41: 0 | AH41: 0 | AI41: 0 | AJ41: 0 | AK41: 0 | AL41: 0 | AM41: 0 | AN41: 0 | AO41: =SUM(AE41:AN41) -> 0
L42: =IF(ISBLANK($F42),"","Funded") ->  | P42: 0 | Q42: 0 | R42: 0 | S42: 0 | T42: 0 | U42: 0 | V42: 0 | W42: 0 | X42: 0 | Y42: 0 | Z42: 0 | AE42: 0 | AF42: 0 | AG42: 0 | AH42: 0 | AI42: 0 | AJ42: 0 | AK42: 0 | AL42: 0 | AM42: 0 | AN42: 0 | AO42: 0
P43: 0 | Q43: 0 | R43: 0 | S43: 0 | T43: 0 | U43: 0 | V43: 0 | W43: 0 | X43: 0 | Y43: 0 | Z43: 0 | AE43: 0 | AF43: 0 | AG43: 0 | AH43: 0 | AI43: 0 | AJ43: 0 | AK43: 0 | AL43: 0 | AM43: 0 | AN43: 0 | AO43: 0
P44: 0 | Q44: 0 | R44: 0 | S44: 0 | T44: 0 | U44: 0 | V44: 0 | W44: 0 | X44: 0 | Y44: 0 | Z44: 0 | AE44: 0 | AF44: 0 | AG44: 0 | AH44: 0 | AI44: 0 | AJ44: 0 | AK44: 0 | AL44: 0 | AM44: 0 | AN44: 0 | AO44: 0
P45: 0 | Q45: 0 | R45: 0 | S45: 0 | T45: 0 | U45: 0 | V45: 0 | W45: 0 | X45: 0 | Y45: 0 | Z45: 0 | AE45: 0 | AF45: 0 | AG45: 0 | AH45: 0 | AI45: 0 | AJ45: 0 | AK45: 0 | AL45: 0 | AM45: 0 | AN45: 0 | AO45: 0
P46: 0 | Q46: 0 | R46: 0 | S46: 0 | T46: 0 | U46: 0 | V46: 0 | W46: 0 | X46: 0 | Y46: 0 | Z46: 0 | AE46: 0 | AF46: 0 | AG46: 0 | AH46: 0 | AI46: 0 | AJ46: 0 | AK46: 0 | AL46: 0 | AM46: 0 | AN46: 0 | AO46: 0
P47: 0 | Q47: 0 | R47: 0 | S47: 0 | T47: 0 | U47: 0 | V47: 0 | W47: 0 | X47: 0 | Y47: 0 | Z47: 0 | AE47: 0 | AF47: 0 | AG47: 0 | AH47: 0 | AI47: 0 | AJ47: 0 | AK47: 0 | AL47: 0 | AM47: 0 | AN47: 0 | AO47: 0
P48: 0 | Q48: 0 | R48: 0 | S48: 0 | T48: 0 | U48: 0 | V48: 0 | W48: 0 | X48: 0 | Y48: 0 | Z48: 0 | AE48: 0 | AF48: 0 | AG48: 0 | AH48: 0 | AI48: 0 | AJ48: 0 | AK48: 0 | AL48: 0 | AM48: 0 | AN48: 0 | AO48: 0
P49: 0 | Q49: 0 | R49: 0 | S49: 0 | T49: 0 | U49: 0 | V49: 0 | W49: 0 | X49: 0 | Y49: 0 | Z49: 0 | AE49: 0 | AF49: 0 | AG49: 0 | AH49: 0 | AI49: 0 | AJ49: 0 | AK49: 0 | AL49: 0 | AM49: 0 | AN49: 0 | AO49: 0
P50: 0 | Q50: 0 | R50: 0 | S50: 0 | T50: 0 | U50: 0 | V50: 0 | W50: 0 | X50: 0 | Y50: 0 | Z50: 0 | AE50: =P50 -> 0 | AF50: =Q50 -> 0 | AG50: =R50 -> 0 | AH50: =S50 -> 0 | AI50: =T50 -> 0 | AJ50: =U50 -> 0 | AK50: =V50 -> 0 | AL50: =W50 -> 0 | AM50: =X50 -> 0 | AN50: =Y50 -> 0 | AO50: 0
P51: 0 | Q51: 0 | R51: 0 | S51: 0 | T51: 0 | U51: 0 | V51: 0 | W51: 0 | X51: 0 | Y51: 0 | Z51: 0 | AE51: 0 | AF51: 0 | AG51: 0 | AH51: 0 | AI51: 0 | AJ51: 0 | AK51: 0 | AL51: 0 | AM51: 0 | AN51: 0 | AO51: 0
P52: 0 | Q52: 0 | R52: 0 | S52: 0 | T52: 0 | U52: 0 | V52: 0 | W52: 0 | X52: 0 | Y52: 0 | Z52: 0 | AE52: 0 | AF52: 0 | AG52: 0 | AH52: 0 | AI52: 0 | AJ52: 0 | AK52: 0 | AL52: 0 | AM52: 0 | AN52: 0 | AO52: 0
P53: 0 | Q53: 0 | R53: 0 | S53: 0 | T53: 0 | U53: 0 | V53: 0 | W53: 0 | X53: 0 | Y53: 0 | Z53: 0 | AE53: 0 | AF53: 0 | AG53: 0 | AH53: 0 | AI53: 0 | AJ53: 0 | AK53: 0 | AL53: 0 | AM53: 0 | AN53: 0 | AO53: 0
P54: 0 | Q54: 0 | R54: 0 | S54: 0 | T54: 0 | U54: 0 | V54: 0 | W54: 0 | X54: 0 | Y54: 0 | Z54: 0 | AE54: 0 | AF54: 0 | AG54: 0 | AH54: 0 | AI54: 0 | AJ54: 0 | AK54: 0 | AL54: 0 | AM54: 0 | AN54: 0 | AO54: 0
E55: OTHER CONTRIBUTIONS TOTAL | P55: =SUM(P40:P54) -> 0 | Q55: 0 | R55: 0 | S55: 0 | T55: 0 | U55: 0 | V55: 0 | W55: 0 | X55: 0 | Y55: 0 | Z55: 0 | AE55: =SUM(AE40:AE54) -> 0 | AF55: 0 | AG55: 0 | AH55: 0 | AI55: 0 | AJ55: 0 | AK55: 0 | AL55: =SUM(AL40:AL54) -> 0 | AM55: 0 | AN55: 0 | AO55: =SUM(AO40:AO54) -> 0
E57: Salaries/Wages (EB calculation included)
E58: University salary rates are available at: | J58: http://www.adelaide.edu.au/hr/handbook/rem-ben/salary/
N60: Oncost Rates | O60: =Cont_FT_Oncost_Rate -> 0.3
F61: Continuing & Fixed Term Salaries - MONTHLY / ANNUAL
F62: Employment Type | G62: Salary Segment (Optional) | H62: Level of Staff Member | I62: Funding Source | J62: Start Month | K62: Start Year | L62: End Month | M62: End Year | N62: FTE | O62: Loadings (optional) | P62: Project Costing (Direct) | AE62: Project Pricing (Direct) | AQ62: Inkind & Ineligible Expenses | AU62: Price to Funder (inclusive of salary & other recoveries)
P63: =P$37 -> Year 1 | Q63: Year 2 | R63: Year 3 | S63: Year 4 | T63: Year 5 | U63: Year 6 | V63: Year 7 | W63: Year 8 | X63: Year 9 | Y63: Year 10 | Z63: Total Project Cost (Direct) | AA63: % included in Project Pricing | AB63: Amount included in Project Pricing | AC63: Reason for the cost not being fully funded by the sponsor | AE63: =AE$37 -> Year 1 | AF63: Year 2 | AG63: Year 3 | AH63: Year 4 | AI63: Year 5 | AJ63: Year 6 | AK63: Year 7 | AL63: Year 8 | AM63: Year 9 | AN63: Year 10 | AO63: Total | AQ63: Inkind | AR63: Ineligible Expense | AS63: Total
P64: =P$33 -> 1900 | Q64: =Q$33 ->  | Z64: =Z$38 -> 0 | AC64: =AC$38 -> 0 | AE64: =AE$33 -> 1900 | AF64: =AF$33 ->  | AO64: =AO$38 -> 0
E65: Example | F65: Academic | G65: Tied | H65: Level D-4 | I65: Funded | J65: January | K65: 2024 | L65: December | M65: 2028 | N65: 1 | O65: 50000 | P65: 283740.5058 | Q65: 291698.9413 | R65: 299935.9188 | S65: 308460.8669 | T65: 317284.1882 | U65: 0 | V65: 0 | W65: 0 | X65: 0 | Y65: 0 | Z65: =SUM(P65:Y65) -> 1501120.421 | AB65: 200000 | AC65: sponsor caps payment at $200k p.a. | AE65: 200000 | AF65: 200000 | AG65: 200000 | AH65: 200000 | AI65: 200000 | AJ65: 0 | AK65: 0 | AL65: 0 | AM65: 0 | AN65: 0 | AO65: =SUM(AE65:AN65) -> 1000000 | AQ65: =IF($I65=AQ$63,$Z65-$AO65,0) -> 0 | AR65: =IF(NOT($I65="Inkind"),$Z65-$AO65,0) -> 501120.4211 | AS65: =SUM(AQ65:AR65) -> 501120.4211
E66: Example | F66: Professional | G66: Discretionary | H66: HEO 8-5 | I66: Ineligible Expense | J66: January | K66: 2024 | L66: December | M66: 2028 | N66: 1 | P66: 159452.9551 | Q66: 164963.2884 | R66: 170666.6451 | S66: 176569.4186 | T66: 182678.7892 | U66: 0 | V66: 0 | W66: 0 | X66: 0 | Y66: 0 | Z66: =SUM(P66:Y66) -> 854331.0964 | AE66: 0 | AF66: 0 | AG66: 0 | AH66: 0 | AI66: 0 | AJ66: 0 | AK66: 0 | AL66: 0 | AM66: 0 | AN66: 0 | AO66: =SUM(AE66:AN66) -> 0 | AQ66: =IF($I66=AQ$63,$Z66-$AO66,0) -> 0 | AR66: 854331.0964 | AS66: =SUM(AQ66:AR66) -> 854331.0964
F67: =IFERROR(VLOOKUP($H67,Employment_Type,2,FALSE),"") ->  | P67: ='Salary Detail'!D17 -> 0 | Q67: ='Salary Detail'!E17 -> 0 | R67: ='Salary Detail'!F17 -> 0 | S67: ='Salary Detail'!G17 -> 0 | T67: ='Salary Detail'!H17 -> 0 | U67: ='Salary Detail'!I17 -> 0 | V67: ='Salary Detail'!J17 -> 0 | W67: ='Salary Detail'!K17 -> 0 | X67: ='Salary Detail'!L17 -> 0 | Y67: ='Salary Detail'!M17 -> 0 | Z67: =SUM(P67:Y67) -> 0 | AE67: =IF($I67="Funded",IF(ISBLANK($AA67),IF(ISBLANK($AB67),P67,IF(P67=0,0,$AB67)),P67*$AA67),0) -> 0 | AF67: =IF($I67="Funded",IF(ISBLANK($AA67),IF(ISBLANK($AB67),Q67,IF(Q67=0,0,$AB67)),Q67*$AA67),0) -> 0 | AG67: =IF($I67="Funded",IF(ISBLANK($AA67),IF(ISBLANK($AB67),R67,IF(R67=0,0,$AB67)),R67*$AA67),0) -> 0 | AH67: =IF($I67="Funded",IF(ISBLANK($AA67),IF(ISBLANK($AB67),S67,IF(S67=0,0,$AB67)),S67*$AA67),0) -> 0 | AI67: =IF($I67="Funded",IF(ISBLANK($AA67),IF(ISBLANK($AB67),T67,IF(T67=0,0,$AB67)),T67*$AA67),0) -> 0 | AJ67: =IF($I67="Funded",IF(ISBLANK($AA67),IF(ISBLANK($AB67),U67,IF(U67=0,0,$AB67)),U67*$AA67),0) -> 0 | AK67: =IF($I67="Funded",IF(ISBLANK($AA67),IF(ISBLANK($AB67),V67,IF(V67=0,0,$AB67)),V67*$AA67),0) -> 0 | AL67: =IF($I67="Funded",IF(ISBLANK($AA67),IF(ISBLANK($AB67),W67,IF(W67=0,0,$AB67)),W67*$AA67),0) -> 0 | AM67: =IF($I67="Funded",IF(ISBLANK($AA67),IF(ISBLANK($AB67),X67,IF(X67=0,0,$AB67)),X67*$AA67),0) -> 0 | AN67: =IF($I67="Funded",IF(ISBLANK($AA67),IF(ISBLANK($AB67),Y67,IF(Y67=0,0,$AB67)),Y67*$AA67),0) -> 0 | AO67: =SUM(AE67:AN67) -> 0 | AQ67: =IF($I67=AQ$63,$Z67-$AO67,0) -> 0 | AR67: 0 | AS67: =SUM(AQ67:AR67) -> 0 | AU67: =IFERROR(AO67/$AO$163*SUM($AO$263,$AO$265)+AO67,0) -> 0
P68: ='Salary Detail'!D32 -> 0 | Q68: ='Salary Detail'!E32 -> 0 | R68: ='Salary Detail'!F32 -> 0 | S68: ='Salary Detail'!G32 -> 0 | T68: ='Salary Detail'!H32 -> 0 | U68: ='Salary Detail'!I32 -> 0 | V68: ='Salary Detail'!J32 -> 0 | W68: ='Salary Detail'!K32 -> 0 | X68: ='Salary Detail'!L32 -> 0 | Y68: ='Salary Detail'!M32 -> 0 | Z68: 0 | AE68: 0 | AF68: 0 | AG68: 0 | AH68: 0 | AI68: 0 | AJ68: 0 | AK68: 0 | AL68: 0 | AM68: 0 | AN68: 0 | AO68: 0 | AQ68: 0 | AR68: 0 | AS68: 0 | AU68: 0
P69: ='Salary Detail'!D47 -> 0 | Q69: ='Salary Detail'!E47 -> 0 | R69: ='Salary Detail'!F47 -> 0 | S69: ='Salary Detail'!G47 -> 0 | T69: ='Salary Detail'!H47 -> 0 | U69: ='Salary Detail'!I47 -> 0 | V69: ='Salary Detail'!J47 -> 0 | W69: ='Salary Detail'!K47 -> 0 | X69: ='Salary Detail'!L47 -> 0 | Y69: ='Salary Detail'!M47 -> 0 | Z69: 0 | AE69: 0 | AF69: 0 | AG69: 0 | AH69: 0 | AI69: 0 | AJ69: 0 | AK69: 0 | AL69: 0 | AM69: 0 | AN69: 0 | AO69: 0 | AQ69: 0 | AR69: 0 | AS69: 0 | AU69: 0
P70: ='Salary Detail'!D62 -> 0 | Q70: ='Salary Detail'!E62 -> 0 | R70: ='Salary Detail'!F62 -> 0 | S70: ='Salary Detail'!G62 -> 0 | T70: ='Salary Detail'!H62 -> 0 | U70: ='Salary Detail'!I62 -> 0 | V70: ='Salary Detail'!J62 -> 0 | W70: ='Salary Detail'!K62 -> 0 | X70: ='Salary Detail'!L62 -> 0 | Y70: ='Salary Detail'!M62 -> 0 | Z70: 0 | AE70: 0 | AF70: 0 | AG70: 0 | AH70: 0 | AI70: 0 | AJ70: 0 | AK70: 0 | AL70: 0 | AM70: 0 | AN70: 0 | AO70: 0 | AQ70: 0 | AR70: 0 | AS70: 0 | AU70: 0
P71: ='Salary Detail'!D77 -> 0 | Q71: ='Salary Detail'!E77 -> 0 | R71: ='Salary Detail'!F77 -> 0 | S71: ='Salary Detail'!G77 -> 0 | T71: ='Salary Detail'!H77 -> 0 | U71: ='Salary Detail'!I77 -> 0 | V71: ='Salary Detail'!J77 -> 0 | W71: ='Salary Detail'!K77 -> 0 | X71: ='Salary Detail'!L77 -> 0 | Y71: ='Salary Detail'!M77 -> 0 | Z71: 0 | AE71: 0 | AF71: 0 | AG71: 0 | AH71: 0 | AI71: 0 | AJ71: 0 | AK71: 0 | AL71: 0 | AM71: 0 | AN71: 0 | AO71: 0 | AQ71: 0 | AR71: 0 | AS71: 0 | AU71: 0
P72: ='Salary Detail'!D92 -> 0 | Q72: ='Salary Detail'!E92 -> 0 | R72: ='Salary Detail'!F92 -> 0 | S72: ='Salary Detail'!G92 -> 0 | T72: ='Salary Detail'!H92 -> 0 | U72: ='Salary Detail'!I92 -> 0 | V72: ='Salary Detail'!J92 -> 0 | W72: ='Salary Detail'!K92 -> 0 | X72: ='Salary Detail'!L92 -> 0 | Y72: ='Salary Detail'!M92 -> 0 | Z72: 0 | AE72: 0 | AF72: 0 | AG72: 0 | AH72: 0 | AI72: 0 | AJ72: 0 | AK72: 0 | AL72: 0 | AM72: 0 | AN72: 0 | AO72: 0 | AQ72: 0 | AR72: 0 | AS72: 0 | AU72: 0
P73: ='Salary Detail'!D107 -> 0 | Q73: ='Salary Detail'!E107 -> 0 | R73: ='Salary Detail'!F107 -> 0 | S73: ='Salary Detail'!G107 -> 0 | T73: ='Salary Detail'!H107 -> 0 | U73: ='Salary Detail'!I107 -> 0 | V73: ='Salary Detail'!J107 -> 0 | W73: ='Salary Detail'!K107 -> 0 | X73: ='Salary Detail'!L107 -> 0 | Y73: ='Salary Detail'!M107 -> 0 | Z73: 0 | AE73: 0 | AF73: 0 | AG73: 0 | AH73: 0 | AI73: 0 | AJ73: 0 | AK73: 0 | AL73: 0 | AM73: 0 | AN73: 0 | AO73: 0 | AQ73: 0 | AR73: 0 | AS73: 0 | AU73: 0
P74: ='Salary Detail'!D122 -> 0 | Q74: ='Salary Detail'!E122 -> 0 | R74: ='Salary Detail'!F122 -> 0 | S74: ='Salary Detail'!G122 -> 0 | T74: ='Salary Detail'!H122 -> 0 | U74: ='Salary Detail'!I122 -> 0 | V74: ='Salary Detail'!J122 -> 0 | W74: ='Salary Detail'!K122 -> 0 | X74: ='Salary Detail'!L122 -> 0 | Y74: ='Salary Detail'!M122 -> 0 | Z74: 0 | AE74: 0 | AF74: 0 | AG74: 0 | AH74: 0 | AI74: 0 | AJ74: 0 | AK74: 0 | AL74: 0 | AM74: 0 | AN74: 0 | AO74: 0 | AQ74: 0 | AR74: 0 | AS74: 0 | AU74: 0
P75: ='Salary Detail'!D137 -> 0 | Q75: ='Salary Detail'!E137 -> 0 | R75: ='Salary Detail'!F137 -> 0 | S75: ='Salary Detail'!G137 -> 0 | T75: ='Salary Detail'!H137 -> 0 | U75: ='Salary Detail'!I137 -> 0 | V75: ='Salary Detail'!J137 -> 0 | W75: ='Salary Detail'!K137 -> 0 | X75: ='Salary Detail'!L137 -> 0 | Y75: ='Salary Detail'!M137 -> 0 | Z75: 0 | AE75: 0 | AF75: 0 | AG75: 0 | AH75: 0 | AI75: 0 | AJ75: 0 | AK75: 0 | AL75: 0 | AM75: 0 | AN75: 0 | AO75: 0 | AQ75: 0 | AR75: 0 | AS75: 0 | AU75: 0
P76: ='Salary Detail'!D152 -> 0 | Q76: ='Salary Detail'!E152 -> 0 | R76: ='Salary Detail'!F152 -> 0 | S76: ='Salary Detail'!G152 -> 0 | T76: ='Salary Detail'!H152 -> 0 | U76: ='Salary Detail'!I152 -> 0 | V76: ='Salary Detail'!J152 -> 0 | W76: ='Salary Detail'!K152 -> 0 | X76: ='Salary Detail'!L152 -> 0 | Y76: ='Salary Detail'!M152 -> 0 | Z76: 0 | AE76: 0 | AF76: 0 | AG76: 0 | AH76: 0 | AI76: 0 | AJ76: 0 | AK76: 0 | AL76: 0 | AM76: 0 | AN76: 0 | AO76: =SUM(AE76:AN76) -> 0 | AQ76: 0 | AR76: 0 | AS76: =SUM(AQ76:AR76) -> 0 | AU76: 0
P77: ='Salary Detail'!D167 -> 0 | Q77: ='Salary Detail'!E167 -> 0 | R77: ='Salary Detail'!F167 -> 0 | S77: ='Salary Detail'!G167 -> 0 | T77: ='Salary Detail'!H167 -> 0 | U77: ='Salary Detail'!I167 -> 0 | V77: ='Salary Detail'!J167 -> 0 | W77: ='Salary Detail'!K167 -> 0 | X77: ='Salary Detail'!L167 -> 0 | Y77: ='Salary Detail'!M167 -> 0 | Z77: 0 | AE77: 0 | AF77: 0 | AG77: 0 | AH77: 0 | AI77: 0 | AJ77: 0 | AK77: 0 | AL77: 0 | AM77: 0 | AN77: 0 | AO77: 0 | AQ77: 0 | AR77: 0 | AS77: 0 | AU77: 0
P78: ='Salary Detail'!D182 -> 0 | Q78: ='Salary Detail'!E182 -> 0 | R78: ='Salary Detail'!F182 -> 0 | S78: ='Salary Detail'!G182 -> 0 | T78: ='Salary Detail'!H182 -> 0 | U78: ='Salary Detail'!I182 -> 0 | V78: ='Salary Detail'!J182 -> 0 | W78: ='Salary Detail'!K182 -> 0 | X78: ='Salary Detail'!L182 -> 0 | Y78: ='Salary Detail'!M182 -> 0 | Z78: =SUM(P78:Y78) -> 0 | AE78: =IF($I78="Funded",IF(ISBLANK($AA78),IF(ISBLANK($AB78),P78,IF(P78=0,0,$AB78)),P78*$AA78),0) -> 0 | AF78: =IF($I78="Funded",IF(ISBLANK($AA78),IF(ISBLANK($AB78),Q78,IF(Q78=0,0,$AB78)),Q78*$AA78),0) -> 0 | AG78: =IF($I78="Funded",IF(ISBLANK($AA78),IF(ISBLANK($AB78),R78,IF(R78=0,0,$AB78)),R78*$AA78),0) -> 0 | AH78: =IF($I78="Funded",IF(ISBLANK($AA78),IF(ISBLANK($AB78),S78,IF(S78=0,0,$AB78)),S78*$AA78),0) -> 0 | AI78: =IF($I78="Funded",IF(ISBLANK($AA78),IF(ISBLANK($AB78),T78,IF(T78=0,0,$AB78)),T78*$AA78),0) -> 0 | AJ78: =IF($I78="Funded",IF(ISBLANK($AA78),IF(ISBLANK($AB78),U78,IF(U78=0,0,$AB78)),U78*$AA78),0) -> 0 | AK78: =IF($I78="Funded",IF(ISBLANK($AA78),IF(ISBLANK($AB78),V78,IF(V78=0,0,$AB78)),V78*$AA78),0) -> 0 | AL78: =IF($I78="Funded",IF(ISBLANK($AA78),IF(ISBLANK($AB78),W78,IF(W78=0,0,$AB78)),W78*$AA78),0) -> 0 | AM78: =IF($I78="Funded",IF(ISBLANK($AA78),IF(ISBLANK($AB78),X78,IF(X78=0,0,$AB78)),X78*$AA78),0) -> 0 | AN78: =IF($I78="Funded",IF(ISBLANK($AA78),IF(ISBLANK($AB78),Y78,IF(Y78=0,0,$AB78)),Y78*$AA78),0) -> 0 | AO78: =SUM(AE78:AN78) -> 0 | AQ78: 0 | AR78: 0 | AS78: =SUM(AQ78:AR78) -> 0 | AU78: 0
P79: ='Salary Detail'!D197 -> 0 | Q79: ='Salary Detail'!E197 -> 0 | R79: ='Salary Detail'!F197 -> 0 | S79: ='Salary Detail'!G197 -> 0 | T79: ='Salary Detail'!H197 -> 0 | U79: ='Salary Detail'!I197 -> 0 | V79: ='Salary Detail'!J197 -> 0 | W79: ='Salary Detail'!K197 -> 0 | X79: ='Salary Detail'!L197 -> 0 | Y79: ='Salary Detail'!M197 -> 0 | Z79: 0 | AE79: 0 | AF79: 0 | AG79: 0 | AH79: 0 | AI79: 0 | AJ79: 0 | AK79: 0 | AL79: 0 | AM79: 0 | AN79: 0 | AO79: 0 | AQ79: 0 | AR79: 0 | AS79: 0 | AU79: 0
P80: ='Salary Detail'!D212 -> 0 | Q80: ='Salary Detail'!E212 -> 0 | R80: ='Salary Detail'!F212 -> 0 | S80: ='Salary Detail'!G212 -> 0 | T80: ='Salary Detail'!H212 -> 0 | U80: ='Salary Detail'!I212 -> 0 | V80: ='Salary Detail'!J212 -> 0 | W80: ='Salary Detail'!K212 -> 0 | X80: ='Salary Detail'!L212 -> 0 | Y80: ='Salary Detail'!M212 -> 0 | Z80: 0 | AE80: 0 | AF80: 0 | AG80: 0 | AH80: 0 | AI80: 0 | AJ80: 0 | AK80: 0 | AL80: 0 | AM80: 0 | AN80: 0 | AO80: 0 | AQ80: 0 | AR80: 0 | AS80: 0 | AU80: 0
P81: ='Salary Detail'!D227 -> 0 | Q81: ='Salary Detail'!E227 -> 0 | R81: ='Salary Detail'!F227 -> 0 | S81: ='Salary Detail'!G227 -> 0 | T81: ='Salary Detail'!H227 -> 0 | U81: ='Salary Detail'!I227 -> 0 | V81: ='Salary Detail'!J227 -> 0 | W81: ='Salary Detail'!K227 -> 0 | X81: ='Salary Detail'!L227 -> 0 | Y81: ='Salary Detail'!M227 -> 0 | Z81: 0 | AE81: 0 | AF81: 0 | AG81: 0 | AH81: 0 | AI81: 0 | AJ81: 0 | AK81: 0 | AL81: 0 | AM81: 0 | AN81: 0 | AO81: 0 | AQ81: 0 | AR81: 0 | AS81: 0 | AU81: 0
P82: ='Salary Detail'!D242 -> 0 | Q82: ='Salary Detail'!E242 -> 0 | R82: ='Salary Detail'!F242 -> 0 | S82: ='Salary Detail'!G242 -> 0 | T82: ='Salary Detail'!H242 -> 0 | U82: ='Salary Detail'!I242 -> 0 | V82: ='Salary Detail'!J242 -> 0 | W82: ='Salary Detail'!K242 -> 0 | X82: ='Salary Detail'!L242 -> 0 | Y82: ='Salary Detail'!M242 -> 0 | Z82: 0 | AE82: 0 | AF82: 0 | AG82: 0 | AH82: 0 | AI82: 0 | AJ82: 0 | AK82: 0 | AL82: 0 | AM82: 0 | AN82: 0 | AO82: 0 | AQ82: 0 | AR82: 0 | AS82: 0 | AU82: 0
P83: ='Salary Detail'!D257 -> 0 | Q83: ='Salary Detail'!E257 -> 0 | R83: ='Salary Detail'!F257 -> 0 | S83: ='Salary Detail'!G257 -> 0 | T83: ='Salary Detail'!H257 -> 0 | U83: ='Salary Detail'!I257 -> 0 | V83: ='Salary Detail'!J257 -> 0 | W83: ='Salary Detail'!K257 -> 0 | X83: ='Salary Detail'!L257 -> 0 | Y83: ='Salary Detail'!M257 -> 0 | Z83: 0 | AE83: 0 | AF83: 0 | AG83: 0 | AH83: 0 | AI83: 0 | AJ83: 0 | AK83: 0 | AL83: 0 | AM83: 0 | AN83: 0 | AO83: 0 | AQ83: 0 | AR83: 0 | AS83: 0 | AU83: 0
P84: ='Salary Detail'!D272 -> 0 | Q84: ='Salary Detail'!E272 -> 0 | R84: ='Salary Detail'!F272 -> 0 | S84: ='Salary Detail'!G272 -> 0 | T84: ='Salary Detail'!H272 -> 0 | U84: ='Salary Detail'!I272 -> 0 | V84: ='Salary Detail'!J272 -> 0 | W84: ='Salary Detail'!K272 -> 0 | X84: ='Salary Detail'!L272 -> 0 | Y84: ='Salary Detail'!M272 -> 0 | Z84: 0 | AE84: 0 | AF84: 0 | AG84: 0 | AH84: 0 | AI84: 0 | AJ84: 0 | AK84: 0 | AL84: 0 | AM84: 0 | AN84: 0 | AO84: 0 | AQ84: 0 | AR84: 0 | AS84: 0 | AU84: 0
P85: ='Salary Detail'!D287 -> 0 | Q85: ='Salary Detail'!E287 -> 0 | R85: ='Salary Detail'!F287 -> 0 | S85: ='Salary Detail'!G287 -> 0 | T85: ='Salary Detail'!H287 -> 0 | U85: ='Salary Detail'!I287 -> 0 | V85: ='Salary Detail'!J287 -> 0 | W85: ='Salary Detail'!K287 -> 0 | X85: ='Salary Detail'!L287 -> 0 | Y85: ='Salary Detail'!M287 -> 0 | Z85: 0 | AE85: 0 | AF85: 0 | AG85: 0 | AH85: 0 | AI85: 0 | AJ85: 0 | AK85: 0 | AL85: 0 | AM85: 0 | AN85: 0 | AO85: 0 | AQ85: 0 | AR85: 0 | AS85: 0 | AU85: 0
P86: ='Salary Detail'!D302 -> 0 | Q86: ='Salary Detail'!E302 -> 0 | R86: ='Salary Detail'!F302 -> 0 | S86: ='Salary Detail'!G302 -> 0 | T86: ='Salary Detail'!H302 -> 0 | U86: ='Salary Detail'!I302 -> 0 | V86: ='Salary Detail'!J302 -> 0 | W86: ='Salary Detail'!K302 -> 0 | X86: ='Salary Detail'!L302 -> 0 | Y86: ='Salary Detail'!M302 -> 0 | Z86: 0 | AE86: 0 | AF86: 0 | AG86: 0 | AH86: 0 | AI86: 0 | AJ86: 0 | AK86: 0 | AL86: 0 | AM86: 0 | AN86: 0 | AO86: 0 | AQ86: 0 | AR86: 0 | AS86: 0 | AU86: 0
P87: ='Salary Detail'!D317 -> 0 | Q87: ='Salary Detail'!E317 -> 0 | R87: ='Salary Detail'!F317 -> 0 | S87: ='Salary Detail'!G317 -> 0 | T87: ='Salary Detail'!H317 -> 0 | U87: ='Salary Detail'!I317 -> 0 | V87: ='Salary Detail'!J317 -> 0 | W87: ='Salary Detail'!K317 -> 0 | X87: ='Salary Detail'!L317 -> 0 | Y87: ='Salary Detail'!M317 -> 0 | Z87: 0 | AE87: 0 | AF87: 0 | AG87: 0 | AH87: 0 | AI87: 0 | AJ87: 0 | AK87: 0 | AL87: 0 | AM87: 0 | AN87: 0 | AO87: 0 | AQ87: 0 | AR87: 0 | AS87: 0 | AU87: 0
P88: ='Salary Detail'!D332 -> 0 | Q88: ='Salary Detail'!E332 -> 0 | R88: ='Salary Detail'!F332 -> 0 | S88: ='Salary Detail'!G332 -> 0 | T88: ='Salary Detail'!H332 -> 0 | U88: ='Salary Detail'!I332 -> 0 | V88: ='Salary Detail'!J332 -> 0 | W88: ='Salary Detail'!K332 -> 0 | X88: ='Salary Detail'!L332 -> 0 | Y88: ='Salary Detail'!M332 -> 0 | Z88: 0 | AE88: 0 | AF88: 0 | AG88: 0 | AH88: 0 | AI88: 0 | AJ88: 0 | AK88: 0 | AL88: 0 | AM88: 0 | AN88: 0 | AO88: 0 | AQ88: 0 | AR88: 0 | AS88: 0 | AU88: 0
P89: ='Salary Detail'!D347 -> 0 | Q89: ='Salary Detail'!E347 -> 0 | R89: ='Salary Detail'!F347 -> 0 | S89: ='Salary Detail'!G347 -> 0 | T89: ='Salary Detail'!H347 -> 0 | U89: ='Salary Detail'!I347 -> 0 | V89: ='Salary Detail'!J347 -> 0 | W89: ='Salary Detail'!K347 -> 0 | X89: ='Salary Detail'!L347 -> 0 | Y89: ='Salary Detail'!M347 -> 0 | Z89: 0 | AE89: 0 | AF89: 0 | AG89: 0 | AH89: 0 | AI89: 0 | AJ89: 0 | AK89: 0 | AL89: 0 | AM89: 0 | AN89: 0 | AO89: 0 | AQ89: 0 | AR89: 0 | AS89: 0 | AU89: 0
P90: ='Salary Detail'!D362 -> 0 | Q90: ='Salary Detail'!E362 -> 0 | R90: ='Salary Detail'!F362 -> 0 | S90: ='Salary Detail'!G362 -> 0 | T90: ='Salary Detail'!H362 -> 0 | U90: ='Salary Detail'!I362 -> 0 | V90: ='Salary Detail'!J362 -> 0 | W90: ='Salary Detail'!K362 -> 0 | X90: ='Salary Detail'!L362 -> 0 | Y90: ='Salary Detail'!M362 -> 0 | Z90: 0 | AE90: 0 | AF90: 0 | AG90: 0 | AH90: 0 | AI90: 0 | AJ90: 0 | AK90: 0 | AL90: 0 | AM90: 0 | AN90: 0 | AO90: 0 | AQ90: 0 | AR90: 0 | AS90: 0 | AU90: 0
P91: ='Salary Detail'!D377 -> 0 | Q91: ='Salary Detail'!E377 -> 0 | R91: ='Salary Detail'!F377 -> 0 | S91: ='Salary Detail'!G377 -> 0 | T91: ='Salary Detail'!H377 -> 0 | U91: ='Salary Detail'!I377 -> 0 | V91: ='Salary Detail'!J377 -> 0 | W91: ='Salary Detail'!K377 -> 0 | X91: ='Salary Detail'!L377 -> 0 | Y91: ='Salary Detail'!M377 -> 0 | Z91: 0 | AE91: 0 | AF91: 0 | AG91: 0 | AH91: 0 | AI91: 0 | AJ91: 0 | AK91: 0 | AL91: 0 | AM91: 0 | AN91: 0 | AO91: 0 | AQ91: 0 | AR91: 0 | AS91: 0 | AU91: 0
P92: ='Salary Detail'!D392 -> 0 | Q92: ='Salary Detail'!E392 -> 0 | R92: ='Salary Detail'!F392 -> 0 | S92: ='Salary Detail'!G392 -> 0 | T92: ='Salary Detail'!H392 -> 0 | U92: ='Salary Detail'!I392 -> 0 | V92: ='Salary Detail'!J392 -> 0 | W92: ='Salary Detail'!K392 -> 0 | X92: ='Salary Detail'!L392 -> 0 | Y92: ='Salary Detail'!M392 -> 0 | Z92: 0 | AE92: 0 | AF92: 0 | AG92: 0 | AH92: 0 | AI92: 0 | AJ92: 0 | AK92: 0 | AL92: 0 | AM92: 0 | AN92: 0 | AO92: 0 | AQ92: 0 | AR92: 0 | AS92: 0 | AU92: 0
P93: ='Salary Detail'!D407 -> 0 | Q93: ='Salary Detail'!E407 -> 0 | R93: ='Salary Detail'!F407 -> 0 | S93: ='Salary Detail'!G407 -> 0 | T93: ='Salary Detail'!H407 -> 0 | U93: ='Salary Detail'!I407 -> 0 | V93: ='Salary Detail'!J407 -> 0 | W93: ='Salary Detail'!K407 -> 0 | X93: ='Salary Detail'!L407 -> 0 | Y93: ='Salary Detail'!M407 -> 0 | Z93: 0 | AE93: 0 | AF93: 0 | AG93: 0 | AH93: 0 | AI93: 0 | AJ93: 0 | AK93: 0 | AL93: 0 | AM93: 0 | AN93: 0 | AO93: 0 | AQ93: 0 | AR93: 0 | AS93: 0 | AU93: 0
P94: ='Salary Detail'!D422 -> 0 | Q94: ='Salary Detail'!E422 -> 0 | R94: ='Salary Detail'!F422 -> 0 | S94: ='Salary Detail'!G422 -> 0 | T94: ='Salary Detail'!H422 -> 0 | U94: ='Salary Detail'!I422 -> 0 | V94: ='Salary Detail'!J422 -> 0 | W94: ='Salary Detail'!K422 -> 0 | X94: ='Salary Detail'!L422 -> 0 | Y94: ='Salary Detail'!M422 -> 0 | Z94: 0 | AE94: 0 | AF94: 0 | AG94: 0 | AH94: 0 | AI94: 0 | AJ94: 0 | AK94: 0 | AL94: 0 | AM94: 0 | AN94: 0 | AO94: 0 | AQ94: 0 | AR94: 0 | AS94: 0 | AU94: 0
P95: ='Salary Detail'!D437 -> 0 | Q95: ='Salary Detail'!E437 -> 0 | R95: ='Salary Detail'!F437 -> 0 | S95: ='Salary Detail'!G437 -> 0 | T95: ='Salary Detail'!H437 -> 0 | U95: ='Salary Detail'!I437 -> 0 | V95: ='Salary Detail'!J437 -> 0 | W95: ='Salary Detail'!K437 -> 0 | X95: ='Salary Detail'!L437 -> 0 | Y95: ='Salary Detail'!M437 -> 0 | Z95: 0 | AE95: 0 | AF95: 0 | AG95: 0 | AH95: 0 | AI95: 0 | AJ95: 0 | AK95: 0 | AL95: 0 | AM95: 0 | AN95: 0 | AO95: 0 | AQ95: 0 | AR95: 0 | AS95: 0 | AU95: 0
P96: ='Salary Detail'!D452 -> 0 | Q96: ='Salary Detail'!E452 -> 0 | R96: ='Salary Detail'!F452 -> 0 | S96: ='Salary Detail'!G452 -> 0 | T96: ='Salary Detail'!H452 -> 0 | U96: ='Salary Detail'!I452 -> 0 | V96: ='Salary Detail'!J452 -> 0 | W96: ='Salary Detail'!K452 -> 0 | X96: ='Salary Detail'!L452 -> 0 | Y96: ='Salary Detail'!M452 -> 0 | Z96: 0 | AE96: 0 | AF96: 0 | AG96: 0 | AH96: 0 | AI96: 0 | AJ96: 0 | AK96: 0 | AL96: 0 | AM96: 0 | AN96: 0 | AO96: 0 | AQ96: 0 | AR96: 0 | AS96: 0 | AU96: 0
F97: Total Continuing & Fixed Term Salaries - MONTHLY / ANNUAL | P97: =SUM(P67:P96) -> 0 | Q97: 0 | R97: 0 | S97: 0 | T97: 0 | U97: 0 | V97: 0 | W97: 0 | X97: 0 | Y97: 0 | Z97: 0 | AE97: =SUM(AE67:AE96) -> 0 | AF97: 0 | AG97: 0 | AH97: 0 | AI97: 0 | AJ97: 0 | AK97: 0 | AL97: 0 | AM97: 0 | AN97: 0 | AO97: 0 | AQ97: =SUM(AQ67:AQ96) -> 0 | AR97: =SUM(AR67:AR96) -> 0 | AS97: =SUM(AS67:AS96) -> 0 | AU97: =SUM(AU67:AU96) -> 0
F100: Continuing & Fixed Term Salaries - HOURLY / DAILY / WEEKLY
F101: Employment Type | G101: Salary Segment (Optional) | H101: Level of Staff Member | I101: Funding Source | J101: Year | K101: FTE | L101: Rate | M101: Unit | O101: Loadings (optional) | P101: Project Costing (Direct) | AE101: Project Pricing (Direct) | AQ101: Inkind & Ineligible Expenses | AU101: Price to Funder (inclusive of salary & other recoveries)
P102: =P$37 -> Year 1 | Q102: Year 2 | R102: Year 3 | S102: Year 4 | T102: Year 5 | U102: Year 6 | V102: Year 7 | W102: Year 8 | X102: Year 9 | Y102: Year 10 | Z102: =Z$63 -> Total Project Cost (Direct) | AA102: % included in Project Pricing | AB102: Amount included in Project Pricing | AC102: Reason for the cost not being fully funded by the sponsor | AE102: =AE$37 -> Year 1 | AF102: Year 2 | AG102: Year 3 | AH102: Year 4 | AI102: Year 5 | AJ102: Year 6 | AK102: Year 7 | AL102: Year 8 | AM102: Year 9 | AN102: Year 10 | AO102: Total Project Price (Direct) | AQ102: =AQ$63 -> Inkind | AR102: =AR$63 -> Ineligible Expense | AS102: =AS$63 -> Total
P103: =P$33 -> 1900 | Q103: =Q$33 ->  | AE103: =AE$33 -> 1900 | AF103: =AF$33 ->  | AO103: =AO$38 -> 0
F104: Academic | G104: Tied | H104: Level B-4 | I104: Funded | J104: 2024 | K104: 1 | L104: Hourly | M104: 1000 | N104: Number of hours | P104: 99055.65863 | Q104: 0 | R104: 0 | S104: 0 | T104: 0 | U104: 0 | V104: 0 | W104: 0 | X104: 0 | Y104: 0 | Z104: =SUM(P104:Y104) -> 99055.65863 | AE104: 99055.65863 | AF104: 0 | AG104: 0 | AH104: 0 | AI104: 0 | AJ104: 0 | AK104: 0 | AL104: 0 | AM104: 0 | AN104: 0 | AO104: =SUM(AE104:AN104) -> 99055.65863 | AQ104: 0 | AR104: 0 | AS104: =SUM(AQ104:AR104) -> 0
F105: Professional | G105: Discretionary | H105: HEO 7-1 | I105: Inkind | J105: 2025 | K105: 1 | L105: Weekly | M105: 20 | N105: Number of weeks | P105: 0 | Q105: 60145.68182 | R105: 0 | S105: 0 | T105: 0 | U105: 0 | V105: 0 | W105: 0 | X105: 0 | Y105: 0 | Z105: =SUM(P105:Y105) -> 60145.68182 | AE105: 0 | AF105: 0 | AG105: 0 | AH105: 0 | AI105: 0 | AJ105: 0 | AK105: 0 | AL105: 0 | AM105: 0 | AN105: 0 | AO105: =SUM(AE105:AN105) -> 0 | AQ105: 60145.68182 | AR105: 0 | AS105: =SUM(AQ105:AR105) -> 60145.68182
F106: =IFERROR(VLOOKUP($H106,Employment_Type,2,FALSE),"") ->  | N106: Number of hours | P106: =IFERROR((IF(P$103=$J106,(INDEX(Cont_FT_Salaries,MATCH($H106,Cont_FT_Levels,0),MATCH(P$103,Cont_FT_Years,0))+$O106),0)*(1+$O$60))/VLOOKUP($L106,Rate,3,FALSE)*$K106*$M106,0) -> 0 | Q106: 0 | R106: 0 | S106: 0 | T106: 0 | U106: 0 | V106: 0 | W106: 0 | X106: 0 | Y106: 0 | Z106: =SUM(P106:Y106) -> 0 | AE106: =IF($I106="Funded",IF(ISBLANK($AA106),IF(ISBLANK($AB106),P106,IF(P106=0,0,$AB106)),P106*$AA106),0) -> 0 | AF106: =IF($I106="Funded",IF(ISBLANK($AA106),IF(ISBLANK($AB106),Q106,IF(Q106=0,0,$AB106)),Q106*$AA106),0) -> 0 | AG106: =IF($I106="Funded",IF(ISBLANK($AA106),IF(ISBLANK($AB106),R106,IF(R106=0,0,$AB106)),R106*$AA106),0) -> 0 | AH106: =IF($I106="Funded",IF(ISBLANK($AA106),IF(ISBLANK($AB106),S106,IF(S106=0,0,$AB106)),S106*$AA106),0) -> 0 | AI106: =IF($I106="Funded",IF(ISBLANK($AA106),IF(ISBLANK($AB106),T106,IF(T106=0,0,$AB106)),T106*$AA106),0) -> 0 | AJ106: =IF($I106="Funded",IF(ISBLANK($AA106),IF(ISBLANK($AB106),U106,IF(U106=0,0,$AB106)),U106*$AA106),0) -> 0 | AK106: =IF($I106="Funded",IF(ISBLANK($AA106),IF(ISBLANK($AB106),V106,IF(V106=0,0,$AB106)),V106*$AA106),0) -> 0 | AL106: =IF($I106="Funded",IF(ISBLANK($AA106),IF(ISBLANK($AB106),W106,IF(W106=0,0,$AB106)),W106*$AA106),0) -> 0 | AM106: =IF($I106="Funded",IF(ISBLANK($AA106),IF(ISBLANK($AB106),X106,IF(X106=0,0,$AB106)),X106*$AA106),0) -> 0 | AN106: =IF($I106="Funded",IF(ISBLANK($AA106),IF(ISBLANK($AB106),Y106,IF(Y106=0,0,$AB106)),Y106*$AA106),0) -> 0 | AO106: =SUM(AE106:AN106) -> 0 | AQ106: =IF($I106=AQ$63,$Z106-$AO106,0) -> 0 | AR106: =IF(NOT($I106="Inkind"),$Z106-$AO106,0) -> 0 | AS106: =SUM(AQ106:AR106) -> 0 | AU106: =IFERROR(AO106/$AO$163*SUM($AO$263,$AO$265)+AO106,0) -> 0
N107: =IFERROR(VLOOKUP($L107,Rate,2,FALSE),"") ->  | P107: 0 | Q107: 0 | R107: 0 | S107: 0 | T107: 0 | U107: 0 | V107: 0 | W107: 0 | X107: 0 | Y107: 0 | Z107: 0 | AE107: 0 | AF107: 0 | AG107: 0 | AH107: 0 | AI107: 0 | AJ107: 0 | AK107: 0 | AL107: 0 | AM107: 0 | AN107: 0 | AO107: 0 | AQ107: =IF($I107=AQ$63,$Z107-$AO107,0) -> 0 | AR107: =IF(NOT($I107="Inkind"),$Z107-$AO107,0) -> 0 | AS107: 0 | AU107: 0
P108: 0 | Q108: 0 | R108: 0 | S108: 0 | T108: 0 | U108: 0 | V108: 0 | W108: 0 | X108: 0 | Y108: 0 | Z108: 0 | AE108: 0 | AF108: 0 | AG108: 0 | AH108: 0 | AI108: 0 | AJ108: 0 | AK108: 0 | AL108: 0 | AM108: 0 | AN108: 0 | AO108: 0 | AQ108: 0 | AR108: 0 | AS108: 0 | AU108: 0
P109: 0 | Q109: 0 | R109: 0 | S109: 0 | T109: 0 | U109: 0 | V109: 0 | W109: 0 | X109: 0 | Y109: 0 | Z109: 0 | AE109: 0 | AF109: 0 | AG109: 0 | AH109: 0 | AI109: 0 | AJ109: 0 | AK109: 0 | AL109: 0 | AM109: 0 | AN109: 0 | AO109: 0 | AQ109: 0 | AR109: 0 | AS109: 0 | AU109: 0
P110: 0 | Q110: 0 | R110: 0 | S110: 0 | T110: 0 | U110: 0 | V110: 0 | W110: 0 | X110: 0 | Y110: 0 | Z110: 0 | AE110: 0 | AF110: 0 | AG110: 0 | AH110: 0 | AI110: 0 | AJ110: 0 | AK110: 0 | AL110: 0 | AM110: 0 | AN110: 0 | AO110: 0 | AQ110: 0 | AR110: 0 | AS110: 0 | AU110: 0
P111: 0 | Q111: 0 | R111: 0 | S111: 0 | T111: 0 | U111: 0 | V111: 0 | W111: 0 | X111: 0 | Y111: 0 | Z111: 0 | AE111: 0 | AF111: 0 | AG111: 0 | AH111: 0 | AI111: 0 | AJ111: 0 | AK111: 0 | AL111: 0 | AM111: 0 | AN111: 0 | AO111: 0 | AQ111: 0 | AR111: 0 | AS111: 0 | AU111: 0
P112: 0 | Q112: 0 | R112: 0 | S112: 0 | T112: 0 | U112: 0 | V112: 0 | W112: 0 | X112: 0 | Y112: 0 | Z112: 0 | AE112: 0 | AF112: 0 | AG112: 0 | AH112: 0 | AI112: 0 | AJ112: 0 | AK112: 0 | AL112: 0 | AM112: 0 | AN112: 0 | AO112: 0 | AQ112: 0 | AR112: 0 | AS112: 0 | AU112: 0
P113: 0 | Q113: 0 | R113: 0 | S113: 0 | T113: 0 | U113: 0 | V113: 0 | W113: 0 | X113: 0 | Y113: 0 | Z113: 0 | AE113: 0 | AF113: 0 | AG113: 0 | AH113: 0 | AI113: 0 | AJ113: 0 | AK113: 0 | AL113: 0 | AM113: 0 | AN113: 0 | AO113: 0 | AQ113: 0 | AR113: 0 | AS113: 0 | AU113: 0
P114: 0 | Q114: 0 | R114: 0 | S114: 0 | T114: 0 | U114: 0 | V114: 0 | W114: 0 | X114: 0 | Y114: 0 | Z114: 0 | AE114: 0 | AF114: 0 | AG114: 0 | AH114: 0 | AI114: 0 | AJ114: 0 | AK114: 0 | AL114: 0 | AM114: 0 | AN114: 0 | AO114: 0 | AQ114: 0 | AR114: 0 | AS114: 0 | AU114: 0
P115: 0 | Q115: 0 | R115: 0 | S115: 0 | T115: 0 | U115: 0 | V115: 0 | W115: 0 | X115: 0 | Y115: 0 | Z115: 0 | AE115: 0 | AF115: 0 | AG115: 0 | AH115: 0 | AI115: 0 | AJ115: 0 | AK115: 0 | AL115: 0 | AM115: 0 | AN115: 0 | AO115: 0 | AQ115: 0 | AR115: 0 | AS115: =SUM(AQ115:AR115) -> 0 | AU115: 0
P116: =IFERROR((IF(P$103=$J116,(INDEX(Cont_FT_Salaries,MATCH($H116,Cont_FT_Levels,0),MATCH(P$103,Cont_FT_Years,0))+$O116),0)*(1+$O$60))/VLOOKUP($L116,Rate,3,FALSE)*$K116*$M116,0) -> 0 | Q116: 0 | R116: 0 | S116: 0 | T116: 0 | U116: 0 | V116: 0 | W116: 0 | X116: 0 | Y116: 0 | Z116: =SUM(P116:Y116) -> 0 | AE116: 0 | AF116: 0 | AG116: 0 | AH116: 0 | AI116: 0 | AJ116: 0 | AK116: 0 | AL116: 0 | AM116: 0 | AN116: 0 | AO116: =SUM(AE116:AN116) -> 0 | AQ116: 0 | AR116: 0 | AS116: =SUM(AQ116:AR116) -> 0 | AU116: 0
P117: 0 | Q117: 0 | R117: 0 | S117: 0 | T117: 0 | U117: 0 | V117: 0 | W117: 0 | X117: 0 | Y117: 0 | Z117: =SUM(P117:Y117) -> 0 | AE117: =IF($I117="Funded",IF(ISBLANK($AA117),IF(ISBLANK($AB117),P117,IF(P117=0,0,$AB117)),P117*$AA117),0) -> 0 | AF117: =IF($I117="Funded",IF(ISBLANK($AA117),IF(ISBLANK($AB117),Q117,IF(Q117=0,0,$AB117)),Q117*$AA117),0) -> 0 | AG117: =IF($I117="Funded",IF(ISBLANK($AA117),IF(ISBLANK($AB117),R117,IF(R117=0,0,$AB117)),R117*$AA117),0) -> 0 | AH117: =IF($I117="Funded",IF(ISBLANK($AA117),IF(ISBLANK($AB117),S117,IF(S117=0,0,$AB117)),S117*$AA117),0) -> 0 | AI117: =IF($I117="Funded",IF(ISBLANK($AA117),IF(ISBLANK($AB117),T117,IF(T117=0,0,$AB117)),T117*$AA117),0) -> 0 | AJ117: =IF($I117="Funded",IF(ISBLANK($AA117),IF(ISBLANK($AB117),U117,IF(U117=0,0,$AB117)),U117*$AA117),0) -> 0 | AK117: =IF($I117="Funded",IF(ISBLANK($AA117),IF(ISBLANK($AB117),V117,IF(V117=0,0,$AB117)),V117*$AA117),0) -> 0 | AL117: =IF($I117="Funded",IF(ISBLANK($AA117),IF(ISBLANK($AB117),W117,IF(W117=0,0,$AB117)),W117*$AA117),0) -> 0 | AM117: =IF($I117="Funded",IF(ISBLANK($AA117),IF(ISBLANK($AB117),X117,IF(X117=0,0,$AB117)),X117*$AA117),0) -> 0 | AN117: =IF($I117="Funded",IF(ISBLANK($AA117),IF(ISBLANK($AB117),Y117,IF(Y117=0,0,$AB117)),Y117*$AA117),0) -> 0 | AO117: =SUM(AE117:AN117) -> 0 | AQ117: 0 | AR117: 0 | AS117: =SUM(AQ117:AR117) -> 0 | AU117: 0
P118: 0 | Q118: 0 | R118: 0 | S118: 0 | T118: 0 | U118: 0 | V118: 0 | W118: 0 | X118: 0 | Y118: 0 | Z118: 0 | AE118: 0 | AF118: 0 | AG118: 0 | AH118: 0 | AI118: 0 | AJ118: 0 | AK118: 0 | AL118: 0 | AM118: 0 | AN118: 0 | AO118: 0 | AQ118: 0 | AR118: 0 | AS118: 0 | AU118: 0
P119: 0 | Q119: 0 | R119: 0 | S119: 0 | T119: 0 | U119: 0 | V119: 0 | W119: 0 | X119: 0 | Y119: 0 | Z119: 0 | AE119: 0 | AF119: 0 | AG119: 0 | AH119: 0 | AI119: 0 | AJ119: 0 | AK119: 0 | AL119: 0 | AM119: 0 | AN119: 0 | AO119: 0 | AQ119: 0 | AR119: 0 | AS119: 0 | AU119: 0
P120: 0 | Q120: 0 | R120: 0 | S120: 0 | T120: 0 | U120: 0 | V120: 0 | W120: 0 | X120: 0 | Y120: 0 | Z120: 0 | AE120: 0 | AF120: 0 | AG120: 0 | AH120: 0 | AI120: 0 | AJ120: 0 | AK120: 0 | AL120: 0 | AM120: 0 | AN120: 0 | AO120: 0 | AQ120: 0 | AR120: 0 | AS120: 0 | AU120: 0
P121: 0 | Q121: 0 | R121: 0 | S121: 0 | T121: 0 | U121: 0 | V121: 0 | W121: 0 | X121: 0 | Y121: 0 | Z121: =SUM(P121:Y121) -> 0 | AE121: =IF($I121="Funded",IF(ISBLANK($AA121),IF(ISBLANK($AB121),P121,IF(P121=0,0,$AB121)),P121*$AA121),0) -> 0 | AF121: =IF($I121="Funded",IF(ISBLANK($AA121),IF(ISBLANK($AB121),Q121,IF(Q121=0,0,$AB121)),Q121*$AA121),0) -> 0 | AG121: =IF($I121="Funded",IF(ISBLANK($AA121),IF(ISBLANK($AB121),R121,IF(R121=0,0,$AB121)),R121*$AA121),0) -> 0 | AH121: =IF($I121="Funded",IF(ISBLANK($AA121),IF(ISBLANK($AB121),S121,IF(S121=0,0,$AB121)),S121*$AA121),0) -> 0 | AI121: =IF($I121="Funded",IF(ISBLANK($AA121),IF(ISBLANK($AB121),T121,IF(T121=0,0,$AB121)),T121*$AA121),0) -> 0 | AJ121: =IF($I121="Funded",IF(ISBLANK($AA121),IF(ISBLANK($AB121),U121,IF(U121=0,0,$AB121)),U121*$AA121),0) -> 0 | AK121: =IF($I121="Funded",IF(ISBLANK($AA121),IF(ISBLANK($AB121),V121,IF(V121=0,0,$AB121)),V121*$AA121),0) -> 0 | AL121: =IF($I121="Funded",IF(ISBLANK($AA121),IF(ISBLANK($AB121),W121,IF(W121=0,0,$AB121)),W121*$AA121),0) -> 0 | AM121: =IF($I121="Funded",IF(ISBLANK($AA121),IF(ISBLANK($AB121),X121,IF(X121=0,0,$AB121)),X121*$AA121),0) -> 0 | AN121: =IF($I121="Funded",IF(ISBLANK($AA121),IF(ISBLANK($AB121),Y121,IF(Y121=0,0,$AB121)),Y121*$AA121),0) -> 0 | AO121: =SUM(AE121:AN121) -> 0 | AQ121: 0 | AR121: 0 | AS121: =SUM(AQ121:AR121) -> 0 | AU121: =IFERROR(AO121/$AO$163*SUM($AO$263,$AO$265)+AO121,0) -> 0
P122: 0 | Q122: 0 | R122: 0 | S122: 0 | T122: 0 | U122: 0 | V122: 0 | W122: 0 | X122: 0 | Y122: 0 | Z122: 0 | AE122: 0 | AF122: 0 | AG122: 0 | AH122: 0 | AI122: 0 | AJ122: 0 | AK122: 0 | AL122: 0 | AM122: 0 | AN122: 0 | AO122: 0 | AQ122: 0 | AR122: 0 | AS122: 0 | AU122: 0
P123: 0 | Q123: 0 | R123: 0 | S123: 0 | T123: 0 | U123: 0 | V123: 0 | W123: 0 | X123: 0 | Y123: 0 | Z123: 0 | AE123: 0 | AF123: 0 | AG123: 0 | AH123: 0 | AI123: 0 | AJ123: 0 | AK123: 0 | AL123: 0 | AM123: 0 | AN123: 0 | AO123: 0 | AQ123: 0 | AR123: 0 | AS123: 0 | AU123: 0
P124: 0 | Q124: 0 | R124: 0 | S124: 0 | T124: 0 | U124: 0 | V124: 0 | W124: 0 | X124: 0 | Y124: 0 | Z124: 0 | AE124: 0 | AF124: 0 | AG124: 0 | AH124: 0 | AI124: 0 | AJ124: 0 | AK124: 0 | AL124: 0 | AM124: 0 | AN124: 0 | AO124: 0 | AQ124: 0 | AR124: 0 | AS124: 0 | AU124: =IFERROR(AO124/$AO$163*SUM($AO$263,$AO$265)+AO124,0) -> 0
P125: 0 | Q125: 0 | R125: 0 | S125: 0 | T125: 0 | U125: 0 | V125: 0 | W125: 0 | X125: 0 | Y125: 0 | Z125: 0 | AE125: 0 | AF125: 0 | AG125: 0 | AH125: 0 | AI125: 0 | AJ125: 0 | AK125: 0 | AL125: 0 | AM125: 0 | AN125: 0 | AO125: 0 | AQ125: 0 | AR125: 0 | AS125: 0 | AU125: 0
P126: =IFERROR((IF(P$103=$J126,(INDEX(Cont_FT_Salaries,MATCH($H126,Cont_FT_Levels,0),MATCH(P$103,Cont_FT_Years,0))+$O126),0)*(1+$O$60))/VLOOKUP($L126,Rate,3,FALSE)*$K126*$M126,0) -> 0 | Q126: 0 | R126: 0 | S126: 0 | T126: 0 | U126: 0 | V126: 0 | W126: 0 | X126: 0 | Y126: 0 | Z126: 0 | AE126: 0 | AF126: 0 | AG126: 0 | AH126: 0 | AI126: 0 | AJ126: 0 | AK126: 0 | AL126: 0 | AM126: 0 | AN126: 0 | AO126: 0 | AQ126: 0 | AR126: 0 | AS126: 0 | AU126: 0
P127: 0 | Q127: 0 | R127: 0 | S127: 0 | T127: 0 | U127: 0 | V127: 0 | W127: 0 | X127: 0 | Y127: 0 | Z127: 0 | AE127: 0 | AF127: 0 | AG127: 0 | AH127: 0 | AI127: 0 | AJ127: 0 | AK127: 0 | AL127: 0 | AM127: 0 | AN127: 0 | AO127: 0 | AQ127: 0 | AR127: 0 | AS127: 0 | AU127: 0
P128: 0 | Q128: 0 | R128: 0 | S128: 0 | T128: 0 | U128: 0 | V128: 0 | W128: 0 | X128: 0 | Y128: 0 | Z128: 0 | AE128: 0 | AF128: 0 | AG128: 0 | AH128: 0 | AI128: 0 | AJ128: 0 | AK128: 0 | AL128: 0 | AM128: 0 | AN128: 0 | AO128: 0 | AQ128: 0 | AR128: 0 | AS128: 0 | AU128: 0
P129: 0 | Q129: 0 | R129: 0 | S129: 0 | T129: 0 | U129: 0 | V129: 0 | W129: 0 | X129: 0 | Y129: 0 | Z129: 0 | AE129: 0 | AF129: 0 | AG129: 0 | AH129: 0 | AI129: 0 | AJ129: 0 | AK129: 0 | AL129: 0 | AM129: 0 | AN129: 0 | AO129: 0 | AQ129: 0 | AR129: 0 | AS129: 0 | AU129: 0
P130: 0 | Q130: 0 | R130: 0 | S130: 0 | T130: 0 | U130: 0 | V130: 0 | W130: 0 | X130: 0 | Y130: 0 | Z130: 0 | AE130: 0 | AF130: 0 | AG130: 0 | AH130: 0 | AI130: 0 | AJ130: 0 | AK130: 0 | AL130: 0 | AM130: 0 | AN130: 0 | AO130: 0 | AQ130: 0 | AR130: 0 | AS130: 0 | AU130: 0
P131: 0 | Q131: 0 | R131: 0 | S131: 0 | T131: 0 | U131: 0 | V131: 0 | W131: 0 | X131: 0 | Y131: 0 | Z131: 0 | AE131: 0 | AF131: 0 | AG131: 0 | AH131: 0 | AI131: 0 | AJ131: 0 | AK131: 0 | AL131: 0 | AM131: 0 | AN131: 0 | AO131: 0 | AQ131: 0 | AR131: 0 | AS131: 0 | AU131: 0
P132: 0 | Q132: 0 | R132: 0 | S132: 0 | T132: 0 | U132: 0 | V132: 0 | W132: 0 | X132: 0 | Y132: 0 | Z132: 0 | AE132: 0 | AF132: 0 | AG132: 0 | AH132: 0 | AI132: 0 | AJ132: 0 | AK132: 0 | AL132: 0 | AM132: 0 | AN132: 0 | AO132: 0 | AQ132: 0 | AR132: 0 | AS132: 0 | AU132: 0
P133: 0 | Q133: 0 | R133: 0 | S133: 0 | T133: 0 | U133: 0 | V133: 0 | W133: 0 | X133: 0 | Y133: 0 | Z133: 0 | AE133: 0 | AF133: 0 | AG133: 0 | AH133: 0 | AI133: 0 | AJ133: 0 | AK133: 0 | AL133: 0 | AM133: 0 | AN133: 0 | AO133: 0 | AQ133: 0 | AR133: 0 | AS133: 0 | AU133: 0
P134: 0 | Q134: 0 | R134: 0 | S134: 0 | T134: 0 | U134: 0 | V134: 0 | W134: 0 | X134: 0 | Y134: 0 | Z134: 0 | AE134: 0 | AF134: 0 | AG134: 0 | AH134: 0 | AI134: 0 | AJ134: 0 | AK134: 0 | AL134: 0 | AM134: 0 | AN134: 0 | AO134: 0 | AQ134: 0 | AR134: 0 | AS134: 0 | AU134: 0
P135: 0 | Q135: 0 | R135: 0 | S135: 0 | T135: 0 | U135: 0 | V135: 0 | W135: 0 | X135: 0 | Y135: 0 | Z135: 0 | AE135: 0 | AF135: 0 | AG135: 0 | AH135: 0 | AI135: 0 | AJ135: 0 | AK135: 0 | AL135: 0 | AM135: 0 | AN135: 0 | AO135: 0 | AQ135: 0 | AR135: 0 | AS135: 0 | AU135: 0
F136: Total Continuing & Fixed Term Salaries - HOURLY / DAILY / WEEKLY | P136: =SUM(P106:P135) -> 0 | Q136: 0 | R136: 0 | S136: 0 | T136: 0 | U136: 0 | V136: 0 | W136: 0 | X136: 0 | Y136: 0 | Z136: 0 | AE136: =SUM(AE106:AE135) -> 0 | AF136: 0 | AG136: 0 | AH136: 0 | AI136: 0 | AJ136: 0 | AK136: 0 | AL136: 0 | AM136: 0 | AN136: 0 | AO136: 0 | AQ136: =SUM(AQ106:AQ135) -> 0 | AR136: =SUM(AR106:AR135) -> 0 | AS136: =SUM(AS106:AS135) -> 0 | AU136: =SUM(AU106:AU135) -> 0
M138: Oncost Rates | N138: 2024 | O138: 2025 onwards
N139: =Casual_2024_Oncost_Rate -> 0.1695 | O139: =Casual_2025_Oncost_Rate -> 0.1745
F140: Casual Salaries
F141: Employment Type | G141: Salary Segment | I141: Level of Staff Member Note: There is only 1 rate for academic staff per HR's advice | L141: Funding Source | M141: Start Year | N141: End Year | O141: Hours Per Year | P141: Project Costing (Direct) | AE141: Project Pricing (Direct) | AQ141: Inkind & Ineligible Expenses | AU141: Price to Funder (inclusive of salary & other recoveries)
P142: =P$37 -> Year 1 | Q142: Year 2 | R142: Year 3 | S142: Year 4 | T142: Year 5 | U142: Year 6 | V142: Year 7 | W142: Year 8 | X142: Year 9 | Y142: Year 10 | Z142: =Z$63 -> Total Project Cost (Direct) | AA142: % included in Project Pricing | AB142: Amount included in Project Pricing | AC142: =AC$63 -> Reason for the cost not being fully funded by the sponsor | AE142: =AE$37 -> Year 1 | AF142: =AF$37 -> Year 2 | AG142: Year 3 | AH142: Year 4 | AI142: Year 5 | AJ142: Year 6 | AK142: Year 7 | AL142: Year 8 | AM142: Year 9 | AN142: Year 10 | AO142: Total Project Price | AQ142: =AQ$63 -> Inkind | AR142: =AR$63 -> Ineligible Expense | AS142: =AS$63 -> Total
P143: =P$33 -> 1900 | Q143: =Q$33 ->  | AE143: =AE$33 -> 1900 | AF143: =AF$33 ->  | AO143: =AO$38 -> 0
E144: Example | F144: Professional | G144: Discretionary | I144: HEO 5-4 | L144: Funded | M144: 2024 | N144: 2028 | O144: 1000 | P144: 68146.765 | Q144: 70834.095 | R144: 73313.28833 | S144: 75879.25342 | T144: 78535.02729 | U144: 0 | V144: 0 | W144: 0 | X144: 0 | Y144: 0 | Z144: =SUM(P144:Y144) -> 366708.429 | AA144: 0.1 | AC144: sponsor is only paying 10% of the cost | AE144: 6814.6765 | AF144: 7083.4095 | AG144: 7331.328833 | AH144: 7587.925342 | AI144: 7853.502729 | AJ144: 0 | AK144: 0 | AL144: 0 | AM144: 0 | AN144: 0 | AO144: =SUM(AE144:AN144) -> 36670.8429 | AQ144: 0 | AR144: 365593.6496 | AS144: =SUM(AQ144:AR144) -> 365593.6496
E145: Example | F145: Academic | G145: Discretionary | I145: HEO 6-1 | L145: Inkind | M145: 2025 | N145: 2027 | O145: 2000 | P145: 0 | Q145: 142137.99 | R145: 147112.8197 | S145: 152261.7683 | T145: 0 | U145: 0 | V145: 0 | W145: 0 | X145: 0 | Y145: 0 | Z145: 441512.578 | AE145: 0 | AF145: 0 | AG145: 0 | AH145: 0 | AI145: 0 | AJ145: 0 | AK145: 0 | AL145: 0 | AM145: 0 | AN145: 0 | AO145: 0 | AQ145: 488689.9543 | AR145: 0 | AS145: 488689.9543
F146: =IFERROR(VLOOKUP($I146,Employment_Type,2,FALSE),"") ->  | P146: =IFERROR(IF(AND(P$143>=$M146,P$143<=$N146),INDEX('Master Data'!$AA$76:$AL$117,MATCH($I146,'Master Data'!$X$76:$X$117,0),MATCH(P$143,'Master Data'!$AA$75:$AL$75,0)),0)*IF(P$143=2024,1+$N$139,1+$O$139)*$O146,0) -> 0 | Q146: =IFERROR(IF(AND(Q$143>=$M146,Q$143<=$N146),INDEX('Master Data'!$AA$76:$AL$117,MATCH($I146,'Master Data'!$X$76:$X$117,0),MATCH(Q$143,'Master Data'!$AA$75:$AL$75,0)),0)*IF(Q$143=2024,1+$N$139,1+$O$139)*$O146,0) -> 0 | R146: =IFERROR(IF(AND(R$143>=$M146,R$143<=$N146),INDEX('Master Data'!$AA$76:$AL$117,MATCH($I146,'Master Data'!$X$76:$X$117,0),MATCH(R$143,'Master Data'!$AA$75:$AL$75,0)),0)*IF(R$143=2024,1+$N$139,1+$O$139)*$O146,0) -> 0 | S146: =IFERROR(IF(AND(S$143>=$M146,S$143<=$N146),INDEX('Master Data'!$AA$76:$AL$117,MATCH($I146,'Master Data'!$X$76:$X$117,0),MATCH(S$143,'Master Data'!$AA$75:$AL$75,0)),0)*IF(S$143=2024,1+$N$139,1+$O$139)*$O146,0) -> 0 | T146: =IFERROR(IF(AND(T$143>=$M146,T$143<=$N146),INDEX('Master Data'!$AA$76:$AL$117,MATCH($I146,'Master Data'!$X$76:$X$117,0),MATCH(T$143,'Master Data'!$AA$75:$AL$75,0)),0)*IF(T$143=2024,1+$N$139,1+$O$139)*$O146,0) -> 0 | U146: =IFERROR(IF(AND(U$143>=$M146,U$143<=$N146),INDEX('Master Data'!$AA$76:$AL$117,MATCH($I146,'Master Data'!$X$76:$X$117,0),MATCH(U$143,'Master Data'!$AA$75:$AL$75,0)),0)*IF(U$143=2024,1+$N$139,1+$O$139)*$O146,0) -> 0 | V146: =IFERROR(IF(AND(V$143>=$M146,V$143<=$N146),INDEX('Master Data'!$AA$76:$AL$117,MATCH($I146,'Master Data'!$X$76:$X$117,0),MATCH(V$143,'Master Data'!$AA$75:$AL$75,0)),0)*IF(V$143=2024,1+$N$139,1+$O$139)*$O146,0) -> 0 | W146: =IFERROR(IF(AND(W$143>=$M146,W$143<=$N146),INDEX('Master Data'!$AA$76:$AL$117,MATCH($I146,'Master Data'!$X$76:$X$117,0),MATCH(W$143,'Master Data'!$AA$75:$AL$75,0)),0)*IF(W$143=2024,1+$N$139,1+$O$139)*$O146,0) -> 0 | X146: =IFERROR(IF(AND(X$143>=$M146,X$143<=$N146),INDEX('Master Data'!$AA$76:$AL$117,MATCH($I146,'Master Data'!$X$76:$X$117,0),MATCH(X$143,'Master Data'!$AA$75:$AL$75,0)),0)*IF(X$143=2024,1+$N$139,1+$O$139)*$O146,0) -> 0 | Y146: =IFERROR(IF(AND(Y$143>=$M146,Y$143<=$N146),INDEX('Master Data'!$AA$76:$AL$117,MATCH($I146,'Master Data'!$X$76:$X$117,0),MATCH(Y$143,'Master Data'!$AA$75:$AL$75,0)),0)*IF(Y$143=2024,1+$N$139,1+$O$139)*$O146,0) -> 0 | Z146: 0 | AE146: =IF($L146="Funded",IF(ISBLANK($AA146),IF(ISBLANK($AB146),P146,IF(P146=0,0,$AB146)),P146*$AA146),0) -> 0 | AF146: =IF($L146="Funded",IF(ISBLANK($AA146),IF(ISBLANK($AB146),Q146,IF(Q146=0,0,$AB146)),Q146*$AA146),0) -> 0 | AG146: =IF($L146="Funded",IF(ISBLANK($AA146),IF(ISBLANK($AB146),R146,IF(R146=0,0,$AB146)),R146*$AA146),0) -> 0 | AH146: =IF($L146="Funded",IF(ISBLANK($AA146),IF(ISBLANK($AB146),S146,IF(S146=0,0,$AB146)),S146*$AA146),0) -> 0 | AI146: =IF($L146="Funded",IF(ISBLANK($AA146),IF(ISBLANK($AB146),T146,IF(T146=0,0,$AB146)),T146*$AA146),0) -> 0 | AJ146: =IF($L146="Funded",IF(ISBLANK($AA146),IF(ISBLANK($AB146),U146,IF(U146=0,0,$AB146)),U146*$AA146),0) -> 0 | AK146: =IF($L146="Funded",IF(ISBLANK($AA146),IF(ISBLANK($AB146),V146,IF(V146=0,0,$AB146)),V146*$AA146),0) -> 0 | AL146: =IF($L146="Funded",IF(ISBLANK($AA146),IF(ISBLANK($AB146),W146,IF(W146=0,0,$AB146)),W146*$AA146),0) -> 0 | AM146: =IF($L146="Funded",IF(ISBLANK($AA146),IF(ISBLANK($AB146),X146,IF(X146=0,0,$AB146)),X146*$AA146),0) -> 0 | AN146: =IF($L146="Funded",IF(ISBLANK($AA146),IF(ISBLANK($AB146),Y146,IF(Y146=0,0,$AB146)),Y146*$AA146),0) -> 0 | AO146: 0 | AQ146: =IF($L146=AQ$142,$Z146-$AO146,0) -> 0 | AR146: =IF(NOT($L146="Inkind"),$Z146-$AO146,0) -> 0 | AS146: 0 | AU146: =IFERROR(AO146/$AO$163*SUM($AO$263,$AO$265)+AO146,0) -> 0
P147: =IFERROR(IF(AND(P$143>=$M147,P$143<=$N147),INDEX('Master Data'!$AA$76:$AL$117,MATCH($I147,'Master Data'!$X$76:$X$117,0),MATCH(P$143,'Master Data'!$AA$75:$AL$75,0)),0)*IF(P$143=2024,1+$N$139,1+$O$139)*$O147,0) -> 0 | Q147: =IFERROR(IF(AND(Q$143>=$M147,Q$143<=$N147),INDEX('Master Data'!$AA$76:$AL$117,MATCH($I147,'Master Data'!$X$76:$X$117,0),MATCH(Q$143,'Master Data'!$AA$75:$AL$75,0)),0)*IF(Q$143=2024,1+$N$139,1+$O$139)*$O147,0) -> 0 | R147: =IFERROR(IF(AND(R$143>=$M147,R$143<=$N147),INDEX('Master Data'!$AA$76:$AL$117,MATCH($I147,'Master Data'!$X$76:$X$117,0),MATCH(R$143,'Master Data'!$AA$75:$AL$75,0)),0)*IF(R$143=2024,1+$N$139,1+$O$139)*$O147,0) -> 0 | S147: =IFERROR(IF(AND(S$143>=$M147,S$143<=$N147),INDEX('Master Data'!$AA$76:$AL$117,MATCH($I147,'Master Data'!$X$76:$X$117,0),MATCH(S$143,'Master Data'!$AA$75:$AL$75,0)),0)*IF(S$143=2024,1+$N$139,1+$O$139)*$O147,0) -> 0 | T147: =IFERROR(IF(AND(T$143>=$M147,T$143<=$N147),INDEX('Master Data'!$AA$76:$AL$117,MATCH($I147,'Master Data'!$X$76:$X$117,0),MATCH(T$143,'Master Data'!$AA$75:$AL$75,0)),0)*IF(T$143=2024,1+$N$139,1+$O$139)*$O147,0) -> 0 | U147: =IFERROR(IF(AND(U$143>=$M147,U$143<=$N147),INDEX('Master Data'!$AA$76:$AL$117,MATCH($I147,'Master Data'!$X$76:$X$117,0),MATCH(U$143,'Master Data'!$AA$75:$AL$75,0)),0)*IF(U$143=2024,1+$N$139,1+$O$139)*$O147,0) -> 0 | V147: =IFERROR(IF(AND(V$143>=$M147,V$143<=$N147),INDEX('Master Data'!$AA$76:$AL$117,MATCH($I147,'Master Data'!$X$76:$X$117,0),MATCH(V$143,'Master Data'!$AA$75:$AL$75,0)),0)*IF(V$143=2024,1+$N$139,1+$O$139)*$O147,0) -> 0 | W147: =IFERROR(IF(AND(W$143>=$M147,W$143<=$N147),INDEX('Master Data'!$AA$76:$AL$117,MATCH($I147,'Master Data'!$X$76:$X$117,0),MATCH(W$143,'Master Data'!$AA$75:$AL$75,0)),0)*IF(W$143=2024,1+$N$139,1+$O$139)*$O147,0) -> 0 | X147: =IFERROR(IF(AND(X$143>=$M147,X$143<=$N147),INDEX('Master Data'!$AA$76:$AL$117,MATCH($I147,'Master Data'!$X$76:$X$117,0),MATCH(X$143,'Master Data'!$AA$75:$AL$75,0)),0)*IF(X$143=2024,1+$N$139,1+$O$139)*$O147,0) -> 0 | Y147: =IFERROR(IF(AND(Y$143>=$M147,Y$143<=$N147),INDEX('Master Data'!$AA$76:$AL$117,MATCH($I147,'Master Data'!$X$76:$X$117,0),MATCH(Y$143,'Master Data'!$AA$75:$AL$75,0)),0)*IF(Y$143=2024,1+$N$139,1+$O$139)*$O147,0) -> 0 | Z147: 0 | AE147: =IF($L147="Funded",IF(ISBLANK($AA147),IF(ISBLANK($AB147),P147,IF(P147=0,0,$AB147)),P147*$AA147),0) -> 0 | AF147: 0 | AG147: 0 | AH147: 0 | AI147: 0 | AJ147: 0 | AK147: 0 | AL147: 0 | AM147: 0 | AN147: 0 | AO147: 0 | AQ147: =IF($L147=AQ$142,$Z147-$AO147,0) -> 0 | AR147: =IF(NOT($L147="Inkind"),$Z147-$AO147,0) -> 0 | AS147: 0 | AU147: =IFERROR(AO147/$AO$163*SUM($AO$263,$AO$265)+AO147,0) -> 0
P148: =IFERROR(IF(AND(P$143>=$M148,P$143<=$N148),INDEX('Master Data'!$AA$76:$AL$117,MATCH($I148,'Master Data'!$X$76:$X$117,0),MATCH(P$143,'Master Data'!$AA$75:$AL$75,0)),0)*IF(P$143=2024,1+$N$139,1+$O$139)*$O148,0) -> 0 | Q148: =IFERROR(IF(AND(Q$143>=$M148,Q$143<=$N148),INDEX('Master Data'!$AA$76:$AL$117,MATCH($I148,'Master Data'!$X$76:$X$117,0),MATCH(Q$143,'Master Data'!$AA$75:$AL$75,0)),0)*IF(Q$143=2024,1+$N$139,1+$O$139)*$O148,0) -> 0 | R148: =IFERROR(IF(AND(R$143>=$M148,R$143<=$N148),INDEX('Master Data'!$AA$76:$AL$117,MATCH($I148,'Master Data'!$X$76:$X$117,0),MATCH(R$143,'Master Data'!$AA$75:$AL$75,0)),0)*IF(R$143=2024,1+$N$139,1+$O$139)*$O148,0) -> 0 | S148: =IFERROR(IF(AND(S$143>=$M148,S$143<=$N148),INDEX('Master Data'!$AA$76:$AL$117,MATCH($I148,'Master Data'!$X$76:$X$117,0),MATCH(S$143,'Master Data'!$AA$75:$AL$75,0)),0)*IF(S$143=2024,1+$N$139,1+$O$139)*$O148,0) -> 0 | T148: =IFERROR(IF(AND(T$143>=$M148,T$143<=$N148),INDEX('Master Data'!$AA$76:$AL$117,MATCH($I148,'Master Data'!$X$76:$X$117,0),MATCH(T$143,'Master Data'!$AA$75:$AL$75,0)),0)*IF(T$143=2024,1+$N$139,1+$O$139)*$O148,0) -> 0 | U148: =IFERROR(IF(AND(U$143>=$M148,U$143<=$N148),INDEX('Master Data'!$AA$76:$AL$117,MATCH($I148,'Master Data'!$X$76:$X$117,0),MATCH(U$143,'Master Data'!$AA$75:$AL$75,0)),0)*IF(U$143=2024,1+$N$139,1+$O$139)*$O148,0) -> 0 | V148: =IFERROR(IF(AND(V$143>=$M148,V$143<=$N148),INDEX('Master Data'!$AA$76:$AL$117,MATCH($I148,'Master Data'!$X$76:$X$117,0),MATCH(V$143,'Master Data'!$AA$75:$AL$75,0)),0)*IF(V$143=2024,1+$N$139,1+$O$139)*$O148,0) -> 0 | W148: =IFERROR(IF(AND(W$143>=$M148,W$143<=$N148),INDEX('Master Data'!$AA$76:$AL$117,MATCH($I148,'Master Data'!$X$76:$X$117,0),MATCH(W$143,'Master Data'!$AA$75:$AL$75,0)),0)*IF(W$143=2024,1+$N$139,1+$O$139)*$O148,0) -> 0 | X148: =IFERROR(IF(AND(X$143>=$M148,X$143<=$N148),INDEX('Master Data'!$AA$76:$AL$117,MATCH($I148,'Master Data'!$X$76:$X$117,0),MATCH(X$143,'Master Data'!$AA$75:$AL$75,0)),0)*IF(X$143=2024,1+$N$139,1+$O$139)*$O148,0) -> 0 | Y148: =IFERROR(IF(AND(Y$143>=$M148,Y$143<=$N148),INDEX('Master Data'!$AA$76:$AL$117,MATCH($I148,'Master Data'!$X$76:$X$117,0),MATCH(Y$143,'Master Data'!$AA$75:$AL$75,0)),0)*IF(Y$143=2024,1+$N$139,1+$O$139)*$O148,0) -> 0 | Z148: 0 | AE148: 0 | AF148: 0 | AG148: 0 | AH148: 0 | AI148: 0 | AJ148: 0 | AK148: 0 | AL148: 0 | AM148: 0 | AN148: 0 | AO148: 0 | AQ148: 0 | AR148: 0 | AS148: 0 | AU148: 0
P149: =IFERROR(IF(AND(P$143>=$M149,P$143<=$N149),INDEX('Master Data'!$AA$76:$AL$117,MATCH($I149,'Master Data'!$X$76:$X$117,0),MATCH(P$143,'Master Data'!$AA$75:$AL$75,0)),0)*IF(P$143=2024,1+$N$139,1+$O$139)*$O149,0) -> 0 | Q149: =IFERROR(IF(AND(Q$143>=$M149,Q$143<=$N149),INDEX('Master Data'!$AA$76:$AL$117,MATCH($I149,'Master Data'!$X$76:$X$117,0),MATCH(Q$143,'Master Data'!$AA$75:$AL$75,0)),0)*IF(Q$143=2024,1+$N$139,1+$O$139)*$O149,0) -> 0 | R149: =IFERROR(IF(AND(R$143>=$M149,R$143<=$N149),INDEX('Master Data'!$AA$76:$AL$117,MATCH($I149,'Master Data'!$X$76:$X$117,0),MATCH(R$143,'Master Data'!$AA$75:$AL$75,0)),0)*IF(R$143=2024,1+$N$139,1+$O$139)*$O149,0) -> 0 | S149: =IFERROR(IF(AND(S$143>=$M149,S$143<=$N149),INDEX('Master Data'!$AA$76:$AL$117,MATCH($I149,'Master Data'!$X$76:$X$117,0),MATCH(S$143,'Master Data'!$AA$75:$AL$75,0)),0)*IF(S$143=2024,1+$N$139,1+$O$139)*$O149,0) -> 0 | T149: =IFERROR(IF(AND(T$143>=$M149,T$143<=$N149),INDEX('Master Data'!$AA$76:$AL$117,MATCH($I149,'Master Data'!$X$76:$X$117,0),MATCH(T$143,'Master Data'!$AA$75:$AL$75,0)),0)*IF(T$143=2024,1+$N$139,1+$O$139)*$O149,0) -> 0 | U149: =IFERROR(IF(AND(U$143>=$M149,U$143<=$N149),INDEX('Master Data'!$AA$76:$AL$117,MATCH($I149,'Master Data'!$X$76:$X$117,0),MATCH(U$143,'Master Data'!$AA$75:$AL$75,0)),0)*IF(U$143=2024,1+$N$139,1+$O$139)*$O149,0) -> 0 | V149: =IFERROR(IF(AND(V$143>=$M149,V$143<=$N149),INDEX('Master Data'!$AA$76:$AL$117,MATCH($I149,'Master Data'!$X$76:$X$117,0),MATCH(V$143,'Master Data'!$AA$75:$AL$75,0)),0)*IF(V$143=2024,1+$N$139,1+$O$139)*$O149,0) -> 0 | W149: =IFERROR(IF(AND(W$143>=$M149,W$143<=$N149),INDEX('Master Data'!$AA$76:$AL$117,MATCH($I149,'Master Data'!$X$76:$X$117,0),MATCH(W$143,'Master Data'!$AA$75:$AL$75,0)),0)*IF(W$143=2024,1+$N$139,1+$O$139)*$O149,0) -> 0 | X149: =IFERROR(IF(AND(X$143>=$M149,X$143<=$N149),INDEX('Master Data'!$AA$76:$AL$117,MATCH($I149,'Master Data'!$X$76:$X$117,0),MATCH(X$143,'Master Data'!$AA$75:$AL$75,0)),0)*IF(X$143=2024,1+$N$139,1+$O$139)*$O149,0) -> 0 | Y149: =IFERROR(IF(AND(Y$143>=$M149,Y$143<=$N149),INDEX('Master Data'!$AA$76:$AL$117,MATCH($I149,'Master Data'!$X$76:$X$117,0),MATCH(Y$143,'Master Data'!$AA$75:$AL$75,0)),0)*IF(Y$143=2024,1+$N$139,1+$O$139)*$O149,0) -> 0 | Z149: 0 | AE149: 0 | AF149: 0 | AG149: 0 | AH149: 0 | AI149: 0 | AJ149: 0 | AK149: 0 | AL149: 0 | AM149: 0 | AN149: 0 | AO149: 0 | AQ149: 0 | AR149: 0 | AS149: 0 | AU149: 0
P150: =IFERROR(IF(AND(P$143>=$M150,P$143<=$N150),INDEX('Master Data'!$AA$76:$AL$117,MATCH($I150,'Master Data'!$X$76:$X$117,0),MATCH(P$143,'Master Data'!$AA$75:$AL$75,0)),0)*IF(P$143=2024,1+$N$139,1+$O$139)*$O150,0) -> 0 | Q150: =IFERROR(IF(AND(Q$143>=$M150,Q$143<=$N150),INDEX('Master Data'!$AA$76:$AL$117,MATCH($I150,'Master Data'!$X$76:$X$117,0),MATCH(Q$143,'Master Data'!$AA$75:$AL$75,0)),0)*IF(Q$143=2024,1+$N$139,1+$O$139)*$O150,0) -> 0 | R150: =IFERROR(IF(AND(R$143>=$M150,R$143<=$N150),INDEX('Master Data'!$AA$76:$AL$117,MATCH($I150,'Master Data'!$X$76:$X$117,0),MATCH(R$143,'Master Data'!$AA$75:$AL$75,0)),0)*IF(R$143=2024,1+$N$139,1+$O$139)*$O150,0) -> 0 | S150: =IFERROR(IF(AND(S$143>=$M150,S$143<=$N150),INDEX('Master Data'!$AA$76:$AL$117,MATCH($I150,'Master Data'!$X$76:$X$117,0),MATCH(S$143,'Master Data'!$AA$75:$AL$75,0)),0)*IF(S$143=2024,1+$N$139,1+$O$139)*$O150,0) -> 0 | T150: =IFERROR(IF(AND(T$143>=$M150,T$143<=$N150),INDEX('Master Data'!$AA$76:$AL$117,MATCH($I150,'Master Data'!$X$76:$X$117,0),MATCH(T$143,'Master Data'!$AA$75:$AL$75,0)),0)*IF(T$143=2024,1+$N$139,1+$O$139)*$O150,0) -> 0 | U150: =IFERROR(IF(AND(U$143>=$M150,U$143<=$N150),INDEX('Master Data'!$AA$76:$AL$117,MATCH($I150,'Master Data'!$X$76:$X$117,0),MATCH(U$143,'Master Data'!$AA$75:$AL$75,0)),0)*IF(U$143=2024,1+$N$139,1+$O$139)*$O150,0) -> 0 | V150: =IFERROR(IF(AND(V$143>=$M150,V$143<=$N150),INDEX('Master Data'!$AA$76:$AL$117,MATCH($I150,'Master Data'!$X$76:$X$117,0),MATCH(V$143,'Master Data'!$AA$75:$AL$75,0)),0)*IF(V$143=2024,1+$N$139,1+$O$139)*$O150,0) -> 0 | W150: =IFERROR(IF(AND(W$143>=$M150,W$143<=$N150),INDEX('Master Data'!$AA$76:$AL$117,MATCH($I150,'Master Data'!$X$76:$X$117,0),MATCH(W$143,'Master Data'!$AA$75:$AL$75,0)),0)*IF(W$143=2024,1+$N$139,1+$O$139)*$O150,0) -> 0 | X150: =IFERROR(IF(AND(X$143>=$M150,X$143<=$N150),INDEX('Master Data'!$AA$76:$AL$117,MATCH($I150,'Master Data'!$X$76:$X$117,0),MATCH(X$143,'Master Data'!$AA$75:$AL$75,0)),0)*IF(X$143=2024,1+$N$139,1+$O$139)*$O150,0) -> 0 | Y150: =IFERROR(IF(AND(Y$143>=$M150,Y$143<=$N150),INDEX('Master Data'!$AA$76:$AL$117,MATCH($I150,'Master Data'!$X$76:$X$117,0),MATCH(Y$143,'Master Data'!$AA$75:$AL$75,0)),0)*IF(Y$143=2024,1+$N$139,1+$O$139)*$O150,0) -> 0 | Z150: 0 | AE150: 0 | AF150: 0 | AG150: 0 | AH150: 0 | AI150: 0 | AJ150: 0 | AK150: 0 | AL150: 0 | AM150: 0 | AN150: 0 | AO150: 0 | AQ150: =IF($L150=AQ$142,$Z150-$AO150,0) -> 0 | AR150: 0 | AS150: 0 | AU150: 0
P151: =IFERROR(IF(AND(P$143>=$M151,P$143<=$N151),INDEX('Master Data'!$AA$76:$AL$117,MATCH($I151,'Master Data'!$X$76:$X$117,0),MATCH(P$143,'Master Data'!$AA$75:$AL$75,0)),0)*IF(P$143=2024,1+$N$139,1+$O$139)*$O151,0) -> 0 | Q151: =IFERROR(IF(AND(Q$143>=$M151,Q$143<=$N151),INDEX('Master Data'!$AA$76:$AL$117,MATCH($I151,'Master Data'!$X$76:$X$117,0),MATCH(Q$143,'Master Data'!$AA$75:$AL$75,0)),0)*IF(Q$143=2024,1+$N$139,1+$O$139)*$O151,0) -> 0 | R151: =IFERROR(IF(AND(R$143>=$M151,R$143<=$N151),INDEX('Master Data'!$AA$76:$AL$117,MATCH($I151,'Master Data'!$X$76:$X$117,0),MATCH(R$143,'Master Data'!$AA$75:$AL$75,0)),0)*IF(R$143=2024,1+$N$139,1+$O$139)*$O151,0) -> 0 | S151: =IFERROR(IF(AND(S$143>=$M151,S$143<=$N151),INDEX('Master Data'!$AA$76:$AL$117,MATCH($I151,'Master Data'!$X$76:$X$117,0),MATCH(S$143,'Master Data'!$AA$75:$AL$75,0)),0)*IF(S$143=2024,1+$N$139,1+$O$139)*$O151,0) -> 0 | T151: =IFERROR(IF(AND(T$143>=$M151,T$143<=$N151),INDEX('Master Data'!$AA$76:$AL$117,MATCH($I151,'Master Data'!$X$76:$X$117,0),MATCH(T$143,'Master Data'!$AA$75:$AL$75,0)),0)*IF(T$143=2024,1+$N$139,1+$O$139)*$O151,0) -> 0 | U151: =IFERROR(IF(AND(U$143>=$M151,U$143<=$N151),INDEX('Master Data'!$AA$76:$AL$117,MATCH($I151,'Master Data'!$X$76:$X$117,0),MATCH(U$143,'Master Data'!$AA$75:$AL$75,0)),0)*IF(U$143=2024,1+$N$139,1+$O$139)*$O151,0) -> 0 | V151: =IFERROR(IF(AND(V$143>=$M151,V$143<=$N151),INDEX('Master Data'!$AA$76:$AL$117,MATCH($I151,'Master Data'!$X$76:$X$117,0),MATCH(V$143,'Master Data'!$AA$75:$AL$75,0)),0)*IF(V$143=2024,1+$N$139,1+$O$139)*$O151,0) -> 0 | W151: =IFERROR(IF(AND(W$143>=$M151,W$143<=$N151),INDEX('Master Data'!$AA$76:$AL$117,MATCH($I151,'Master Data'!$X$76:$X$117,0),MATCH(W$143,'Master Data'!$AA$75:$AL$75,0)),0)*IF(W$143=2024,1+$N$139,1+$O$139)*$O151,0) -> 0 | X151: =IFERROR(IF(AND(X$143>=$M151,X$143<=$N151),INDEX('Master Data'!$AA$76:$AL$117,MATCH($I151,'Master Data'!$X$76:$X$117,0),MATCH(X$143,'Master Data'!$AA$75:$AL$75,0)),0)*IF(X$143=2024,1+$N$139,1+$O$139)*$O151,0) -> 0 | Y151: =IFERROR(IF(AND(Y$143>=$M151,Y$143<=$N151),INDEX('Master Data'!$AA$76:$AL$117,MATCH($I151,'Master Data'!$X$76:$X$117,0),MATCH(Y$143,'Master Data'!$AA$75:$AL$75,0)),0)*IF(Y$143=2024,1+$N$139,1+$O$139)*$O151,0) -> 0 | Z151: 0 | AE151: 0 | AF151: 0 | AG151: 0 | AH151: 0 | AI151: 0 | AJ151: 0 | AK151: 0 | AL151: 0 | AM151: 0 | AN151: 0 | AO151: 0 | AQ151: 0 | AR151: 0 | AS151: 0 | AU151: 0
P152: =IFERROR(IF(AND(P$143>=$M152,P$143<=$N152),INDEX('Master Data'!$AA$76:$AL$117,MATCH($I152,'Master Data'!$X$76:$X$117,0),MATCH(P$143,'Master Data'!$AA$75:$AL$75,0)),0)*IF(P$143=2024,1+$N$139,1+$O$139)*$O152,0) -> 0 | Q152: =IFERROR(IF(AND(Q$143>=$M152,Q$143<=$N152),INDEX('Master Data'!$AA$76:$AL$117,MATCH($I152,'Master Data'!$X$76:$X$117,0),MATCH(Q$143,'Master Data'!$AA$75:$AL$75,0)),0)*IF(Q$143=2024,1+$N$139,1+$O$139)*$O152,0) -> 0 | R152: =IFERROR(IF(AND(R$143>=$M152,R$143<=$N152),INDEX('Master Data'!$AA$76:$AL$117,MATCH($I152,'Master Data'!$X$76:$X$117,0),MATCH(R$143,'Master Data'!$AA$75:$AL$75,0)),0)*IF(R$143=2024,1+$N$139,1+$O$139)*$O152,0) -> 0 | S152: =IFERROR(IF(AND(S$143>=$M152,S$143<=$N152),INDEX('Master Data'!$AA$76:$AL$117,MATCH($I152,'Master Data'!$X$76:$X$117,0),MATCH(S$143,'Master Data'!$AA$75:$AL$75,0)),0)*IF(S$143=2024,1+$N$139,1+$O$139)*$O152,0) -> 0 | T152: =IFERROR(IF(AND(T$143>=$M152,T$143<=$N152),INDEX('Master Data'!$AA$76:$AL$117,MATCH($I152,'Master Data'!$X$76:$X$117,0),MATCH(T$143,'Master Data'!$AA$75:$AL$75,0)),0)*IF(T$143=2024,1+$N$139,1+$O$139)*$O152,0) -> 0 | U152: =IFERROR(IF(AND(U$143>=$M152,U$143<=$N152),INDEX('Master Data'!$AA$76:$AL$117,MATCH($I152,'Master Data'!$X$76:$X$117,0),MATCH(U$143,'Master Data'!$AA$75:$AL$75,0)),0)*IF(U$143=2024,1+$N$139,1+$O$139)*$O152,0) -> 0 | V152: =IFERROR(IF(AND(V$143>=$M152,V$143<=$N152),INDEX('Master Data'!$AA$76:$AL$117,MATCH($I152,'Master Data'!$X$76:$X$117,0),MATCH(V$143,'Master Data'!$AA$75:$AL$75,0)),0)*IF(V$143=2024,1+$N$139,1+$O$139)*$O152,0) -> 0 | W152: =IFERROR(IF(AND(W$143>=$M152,W$143<=$N152),INDEX('Master Data'!$AA$76:$AL$117,MATCH($I152,'Master Data'!$X$76:$X$117,0),MATCH(W$143,'Master Data'!$AA$75:$AL$75,0)),0)*IF(W$143=2024,1+$N$139,1+$O$139)*$O152,0) -> 0 | X152: =IFERROR(IF(AND(X$143>=$M152,X$143<=$N152),INDEX('Master Data'!$AA$76:$AL$117,MATCH($I152,'Master Data'!$X$76:$X$117,0),MATCH(X$143,'Master Data'!$AA$75:$AL$75,0)),0)*IF(X$143=2024,1+$N$139,1+$O$139)*$O152,0) -> 0 | Y152: =IFERROR(IF(AND(Y$143>=$M152,Y$143<=$N152),INDEX('Master Data'!$AA$76:$AL$117,MATCH($I152,'Master Data'!$X$76:$X$117,0),MATCH(Y$143,'Master Data'!$AA$75:$AL$75,0)),0)*IF(Y$143=2024,1+$N$139,1+$O$139)*$O152,0) -> 0 | Z152: 0 | AE152: 0 | AF152: 0 | AG152: 0 | AH152: 0 | AI152: 0 | AJ152: 0 | AK152: 0 | AL152: 0 | AM152: 0 | AN152: 0 | AO152: 0 | AQ152: 0 | AR152: 0 | AS152: 0 | AU152: 0
P153: =IFERROR(IF(AND(P$143>=$M153,P$143<=$N153),INDEX('Master Data'!$AA$76:$AL$117,MATCH($I153,'Master Data'!$X$76:$X$117,0),MATCH(P$143,'Master Data'!$AA$75:$AL$75,0)),0)*IF(P$143=2024,1+$N$139,1+$O$139)*$O153,0) -> 0 | Q153: =IFERROR(IF(AND(Q$143>=$M153,Q$143<=$N153),INDEX('Master Data'!$AA$76:$AL$117,MATCH($I153,'Master Data'!$X$76:$X$117,0),MATCH(Q$143,'Master Data'!$AA$75:$AL$75,0)),0)*IF(Q$143=2024,1+$N$139,1+$O$139)*$O153,0) -> 0 | R153: =IFERROR(IF(AND(R$143>=$M153,R$143<=$N153),INDEX('Master Data'!$AA$76:$AL$117,MATCH($I153,'Master Data'!$X$76:$X$117,0),MATCH(R$143,'Master Data'!$AA$75:$AL$75,0)),0)*IF(R$143=2024,1+$N$139,1+$O$139)*$O153,0) -> 0 | S153: =IFERROR(IF(AND(S$143>=$M153,S$143<=$N153),INDEX('Master Data'!$AA$76:$AL$117,MATCH($I153,'Master Data'!$X$76:$X$117,0),MATCH(S$143,'Master Data'!$AA$75:$AL$75,0)),0)*IF(S$143=2024,1+$N$139,1+$O$139)*$O153,0) -> 0 | T153: =IFERROR(IF(AND(T$143>=$M153,T$143<=$N153),INDEX('Master Data'!$AA$76:$AL$117,MATCH($I153,'Master Data'!$X$76:$X$117,0),MATCH(T$143,'Master Data'!$AA$75:$AL$75,0)),0)*IF(T$143=2024,1+$N$139,1+$O$139)*$O153,0) -> 0 | U153: =IFERROR(IF(AND(U$143>=$M153,U$143<=$N153),INDEX('Master Data'!$AA$76:$AL$117,MATCH($I153,'Master Data'!$X$76:$X$117,0),MATCH(U$143,'Master Data'!$AA$75:$AL$75,0)),0)*IF(U$143=2024,1+$N$139,1+$O$139)*$O153,0) -> 0 | V153: =IFERROR(IF(AND(V$143>=$M153,V$143<=$N153),INDEX('Master Data'!$AA$76:$AL$117,MATCH($I153,'Master Data'!$X$76:$X$117,0),MATCH(V$143,'Master Data'!$AA$75:$AL$75,0)),0)*IF(V$143=2024,1+$N$139,1+$O$139)*$O153,0) -> 0 | W153: =IFERROR(IF(AND(W$143>=$M153,W$143<=$N153),INDEX('Master Data'!$AA$76:$AL$117,MATCH($I153,'Master Data'!$X$76:$X$117,0),MATCH(W$143,'Master Data'!$AA$75:$AL$75,0)),0)*IF(W$143=2024,1+$N$139,1+$O$139)*$O153,0) -> 0 | X153: =IFERROR(IF(AND(X$143>=$M153,X$143<=$N153),INDEX('Master Data'!$AA$76:$AL$117,MATCH($I153,'Master Data'!$X$76:$X$117,0),MATCH(X$143,'Master Data'!$AA$75:$AL$75,0)),0)*IF(X$143=2024,1+$N$139,1+$O$139)*$O153,0) -> 0 | Y153: =IFERROR(IF(AND(Y$143>=$M153,Y$143<=$N153),INDEX('Master Data'!$AA$76:$AL$117,MATCH($I153,'Master Data'!$X$76:$X$117,0),MATCH(Y$143,'Master Data'!$AA$75:$AL$75,0)),0)*IF(Y$143=2024,1+$N$139,1+$O$139)*$O153,0) -> 0 | Z153: =SUM(P153:Y153) -> 0 | AE153: 0 | AF153: 0 | AG153: 0 | AH153: 0 | AI153: 0 | AJ153: 0 | AK153: 0 | AL153: 0 | AM153: 0 | AN153: 0 | AO153: 0 | AQ153: 0 | AR153: 0 | AS153: 0 | AU153: 0
P154: =IFERROR(IF(AND(P$143>=$M154,P$143<=$N154),INDEX('Master Data'!$AA$76:$AL$117,MATCH($I154,'Master Data'!$X$76:$X$117,0),MATCH(P$143,'Master Data'!$AA$75:$AL$75,0)),0)*IF(P$143=2024,1+$N$139,1+$O$139)*$O154,0) -> 0 | Q154: =IFERROR(IF(AND(Q$143>=$M154,Q$143<=$N154),INDEX('Master Data'!$AA$76:$AL$117,MATCH($I154,'Master Data'!$X$76:$X$117,0),MATCH(Q$143,'Master Data'!$AA$75:$AL$75,0)),0)*IF(Q$143=2024,1+$N$139,1+$O$139)*$O154,0) -> 0 | R154: =IFERROR(IF(AND(R$143>=$M154,R$143<=$N154),INDEX('Master Data'!$AA$76:$AL$117,MATCH($I154,'Master Data'!$X$76:$X$117,0),MATCH(R$143,'Master Data'!$AA$75:$AL$75,0)),0)*IF(R$143=2024,1+$N$139,1+$O$139)*$O154,0) -> 0 | S154: =IFERROR(IF(AND(S$143>=$M154,S$143<=$N154),INDEX('Master Data'!$AA$76:$AL$117,MATCH($I154,'Master Data'!$X$76:$X$117,0),MATCH(S$143,'Master Data'!$AA$75:$AL$75,0)),0)*IF(S$143=2024,1+$N$139,1+$O$139)*$O154,0) -> 0 | T154: =IFERROR(IF(AND(T$143>=$M154,T$143<=$N154),INDEX('Master Data'!$AA$76:$AL$117,MATCH($I154,'Master Data'!$X$76:$X$117,0),MATCH(T$143,'Master Data'!$AA$75:$AL$75,0)),0)*IF(T$143=2024,1+$N$139,1+$O$139)*$O154,0) -> 0 | U154: =IFERROR(IF(AND(U$143>=$M154,U$143<=$N154),INDEX('Master Data'!$AA$76:$AL$117,MATCH($I154,'Master Data'!$X$76:$X$117,0),MATCH(U$143,'Master Data'!$AA$75:$AL$75,0)),0)*IF(U$143=2024,1+$N$139,1+$O$139)*$O154,0) -> 0 | V154: =IFERROR(IF(AND(V$143>=$M154,V$143<=$N154),INDEX('Master Data'!$AA$76:$AL$117,MATCH($I154,'Master Data'!$X$76:$X$117,0),MATCH(V$143,'Master Data'!$AA$75:$AL$75,0)),0)*IF(V$143=2024,1+$N$139,1+$O$139)*$O154,0) -> 0 | W154: =IFERROR(IF(AND(W$143>=$M154,W$143<=$N154),INDEX('Master Data'!$AA$76:$AL$117,MATCH($I154,'Master Data'!$X$76:$X$117,0),MATCH(W$143,'Master Data'!$AA$75:$AL$75,0)),0)*IF(W$143=2024,1+$N$139,1+$O$139)*$O154,0) -> 0 | X154: =IFERROR(IF(AND(X$143>=$M154,X$143<=$N154),INDEX('Master Data'!$AA$76:$AL$117,MATCH($I154,'Master Data'!$X$76:$X$117,0),MATCH(X$143,'Master Data'!$AA$75:$AL$75,0)),0)*IF(X$143=2024,1+$N$139,1+$O$139)*$O154,0) -> 0 | Y154: =IFERROR(IF(AND(Y$143>=$M154,Y$143<=$N154),INDEX('Master Data'!$AA$76:$AL$117,MATCH($I154,'Master Data'!$X$76:$X$117,0),MATCH(Y$143,'Master Data'!$AA$75:$AL$75,0)),0)*IF(Y$143=2024,1+$N$139,1+$O$139)*$O154,0) -> 0 | Z154: 0 | AE154: 0 | AF154: 0 | AG154: 0 | AH154: 0 | AI154: 0 | AJ154: 0 | AK154: 0 | AL154: 0 | AM154: 0 | AN154: 0 | AO154: 0 | AQ154: 0 | AR154: 0 | AS154: 0 | AU154: 0
P155: =IFERROR(IF(AND(P$143>=$M155,P$143<=$N155),INDEX('Master Data'!$AA$76:$AL$117,MATCH($I155,'Master Data'!$X$76:$X$117,0),MATCH(P$143,'Master Data'!$AA$75:$AL$75,0)),0)*IF(P$143=2024,1+$N$139,1+$O$139)*$O155,0) -> 0 | Q155: =IFERROR(IF(AND(Q$143>=$M155,Q$143<=$N155),INDEX('Master Data'!$AA$76:$AL$117,MATCH($I155,'Master Data'!$X$76:$X$117,0),MATCH(Q$143,'Master Data'!$AA$75:$AL$75,0)),0)*IF(Q$143=2024,1+$N$139,1+$O$139)*$O155,0) -> 0 | R155: =IFERROR(IF(AND(R$143>=$M155,R$143<=$N155),INDEX('Master Data'!$AA$76:$AL$117,MATCH($I155,'Master Data'!$X$76:$X$117,0),MATCH(R$143,'Master Data'!$AA$75:$AL$75,0)),0)*IF(R$143=2024,1+$N$139,1+$O$139)*$O155,0) -> 0 | S155: =IFERROR(IF(AND(S$143>=$M155,S$143<=$N155),INDEX('Master Data'!$AA$76:$AL$117,MATCH($I155,'Master Data'!$X$76:$X$117,0),MATCH(S$143,'Master Data'!$AA$75:$AL$75,0)),0)*IF(S$143=2024,1+$N$139,1+$O$139)*$O155,0) -> 0 | T155: =IFERROR(IF(AND(T$143>=$M155,T$143<=$N155),INDEX('Master Data'!$AA$76:$AL$117,MATCH($I155,'Master Data'!$X$76:$X$117,0),MATCH(T$143,'Master Data'!$AA$75:$AL$75,0)),0)*IF(T$143=2024,1+$N$139,1+$O$139)*$O155,0) -> 0 | U155: =IFERROR(IF(AND(U$143>=$M155,U$143<=$N155),INDEX('Master Data'!$AA$76:$AL$117,MATCH($I155,'Master Data'!$X$76:$X$117,0),MATCH(U$143,'Master Data'!$AA$75:$AL$75,0)),0)*IF(U$143=2024,1+$N$139,1+$O$139)*$O155,0) -> 0 | V155: =IFERROR(IF(AND(V$143>=$M155,V$143<=$N155),INDEX('Master Data'!$AA$76:$AL$117,MATCH($I155,'Master Data'!$X$76:$X$117,0),MATCH(V$143,'Master Data'!$AA$75:$AL$75,0)),0)*IF(V$143=2024,1+$N$139,1+$O$139)*$O155,0) -> 0 | W155: =IFERROR(IF(AND(W$143>=$M155,W$143<=$N155),INDEX('Master Data'!$AA$76:$AL$117,MATCH($I155,'Master Data'!$X$76:$X$117,0),MATCH(W$143,'Master Data'!$AA$75:$AL$75,0)),0)*IF(W$143=2024,1+$N$139,1+$O$139)*$O155,0) -> 0 | X155: =IFERROR(IF(AND(X$143>=$M155,X$143<=$N155),INDEX('Master Data'!$AA$76:$AL$117,MATCH($I155,'Master Data'!$X$76:$X$117,0),MATCH(X$143,'Master Data'!$AA$75:$AL$75,0)),0)*IF(X$143=2024,1+$N$139,1+$O$139)*$O155,0) -> 0 | Y155: =IFERROR(IF(AND(Y$143>=$M155,Y$143<=$N155),INDEX('Master Data'!$AA$76:$AL$117,MATCH($I155,'Master Data'!$X$76:$X$117,0),MATCH(Y$143,'Master Data'!$AA$75:$AL$75,0)),0)*IF(Y$143=2024,1+$N$139,1+$O$139)*$O155,0) -> 0 | Z155: =SUM(P155:Y155) -> 0 | AE155: 0 | AF155: 0 | AG155: 0 | AH155: 0 | AI155: 0 | AJ155: 0 | AK155: 0 | AL155: 0 | AM155: 0 | AN155: 0 | AO155: =SUM(AE155:AN155) -> 0 | AQ155: 0 | AR155: 0 | AS155: =SUM(AQ155:AR155) -> 0 | AU155: 0
P156: =IFERROR(IF(AND(P$143>=$M156,P$143<=$N156),INDEX('Master Data'!$AA$76:$AL$117,MATCH($I156,'Master Data'!$X$76:$X$117,0),MATCH(P$143,'Master Data'!$AA$75:$AL$75,0)),0)*IF(P$143=2024,1+$N$139,1+$O$139)*$O156,0) -> 0 | Q156: =IFERROR(IF(AND(Q$143>=$M156,Q$143<=$N156),INDEX('Master Data'!$AA$76:$AL$117,MATCH($I156,'Master Data'!$X$76:$X$117,0),MATCH(Q$143,'Master Data'!$AA$75:$AL$75,0)),0)*IF(Q$143=2024,1+$N$139,1+$O$139)*$O156,0) -> 0 | R156: =IFERROR(IF(AND(R$143>=$M156,R$143<=$N156),INDEX('Master Data'!$AA$76:$AL$117,MATCH($I156,'Master Data'!$X$76:$X$117,0),MATCH(R$143,'Master Data'!$AA$75:$AL$75,0)),0)*IF(R$143=2024,1+$N$139,1+$O$139)*$O156,0) -> 0 | S156: =IFERROR(IF(AND(S$143>=$M156,S$143<=$N156),INDEX('Master Data'!$AA$76:$AL$117,MATCH($I156,'Master Data'!$X$76:$X$117,0),MATCH(S$143,'Master Data'!$AA$75:$AL$75,0)),0)*IF(S$143=2024,1+$N$139,1+$O$139)*$O156,0) -> 0 | T156: =IFERROR(IF(AND(T$143>=$M156,T$143<=$N156),INDEX('Master Data'!$AA$76:$AL$117,MATCH($I156,'Master Data'!$X$76:$X$117,0),MATCH(T$143,'Master Data'!$AA$75:$AL$75,0)),0)*IF(T$143=2024,1+$N$139,1+$O$139)*$O156,0) -> 0 | U156: =IFERROR(IF(AND(U$143>=$M156,U$143<=$N156),INDEX('Master Data'!$AA$76:$AL$117,MATCH($I156,'Master Data'!$X$76:$X$117,0),MATCH(U$143,'Master Data'!$AA$75:$AL$75,0)),0)*IF(U$143=2024,1+$N$139,1+$O$139)*$O156,0) -> 0 | V156: =IFERROR(IF(AND(V$143>=$M156,V$143<=$N156),INDEX('Master Data'!$AA$76:$AL$117,MATCH($I156,'Master Data'!$X$76:$X$117,0),MATCH(V$143,'Master Data'!$AA$75:$AL$75,0)),0)*IF(V$143=2024,1+$N$139,1+$O$139)*$O156,0) -> 0 | W156: =IFERROR(IF(AND(W$143>=$M156,W$143<=$N156),INDEX('Master Data'!$AA$76:$AL$117,MATCH($I156,'Master Data'!$X$76:$X$117,0),MATCH(W$143,'Master Data'!$AA$75:$AL$75,0)),0)*IF(W$143=2024,1+$N$139,1+$O$139)*$O156,0) -> 0 | X156: =IFERROR(IF(AND(X$143>=$M156,X$143<=$N156),INDEX('Master Data'!$AA$76:$AL$117,MATCH($I156,'Master Data'!$X$76:$X$117,0),MATCH(X$143,'Master Data'!$AA$75:$AL$75,0)),0)*IF(X$143=2024,1+$N$139,1+$O$139)*$O156,0) -> 0 | Y156: =IFERROR(IF(AND(Y$143>=$M156,Y$143<=$N156),INDEX('Master Data'!$AA$76:$AL$117,MATCH($I156,'Master Data'!$X$76:$X$117,0),MATCH(Y$143,'Master Data'!$AA$75:$AL$75,0)),0)*IF(Y$143=2024,1+$N$139,1+$O$139)*$O156,0) -> 0 | Z156: 0 | AE156: 0 | AF156: 0 | AG156: 0 | AH156: 0 | AI156: 0 | AJ156: 0 | AK156: 0 | AL156: 0 | AM156: 0 | AN156: 0 | AO156: 0 | AQ156: 0 | AR156: 0 | AS156: 0 | AU156: 0
P157: =IFERROR(IF(AND(P$143>=$M157,P$143<=$N157),INDEX('Master Data'!$AA$76:$AL$117,MATCH($I157,'Master Data'!$X$76:$X$117,0),MATCH(P$143,'Master Data'!$AA$75:$AL$75,0)),0)*IF(P$143=2024,1+$N$139,1+$O$139)*$O157,0) -> 0 | Q157: =IFERROR(IF(AND(Q$143>=$M157,Q$143<=$N157),INDEX('Master Data'!$AA$76:$AL$117,MATCH($I157,'Master Data'!$X$76:$X$117,0),MATCH(Q$143,'Master Data'!$AA$75:$AL$75,0)),0)*IF(Q$143=2024,1+$N$139,1+$O$139)*$O157,0) -> 0 | R157: =IFERROR(IF(AND(R$143>=$M157,R$143<=$N157),INDEX('Master Data'!$AA$76:$AL$117,MATCH($I157,'Master Data'!$X$76:$X$117,0),MATCH(R$143,'Master Data'!$AA$75:$AL$75,0)),0)*IF(R$143=2024,1+$N$139,1+$O$139)*$O157,0) -> 0 | S157: =IFERROR(IF(AND(S$143>=$M157,S$143<=$N157),INDEX('Master Data'!$AA$76:$AL$117,MATCH($I157,'Master Data'!$X$76:$X$117,0),MATCH(S$143,'Master Data'!$AA$75:$AL$75,0)),0)*IF(S$143=2024,1+$N$139,1+$O$139)*$O157,0) -> 0 | T157: =IFERROR(IF(AND(T$143>=$M157,T$143<=$N157),INDEX('Master Data'!$AA$76:$AL$117,MATCH($I157,'Master Data'!$X$76:$X$117,0),MATCH(T$143,'Master Data'!$AA$75:$AL$75,0)),0)*IF(T$143=2024,1+$N$139,1+$O$139)*$O157,0) -> 0 | U157: =IFERROR(IF(AND(U$143>=$M157,U$143<=$N157),INDEX('Master Data'!$AA$76:$AL$117,MATCH($I157,'Master Data'!$X$76:$X$117,0),MATCH(U$143,'Master Data'!$AA$75:$AL$75,0)),0)*IF(U$143=2024,1+$N$139,1+$O$139)*$O157,0) -> 0 | V157: =IFERROR(IF(AND(V$143>=$M157,V$143<=$N157),INDEX('Master Data'!$AA$76:$AL$117,MATCH($I157,'Master Data'!$X$76:$X$117,0),MATCH(V$143,'Master Data'!$AA$75:$AL$75,0)),0)*IF(V$143=2024,1+$N$139,1+$O$139)*$O157,0) -> 0 | W157: =IFERROR(IF(AND(W$143>=$M157,W$143<=$N157),INDEX('Master Data'!$AA$76:$AL$117,MATCH($I157,'Master Data'!$X$76:$X$117,0),MATCH(W$143,'Master Data'!$AA$75:$AL$75,0)),0)*IF(W$143=2024,1+$N$139,1+$O$139)*$O157,0) -> 0 | X157: =IFERROR(IF(AND(X$143>=$M157,X$143<=$N157),INDEX('Master Data'!$AA$76:$AL$117,MATCH($I157,'Master Data'!$X$76:$X$117,0),MATCH(X$143,'Master Data'!$AA$75:$AL$75,0)),0)*IF(X$143=2024,1+$N$139,1+$O$139)*$O157,0) -> 0 | Y157: =IFERROR(IF(AND(Y$143>=$M157,Y$143<=$N157),INDEX('Master Data'!$AA$76:$AL$117,MATCH($I157,'Master Data'!$X$76:$X$117,0),MATCH(Y$143,'Master Data'!$AA$75:$AL$75,0)),0)*IF(Y$143=2024,1+$N$139,1+$O$139)*$O157,0) -> 0 | Z157: 0 | AE157: 0 | AF157: 0 | AG157: 0 | AH157: 0 | AI157: 0 | AJ157: 0 | AK157: 0 | AL157: 0 | AM157: 0 | AN157: 0 | AO157: 0 | AQ157: 0 | AR157: 0 | AS157: 0 | AU157: 0
P158: =IFERROR(IF(AND(P$143>=$M158,P$143<=$N158),INDEX('Master Data'!$AA$76:$AL$117,MATCH($I158,'Master Data'!$X$76:$X$117,0),MATCH(P$143,'Master Data'!$AA$75:$AL$75,0)),0)*IF(P$143=2024,1+$N$139,1+$O$139)*$O158,0) -> 0 | Q158: =IFERROR(IF(AND(Q$143>=$M158,Q$143<=$N158),INDEX('Master Data'!$AA$76:$AL$117,MATCH($I158,'Master Data'!$X$76:$X$117,0),MATCH(Q$143,'Master Data'!$AA$75:$AL$75,0)),0)*IF(Q$143=2024,1+$N$139,1+$O$139)*$O158,0) -> 0 | R158: =IFERROR(IF(AND(R$143>=$M158,R$143<=$N158),INDEX('Master Data'!$AA$76:$AL$117,MATCH($I158,'Master Data'!$X$76:$X$117,0),MATCH(R$143,'Master Data'!$AA$75:$AL$75,0)),0)*IF(R$143=2024,1+$N$139,1+$O$139)*$O158,0) -> 0 | S158: =IFERROR(IF(AND(S$143>=$M158,S$143<=$N158),INDEX('Master Data'!$AA$76:$AL$117,MATCH($I158,'Master Data'!$X$76:$X$117,0),MATCH(S$143,'Master Data'!$AA$75:$AL$75,0)),0)*IF(S$143=2024,1+$N$139,1+$O$139)*$O158,0) -> 0 | T158: =IFERROR(IF(AND(T$143>=$M158,T$143<=$N158),INDEX('Master Data'!$AA$76:$AL$117,MATCH($I158,'Master Data'!$X$76:$X$117,0),MATCH(T$143,'Master Data'!$AA$75:$AL$75,0)),0)*IF(T$143=2024,1+$N$139,1+$O$139)*$O158,0) -> 0 | U158: =IFERROR(IF(AND(U$143>=$M158,U$143<=$N158),INDEX('Master Data'!$AA$76:$AL$117,MATCH($I158,'Master Data'!$X$76:$X$117,0),MATCH(U$143,'Master Data'!$AA$75:$AL$75,0)),0)*IF(U$143=2024,1+$N$139,1+$O$139)*$O158,0) -> 0 | V158: =IFERROR(IF(AND(V$143>=$M158,V$143<=$N158),INDEX('Master Data'!$AA$76:$AL$117,MATCH($I158,'Master Data'!$X$76:$X$117,0),MATCH(V$143,'Master Data'!$AA$75:$AL$75,0)),0)*IF(V$143=2024,1+$N$139,1+$O$139)*$O158,0) -> 0 | W158: =IFERROR(IF(AND(W$143>=$M158,W$143<=$N158),INDEX('Master Data'!$AA$76:$AL$117,MATCH($I158,'Master Data'!$X$76:$X$117,0),MATCH(W$143,'Master Data'!$AA$75:$AL$75,0)),0)*IF(W$143=2024,1+$N$139,1+$O$139)*$O158,0) -> 0 | X158: =IFERROR(IF(AND(X$143>=$M158,X$143<=$N158),INDEX('Master Data'!$AA$76:$AL$117,MATCH($I158,'Master Data'!$X$76:$X$117,0),MATCH(X$143,'Master Data'!$AA$75:$AL$75,0)),0)*IF(X$143=2024,1+$N$139,1+$O$139)*$O158,0) -> 0 | Y158: =IFERROR(IF(AND(Y$143>=$M158,Y$143<=$N158),INDEX('Master Data'!$AA$76:$AL$117,MATCH($I158,'Master Data'!$X$76:$X$117,0),MATCH(Y$143,'Master Data'!$AA$75:$AL$75,0)),0)*IF(Y$143=2024,1+$N$139,1+$O$139)*$O158,0) -> 0 | Z158: 0 | AE158: 0 | AF158: 0 | AG158: 0 | AH158: 0 | AI158: 0 | AJ158: 0 | AK158: 0 | AL158: 0 | AM158: 0 | AN158: 0 | AO158: 0 | AQ158: 0 | AR158: 0 | AS158: 0 | AU158: 0
P159: =IFERROR(IF(AND(P$143>=$M159,P$143<=$N159),INDEX('Master Data'!$AA$76:$AL$117,MATCH($I159,'Master Data'!$X$76:$X$117,0),MATCH(P$143,'Master Data'!$AA$75:$AL$75,0)),0)*IF(P$143=2024,1+$N$139,1+$O$139)*$O159,0) -> 0 | Q159: =IFERROR(IF(AND(Q$143>=$M159,Q$143<=$N159),INDEX('Master Data'!$AA$76:$AL$117,MATCH($I159,'Master Data'!$X$76:$X$117,0),MATCH(Q$143,'Master Data'!$AA$75:$AL$75,0)),0)*IF(Q$143=2024,1+$N$139,1+$O$139)*$O159,0) -> 0 | R159: =IFERROR(IF(AND(R$143>=$M159,R$143<=$N159),INDEX('Master Data'!$AA$76:$AL$117,MATCH($I159,'Master Data'!$X$76:$X$117,0),MATCH(R$143,'Master Data'!$AA$75:$AL$75,0)),0)*IF(R$143=2024,1+$N$139,1+$O$139)*$O159,0) -> 0 | S159: =IFERROR(IF(AND(S$143>=$M159,S$143<=$N159),INDEX('Master Data'!$AA$76:$AL$117,MATCH($I159,'Master Data'!$X$76:$X$117,0),MATCH(S$143,'Master Data'!$AA$75:$AL$75,0)),0)*IF(S$143=2024,1+$N$139,1+$O$139)*$O159,0) -> 0 | T159: =IFERROR(IF(AND(T$143>=$M159,T$143<=$N159),INDEX('Master Data'!$AA$76:$AL$117,MATCH($I159,'Master Data'!$X$76:$X$117,0),MATCH(T$143,'Master Data'!$AA$75:$AL$75,0)),0)*IF(T$143=2024,1+$N$139,1+$O$139)*$O159,0) -> 0 | U159: =IFERROR(IF(AND(U$143>=$M159,U$143<=$N159),INDEX('Master Data'!$AA$76:$AL$117,MATCH($I159,'Master Data'!$X$76:$X$117,0),MATCH(U$143,'Master Data'!$AA$75:$AL$75,0)),0)*IF(U$143=2024,1+$N$139,1+$O$139)*$O159,0) -> 0 | V159: =IFERROR(IF(AND(V$143>=$M159,V$143<=$N159),INDEX('Master Data'!$AA$76:$AL$117,MATCH($I159,'Master Data'!$X$76:$X$117,0),MATCH(V$143,'Master Data'!$AA$75:$AL$75,0)),0)*IF(V$143=2024,1+$N$139,1+$O$139)*$O159,0) -> 0 | W159: =IFERROR(IF(AND(W$143>=$M159,W$143<=$N159),INDEX('Master Data'!$AA$76:$AL$117,MATCH($I159,'Master Data'!$X$76:$X$117,0),MATCH(W$143,'Master Data'!$AA$75:$AL$75,0)),0)*IF(W$143=2024,1+$N$139,1+$O$139)*$O159,0) -> 0 | X159: =IFERROR(IF(AND(X$143>=$M159,X$143<=$N159),INDEX('Master Data'!$AA$76:$AL$117,MATCH($I159,'Master Data'!$X$76:$X$117,0),MATCH(X$143,'Master Data'!$AA$75:$AL$75,0)),0)*IF(X$143=2024,1+$N$139,1+$O$139)*$O159,0) -> 0 | Y159: =IFERROR(IF(AND(Y$143>=$M159,Y$143<=$N159),INDEX('Master Data'!$AA$76:$AL$117,MATCH($I159,'Master Data'!$X$76:$X$117,0),MATCH(Y$143,'Master Data'!$AA$75:$AL$75,0)),0)*IF(Y$143=2024,1+$N$139,1+$O$139)*$O159,0) -> 0 | Z159: 0 | AE159: 0 | AF159: 0 | AG159: 0 | AH159: 0 | AI159: 0 | AJ159: 0 | AK159: 0 | AL159: 0 | AM159: 0 | AN159: 0 | AO159: 0 | AQ159: 0 | AR159: 0 | AS159: 0 | AU159: 0
P160: =IFERROR(IF(AND(P$143>=$M160,P$143<=$N160),INDEX('Master Data'!$AA$76:$AL$117,MATCH($I160,'Master Data'!$X$76:$X$117,0),MATCH(P$143,'Master Data'!$AA$75:$AL$75,0)),0)*IF(P$143=2024,1+$N$139,1+$O$139)*$O160,0) -> 0 | Q160: =IFERROR(IF(AND(Q$143>=$M160,Q$143<=$N160),INDEX('Master Data'!$AA$76:$AL$117,MATCH($I160,'Master Data'!$X$76:$X$117,0),MATCH(Q$143,'Master Data'!$AA$75:$AL$75,0)),0)*IF(Q$143=2024,1+$N$139,1+$O$139)*$O160,0) -> 0 | R160: =IFERROR(IF(AND(R$143>=$M160,R$143<=$N160),INDEX('Master Data'!$AA$76:$AL$117,MATCH($I160,'Master Data'!$X$76:$X$117,0),MATCH(R$143,'Master Data'!$AA$75:$AL$75,0)),0)*IF(R$143=2024,1+$N$139,1+$O$139)*$O160,0) -> 0 | S160: =IFERROR(IF(AND(S$143>=$M160,S$143<=$N160),INDEX('Master Data'!$AA$76:$AL$117,MATCH($I160,'Master Data'!$X$76:$X$117,0),MATCH(S$143,'Master Data'!$AA$75:$AL$75,0)),0)*IF(S$143=2024,1+$N$139,1+$O$139)*$O160,0) -> 0 | T160: =IFERROR(IF(AND(T$143>=$M160,T$143<=$N160),INDEX('Master Data'!$AA$76:$AL$117,MATCH($I160,'Master Data'!$X$76:$X$117,0),MATCH(T$143,'Master Data'!$AA$75:$AL$75,0)),0)*IF(T$143=2024,1+$N$139,1+$O$139)*$O160,0) -> 0 | U160: =IFERROR(IF(AND(U$143>=$M160,U$143<=$N160),INDEX('Master Data'!$AA$76:$AL$117,MATCH($I160,'Master Data'!$X$76:$X$117,0),MATCH(U$143,'Master Data'!$AA$75:$AL$75,0)),0)*IF(U$143=2024,1+$N$139,1+$O$139)*$O160,0) -> 0 | V160: =IFERROR(IF(AND(V$143>=$M160,V$143<=$N160),INDEX('Master Data'!$AA$76:$AL$117,MATCH($I160,'Master Data'!$X$76:$X$117,0),MATCH(V$143,'Master Data'!$AA$75:$AL$75,0)),0)*IF(V$143=2024,1+$N$139,1+$O$139)*$O160,0) -> 0 | W160: =IFERROR(IF(AND(W$143>=$M160,W$143<=$N160),INDEX('Master Data'!$AA$76:$AL$117,MATCH($I160,'Master Data'!$X$76:$X$117,0),MATCH(W$143,'Master Data'!$AA$75:$AL$75,0)),0)*IF(W$143=2024,1+$N$139,1+$O$139)*$O160,0) -> 0 | X160: =IFERROR(IF(AND(X$143>=$M160,X$143<=$N160),INDEX('Master Data'!$AA$76:$AL$117,MATCH($I160,'Master Data'!$X$76:$X$117,0),MATCH(X$143,'Master Data'!$AA$75:$AL$75,0)),0)*IF(X$143=2024,1+$N$139,1+$O$139)*$O160,0) -> 0 | Y160: =IFERROR(IF(AND(Y$143>=$M160,Y$143<=$N160),INDEX('Master Data'!$AA$76:$AL$117,MATCH($I160,'Master Data'!$X$76:$X$117,0),MATCH(Y$143,'Master Data'!$AA$75:$AL$75,0)),0)*IF(Y$143=2024,1+$N$139,1+$O$139)*$O160,0) -> 0 | Z160: 0 | AE160: 0 | AF160: 0 | AG160: 0 | AH160: 0 | AI160: 0 | AJ160: 0 | AK160: 0 | AL160: 0 | AM160: 0 | AN160: 0 | AO160: 0 | AQ160: 0 | AR160: 0 | AS160: 0 | AU160: 0
F161: Total Casual Salaries | P161: =SUM(P146:P160) -> 0 | Q161: 0 | R161: 0 | S161: 0 | T161: 0 | U161: 0 | V161: 0 | W161: =SUM(W146:W160) -> 0 | X161: 0 | Y161: 0 | Z161: =SUM(Z146:Z160) -> 0 | AE161: =SUM(AE146:AE160) -> 0 | AF161: 0 | AG161: 0 | AH161: 0 | AI161: 0 | AJ161: 0 | AK161: 0 | AL161: =SUM(AL146:AL160) -> 0 | AM161: 0 | AN161: 0 | AO161: 0 | AQ161: =SUM(AQ146:AQ160) -> 0 | AR161: =SUM(AR146:AR160) -> 0 | AS161: =SUM(AS146:AS160) -> 0 | AU161: =SUM(AU146:AU160) -> 0
E163: DIRECT SALARY COSTS TOTAL | P163: =SUM(P97,P136,P161) -> 0 | Q163: 0 | R163: 0 | S163: 0 | T163: 0 | U163: 0 | V163: 0 | W163: 0 | X163: 0 | Y163: 0 | Z163: 0 | AE163: =SUM(AE97,AE136,AE161) -> 0 | AF163: 0 | AG163: 0 | AH163: 0 | AI163: 0 | AJ163: 0 | AK163: 0 | AL163: 0 | AM163: 0 | AN163: 0 | AO163: 0 | AQ163: =SUM(AQ97,AQ136,AQ161) -> 0 | AR163: =SUM(AR97,AR136,AR161) -> 0 | AS163: =SUM(AS97,AS136,AS161) -> 0 | AU163: =SUM(AU97,AU136,AU161) -> 0 | AV163: =AU163-SUM($AO$163,$AO$263,$AO$265) -> 0
E165: Operating Expense (remember to include CPI for outer years - inflation)
N167: Current CPI Rate | O167: ='Master Data'!CF6 -> 0.041
F168: Operating Expenses (including High Performance Computer charges)
F169: Expense Type | H169: Brief Description | J169: Funding Source | K169: Start Year | L169: End Year | M169: Quantity / Hours Per Year | O169: Annual Cost / Hourly Rate | P169: Project Costing | AE169: Project Pricing (Direct) | AQ169: Inkind & Ineligible Expenses
P170: =P$63 -> Year 1 | Q170: Year 2 | R170: Year 3 | S170: Year 4 | T170: Year 5 | U170: Year 6 | V170: Year 7 | W170: Year 8 | X170: Year 9 | Y170: Year 10 | Z170: Total Project Cost (Direct) | AA170: % included in Project Pricing | AB170: Amount included in Project Pricing | AC170: =AC$63 -> Reason for the cost not being fully funded by the sponsor | AE170: =AE$63 -> Year 1 | AF170: Year 2 | AG170: Year 3 | AH170: Year 4 | AI170: Year 5 | AJ170: Year 6 | AK170: Year 7 | AL170: Year 8 | AM170: Year 9 | AN170: Year 10 | AO170: Total | AQ170: =AQ$63 -> Inkind | AR170: =AR$63 -> Ineligible Expense | AS170: =AS$63 -> Total
P171: =P$33 -> 1900 | Q171: =Q$33 ->  | AE171: =AE$33 -> 1900 | AF171: =AF$33 -> 
E172: Example | F172: High Performing Computer | H172: HPC charges | J172: Funded | K172: 2024 | L172: 2024 | N172: Not required | O172: 100000 | P172: 100000 | Q172: 0 | R172: 0 | S172: 0 | T172: 0 | U172: 0 | V172: 0 | W172: 0 | X172: 0 | Y172: 0 | Z172: =SUM(P172:Y172) -> 100000 | AE172: 100000 | AF172: 0 | AG172: 0 | AH172: 0 | AI172: 0 | AJ172: 0 | AK172: 0 | AL172: 0 | AM172: 0 | AN172: 0 | AO172: =SUM(AE172:AN172) -> 100000 | AQ172: 0 | AR172: 0 | AS172: =SUM(AQ172:AR172) -> 0
E173: Example | F173: Other Operating | H173: Laboratory Materials | J173: Funded | K173: 2024 | L173: 2028 | M173: 1 | N173: Quantity | O173: 80000 | P173: 80000 | Q173: 83280 | R173: 86694.48 | S173: 90248.95368 | T173: 93949.16078 | U173: 0 | V173: 0 | W173: 0 | X173: 0 | Y173: 0 | Z173: =SUM(P173:Y173) -> 434172.5945 | AB173: 50000 | AC173: sponsor caps payment at $50k p.a. | AE173: 50000 | AF173: 50000 | AG173: 50000 | AH173: 50000 | AI173: 50000 | AJ173: 0 | AK173: 0 | AL173: 0 | AM173: 0 | AN173: 0 | AO173: 250000 | AQ173: 0 | AR173: 184172.5945 | AS173: 184172.5945
N174: =IFERROR(VLOOKUP($F174,'Master Data'!$BK$5:$BL$10,2,FALSE),"") ->  | P174: =IF(P$171=$K174,IF(ISBLANK($M174),$O174,$M174*$O174),IF(AND(P$171>=$K174,P$171<=$L174),O174,0)) -> 0 | Q174: =IF(Q$171=$K174,IF(ISBLANK($M174),$O174,$M174*$O174),IF(AND(Q$171>=$K174,Q$171<=$L174),P174*(1+$O$167),0)) -> 0 | R174: 0 | S174: 0 | T174: 0 | U174: 0 | V174: 0 | W174: 0 | X174: 0 | Y174: 0 | Z174: =SUM(P174:Y174) -> 0 | AE174: =IF($J174="Funded",IF(ISBLANK($AA174),IF(ISBLANK($AB174),P174,IF(P174=0,0,$AB174)),P174*$AA174),0) -> 0 | AF174: =IF($J174="Funded",IF(ISBLANK($AA174),IF(ISBLANK($AB174),Q174,IF(Q174=0,0,$AB174)),Q174*$AA174),0) -> 0 | AG174: =IF($J174="Funded",IF(ISBLANK($AA174),IF(ISBLANK($AB174),R174,IF(R174=0,0,$AB174)),R174*$AA174),0) -> 0 | AH174: =IF($J174="Funded",IF(ISBLANK($AA174),IF(ISBLANK($AB174),S174,IF(S174=0,0,$AB174)),S174*$AA174),0) -> 0 | AI174: =IF($J174="Funded",IF(ISBLANK($AA174),IF(ISBLANK($AB174),T174,IF(T174=0,0,$AB174)),T174*$AA174),0) -> 0 | AJ174: =IF($J174="Funded",IF(ISBLANK($AA174),IF(ISBLANK($AB174),U174,IF(U174=0,0,$AB174)),U174*$AA174),0) -> 0 | AK174: =IF($J174="Funded",IF(ISBLANK($AA174),IF(ISBLANK($AB174),V174,IF(V174=0,0,$AB174)),V174*$AA174),0) -> 0 | AL174: =IF($J174="Funded",IF(ISBLANK($AA174),IF(ISBLANK($AB174),W174,IF(W174=0,0,$AB174)),W174*$AA174),0) -> 0 | AM174: =IF($J174="Funded",IF(ISBLANK($AA174),IF(ISBLANK($AB174),X174,IF(X174=0,0,$AB174)),X174*$AA174),0) -> 0 | AN174: =IF($J174="Funded",IF(ISBLANK($AA174),IF(ISBLANK($AB174),Y174,IF(Y174=0,0,$AB174)),Y174*$AA174),0) -> 0 | AO174: 0 | AQ174: =IF($J174=AQ$170,$Z174-$AO174,0) -> 0 | AR174: =IF(NOT($J174="Inkind"),$Z174-$AO174,0) -> 0 | AS174: =SUM(AQ174:AR174) -> 0
N175: =IFERROR(VLOOKUP($F175,'Master Data'!$BK$5:$BL$10,2,FALSE),"") ->  | P175: 0 | Q175: =IF(Q$171=$K175,IF(ISBLANK($M175),$O175,$M175*$O175),IF(AND(Q$171>=$K175,Q$171<=$L175),P175*(1+$O$167),0)) -> 0 | R175: 0 | S175: 0 | T175: 0 | U175: 0 | V175: 0 | W175: 0 | X175: 0 | Y175: 0 | Z175: 0 | AE175: 0 | AF175: 0 | AG175: 0 | AH175: 0 | AI175: 0 | AJ175: 0 | AK175: 0 | AL175: 0 | AM175: 0 | AN175: 0 | AO175: 0 | AQ175: =IF($J175=AQ$170,$Z175-$AO175,0) -> 0 | AR175: 0 | AS175: =SUM(AQ175:AR175) -> 0
N176: =IFERROR(VLOOKUP($F176,'Master Data'!$BK$5:$BL$10,2,FALSE),"") ->  | P176: 0 | Q176: =IF(Q$171=$K176,IF(ISBLANK($M176),$O176,$M176*$O176),IF(AND(Q$171>=$K176,Q$171<=$L176),P176*(1+$O$167),0)) -> 0 | R176: 0 | S176: 0 | T176: 0 | U176: 0 | V176: 0 | W176: 0 | X176: 0 | Y176: 0 | Z176: 0 | AE176: 0 | AF176: 0 | AG176: 0 | AH176: 0 | AI176: 0 | AJ176: 0 | AK176: 0 | AL176: 0 | AM176: 0 | AN176: 0 | AO176: 0 | AQ176: 0 | AR176: 0 | AS176: 0
N177: =IFERROR(VLOOKUP($F177,'Master Data'!$BK$5:$BL$10,2,FALSE),"") ->  | P177: 0 | Q177: =IF(Q$171=$K177,IF(ISBLANK($M177),$O177,$M177*$O177),IF(AND(Q$171>=$K177,Q$171<=$L177),P177*(1+$O$167),0)) -> 0 | R177: 0 | S177: 0 | T177: 0 | U177: 0 | V177: 0 | W177: 0 | X177: 0 | Y177: 0 | Z177: 0 | AE177: 0 | AF177: 0 | AG177: 0 | AH177: 0 | AI177: 0 | AJ177: 0 | AK177: 0 | AL177: 0 | AM177: 0 | AN177: 0 | AO177: 0 | AQ177: 0 | AR177: 0 | AS177: 0
N178: =IFERROR(VLOOKUP($F178,'Master Data'!$BK$5:$BL$10,2,FALSE),"") ->  | P178: 0 | Q178: =IF(Q$171=$K178,IF(ISBLANK($M178),$O178,$M178*$O178),IF(AND(Q$171>=$K178,Q$171<=$L178),P178*(1+$O$167),0)) -> 0 | R178: 0 | S178: 0 | T178: 0 | U178: 0 | V178: 0 | W178: 0 | X178: 0 | Y178: 0 | Z178: 0 | AE178: 0 | AF178: 0 | AG178: 0 | AH178: 0 | AI178: 0 | AJ178: 0 | AK178: 0 | AL178: 0 | AM178: 0 | AN178: 0 | AO178: 0 | AQ178: 0 | AR178: 0 | AS178: 0
N179: =IFERROR(VLOOKUP($F179,'Master Data'!$BK$5:$BL$10,2,FALSE),"") ->  | P179: 0 | Q179: =IF(Q$171=$K179,IF(ISBLANK($M179),$O179,$M179*$O179),IF(AND(Q$171>=$K179,Q$171<=$L179),P179*(1+$O$167),0)) -> 0 | R179: 0 | S179: 0 | T179: 0 | U179: 0 | V179: 0 | W179: 0 | X179: 0 | Y179: 0 | Z179: 0 | AE179: 0 | AF179: 0 | AG179: 0 | AH179: 0 | AI179: 0 | AJ179: 0 | AK179: 0 | AL179: 0 | AM179: 0 | AN179: 0 | AO179: 0 | AQ179: 0 | AR179: 0 | AS179: 0
N180: =IFERROR(VLOOKUP($F180,'Master Data'!$BK$5:$BL$10,2,FALSE),"") ->  | P180: 0 | Q180: =IF(Q$171=$K180,IF(ISBLANK($M180),$O180,$M180*$O180),IF(AND(Q$171>=$K180,Q$171<=$L180),P180*(1+$O$167),0)) -> 0 | R180: 0 | S180: 0 | T180: 0 | U180: 0 | V180: 0 | W180: 0 | X180: 0 | Y180: 0 | Z180: 0 | AE180: 0 | AF180: 0 | AG180: 0 | AH180: 0 | AI180: 0 | AJ180: 0 | AK180: 0 | AL180: 0 | AM180: 0 | AN180: 0 | AO180: 0 | AQ180: 0 | AR180: 0 | AS180: 0
N181: =IFERROR(VLOOKUP($F181,'Master Data'!$BK$5:$BL$10,2,FALSE),"") ->  | P181: 0 | Q181: =IF(Q$171=$K181,IF(ISBLANK($M181),$O181,$M181*$O181),IF(AND(Q$171>=$K181,Q$171<=$L181),P181*(1+$O$167),0)) -> 0 | R181: 0 | S181: 0 | T181: 0 | U181: 0 | V181: 0 | W181: 0 | X181: 0 | Y181: 0 | Z181: 0 | AE181: 0 | AF181: 0 | AG181: 0 | AH181: 0 | AI181: 0 | AJ181: 0 | AK181: 0 | AL181: 0 | AM181: 0 | AN181: 0 | AO181: 0 | AQ181: 0 | AR181: 0 | AS181: 0
N182: =IFERROR(VLOOKUP($F182,'Master Data'!$BK$5:$BL$10,2,FALSE),"") ->  | P182: 0 | Q182: =IF(Q$171=$K182,IF(ISBLANK($M182),$O182,$M182*$O182),IF(AND(Q$171>=$K182,Q$171<=$L182),P182*(1+$O$167),0)) -> 0 | R182: 0 | S182: 0 | T182: 0 | U182: 0 | V182: 0 | W182: 0 | X182: 0 | Y182: 0 | Z182: 0 | AE182: 0 | AF182: 0 | AG182: 0 | AH182: 0 | AI182: 0 | AJ182: 0 | AK182: 0 | AL182: 0 | AM182: 0 | AN182: 0 | AO182: 0 | AQ182: 0 | AR182: 0 | AS182: 0
N183: =IFERROR(VLOOKUP($F183,'Master Data'!$BK$5:$BL$10,2,FALSE),"") ->  | P183: 0 | Q183: =IF(Q$171=$K183,IF(ISBLANK($M183),$O183,$M183*$O183),IF(AND(Q$171>=$K183,Q$171<=$L183),P183*(1+$O$167),0)) -> 0 | R183: 0 | S183: 0 | T183: 0 | U183: 0 | V183: 0 | W183: 0 | X183: 0 | Y183: 0 | Z183: 0 | AE183: 0 | AF183: 0 | AG183: 0 | AH183: 0 | AI183: 0 | AJ183: 0 | AK183: 0 | AL183: 0 | AM183: 0 | AN183: 0 | AO183: 0 | AQ183: 0 | AR183: 0 | AS183: =SUM(AQ183:AR183) -> 0
N184: =IFERROR(VLOOKUP($F184,'Master Data'!$BK$5:$BL$10,2,FALSE),"") ->  | P184: 0 | Q184: =IF(Q$171=$K184,IF(ISBLANK($M184),$O184,$M184*$O184),IF(AND(Q$171>=$K184,Q$171<=$L184),P184*(1+$O$167),0)) -> 0 | R184: 0 | S184: 0 | T184: 0 | U184: 0 | V184: 0 | W184: 0 | X184: 0 | Y184: 0 | Z184: 0 | AE184: 0 | AF184: 0 | AG184: 0 | AH184: 0 | AI184: 0 | AJ184: 0 | AK184: 0 | AL184: 0 | AM184: 0 | AN184: 0 | AO184: 0 | AQ184: 0 | AR184: 0 | AS184: 0
N185: =IFERROR(VLOOKUP($F185,'Master Data'!$BK$5:$BL$10,2,FALSE),"") ->  | P185: 0 | Q185: =IF(Q$171=$K185,IF(ISBLANK($M185),$O185,$M185*$O185),IF(AND(Q$171>=$K185,Q$171<=$L185),P185*(1+$O$167),0)) -> 0 | R185: 0 | S185: 0 | T185: 0 | U185: 0 | V185: 0 | W185: 0 | X185: 0 | Y185: 0 | Z185: 0 | AE185: 0 | AF185: 0 | AG185: 0 | AH185: 0 | AI185: 0 | AJ185: 0 | AK185: 0 | AL185: 0 | AM185: 0 | AN185: 0 | AO185: 0 | AQ185: 0 | AR185: 0 | AS185: 0
N186: =IFERROR(VLOOKUP($F186,'Master Data'!$BK$5:$BL$10,2,FALSE),"") ->  | P186: 0 | Q186: =IF(Q$171=$K186,IF(ISBLANK($M186),$O186,$M186*$O186),IF(AND(Q$171>=$K186,Q$171<=$L186),P186*(1+$O$167),0)) -> 0 | R186: 0 | S186: 0 | T186: 0 | U186: 0 | V186: 0 | W186: 0 | X186: 0 | Y186: 0 | Z186: 0 | AE186: 0 | AF186: 0 | AG186: 0 | AH186: 0 | AI186: 0 | AJ186: 0 | AK186: 0 | AL186: 0 | AM186: 0 | AN186: 0 | AO186: 0 | AQ186: 0 | AR186: 0 | AS186: 0
N187: =IFERROR(VLOOKUP($F187,'Master Data'!$BK$5:$BL$10,2,FALSE),"") ->  | P187: 0 | Q187: =IF(Q$171=$K187,IF(ISBLANK($M187),$O187,$M187*$O187),IF(AND(Q$171>=$K187,Q$171<=$L187),P187*(1+$O$167),0)) -> 0 | R187: 0 | S187: 0 | T187: 0 | U187: 0 | V187: 0 | W187: 0 | X187: 0 | Y187: 0 | Z187: 0 | AE187: 0 | AF187: 0 | AG187: 0 | AH187: 0 | AI187: 0 | AJ187: 0 | AK187: 0 | AL187: 0 | AM187: 0 | AN187: 0 | AO187: 0 | AQ187: 0 | AR187: 0 | AS187: 0
N188: =IFERROR(VLOOKUP($F188,'Master Data'!$BK$5:$BL$10,2,FALSE),"") ->  | P188: 0 | Q188: =IF(Q$171=$K188,IF(ISBLANK($M188),$O188,$M188*$O188),IF(AND(Q$171>=$K188,Q$171<=$L188),P188*(1+$O$167),0)) -> 0 | R188: 0 | S188: 0 | T188: 0 | U188: 0 | V188: 0 | W188: 0 | X188: 0 | Y188: 0 | Z188: 0 | AE188: 0 | AF188: 0 | AG188: 0 | AH188: 0 | AI188: 0 | AJ188: 0 | AK188: 0 | AL188: 0 | AM188: 0 | AN188: 0 | AO188: 0 | AQ188: 0 | AR188: 0 | AS188: 0
F189: Total Operating Expenses | P189: =SUM(P174:P188) -> 0 | Q189: =SUM(Q174:Q188) -> 0 | R189: 0 | S189: 0 | T189: 0 | U189: 0 | V189: 0 | W189: =SUM(W174:W188) -> 0 | X189: 0 | Y189: 0 | Z189: 0 | AE189: =SUM(AE174:AE188) -> 0 | AF189: =SUM(AF174:AF188) -> 0 | AG189: 0 | AH189: 0 | AI189: 0 | AJ189: 0 | AK189: 0 | AL189: =SUM(AL174:AL188) -> 0 | AM189: 0 | AN189: 0 | AO189: 0 | AQ189: 0 | AR189: 0 | AS189: 0
N191: Annual Increase | O191: =Stipend_YoY_Increase -> 0.05
F192: Scholarships/Stipends
F193: Student 'a' Number (Optional) | H193: Student Name (Optional) | J193: Stipend Type | K193: Funding Source | L193: Start Year | M193: FTE | N193: Amount | O193: Stipend Rate for the 1st Year | P193: Project Costing | AE193: Project Pricing (Direct) | AQ193: Inkind & Ineligible Expenses
P194: =P$63 -> Year 1 | Q194: Year 2 | R194: Year 3 | S194: Year 4 | T194: Year 5 | U194: Year 6 | V194: Year 7 | W194: Year 8 | X194: Year 9 | Y194: Year 10 | Z194: Total Project Cost (Direct) | AA194: % included in Project Pricing | AB194: Amount included in Project Pricing | AC194: =AC$63 -> Reason for the cost not being fully funded by the sponsor | AE194: =AE$63 -> Year 1 | AF194: Year 2 | AG194: Year 3 | AH194: Year 4 | AI194: Year 5 | AJ194: Year 6 | AK194: Year 7 | AL194: Year 8 | AM194: Year 9 | AN194: Year 10 | AO194: Total | AQ194: =AQ$63 -> Inkind | AR194: =AR$63 -> Ineligible Expense | AS194: =AS$63 -> Total
P195: =P$33 -> 1900 | Q195: =Q$33 ->  | AE195: =AE$33 -> 1900 | AF195: =AF$33 -> 
E196: Example | F196: a1234567 | H196: Henry Student | J196: University Rate | K196: Inkind | L196: 2024 | M196: 1 | O196: 34125 | P196: 34125 | Q196: 35831.25 | R196: 37622.8125 | S196: 19751.97656 | T196: 0 | U196: 0 | V196: 0 | W196: 0 | X196: 0 | Y196: 0 | Z196: =SUM(P196:V196) -> 127331.0391 | AE196: 0 | AF196: 0 | AG196: 0 | AH196: 0 | AI196: 0 | AJ196: 0 | AK196: 0 | AL196: 0 | AM196: 0 | AN196: 0 | AO196: =SUM(AE196:AN196) -> 0 | AQ196: 127331.0391 | AR196: 0 | AS196: =SUM(AQ196:AR196) -> 127331.0391
E197: Example | F197: a1234567 | H197: Henry Student | N197: 50000 | O197: 50000 | P197: 0 | Q197: 50000 | R197: 52500 | S197: 55125 | T197: 28940.625 | U197: 0 | V197: 0 | W197: 0 | X197: 0 | Y197: 0 | Z197: 186565.625 | AA197: 0.2 | AC197: sponsor is only paying 20% of the cost | AE197: 0 | AF197: 10000 | AG197: 10500 | AH197: 11025 | AI197: 5788.125 | AJ197: 0 | AK197: 0 | AL197: 0 | AM197: 0 | AN197: 0 | AO197: =SUM(AE197:AN197) -> 37313.125 | AQ197: 0 | AR197: 149252.5 | AS197: 149252.5
O198: =IF(ISBLANK($M198),0,IF($J198="University Rate",VLOOKUP($L198,Stipend,2,FALSE),$N198)) -> 0 | P198: =IF(P$195=$L198,$O198*$M198,IF(P$195=$L198+1,$O198*(1+$O$191)*$M198,IF(P$195=$L198+2,$O198*(1+$O$191)^2*$M198,IF(P$195=$L198+3,$O198*(1+$O$191)^3/2*$M198,0)))) -> 0 | Q198: =IF(Q$195=$L198,$O198*$M198,IF(Q$195=$L198+1,$O198*(1+$O$191)*$M198,IF(Q$195=$L198+2,$O198*(1+$O$191)^2*$M198,IF(Q$195=$L198+3,$O198*(1+$O$191)^3/2*$M198,0)))) -> 0 | R198: 0 | S198: 0 | T198: 0 | U198: 0 | V198: 0 | W198: 0 | X198: 0 | Y198: 0 | Z198: =SUM(P198:V198) -> 0 | AE198: =IF($K198="Funded",IF(ISBLANK($AA198),IF(ISBLANK($AB198),P198,IF(P198=0,0,$AB198)),P198*$AA198),0) -> 0 | AF198: =IF($K198="Funded",IF(ISBLANK($AA198),IF(ISBLANK($AB198),Q198,IF(Q198=0,0,$AB198)),Q198*$AA198),0) -> 0 | AG198: =IF($K198="Funded",IF(ISBLANK($AA198),IF(ISBLANK($AB198),R198,IF(R198=0,0,$AB198)),R198*$AA198),0) -> 0 | AH198: =IF($K198="Funded",IF(ISBLANK($AA198),IF(ISBLANK($AB198),S198,IF(S198=0,0,$AB198)),S198*$AA198),0) -> 0 | AI198: =IF($K198="Funded",IF(ISBLANK($AA198),IF(ISBLANK($AB198),T198,IF(T198=0,0,$AB198)),T198*$AA198),0) -> 0 | AJ198: =IF($K198="Funded",IF(ISBLANK($AA198),IF(ISBLANK($AB198),U198,IF(U198=0,0,$AB198)),U198*$AA198),0) -> 0 | AK198: =IF($K198="Funded",IF(ISBLANK($AA198),IF(ISBLANK($AB198),V198,IF(V198=0,0,$AB198)),V198*$AA198),0) -> 0 | AL198: =IF($K198="Funded",IF(ISBLANK($AA198),IF(ISBLANK($AB198),W198,IF(W198=0,0,$AB198)),W198*$AA198),0) -> 0 | AM198: =IF($K198="Funded",IF(ISBLANK($AA198),IF(ISBLANK($AB198),X198,IF(X198=0,0,$AB198)),X198*$AA198),0) -> 0 | AN198: =IF($K198="Funded",IF(ISBLANK($AA198),IF(ISBLANK($AB198),Y198,IF(Y198=0,0,$AB198)),Y198*$AA198),0) -> 0 | AO198: =SUM(AE198:AN198) -> 0 | AQ198: =IF($K198=AQ$194,$Z198-$AO198,0) -> 0 | AR198: =IF(NOT($K198="Inkind"),$Z198-$AO198,0) -> 0 | AS198: =SUM(AQ198:AR198) -> 0
O199: 0 | P199: =IF(P$195=$L199,$O199*$M199,IF(P$195=$L199+1,$O199*(1+$O$191)*$M199,IF(P$195=$L199+2,$O199*(1+$O$191)^2*$M199,IF(P$195=$L199+3,$O199*(1+$O$191)^3/2*$M199,0)))) -> 0 | Q199: 0 | R199: 0 | S199: 0 | T199: 0 | U199: 0 | V199: 0 | W199: 0 | X199: 0 | Y199: 0 | Z199: =SUM(P199:V199) -> 0 | AE199: =IF($K199="Funded",IF(ISBLANK($AA199),IF(ISBLANK($AB199),P199,IF(P199=0,0,$AB199)),P199*$AA199),0) -> 0 | AF199: 0 | AG199: 0 | AH199: 0 | AI199: 0 | AJ199: 0 | AK199: 0 | AL199: 0 | AM199: 0 | AN199: 0 | AO199: 0 | AQ199: =IF($K199=AQ$194,$Z199-$AO199,0) -> 0 | AR199: =IF(NOT($K199="Inkind"),$Z199-$AO199,0) -> 0 | AS199: =SUM(AQ199:AR199) -> 0
O200: 0 | P200: 0 | Q200: 0 | R200: 0 | S200: 0 | T200: 0 | U200: 0 | V200: 0 | W200: 0 | X200: 0 | Y200: 0 | Z200: 0 | AE200: 0 | AF200: 0 | AG200: 0 | AH200: 0 | AI200: 0 | AJ200: 0 | AK200: 0 | AL200: 0 | AM200: 0 | AN200: 0 | AO200: 0 | AQ200: 0 | AR200: 0 | AS200: 0
O201: 0 | P201: 0 | Q201: 0 | R201: 0 | S201: 0 | T201: 0 | U201: 0 | V201: 0 | W201: 0 | X201: 0 | Y201: 0 | Z201: 0 | AE201: 0 | AF201: 0 | AG201: 0 | AH201: 0 | AI201: 0 | AJ201: 0 | AK201: 0 | AL201: 0 | AM201: 0 | AN201: 0 | AO201: 0 | AQ201: 0 | AR201: 0 | AS201: 0
O202: 0 | P202: 0 | Q202: 0 | R202: 0 | S202: 0 | T202: 0 | U202: 0 | V202: 0 | W202: 0 | X202: 0 | Y202: 0 | Z202: 0 | AE202: 0 | AF202: 0 | AG202: 0 | AH202: 0 | AI202: 0 | AJ202: 0 | AK202: 0 | AL202: 0 | AM202: 0 | AN202: 0 | AO202: 0 | AQ202: 0 | AR202: 0 | AS202: 0
O203: 0 | P203: 0 | Q203: 0 | R203: 0 | S203: 0 | T203: 0 | U203: 0 | V203: 0 | W203: 0 | X203: 0 | Y203: 0 | Z203: 0 | AE203: 0 | AF203: 0 | AG203: 0 | AH203: 0 | AI203: 0 | AJ203: 0 | AK203: 0 | AL203: 0 | AM203: 0 | AN203: 0 | AO203: 0 | AQ203: 0 | AR203: 0 | AS203: 0
O204: 0 | P204: 0 | Q204: 0 | R204: 0 | S204: 0 | T204: 0 | U204: 0 | V204: 0 | W204: 0 | X204: 0 | Y204: 0 | Z204: 0 | AE204: 0 | AF204: 0 | AG204: 0 | AH204: 0 | AI204: 0 | AJ204: 0 | AK204: 0 | AL204: 0 | AM204: 0 | AN204: 0 | AO204: 0 | AQ204: 0 | AR204: 0 | AS204: 0
O205: 0 | P205: 0 | Q205: 0 | R205: 0 | S205: 0 | T205: 0 | U205: 0 | V205: 0 | W205: 0 | X205: 0 | Y205: 0 | Z205: 0 | AE205: 0 | AF205: 0 | AG205: 0 | AH205: 0 | AI205: 0 | AJ205: 0 | AK205: 0 | AL205: 0 | AM205: 0 | AN205: 0 | AO205: 0 | AQ205: 0 | AR205: 0 | AS205: 0
O206: 0 | P206: 0 | Q206: 0 | R206: 0 | S206: 0 | T206: 0 | U206: 0 | V206: 0 | W206: 0 | X206: 0 | Y206: 0 | Z206: 0 | AE206: 0 | AF206: 0 | AG206: 0 | AH206: 0 | AI206: 0 | AJ206: 0 | AK206: 0 | AL206: 0 | AM206: 0 | AN206: 0 | AO206: 0 | AQ206: 0 | AR206: 0 | AS206: 0
O207: 0 | P207: 0 | Q207: 0 | R207: 0 | S207: 0 | T207: 0 | U207: 0 | V207: 0 | W207: 0 | X207: 0 | Y207: 0 | Z207: =SUM(P207:V207) -> 0 | AE207: 0 | AF207: 0 | AG207: 0 | AH207: 0 | AI207: 0 | AJ207: 0 | AK207: 0 | AL207: 0 | AM207: 0 | AN207: 0 | AO207: =SUM(AE207:AN207) -> 0 | AQ207: 0 | AR207: 0 | AS207: =SUM(AQ207:AR207) -> 0
O208: 0 | P208: 0 | Q208: 0 | R208: 0 | S208: 0 | T208: 0 | U208: 0 | V208: 0 | W208: 0 | X208: 0 | Y208: 0 | Z208: 0 | AE208: 0 | AF208: 0 | AG208: 0 | AH208: 0 | AI208: 0 | AJ208: 0 | AK208: 0 | AL208: 0 | AM208: 0 | AN208: 0 | AO208: 0 | AQ208: 0 | AR208: 0 | AS208: 0
O209: 0 | P209: 0 | Q209: 0 | R209: 0 | S209: 0 | T209: 0 | U209: 0 | V209: 0 | W209: 0 | X209: 0 | Y209: 0 | Z209: 0 | AE209: 0 | AF209: 0 | AG209: 0 | AH209: 0 | AI209: 0 | AJ209: 0 | AK209: 0 | AL209: 0 | AM209: 0 | AN209: 0 | AO209: 0 | AQ209: 0 | AR209: 0 | AS209: 0
O210: 0 | P210: 0 | Q210: 0 | R210: 0 | S210: 0 | T210: 0 | U210: 0 | V210: 0 | W210: 0 | X210: 0 | Y210: 0 | Z210: 0 | AE210: 0 | AF210: 0 | AG210: 0 | AH210: 0 | AI210: 0 | AJ210: 0 | AK210: 0 | AL210: 0 | AM210: 0 | AN210: 0 | AO210: 0 | AQ210: 0 | AR210: 0 | AS210: 0
O211: 0 | P211: 0 | Q211: 0 | R211: 0 | S211: 0 | T211: 0 | U211: 0 | V211: 0 | W211: 0 | X211: 0 | Y211: 0 | Z211: 0 | AE211: 0 | AF211: 0 | AG211: 0 | AH211: 0 | AI211: 0 | AJ211: 0 | AK211: 0 | AL211: 0 | AM211: 0 | AN211: 0 | AO211: 0 | AQ211: 0 | AR211: 0 | AS211: 0
O212: 0 | P212: 0 | Q212: 0 | R212: 0 | S212: 0 | T212: 0 | U212: 0 | V212: 0 | W212: 0 | X212: 0 | Y212: 0 | Z212: 0 | AE212: 0 | AF212: 0 | AG212: 0 | AH212: 0 | AI212: 0 | AJ212: 0 | AK212: 0 | AL212: 0 | AM212: 0 | AN212: 0 | AO212: 0 | AQ212: 0 | AR212: 0 | AS212: 0
F213: Total Scholarship/Stipend Costs | P213: =SUM(P198:P212) -> 0 | Q213: =SUM(Q198:Q212) -> 0 | R213: 0 | S213: 0 | T213: 0 | U213: 0 | V213: 0 | W213: 0 | X213: 0 | Y213: 0 | Z213: 0 | AE213: =SUM(AE198:AE212) -> 0 | AF213: =SUM(AF198:AF212) -> 0 | AG213: 0 | AH213: 0 | AI213: 0 | AJ213: 0 | AK213: 0 | AL213: 0 | AM213: 0 | AN213: 0 | AO213: 0 | AQ213: 0 | AR213: 0 | AS213: 0
F215: Travel Expenses
F216: Destination & Type of Travel | I216: Purpose | J216: Funding Source | K216: Year | L216: Airfares | M216: Accommodation | N216: Meals / Incidentals | O216: Other | P216: Project Costing | AE216: Project Pricing (Direct) | AQ216: Inkind & Ineligible Expenses
P217: =P$63 -> Year 1 | Q217: Year 2 | R217: Year 3 | S217: Year 4 | T217: Year 5 | U217: Year 6 | V217: Year 7 | W217: Year 8 | X217: Year 9 | Y217: Year 10 | Z217: Total Project Cost (Direct) | AA217: % included in Project Pricing | AB217: Amount included in Project Pricing | AC217: =AC$63 -> Reason for the cost not being fully funded by the sponsor | AE217: =AE$63 -> Year 1 | AF217: Year 2 | AG217: Year 3 | AH217: Year 4 | AI217: Year 5 | AJ217: Year 6 | AK217: Year 7 | AL217: Year 8 | AM217: Year 9 | AN217: Year 10 | AO217: Total | AQ217: =AQ$63 -> Inkind | AR217: =AR$63 -> Ineligible Expense | AS217: =AS$63 -> Total
... 71 more rows

Sheet Salary Detail (hidden)
O2: User Input | T2: Start Year | X2: End Year
O3: Start Month | P3: Start Year | Q3: End Month | R3: End Year | T3: No. of months remaining | U3: No. of months to June | V3: No. of months from July to end of yr | X3: No. of months remaining | Y3: No. of months to June | Z3: No. of months from July to end of yr
C4: Classification Level | D4: =IFERROR(IF(AND(D8>=$P9,D8<=$R9),VLOOKUP('ENTER DETAILS HERE_Costing Tab'!$H$67,'Master Data'!$X$5:$Z$73,2,FALSE),""),"") ->  | E4: =IFERROR(IF(AND(E8>=$P9,E8<=$R9),VLOOKUP('ENTER DETAILS HERE_Costing Tab'!$H$67,'Master Data'!$X$5:$Z$73,2,FALSE),""),"") ->  | F4: =IFERROR(IF(AND(F8>=$P9,F8<=$R9),VLOOKUP('ENTER DETAILS HERE_Costing Tab'!$H$67,'Master Data'!$X$5:$Z$73,2,FALSE),""),"") ->  | G4: =IFERROR(IF(AND(G8>=$P9,G8<=$R9),VLOOKUP('ENTER DETAILS HERE_Costing Tab'!$H$67,'Master Data'!$X$5:$Z$73,2,FALSE),""),"") ->  | H4: =IFERROR(IF(AND(H8>=$P9,H8<=$R9),VLOOKUP('ENTER DETAILS HERE_Costing Tab'!$H$67,'Master Data'!$X$5:$Z$73,2,FALSE),""),"") ->  | I4: =IFERROR(IF(AND(I8>=$P9,I8<=$R9),VLOOKUP('ENTER DETAILS HERE_Costing Tab'!$H$67,'Master Data'!$X$5:$Z$73,2,FALSE),""),"") ->  | J4: =IFERROR(IF(AND(J8>=$P9,J8<=$R9),VLOOKUP('ENTER DETAILS HERE_Costing Tab'!$H$67,'Master Data'!$X$5:$Z$73,2,FALSE),""),"") ->  | K4: =IFERROR(IF(AND(K8>=$P9,K8<=$R9),VLOOKUP('ENTER DETAILS HERE_Costing Tab'!$H$67,'Master Data'!$X$5:$Z$73,2,FALSE),""),"") ->  | L4: =IFERROR(IF(AND(L8>=$P9,L8<=$R9),VLOOKUP('ENTER DETAILS HERE_Costing Tab'!$H$67,'Master Data'!$X$5:$Z$73,2,FALSE),""),"") ->  | M4: =IFERROR(IF(AND(M8>=$P9,M8<=$R9),VLOOKUP('ENTER DETAILS HERE_Costing Tab'!$H$67,'Master Data'!$X$5:$Z$73,2,FALSE),""),"") -> 
C5: Step | D5: =IFERROR( IF(AND(D8>=$P9,D8<=$R9), IF(D8=$P9,VLOOKUP('ENTER DETAILS HERE_Costing Tab'!$H$67,'Master Data'!$X$5:$Z$73,3,FALSE), IF(C5+1>VLOOKUP(D4,Max_Step,2,FALSE),VLOOKUP(D4,Max_Step,2,FALSE),C5+1)),""),"") ->  | E5: =IFERROR( IF(AND(E8>=$P9,E8<=$R9), IF(E8=$P9,VLOOKUP('ENTER DETAILS HERE_Costing Tab'!$H$67,'Master Data'!$X$5:$Z$73,3,FALSE), IF(D5+1>VLOOKUP(E4,Max_Step,2,FALSE),VLOOKUP(E4,Max_Step,2,FALSE),D5+1)),""),"") ->  | F5: =IFERROR( IF(AND(F8>=$P9,F8<=$R9), IF(F8=$P9,VLOOKUP('ENTER DETAILS HERE_Costing Tab'!$H$67,'Master Data'!$X$5:$Z$73,3,FALSE), IF(E5+1>VLOOKUP(F4,Max_Step,2,FALSE),VLOOKUP(F4,Max_Step,2,FALSE),E5+1)),""),"") ->  | G5: =IFERROR( IF(AND(G8>=$P9,G8<=$R9), IF(G8=$P9,VLOOKUP('ENTER DETAILS HERE_Costing Tab'!$H$67,'Master Data'!$X$5:$Z$73,3,FALSE), IF(F5+1>VLOOKUP(G4,Max_Step,2,FALSE),VLOOKUP(G4,Max_Step,2,FALSE),F5+1)),""),"") ->  | H5: =IFERROR( IF(AND(H8>=$P9,H8<=$R9), IF(H8=$P9,VLOOKUP('ENTER DETAILS HERE_Costing Tab'!$H$67,'Master Data'!$X$5:$Z$73,3,FALSE), IF(G5+1>VLOOKUP(H4,Max_Step,2,FALSE),VLOOKUP(H4,Max_Step,2,FALSE),G5+1)),""),"") ->  | I5: =IFERROR( IF(AND(I8>=$P9,I8<=$R9), IF(I8=$P9,VLOOKUP('ENTER DETAILS HERE_Costing Tab'!$H$67,'Master Data'!$X$5:$Z$73,3,FALSE), IF(H5+1>VLOOKUP(I4,Max_Step,2,FALSE),VLOOKUP(I4,Max_Step,2,FALSE),H5+1)),""),"") ->  | J5: =IFERROR( IF(AND(J8>=$P9,J8<=$R9), IF(J8=$P9,VLOOKUP('ENTER DETAILS HERE_Costing Tab'!$H$67,'Master Data'!$X$5:$Z$73,3,FALSE), IF(I5+1>VLOOKUP(J4,Max_Step,2,FALSE),VLOOKUP(J4,Max_Step,2,FALSE),I5+1)),""),"") ->  | K5: =IFERROR( IF(AND(K8>=$P9,K8<=$R9), IF(K8=$P9,VLOOKUP('ENTER DETAILS HERE_Costing Tab'!$H$67,'Master Data'!$X$5:$Z$73,3,FALSE), IF(J5+1>VLOOKUP(K4,Max_Step,2,FALSE),VLOOKUP(K4,Max_Step,2,FALSE),J5+1)),""),"") ->  | L5: =IFERROR( IF(AND(L8>=$P9,L8<=$R9), IF(L8=$P9,VLOOKUP('ENTER DETAILS HERE_Costing Tab'!$H$67,'Master Data'!$X$5:$Z$73,3,FALSE), IF(K5+1>VLOOKUP(L4,Max_Step,2,FALSE),VLOOKUP(L4,Max_Step,2,FALSE),K5+1)),""),"") ->  | M5: =IFERROR( IF(AND(M8>=$P9,M8<=$R9), IF(M8=$P9,VLOOKUP('ENTER DETAILS HERE_Costing Tab'!$H$67,'Master Data'!$X$5:$Z$73,3,FALSE), IF(L5+1>VLOOKUP(M4,Max_Step,2,FALSE),VLOOKUP(M4,Max_Step,2,FALSE),L5+1)),""),"") -> 
C6: Level & Step | D6: =IF(D4="Level E",D4,IF(D4="Senior Manager",D4&" "&D5,D4&"-"&D5)) -> - | E6: =IF(E4="Level E",E4,IF(E4="Senior Manager",E4&" "&E5,E4&"-"&E5)) -> - | F6: - | G6: - | H6: - | I6: - | J6: - | K6: - | L6: - | M6: -
C7: FTE | D7: =IF(D8="",0,IF(AND(D8>=$P9,D8<=$R9),'ENTER DETAILS HERE_Costing Tab'!$N$67,0)) -> 0 | E7: =IF(E8="",0,IF(AND(E8>=$P9,E8<=$R9),'ENTER DETAILS HERE_Costing Tab'!$N$67,0)) -> 0 | F7: =IF(F8="",0,IF(AND(F8>=$P9,F8<=$R9),'ENTER DETAILS HERE_Costing Tab'!$N$67,0)) -> 0 | G7: =IF(G8="",0,IF(AND(G8>=$P9,G8<=$R9),'ENTER DETAILS HERE_Costing Tab'!$N$67,0)) -> 0 | H7: =IF(H8="",0,IF(AND(H8>=$P9,H8<=$R9),'ENTER DETAILS HERE_Costing Tab'!$N$67,0)) -> 0 | I7: =IF(I8="",0,IF(AND(I8>=$P9,I8<=$R9),'ENTER DETAILS HERE_Costing Tab'!$N$67,0)) -> 0 | J7: =IF(J8="",0,IF(AND(J8>=$P9,J8<=$R9),'ENTER DETAILS HERE_Costing Tab'!$N$67,0)) -> 0 | K7: =IF(K8="",0,IF(AND(K8>=$P9,K8<=$R9),'ENTER DETAILS HERE_Costing Tab'!$N$67,0)) -> 0 | L7: =IF(L8="",0,IF(AND(L8>=$P9,L8<=$R9),'ENTER DETAILS HERE_Costing Tab'!$N$67,0)) -> 0 | M7: =IF(M8="",0,IF(AND(M8>=$P9,M8<=$R9),'ENTER DETAILS HERE_Costing Tab'!$N$67,0)) -> 0
B8: 1 | D8: ='ENTER DETAILS HERE_Costing Tab'!$P$64 -> 1900 | E8: ='ENTER DETAILS HERE_Costing Tab'!$Q$64 ->  | F8: ='ENTER DETAILS HERE_Costing Tab'!$R$64 ->  | G8: ='ENTER DETAILS HERE_Costing Tab'!$S$64 ->  | H8: ='ENTER DETAILS HERE_Costing Tab'!$T$64 ->  | I8: ='ENTER DETAILS HERE_Costing Tab'!$U$64 ->  | J8: ='ENTER DETAILS HERE_Costing Tab'!$V$64 ->  | K8: ='ENTER DETAILS HERE_Costing Tab'!$W$64 ->  | L8: ='ENTER DETAILS HERE_Costing Tab'!$X$64 ->  | M8: ='ENTER DETAILS HERE_Costing Tab'!$Y$64 -> 
C9: Base Salary | D9: =IFERROR( IF(AND(D8>=$P9,D8<=$R9), IF(D8=$P9,(INDEX(Cont_FT_Salaries,MATCH(D6,Cont_FT_Levels,0),MATCH(D8-1,Cont_FT_Years,0))*$U9/12+INDEX(Cont_FT_Salaries,MATCH(D6,Cont_FT_Levels,0),MATCH(D8,Cont_FT_Years,0))*$V9/12), IF(D8=$R9,(INDEX(Cont_FT_Salaries,MATCH(D6,Cont_FT_Levels,0),MATCH(D8-1,Cont_FT_Years,0))*$Y9/12+INDEX(Cont_FT_Salaries,MATCH(D6,Cont_FT_Levels,0),MATCH(D8,Cont_FT_Years,0))*$Z9/12), (INDEX(Cont_FT_Salaries,MATCH(D6,Cont_FT_Levels,0),MATCH(D8-1,Cont_FT_Years,0))/2+INDEX(Cont_FT_Salaries,MATCH(D6,Cont_FT_Levels,0),MATCH(D8,Cont_FT_Years,0))/2) )),0),0)*D7 -> 0 | E9: 0 | F9: 0 | G9: 0 | H9: 0 | I9: 0 | J9: 0 | K9: 0 | L9: 0 | M9: 0 | O9: =IFERROR(VLOOKUP('ENTER DETAILS HERE_Costing Tab'!$J$67,'Master Data'!$AW$5:$AX$16,2,FALSE),0) -> 0 | P9: ='ENTER DETAILS HERE_Costing Tab'!$K$67 -> 0 | Q9: =IFERROR(VLOOKUP('ENTER DETAILS HERE_Costing Tab'!$L$67,'Master Data'!$AW$5:$AX$16,2,FALSE),0) -> 0 | R9: ='ENTER DETAILS HERE_Costing Tab'!$M$67 -> 0 | T9: =IFERROR( IF(ISBLANK($P9),0, IF($P9=$R9,$Q9-$O9+1,VLOOKUP($O9,'Master Data'!$AX$5:$BA$16,2,FALSE))),0) -> 1 | U9: =IFERROR( IF(VLOOKUP($O9,'Master Data'!$AX$5:$BA$16,3,FALSE)>$T9,$T9,VLOOKUP($O9,'Master Data'!$AX$5:$BA$16,3,FALSE)),0) -> 0 | V9: =T9-U9 -> 1 | X9: =IF($P9=$R9,0,Q9) -> 0 | Y9: =IF($X9=0,0,VLOOKUP($X9,'Master Data'!$AX$5:$BA$16,4,FALSE)) -> 0 | Z9: =X9-Y9 -> 0
C10: Loadings | D10: =IF(AND(D8>=$P9,D8<=$R9), IF(D8=$P9,'ENTER DETAILS HERE_Costing Tab'!$O$67*$T9/12, IF(D8=$R9,'ENTER DETAILS HERE_Costing Tab'!$O$67*$X9/12, 'ENTER DETAILS HERE_Costing Tab'!$O$67)),0) -> 0 | E10: =IF(AND(E8>=$P9,E8<=$R9), IF(E8=$P9,'ENTER DETAILS HERE_Costing Tab'!$O$67*$T9/12, IF(E8=$R9,'ENTER DETAILS HERE_Costing Tab'!$O$67*$X9/12, 'ENTER DETAILS HERE_Costing Tab'!$O$67)),0) -> 0 | F10: =IF(AND(F8>=$P9,F8<=$R9), IF(F8=$P9,'ENTER DETAILS HERE_Costing Tab'!$O$67*$T9/12, IF(F8=$R9,'ENTER DETAILS HERE_Costing Tab'!$O$67*$X9/12, 'ENTER DETAILS HERE_Costing Tab'!$O$67)),0) -> 0 | G10: =IF(AND(G8>=$P9,G8<=$R9), IF(G8=$P9,'ENTER DETAILS HERE_Costing Tab'!$O$67*$T9/12, IF(G8=$R9,'ENTER DETAILS HERE_Costing Tab'!$O$67*$X9/12, 'ENTER DETAILS HERE_Costing Tab'!$O$67)),0) -> 0 | H10: =IF(AND(H8>=$P9,H8<=$R9), IF(H8=$P9,'ENTER DETAILS HERE_Costing Tab'!$O$67*$T9/12, IF(H8=$R9,'ENTER DETAILS HERE_Costing Tab'!$O$67*$X9/12, 'ENTER DETAILS HERE_Costing Tab'!$O$67)),0) -> 0 | I10: =IF(AND(I8>=$P9,I8<=$R9), IF(I8=$P9,'ENTER DETAILS HERE_Costing Tab'!$O$67*$T9/12, IF(I8=$R9,'ENTER DETAILS HERE_Costing Tab'!$O$67*$X9/12, 'ENTER DETAILS HERE_Costing Tab'!$O$67)),0) -> 0 | J10: =IF(AND(J8>=$P9,J8<=$R9), IF(J8=$P9,'ENTER DETAILS HERE_Costing Tab'!$O$67*$T9/12, IF(J8=$R9,'ENTER DETAILS HERE_Costing Tab'!$O$67*$X9/12, 'ENTER DETAILS HERE_Costing Tab'!$O$67)),0) -> 0 | K10: =IF(AND(K8>=$P9,K8<=$R9), IF(K8=$P9,'ENTER DETAILS HERE_Costing Tab'!$O$67*$T9/12, IF(K8=$R9,'ENTER DETAILS HERE_Costing Tab'!$O$67*$X9/12, 'ENTER DETAILS HERE_Costing Tab'!$O$67)),0) -> 0 | L10: =IF(AND(L8>=$P9,L8<=$R9), IF(L8=$P9,'ENTER DETAILS HERE_Costing Tab'!$O$67*$T9/12, IF(L8=$R9,'ENTER DETAILS HERE_Costing Tab'!$O$67*$X9/12, 'ENTER DETAILS HERE_Costing Tab'!$O$67)),0) -> 0 | M10: =IF(AND(M8>=$P9,M8<=$R9), IF(M8=$P9,'ENTER DETAILS HERE_Costing Tab'!$O$67*$T9/12, IF(M8=$R9,'ENTER DETAILS HERE_Costing Tab'!$O$67*$X9/12, 'ENTER DETAILS HERE_Costing Tab'!$O$67)),0) -> 0
C11: AL Loading | D11: =IF(SUM(D9:D10)*'Master Data'!$BH$8>Max_AL_loading,Max_AL_loading,SUM(D9:D10)*'Master Data'!$BH$8) -> 0 | E11: =IF(SUM(E9:E10)*'Master Data'!$BH$8>Max_AL_loading,Max_AL_loading,SUM(E9:E10)*'Master Data'!$BH$8) -> 0 | F11: =IF(SUM(F9:F10)*'Master Data'!$BH$8>Max_AL_loading,Max_AL_loading,SUM(F9:F10)*'Master Data'!$BH$8) -> 0 | G11: =IF(SUM(G9:G10)*'Master Data'!$BH$8>Max_AL_loading,Max_AL_loading,SUM(G9:G10)*'Master Data'!$BH$8) -> 0 | H11: =IF(SUM(H9:H10)*'Master Data'!$BH$8>Max_AL_loading,Max_AL_loading,SUM(H9:H10)*'Master Data'!$BH$8) -> 0 | I11: =IF(SUM(I9:I10)*'Master Data'!$BH$8>Max_AL_loading,Max_AL_loading,SUM(I9:I10)*'Master Data'!$BH$8) -> 0 | J11: =IF(SUM(J9:J10)*'Master Data'!$BH$8>Max_AL_loading,Max_AL_loading,SUM(J9:J10)*'Master Data'!$BH$8) -> 0 | K11: =IF(SUM(K9:K10)*'Master Data'!$BH$8>Max_AL_loading,Max_AL_loading,SUM(K9:K10)*'Master Data'!$BH$8) -> 0 | L11: =IF(SUM(L9:L10)*'Master Data'!$BH$8>Max_AL_loading,Max_AL_loading,SUM(L9:L10)*'Master Data'!$BH$8) -> 0 | M11: =IF(SUM(M9:M10)*'Master Data'!$BH$8>Max_AL_loading,Max_AL_loading,SUM(M9:M10)*'Master Data'!$BH$8) -> 0
C12: Super | D12: =SUM(D9,D11)*'Master Data'!$BH$7 -> 0 | E12: =SUM(E9,E11)*'Master Data'!$BH$7 -> 0 | F12: =SUM(F9,F11)*'Master Data'!$BH$7 -> 0 | G12: =SUM(G9,G11)*'Master Data'!$BH$7 -> 0 | H12: =SUM(H9,H11)*'Master Data'!$BH$7 -> 0 | I12: =SUM(I9,I11)*'Master Data'!$BH$7 -> 0 | J12: =SUM(J9,J11)*'Master Data'!$BH$7 -> 0 | K12: =SUM(K9,K11)*'Master Data'!$BH$7 -> 0 | L12: =SUM(L9,L11)*'Master Data'!$BH$7 -> 0 | M12: =SUM(M9,M11)*'Master Data'!$BH$7 -> 0
C13: LSL | D13: =SUM(D9:D10)*'Master Data'!$BH$5 -> 0 | E13: =SUM(E9:E10)*'Master Data'!$BH$5 -> 0 | F13: =SUM(F9:F10)*'Master Data'!$BH$5 -> 0 | G13: =SUM(G9:G10)*'Master Data'!$BH$5 -> 0 | H13: =SUM(H9:H10)*'Master Data'!$BH$5 -> 0 | I13: =SUM(I9:I10)*'Master Data'!$BH$5 -> 0 | J13: =SUM(J9:J10)*'Master Data'!$BH$5 -> 0 | K13: =SUM(K9:K10)*'Master Data'!$BH$5 -> 0 | L13: =SUM(L9:L10)*'Master Data'!$BH$5 -> 0 | M13: =SUM(M9:M10)*'Master Data'!$BH$5 -> 0
C14: Payroll | D14: =SUM(D9:D12)*'Master Data'!$BH$6 -> 0 | E14: =SUM(E9:E12)*'Master Data'!$BH$6 -> 0 | F14: =SUM(F9:F12)*'Master Data'!$BH$6 -> 0 | G14: =SUM(G9:G12)*'Master Data'!$BH$6 -> 0 | H14: =SUM(H9:H12)*'Master Data'!$BH$6 -> 0 | I14: =SUM(I9:I12)*'Master Data'!$BH$6 -> 0 | J14: =SUM(J9:J12)*'Master Data'!$BH$6 -> 0 | K14: =SUM(K9:K12)*'Master Data'!$BH$6 -> 0 | L14: =SUM(L9:L12)*'Master Data'!$BH$6 -> 0 | M14: =SUM(M9:M12)*'Master Data'!$BH$6 -> 0
C15: Workcover | D15: =SUM(D9:D12)*'Master Data'!$BH$9 -> 0 | E15: =SUM(E9:E12)*'Master Data'!$BH$9 -> 0 | F15: =SUM(F9:F12)*'Master Data'!$BH$9 -> 0 | G15: =SUM(G9:G12)*'Master Data'!$BH$9 -> 0 | H15: =SUM(H9:H12)*'Master Data'!$BH$9 -> 0 | I15: =SUM(I9:I12)*'Master Data'!$BH$9 -> 0 | J15: =SUM(J9:J12)*'Master Data'!$BH$9 -> 0 | K15: =SUM(K9:K12)*'Master Data'!$BH$9 -> 0 | L15: =SUM(L9:L12)*'Master Data'!$BH$9 -> 0 | M15: =SUM(M9:M12)*'Master Data'!$BH$9 -> 0
C16: Additional Contributions | D16: =D9*'Master Data'!$BH$10 -> 0 | E16: =E9*'Master Data'!$BH$10 -> 0 | F16: =F9*'Master Data'!$BH$10 -> 0 | G16: =G9*'Master Data'!$BH$10 -> 0 | H16: =H9*'Master Data'!$BH$10 -> 0 | I16: =I9*'Master Data'!$BH$10 -> 0 | J16: =J9*'Master Data'!$BH$10 -> 0 | K16: =K9*'Master Data'!$BH$10 -> 0 | L16: =L9*'Master Data'!$BH$10 -> 0 | M16: =M9*'Master Data'!$BH$10 -> 0
C17: Total Salary | D17: =SUM(D9:D16) -> 0 | E17: 0 | F17: 0 | G17: 0 | H17: 0 | I17: 0 | J17: 0 | K17: 0 | L17: 0 | M17: 0
C19: Classification Level | D19: =IFERROR(IF(AND(D23>=$P24,D23<=$R24),VLOOKUP('ENTER DETAILS HERE_Costing Tab'!$H$68,'Master Data'!$X$5:$Z$73,2,FALSE),""),"") ->  | E19: =IFERROR(IF(AND(E23>=$P24,E23<=$R24),VLOOKUP('ENTER DETAILS HERE_Costing Tab'!$H$68,'Master Data'!$X$5:$Z$73,2,FALSE),""),"") ->  | F19: =IFERROR(IF(AND(F23>=$P24,F23<=$R24),VLOOKUP('ENTER DETAILS HERE_Costing Tab'!$H$68,'Master Data'!$X$5:$Z$73,2,FALSE),""),"") ->  | G19: =IFERROR(IF(AND(G23>=$P24,G23<=$R24),VLOOKUP('ENTER DETAILS HERE_Costing Tab'!$H$68,'Master Data'!$X$5:$Z$73,2,FALSE),""),"") ->  | H19: =IFERROR(IF(AND(H23>=$P24,H23<=$R24),VLOOKUP('ENTER DETAILS HERE_Costing Tab'!$H$68,'Master Data'!$X$5:$Z$73,2,FALSE),""),"") ->  | I19: =IFERROR(IF(AND(I23>=$P24,I23<=$R24),VLOOKUP('ENTER DETAILS HERE_Costing Tab'!$H$68,'Master Data'!$X$5:$Z$73,2,FALSE),""),"") ->  | J19: =IFERROR(IF(AND(J23>=$P24,J23<=$R24),VLOOKUP('ENTER DETAILS HERE_Costing Tab'!$H$68,'Master Data'!$X$5:$Z$73,2,FALSE),""),"") ->  | K19: =IFERROR(IF(AND(K23>=$P24,K23<=$R24),VLOOKUP('ENTER DETAILS HERE_Costing Tab'!$H$68,'Master Data'!$X$5:$Z$73,2,FALSE),""),"") ->  | L19: =IFERROR(IF(AND(L23>=$P24,L23<=$R24),VLOOKUP('ENTER DETAILS HERE_Costing Tab'!$H$68,'Master Data'!$X$5:$Z$73,2,FALSE),""),"") ->  | M19: =IFERROR(IF(AND(M23>=$P24,M23<=$R24),VLOOKUP('ENTER DETAILS HERE_Costing Tab'!$H$68,'Master Data'!$X$5:$Z$73,2,FALSE),""),"") -> 
C20: Step | D20: =IFERROR( IF(AND(D23>=$P24,D23<=$R24), IF(D23=$P24,VLOOKUP('ENTER DETAILS HERE_Costing Tab'!$H$68,'Master Data'!$X$5:$Z$73,3,FALSE), IF(C20+1>VLOOKUP(D19,Max_Step,2,FALSE),VLOOKUP(D19,Max_Step,2,FALSE),C20+1)),""),"") ->  | E20: =IFERROR( IF(AND(E23>=$P24,E23<=$R24), IF(E23=$P24,VLOOKUP('ENTER DETAILS HERE_Costing Tab'!$H$68,'Master Data'!$X$5:$Z$73,3,FALSE), IF(D20+1>VLOOKUP(E19,Max_Step,2,FALSE),VLOOKUP(E19,Max_Step,2,FALSE),D20+1)),""),"") ->  | F20: =IFERROR( IF(AND(F23>=$P24,F23<=$R24), IF(F23=$P24,VLOOKUP('ENTER DETAILS HERE_Costing Tab'!$H$68,'Master Data'!$X$5:$Z$73,3,FALSE), IF(E20+1>VLOOKUP(F19,Max_Step,2,FALSE),VLOOKUP(F19,Max_Step,2,FALSE),E20+1)),""),"") ->  | G20: =IFERROR( IF(AND(G23>=$P24,G23<=$R24), IF(G23=$P24,VLOOKUP('ENTER DETAILS HERE_Costing Tab'!$H$68,'Master Data'!$X$5:$Z$73,3,FALSE), IF(F20+1>VLOOKUP(G19,Max_Step,2,FALSE),VLOOKUP(G19,Max_Step,2,FALSE),F20+1)),""),"") ->  | H20: =IFERROR( IF(AND(H23>=$P24,H23<=$R24), IF(H23=$P24,VLOOKUP('ENTER DETAILS HERE_Costing Tab'!$H$68,'Master Data'!$X$5:$Z$73,3,FALSE), IF(G20+1>VLOOKUP(H19,Max_Step,2,FALSE),VLOOKUP(H19,Max_Step,2,FALSE),G20+1)),""),"") ->  | I20: =IFERROR( IF(AND(I23>=$P24,I23<=$R24), IF(I23=$P24,VLOOKUP('ENTER DETAILS HERE_Costing Tab'!$H$68,'Master Data'!$X$5:$Z$73,3,FALSE), IF(H20+1>VLOOKUP(I19,Max_Step,2,FALSE),VLOOKUP(I19,Max_Step,2,FALSE),H20+1)),""),"") ->  | J20: =IFERROR( IF(AND(J23>=$P24,J23<=$R24), IF(J23=$P24,VLOOKUP('ENTER DETAILS HERE_Costing Tab'!$H$68,'Master Data'!$X$5:$Z$73,3,FALSE), IF(I20+1>VLOOKUP(J19,Max_Step,2,FALSE),VLOOKUP(J19,Max_Step,2,FALSE),I20+1)),""),"") ->  | K20: =IFERROR( IF(AND(K23>=$P24,K23<=$R24), IF(K23=$P24,VLOOKUP('ENTER DETAILS HERE_Costing Tab'!$H$68,'Master Data'!$X$5:$Z$73,3,FALSE), IF(J20+1>VLOOKUP(K19,Max_Step,2,FALSE),VLOOKUP(K19,Max_Step,2,FALSE),J20+1)),""),"") ->  | L20: =IFERROR( IF(AND(L23>=$P24,L23<=$R24), IF(L23=$P24,VLOOKUP('ENTER DETAILS HERE_Costing Tab'!$H$68,'Master Data'!$X$5:$Z$73,3,FALSE), IF(K20+1>VLOOKUP(L19,Max_Step,2,FALSE),VLOOKUP(L19,Max_Step,2,FALSE),K20+1)),""),"") ->  | M20: =IFERROR( IF(AND(M23>=$P24,M23<=$R24), IF(M23=$P24,VLOOKUP('ENTER DETAILS HERE_Costing Tab'!$H$68,'Master Data'!$X$5:$Z$73,3,FALSE), IF(L20+1>VLOOKUP(M19,Max_Step,2,FALSE),VLOOKUP(M19,Max_Step,2,FALSE),L20+1)),""),"") -> 
C21: Level & Step | D21: =IF(D19="Level E",D19,IF(D19="Senior Manager",D19&" "&D20,D19&"-"&D20)) -> - | E21: =IF(E19="Level E",E19,IF(E19="Senior Manager",E19&" "&E20,E19&"-"&E20)) -> - | F21: - | G21: - | H21: - | I21: - | J21: - | K21: - | L21: - | M21: -
C22: FTE | D22: =IF(D23="",0,IF(AND(D23>=$P24,D23<=$R24),'ENTER DETAILS HERE_Costing Tab'!$N$68,0)) -> 0 | E22: =IF(E23="",0,IF(AND(E23>=$P24,E23<=$R24),'ENTER DETAILS HERE_Costing Tab'!$N$68,0)) -> 0 | F22: =IF(F23="",0,IF(AND(F23>=$P24,F23<=$R24),'ENTER DETAILS HERE_Costing Tab'!$N$68,0)) -> 0 | G22: =IF(G23="",0,IF(AND(G23>=$P24,G23<=$R24),'ENTER DETAILS HERE_Costing Tab'!$N$68,0)) -> 0 | H22: =IF(H23="",0,IF(AND(H23>=$P24,H23<=$R24),'ENTER DETAILS HERE_Costing Tab'!$N$68,0)) -> 0 | I22: =IF(I23="",0,IF(AND(I23>=$P24,I23<=$R24),'ENTER DETAILS HERE_Costing Tab'!$N$68,0)) -> 0 | J22: =IF(J23="",0,IF(AND(J23>=$P24,J23<=$R24),'ENTER DETAILS HERE_Costing Tab'!$N$68,0)) -> 0 | K22: =IF(K23="",0,IF(AND(K23>=$P24,K23<=$R24),'ENTER DETAILS HERE_Costing Tab'!$N$68,0)) -> 0 | L22: =IF(L23="",0,IF(AND(L23>=$P24,L23<=$R24),'ENTER DETAILS HERE_Costing Tab'!$N$68,0)) -> 0 | M22: =IF(M23="",0,IF(AND(M23>=$P24,M23<=$R24),'ENTER DETAILS HERE_Costing Tab'!$N$68,0)) -> 0
B23: 2 | D23: ='ENTER DETAILS HERE_Costing Tab'!$P$64 -> 1900 | E23: ='ENTER DETAILS HERE_Costing Tab'!$Q$64 ->  | F23: ='ENTER DETAILS HERE_Costing Tab'!$R$64 ->  | G23: ='ENTER DETAILS HERE_Costing Tab'!$S$64 ->  | H23: ='ENTER DETAILS HERE_Costing Tab'!$T$64 ->  | I23: ='ENTER DETAILS HERE_Costing Tab'!$U$64 ->  | J23: ='ENTER DETAILS HERE_Costing Tab'!$V$64 ->  | K23: ='ENTER DETAILS HERE_Costing Tab'!$W$64 ->  | L23: ='ENTER DETAILS HERE_Costing Tab'!$X$64 ->  | M23: ='ENTER DETAILS HERE_Costing Tab'!$Y$64 -> 
C24: Base Salary | D24: =IFERROR( IF(AND(D23>=$P24,D23<=$R24), IF(D23=$P24,(INDEX(Cont_FT_Salaries,MATCH(D21,Cont_FT_Levels,0),MATCH(D23-1,Cont_FT_Years,0))*$U24/12+INDEX(Cont_FT_Salaries,MATCH(D21,Cont_FT_Levels,0),MATCH(D23,Cont_FT_Years,0))*$V24/12), IF(D23=$R24,(INDEX(Cont_FT_Salaries,MATCH(D21,Cont_FT_Levels,0),MATCH(D23-1,Cont_FT_Years,0))*$Y24/12+INDEX(Cont_FT_Salaries,MATCH(D21,Cont_FT_Levels,0),MATCH(D23,Cont_FT_Years,0))*$Z24/12), (INDEX(Cont_FT_Salaries,MATCH(D21,Cont_FT_Levels,0),MATCH(D23-1,Cont_FT_Years,0))/2+INDEX(Cont_FT_Salaries,MATCH(D21,Cont_FT_Levels,0),MATCH(D23,Cont_FT_Years,0))/2) )),0),0)*D22 -> 0 | E24: 0 | F24: 0 | G24: 0 | H24: 0 | I24: 0 | J24: 0 | K24: 0 | L24: 0 | M24: 0 | O24: =IFERROR(VLOOKUP('ENTER DETAILS HERE_Costing Tab'!$J$68,'Master Data'!$AW$5:$AX$16,2,FALSE),0) -> 0 | P24: ='ENTER DETAILS HERE_Costing Tab'!$K$68 -> 0 | Q24: =IFERROR(VLOOKUP('ENTER DETAILS HERE_Costing Tab'!$L$68,'Master Data'!$AW$5:$AX$16,2,FALSE),0) -> 0 | R24: ='ENTER DETAILS HERE_Costing Tab'!$M$68 -> 0 | T24: =IFERROR( IF(ISBLANK($P24),0, IF($P24=$R24,$Q24-$O24+1,VLOOKUP($O24,'Master Data'!$AX$5:$BA$16,2,FALSE))),0) -> 1 | U24: =IFERROR( IF(VLOOKUP($O24,'Master Data'!$AX$5:$BA$16,3,FALSE)>$T24,$T24,VLOOKUP($O24,'Master Data'!$AX$5:$BA$16,3,FALSE)),0) -> 0 | V24: =T24-U24 -> 1 | X24: =IF($P24=$R24,0,Q24) -> 0 | Y24: =IF($X24=0,0,VLOOKUP($X24,'Master Data'!$AX$5:$BA$16,4,FALSE)) -> 0 | Z24: =X24-Y24 -> 0
C25: Loadings | D25: =IF(AND(D23>=$P24,D23<=$R24), IF(D23=$P24,'ENTER DETAILS HERE_Costing Tab'!$O$68*$T24/12, IF(D23=$R24,'ENTER DETAILS HERE_Costing Tab'!$O$68*$X24/12, 'ENTER DETAILS HERE_Costing Tab'!$O$68)),0) -> 0 | E25: =IF(AND(E23>=$P24,E23<=$R24), IF(E23=$P24,'ENTER DETAILS HERE_Costing Tab'!$O$68*$T24/12, IF(E23=$R24,'ENTER DETAILS HERE_Costing Tab'!$O$68*$X24/12, 'ENTER DETAILS HERE_Costing Tab'!$O$68)),0) -> 0 | F25: =IF(AND(F23>=$P24,F23<=$R24), IF(F23=$P24,'ENTER DETAILS HERE_Costing Tab'!$O$68*$T24/12, IF(F23=$R24,'ENTER DETAILS HERE_Costing Tab'!$O$68*$X24/12, 'ENTER DETAILS HERE_Costing Tab'!$O$68)),0) -> 0 | G25: =IF(AND(G23>=$P24,G23<=$R24), IF(G23=$P24,'ENTER DETAILS HERE_Costing Tab'!$O$68*$T24/12, IF(G23=$R24,'ENTER DETAILS HERE_Costing Tab'!$O$68*$X24/12, 'ENTER DETAILS HERE_Costing Tab'!$O$68)),0) -> 0 | H25: =IF(AND(H23>=$P24,H23<=$R24), IF(H23=$P24,'ENTER DETAILS HERE_Costing Tab'!$O$68*$T24/12, IF(H23=$R24,'ENTER DETAILS HERE_Costing Tab'!$O$68*$X24/12, 'ENTER DETAILS HERE_Costing Tab'!$O$68)),0) -> 0 | I25: =IF(AND(I23>=$P24,I23<=$R24), IF(I23=$P24,'ENTER DETAILS HERE_Costing Tab'!$O$68*$T24/12, IF(I23=$R24,'ENTER DETAILS HERE_Costing Tab'!$O$68*$X24/12, 'ENTER DETAILS HERE_Costing Tab'!$O$68)),0) -> 0 | J25: =IF(AND(J23>=$P24,J23<=$R24), IF(J23=$P24,'ENTER DETAILS HERE_Costing Tab'!$O$68*$T24/12, IF(J23=$R24,'ENTER DETAILS HERE_Costing Tab'!$O$68*$X24/12, 'ENTER DETAILS HERE_Costing Tab'!$O$68)),0) -> 0 | K25: =IF(AND(K23>=$P24,K23<=$R24), IF(K23=$P24,'ENTER DETAILS HERE_Costing Tab'!$O$68*$T24/12, IF(K23=$R24,'ENTER DETAILS HERE_Costing Tab'!$O$68*$X24/12, 'ENTER DETAILS HERE_Costing Tab'!$O$68)),0) -> 0 | L25: =IF(AND(L23>=$P24,L23<=$R24), IF(L23=$P24,'ENTER DETAILS HERE_Costing Tab'!$O$68*$T24/12, IF(L23=$R24,'ENTER DETAILS HERE_Costing Tab'!$O$68*$X24/12, 'ENTER DETAILS HERE_Costing Tab'!$O$68)),0) -> 0 | M25: =IF(AND(M23>=$P24,M23<=$R24), IF(M23=$P24,'ENTER DETAILS HERE_Costing Tab'!$O$68*$T24/12, IF(M23=$R24,'ENTER DETAILS HERE_Costing Tab'!$O$68*$X24/12, 'ENTER DETAILS HERE_Costing Tab'!$O$68)),0) -> 0
C26: AL Loading | D26: =IF(SUM(D24:D25)*'Master Data'!$BH$8>Max_AL_loading,Max_AL_loading,SUM(D24:D25)*'Master Data'!$BH$8) -> 0 | E26: =IF(SUM(E24:E25)*'Master Data'!$BH$8>Max_AL_loading,Max_AL_loading,SUM(E24:E25)*'Master Data'!$BH$8) -> 0 | F26: =IF(SUM(F24:F25)*'Master Data'!$BH$8>Max_AL_loading,Max_AL_loading,SUM(F24:F25)*'Master Data'!$BH$8) -> 0 | G26: =IF(SUM(G24:G25)*'Master Data'!$BH$8>Max_AL_loading,Max_AL_loading,SUM(G24:G25)*'Master Data'!$BH$8) -> 0 | H26: =IF(SUM(H24:H25)*'Master Data'!$BH$8>Max_AL_loading,Max_AL_loading,SUM(H24:H25)*'Master Data'!$BH$8) -> 0 | I26: =IF(SUM(I24:I25)*'Master Data'!$BH$8>Max_AL_loading,Max_AL_loading,SUM(I24:I25)*'Master Data'!$BH$8) -> 0 | J26: =IF(SUM(J24:J25)*'Master Data'!$BH$8>Max_AL_loading,Max_AL_loading,SUM(J24:J25)*'Master Data'!$BH$8) -> 0 | K26: =IF(SUM(K24:K25)*'Master Data'!$BH$8>Max_AL_loading,Max_AL_loading,SUM(K24:K25)*'Master Data'!$BH$8) -> 0 | L26: =IF(SUM(L24:L25)*'Master Data'!$BH$8>Max_AL_loading,Max_AL_loading,SUM(L24:L25)*'Master Data'!$BH$8) -> 0 | M26: =IF(SUM(M24:M25)*'Master Data'!$BH$8>Max_AL_loading,Max_AL_loading,SUM(M24:M25)*'Master Data'!$BH$8) -> 0
C27: Super | D27: =SUM(D24,D26)*'Master Data'!$BH$7 -> 0 | E27: =SUM(E24,E26)*'Master Data'!$BH$7 -> 0 | F27: =SUM(F24,F26)*'Master Data'!$BH$7 -> 0 | G27: =SUM(G24,G26)*'Master Data'!$BH$7 -> 0 | H27: =SUM(H24,H26)*'Master Data'!$BH$7 -> 0 | I27: =SUM(I24,I26)*'Master Data'!$BH$7 -> 0 | J27: =SUM(J24,J26)*'Master Data'!$BH$7 -> 0 | K27: =SUM(K24,K26)*'Master Data'!$BH$7 -> 0 | L27: =SUM(L24,L26)*'Master Data'!$BH$7 -> 0 | M27: =SUM(M24,M26)*'Master Data'!$BH$7 -> 0
C28: LSL | D28: =SUM(D24:D25)*'Master Data'!$BH$5 -> 0 | E28: =SUM(E24:E25)*'Master Data'!$BH$5 -> 0 | F28: =SUM(F24:F25)*'Master Data'!$BH$5 -> 0 | G28: =SUM(G24:G25)*'Master Data'!$BH$5 -> 0 | H28: =SUM(H24:H25)*'Master Data'!$BH$5 -> 0 | I28: =SUM(I24:I25)*'Master Data'!$BH$5 -> 0 | J28: =SUM(J24:J25)*'Master Data'!$BH$5 -> 0 | K28: =SUM(K24:K25)*'Master Data'!$BH$5 -> 0 | L28: =SUM(L24:L25)*'Master Data'!$BH$5 -> 0 | M28: =SUM(M24:M25)*'Master Data'!$BH$5 -> 0
C29: Payroll | D29: =SUM(D24:D27)*'Master Data'!$BH$6 -> 0 | E29: =SUM(E24:E27)*'Master Data'!$BH$6 -> 0 | F29: =SUM(F24:F27)*'Master Data'!$BH$6 -> 0 | G29: =SUM(G24:G27)*'Master Data'!$BH$6 -> 0 | H29: =SUM(H24:H27)*'Master Data'!$BH$6 -> 0 | I29: =SUM(I24:I27)*'Master Data'!$BH$6 -> 0 | J29: =SUM(J24:J27)*'Master Data'!$BH$6 -> 0 | K29: =SUM(K24:K27)*'Master Data'!$BH$6 -> 0 | L29: =SUM(L24:L27)*'Master Data'!$BH$6 -> 0 | M29: =SUM(M24:M27)*'Master Data'!$BH$6 -> 0
C30: Workcover | D30: =SUM(D24:D27)*'Master Data'!$BH$9 -> 0 | E30: =SUM(E24:E27)*'Master Data'!$BH$9 -> 0 | F30: =SUM(F24:F27)*'Master Data'!$BH$9 -> 0 | G30: =SUM(G24:G27)*'Master Data'!$BH$9 -> 0 | H30: =SUM(H24:H27)*'Master Data'!$BH$9 -> 0 | I30: =SUM(I24:I27)*'Master Data'!$BH$9 -> 0 | J30: =SUM(J24:J27)*'Master Data'!$BH$9 -> 0 | K30: =SUM(K24:K27)*'Master Data'!$BH$9 -> 0 | L30: =SUM(L24:L27)*'Master Data'!$BH$9 -> 0 | M30: =SUM(M24:M27)*'Master Data'!$BH$9 -> 0
C31: Additional Contributions | D31: =D24*'Master Data'!$BH$10 -> 0 | E31: =E24*'Master Data'!$BH$10 -> 0 | F31: =F24*'Master Data'!$BH$10 -> 0 | G31: =G24*'Master Data'!$BH$10 -> 0 | H31: =H24*'Master Data'!$BH$10 -> 0 | I31: =I24*'Master Data'!$BH$10 -> 0 | J31: =J24*'Master Data'!$BH$10 -> 0 | K31: =K24*'Master Data'!$BH$10 -> 0 | L31: =L24*'Master Data'!$BH$10 -> 0 | M31: =M24*'Master Data'!$BH$10 -> 0
C32: Total Salary | D32: =SUM(D24:D31) -> 0 | E32: 0 | F32: 0 | G32: 0 | H32: 0 | I32: 0 | J32: 0 | K32: 0 | L32: 0 | M32: 0
C34: Classification Level | D34: =IFERROR(IF(AND(D38>=$P39,D38<=$R39),VLOOKUP('ENTER DETAILS HERE_Costing Tab'!$H$69,'Master Data'!$X$5:$Z$73,2,FALSE),""),"") ->  | E34: =IFERROR(IF(AND(E38>=$P39,E38<=$R39),VLOOKUP('ENTER DETAILS HERE_Costing Tab'!$H$69,'Master Data'!$X$5:$Z$73,2,FALSE),""),"") ->  | F34: =IFERROR(IF(AND(F38>=$P39,F38<=$R39),VLOOKUP('ENTER DETAILS HERE_Costing Tab'!$H$69,'Master Data'!$X$5:$Z$73,2,FALSE),""),"") ->  | G34: =IFERROR(IF(AND(G38>=$P39,G38<=$R39),VLOOKUP('ENTER DETAILS HERE_Costing Tab'!$H$69,'Master Data'!$X$5:$Z$73,2,FALSE),""),"") ->  | H34: =IFERROR(IF(AND(H38>=$P39,H38<=$R39),VLOOKUP('ENTER DETAILS HERE_Costing Tab'!$H$69,'Master Data'!$X$5:$Z$73,2,FALSE),""),"") ->  | I34: =IFERROR(IF(AND(I38>=$P39,I38<=$R39),VLOOKUP('ENTER DETAILS HERE_Costing Tab'!$H$69,'Master Data'!$X$5:$Z$73,2,FALSE),""),"") ->  | J34: =IFERROR(IF(AND(J38>=$P39,J38<=$R39),VLOOKUP('ENTER DETAILS HERE_Costing Tab'!$H$69,'Master Data'!$X$5:$Z$73,2,FALSE),""),"") ->  | K34: =IFERROR(IF(AND(K38>=$P39,K38<=$R39),VLOOKUP('ENTER DETAILS HERE_Costing Tab'!$H$69,'Master Data'!$X$5:$Z$73,2,FALSE),""),"") ->  | L34: =IFERROR(IF(AND(L38>=$P39,L38<=$R39),VLOOKUP('ENTER DETAILS HERE_Costing Tab'!$H$69,'Master Data'!$X$5:$Z$73,2,FALSE),""),"") ->  | M34: =IFERROR(IF(AND(M38>=$P39,M38<=$R39),VLOOKUP('ENTER DETAILS HERE_Costing Tab'!$H$69,'Master Data'!$X$5:$Z$73,2,FALSE),""),"") -> 
C35: Step | D35: =IFERROR( IF(AND(D38>=$P39,D38<=$R39), IF(D38=$P39,VLOOKUP('ENTER DETAILS HERE_Costing Tab'!$H$69,'Master Data'!$X$5:$Z$73,3,FALSE), IF(C35+1>VLOOKUP(D34,Max_Step,2,FALSE),VLOOKUP(D34,Max_Step,2,FALSE),C35+1)),""),"") ->  | E35: =IFERROR( IF(AND(E38>=$P39,E38<=$R39), IF(E38=$P39,VLOOKUP('ENTER DETAILS HERE_Costing Tab'!$H$69,'Master Data'!$X$5:$Z$73,3,FALSE), IF(D35+1>VLOOKUP(E34,Max_Step,2,FALSE),VLOOKUP(E34,Max_Step,2,FALSE),D35+1)),""),"") ->  | F35: =IFERROR( IF(AND(F38>=$P39,F38<=$R39), IF(F38=$P39,VLOOKUP('ENTER DETAILS HERE_Costing Tab'!$H$69,'Master Data'!$X$5:$Z$73,3,FALSE), IF(E35+1>VLOOKUP(F34,Max_Step,2,FALSE),VLOOKUP(F34,Max_Step,2,FALSE),E35+1)),""),"") ->  | G35: =IFERROR( IF(AND(G38>=$P39,G38<=$R39), IF(G38=$P39,VLOOKUP('ENTER DETAILS HERE_Costing Tab'!$H$69,'Master Data'!$X$5:$Z$73,3,FALSE), IF(F35+1>VLOOKUP(G34,Max_Step,2,FALSE),VLOOKUP(G34,Max_Step,2,FALSE),F35+1)),""),"") ->  | H35: =IFERROR( IF(AND(H38>=$P39,H38<=$R39), IF(H38=$P39,VLOOKUP('ENTER DETAILS HERE_Costing Tab'!$H$69,'Master Data'!$X$5:$Z$73,3,FALSE), IF(G35+1>VLOOKUP(H34,Max_Step,2,FALSE),VLOOKUP(H34,Max_Step,2,FALSE),G35+1)),""),"") ->  | I35: =IFERROR( IF(AND(I38>=$P39,I38<=$R39), IF(I38=$P39,VLOOKUP('ENTER DETAILS HERE_Costing Tab'!$H$69,'Master Data'!$X$5:$Z$73,3,FALSE), IF(H35+1>VLOOKUP(I34,Max_Step,2,FALSE),VLOOKUP(I34,Max_Step,2,FALSE),H35+1)),""),"") ->  | J35: =IFERROR( IF(AND(J38>=$P39,J38<=$R39), IF(J38=$P39,VLOOKUP('ENTER DETAILS HERE_Costing Tab'!$H$69,'Master Data'!$X$5:$Z$73,3,FALSE), IF(I35+1>VLOOKUP(J34,Max_Step,2,FALSE),VLOOKUP(J34,Max_Step,2,FALSE),I35+1)),""),"") ->  | K35: =IFERROR( IF(AND(K38>=$P39,K38<=$R39), IF(K38=$P39,VLOOKUP('ENTER DETAILS HERE_Costing Tab'!$H$69,'Master Data'!$X$5:$Z$73,3,FALSE), IF(J35+1>VLOOKUP(K34,Max_Step,2,FALSE),VLOOKUP(K34,Max_Step,2,FALSE),J35+1)),""),"") ->  | L35: =IFERROR( IF(AND(L38>=$P39,L38<=$R39), IF(L38=$P39,VLOOKUP('ENTER DETAILS HERE_Costing Tab'!$H$69,'Master Data'!$X$5:$Z$73,3,FALSE), IF(K35+1>VLOOKUP(L34,Max_Step,2,FALSE),VLOOKUP(L34,Max_Step,2,FALSE),K35+1)),""),"") ->  | M35: =IFERROR( IF(AND(M38>=$P39,M38<=$R39), IF(M38=$P39,VLOOKUP('ENTER DETAILS HERE_Costing Tab'!$H$69,'Master Data'!$X$5:$Z$73,3,FALSE), IF(L35+1>VLOOKUP(M34,Max_Step,2,FALSE),VLOOKUP(M34,Max_Step,2,FALSE),L35+1)),""),"") -> 
C36: Level & Step | D36: =IF(D34="Level E",D34,IF(D34="Senior Manager",D34&" "&D35,D34&"-"&D35)) -> - | E36: =IF(E34="Level E",E34,IF(E34="Senior Manager",E34&" "&E35,E34&"-"&E35)) -> - | F36: - | G36: - | H36: - | I36: - | J36: - | K36: - | L36: - | M36: -
C37: FTE | D37: =IF(D38="",0,IF(AND(D38>=$P39,D38<=$R39),'ENTER DETAILS HERE_Costing Tab'!$N$69,0)) -> 0 | E37: =IF(E38="",0,IF(AND(E38>=$P39,E38<=$R39),'ENTER DETAILS HERE_Costing Tab'!$N$69,0)) -> 0 | F37: =IF(F38="",0,IF(AND(F38>=$P39,F38<=$R39),'ENTER DETAILS HERE_Costing Tab'!$N$69,0)) -> 0 | G37: =IF(G38="",0,IF(AND(G38>=$P39,G38<=$R39),'ENTER DETAILS HERE_Costing Tab'!$N$69,0)) -> 0 | H37: =IF(H38="",0,IF(AND(H38>=$P39,H38<=$R39),'ENTER DETAILS HERE_Costing Tab'!$N$69,0)) -> 0 | I37: =IF(I38="",0,IF(AND(I38>=$P39,I38<=$R39),'ENTER DETAILS HERE_Costing Tab'!$N$69,0)) -> 0 | J37: =IF(J38="",0,IF(AND(J38>=$P39,J38<=$R39),'ENTER DETAILS HERE_Costing Tab'!$N$69,0)) -> 0 | K37: =IF(K38="",0,IF(AND(K38>=$P39,K38<=$R39),'ENTER DETAILS HERE_Costing Tab'!$N$69,0)) -> 0 | L37: =IF(L38="",0,IF(AND(L38>=$P39,L38<=$R39),'ENTER DETAILS HERE_Costing Tab'!$N$69,0)) -> 0 | M37: =IF(M38="",0,IF(AND(M38>=$P39,M38<=$R39),'ENTER DETAILS HERE_Costing Tab'!$N$69,0)) -> 0
B38: 3 | D38: ='ENTER DETAILS HERE_Costing Tab'!$P$64 -> 1900 | E38: ='ENTER DETAILS HERE_Costing Tab'!$Q$64 ->  | F38: ='ENTER DETAILS HERE_Costing Tab'!$R$64 ->  | G38: ='ENTER DETAILS HERE_Costing Tab'!$S$64 ->  | H38: ='ENTER DETAILS HERE_Costing Tab'!$T$64 ->  | I38: ='ENTER DETAILS HERE_Costing Tab'!$U$64 ->  | J38: ='ENTER DETAILS HERE_Costing Tab'!$V$64 ->  | K38: ='ENTER DETAILS HERE_Costing Tab'!$W$64 ->  | L38: ='ENTER DETAILS HERE_Costing Tab'!$X$64 ->  | M38: ='ENTER DETAILS HERE_Costing Tab'!$Y$64 -> 
C39: Base Salary | D39: =IFERROR( IF(AND(D38>=$P39,D38<=$R39), IF(D38=$P39,(INDEX(Cont_FT_Salaries,MATCH(D36,Cont_FT_Levels,0),MATCH(D38-1,Cont_FT_Years,0))*$U39/12+INDEX(Cont_FT_Salaries,MATCH(D36,Cont_FT_Levels,0),MATCH(D38,Cont_FT_Years,0))*$V39/12), IF(D38=$R39,(INDEX(Cont_FT_Salaries,MATCH(D36,Cont_FT_Levels,0),MATCH(D38-1,Cont_FT_Years,0))*$Y39/12+INDEX(Cont_FT_Salaries,MATCH(D36,Cont_FT_Levels,0),MATCH(D38,Cont_FT_Years,0))*$Z39/12), (INDEX(Cont_FT_Salaries,MATCH(D36,Cont_FT_Levels,0),MATCH(D38-1,Cont_FT_Years,0))/2+INDEX(Cont_FT_Salaries,MATCH(D36,Cont_FT_Levels,0),MATCH(D38,Cont_FT_Years,0))/2) )),0),0)*D37 -> 0 | E39: 0 | F39: 0 | G39: 0 | H39: 0 | I39: 0 | J39: 0 | K39: 0 | L39: 0 | M39: 0 | O39: =IFERROR(VLOOKUP('ENTER DETAILS HERE_Costing Tab'!$J$69,'Master Data'!$AW$5:$AX$16,2,FALSE),0) -> 0 | P39: ='ENTER DETAILS HERE_Costing Tab'!$K$69 -> 0 | Q39: =IFERROR(VLOOKUP('ENTER DETAILS HERE_Costing Tab'!$L$69,'Master Data'!$AW$5:$AX$16,2,FALSE),0) -> 0 | R39: ='ENTER DETAILS HERE_Costing Tab'!$M$69 -> 0 | T39: =IFERROR( IF(ISBLANK($P39),0, IF($P39=$R39,$Q39-$O39+1,VLOOKUP($O39,'Master Data'!$AX$5:$BA$16,2,FALSE))),0) -> 1 | U39: =IFERROR( IF(VLOOKUP($O39,'Master Data'!$AX$5:$BA$16,3,FALSE)>$T39,$T39,VLOOKUP($O39,'Master Data'!$AX$5:$BA$16,3,FALSE)),0) -> 0 | V39: =T39-U39 -> 1 | X39: =IF($P39=$R39,0,Q39) -> 0 | Y39: =IF($X39=0,0,VLOOKUP($X39,'Master Data'!$AX$5:$BA$16,4,FALSE)) -> 0 | Z39: =X39-Y39 -> 0
C40: Loadings | D40: =IF(AND(D38>=$P39,D38<=$R39), IF(D38=$P39,'ENTER DETAILS HERE_Costing Tab'!$O$69*$T39/12, IF(D38=$R39,'ENTER DETAILS HERE_Costing Tab'!$O$69*$X39/12, 'ENTER DETAILS HERE_Costing Tab'!$O$69)),0) -> 0 | E40: =IF(AND(E38>=$P39,E38<=$R39), IF(E38=$P39,'ENTER DETAILS HERE_Costing Tab'!$O$69*$T39/12, IF(E38=$R39,'ENTER DETAILS HERE_Costing Tab'!$O$69*$X39/12, 'ENTER DETAILS HERE_Costing Tab'!$O$69)),0) -> 0 | F40: =IF(AND(F38>=$P39,F38<=$R39), IF(F38=$P39,'ENTER DETAILS HERE_Costing Tab'!$O$69*$T39/12, IF(F38=$R39,'ENTER DETAILS HERE_Costing Tab'!$O$69*$X39/12, 'ENTER DETAILS HERE_Costing Tab'!$O$69)),0) -> 0 | G40: =IF(AND(G38>=$P39,G38<=$R39), IF(G38=$P39,'ENTER DETAILS HERE_Costing Tab'!$O$69*$T39/12, IF(G38=$R39,'ENTER DETAILS HERE_Costing Tab'!$O$69*$X39/12, 'ENTER DETAILS HERE_Costing Tab'!$O$69)),0) -> 0 | H40: =IF(AND(H38>=$P39,H38<=$R39), IF(H38=$P39,'ENTER DETAILS HERE_Costing Tab'!$O$69*$T39/12, IF(H38=$R39,'ENTER DETAILS HERE_Costing Tab'!$O$69*$X39/12, 'ENTER DETAILS HERE_Costing Tab'!$O$69)),0) -> 0 | I40: =IF(AND(I38>=$P39,I38<=$R39), IF(I38=$P39,'ENTER DETAILS HERE_Costing Tab'!$O$69*$T39/12, IF(I38=$R39,'ENTER DETAILS HERE_Costing Tab'!$O$69*$X39/12, 'ENTER DETAILS HERE_Costing Tab'!$O$69)),0) -> 0 | J40: =IF(AND(J38>=$P39,J38<=$R39), IF(J38=$P39,'ENTER DETAILS HERE_Costing Tab'!$O$69*$T39/12, IF(J38=$R39,'ENTER DETAILS HERE_Costing Tab'!$O$69*$X39/12, 'ENTER DETAILS HERE_Costing Tab'!$O$69)),0) -> 0 | K40: =IF(AND(K38>=$P39,K38<=$R39), IF(K38=$P39,'ENTER DETAILS HERE_Costing Tab'!$O$69*$T39/12, IF(K38=$R39,'ENTER DETAILS HERE_Costing Tab'!$O$69*$X39/12, 'ENTER DETAILS HERE_Costing Tab'!$O$69)),0) -> 0 | L40: =IF(AND(L38>=$P39,L38<=$R39), IF(L38=$P39,'ENTER DETAILS HERE_Costing Tab'!$O$69*$T39/12, IF(L38=$R39,'ENTER DETAILS HERE_Costing Tab'!$O$69*$X39/12, 'ENTER DETAILS HERE_Costing Tab'!$O$69)),0) -> 0 | M40: =IF(AND(M38>=$P39,M38<=$R39), IF(M38=$P39,'ENTER DETAILS HERE_Costing Tab'!$O$69*$T39/12, IF(M38=$R39,'ENTER DETAILS HERE_Costing Tab'!$O$69*$X39/12, 'ENTER DETAILS HERE_Costing Tab'!$O$69)),0) -> 0
C41: AL Loading | D41: =IF(SUM(D39:D40)*'Master Data'!$BH$8>Max_AL_loading,Max_AL_loading,SUM(D39:D40)*'Master Data'!$BH$8) -> 0 | E41: =IF(SUM(E39:E40)*'Master Data'!$BH$8>Max_AL_loading,Max_AL_loading,SUM(E39:E40)*'Master Data'!$BH$8) -> 0 | F41: =IF(SUM(F39:F40)*'Master Data'!$BH$8>Max_AL_loading,Max_AL_loading,SUM(F39:F40)*'Master Data'!$BH$8) -> 0 | G41: =IF(SUM(G39:G40)*'Master Data'!$BH$8>Max_AL_loading,Max_AL_loading,SUM(G39:G40)*'Master Data'!$BH$8) -> 0 | H41: =IF(SUM(H39:H40)*'Master Data'!$BH$8>Max_AL_loading,Max_AL_loading,SUM(H39:H40)*'Master Data'!$BH$8) -> 0 | I41: =IF(SUM(I39:I40)*'Master Data'!$BH$8>Max_AL_loading,Max_AL_loading,SUM(I39:I40)*'Master Data'!$BH$8) -> 0 | J41: =IF(SUM(J39:J40)*'Master Data'!$BH$8>Max_AL_loading,Max_AL_loading,SUM(J39:J40)*'Master Data'!$BH$8) -> 0 | K41: =IF(SUM(K39:K40)*'Master Data'!$BH$8>Max_AL_loading,Max_AL_loading,SUM(K39:K40)*'Master Data'!$BH$8) -> 0 | L41: =IF(SUM(L39:L40)*'Master Data'!$BH$8>Max_AL_loading,Max_AL_loading,SUM(L39:L40)*'Master Data'!$BH$8) -> 0 | M41: =IF(SUM(M39:M40)*'Master Data'!$BH$8>Max_AL_loading,Max_AL_loading,SUM(M39:M40)*'Master Data'!$BH$8) -> 0
C42: Super | D42: =SUM(D39,D41)*'Master Data'!$BH$7 -> 0 | E42: =SUM(E39,E41)*'Master Data'!$BH$7 -> 0 | F42: =SUM(F39,F41)*'Master Data'!$BH$7 -> 0 | G42: =SUM(G39,G41)*'Master Data'!$BH$7 -> 0 | H42: =SUM(H39,H41)*'Master Data'!$BH$7 -> 0 | I42: =SUM(I39,I41)*'Master Data'!$BH$7 -> 0 | J42: =SUM(J39,J41)*'Master Data'!$BH$7 -> 0 | K42: =SUM(K39,K41)*'Master Data'!$BH$7 -> 0 | L42: =SUM(L39,L41)*'Master Data'!$BH$7 -> 0 | M42: =SUM(M39,M41)*'Master Data'!$BH$7 -> 0
C43: LSL | D43: =SUM(D39:D40)*'Master Data'!$BH$5 -> 0 | E43: =SUM(E39:E40)*'Master Data'!$BH$5 -> 0 | F43: =SUM(F39:F40)*'Master Data'!$BH$5 -> 0 | G43: =SUM(G39:G40)*'Master Data'!$BH$5 -> 0 | H43: =SUM(H39:H40)*'Master Data'!$BH$5 -> 0 | I43: =SUM(I39:I40)*'Master Data'!$BH$5 -> 0 | J43: =SUM(J39:J40)*'Master Data'!$BH$5 -> 0 | K43: =SUM(K39:K40)*'Master Data'!$BH$5 -> 0 | L43: =SUM(L39:L40)*'Master Data'!$BH$5 -> 0 | M43: =SUM(M39:M40)*'Master Data'!$BH$5 -> 0
C44: Payroll | D44: =SUM(D39:D42)*'Master Data'!$BH$6 -> 0 | E44: =SUM(E39:E42)*'Master Data'!$BH$6 -> 0 | F44: =SUM(F39:F42)*'Master Data'!$BH$6 -> 0 | G44: =SUM(G39:G42)*'Master Data'!$BH$6 -> 0 | H44: =SUM(H39:H42)*'Master Data'!$BH$6 -> 0 | I44: =SUM(I39:I42)*'Master Data'!$BH$6 -> 0 | J44: =SUM(J39:J42)*'Master Data'!$BH$6 -> 0 | K44: =SUM(K39:K42)*'Master Data'!$BH$6 -> 0 | L44: =SUM(L39:L42)*'Master Data'!$BH$6 -> 0 | M44: =SUM(M39:M42)*'Master Data'!$BH$6 -> 0
C45: Workcover | D45: =SUM(D39:D42)*'Master Data'!$BH$9 -> 0 | E45: =SUM(E39:E42)*'Master Data'!$BH$9 -> 0 | F45: =SUM(F39:F42)*'Master Data'!$BH$9 -> 0 | G45: =SUM(G39:G42)*'Master Data'!$BH$9 -> 0 | H45: =SUM(H39:H42)*'Master Data'!$BH$9 -> 0 | I45: =SUM(I39:I42)*'Master Data'!$BH$9 -> 0 | J45: =SUM(J39:J42)*'Master Data'!$BH$9 -> 0 | K45: =SUM(K39:K42)*'Master Data'!$BH$9 -> 0 | L45: =SUM(L39:L42)*'Master Data'!$BH$9 -> 0 | M45: =SUM(M39:M42)*'Master Data'!$BH$9 -> 0
C46: Additional Contributions | D46: =D39*'Master Data'!$BH$10 -> 0 | E46: =E39*'Master Data'!$BH$10 -> 0 | F46: =F39*'Master Data'!$BH$10 -> 0 | G46: =G39*'Master Data'!$BH$10 -> 0 | H46: =H39*'Master Data'!$BH$10 -> 0 | I46: =I39*'Master Data'!$BH$10 -> 0 | J46: =J39*'Master Data'!$BH$10 -> 0 | K46: =K39*'Master Data'!$BH$10 -> 0 | L46: =L39*'Master Data'!$BH$10 -> 0 | M46: =M39*'Master Data'!$BH$10 -> 0
C47: Total Salary | D47: =SUM(D39:D46) -> 0 | E47: 0 | F47: 0 | G47: 0 | H47: 0 | I47: 0 | J47: 0 | K47: 0 | L47: 0 | M47: 0
C49: Classification Level | D49: =IFERROR(IF(AND(D53>=$P54,D53<=$R54),VLOOKUP('ENTER DETAILS HERE_Costing Tab'!$H$70,'Master Data'!$X$5:$Z$73,2,FALSE),""),"") ->  | E49: =IFERROR(IF(AND(E53>=$P54,E53<=$R54),VLOOKUP('ENTER DETAILS HERE_Costing Tab'!$H$70,'Master Data'!$X$5:$Z$73,2,FALSE),""),"") ->  | F49: =IFERROR(IF(AND(F53>=$P54,F53<=$R54),VLOOKUP('ENTER DETAILS HERE_Costing Tab'!$H$70,'Master Data'!$X$5:$Z$73,2,FALSE),""),"") ->  | G49: =IFERROR(IF(AND(G53>=$P54,G53<=$R54),VLOOKUP('ENTER DETAILS HERE_Costing Tab'!$H$70,'Master Data'!$X$5:$Z$73,2,FALSE),""),"") ->  | H49: =IFERROR(IF(AND(H53>=$P54,H53<=$R54),VLOOKUP('ENTER DETAILS HERE_Costing Tab'!$H$70,'Master Data'!$X$5:$Z$73,2,FALSE),""),"") ->  | I49: =IFERROR(IF(AND(I53>=$P54,I53<=$R54),VLOOKUP('ENTER DETAILS HERE_Costing Tab'!$H$70,'Master Data'!$X$5:$Z$73,2,FALSE),""),"") ->  | J49: =IFERROR(IF(AND(J53>=$P54,J53<=$R54),VLOOKUP('ENTER DETAILS HERE_Costing Tab'!$H$70,'Master Data'!$X$5:$Z$73,2,FALSE),""),"") ->  | K49: =IFERROR(IF(AND(K53>=$P54,K53<=$R54),VLOOKUP('ENTER DETAILS HERE_Costing Tab'!$H$70,'Master Data'!$X$5:$Z$73,2,FALSE),""),"") ->  | L49: =IFERROR(IF(AND(L53>=$P54,L53<=$R54),VLOOKUP('ENTER DETAILS HERE_Costing Tab'!$H$70,'Master Data'!$X$5:$Z$73,2,FALSE),""),"") ->  | M49: =IFERROR(IF(AND(M53>=$P54,M53<=$R54),VLOOKUP('ENTER DETAILS HERE_Costing Tab'!$H$70,'Master Data'!$X$5:$Z$73,2,FALSE),""),"") -> 
C50: Step | D50: =IFERROR( IF(AND(D53>=$P54,D53<=$R54), IF(D53=$P54,VLOOKUP('ENTER DETAILS HERE_Costing Tab'!$H$70,'Master Data'!$X$5:$Z$73,3,FALSE), IF(C50+1>VLOOKUP(D49,Max_Step,2,FALSE),VLOOKUP(D49,Max_Step,2,FALSE),C50+1)),""),"") ->  | E50: =IFERROR( IF(AND(E53>=$P54,E53<=$R54), IF(E53=$P54,VLOOKUP('ENTER DETAILS HERE_Costing Tab'!$H$70,'Master Data'!$X$5:$Z$73,3,FALSE), IF(D50+1>VLOOKUP(E49,Max_Step,2,FALSE),VLOOKUP(E49,Max_Step,2,FALSE),D50+1)),""),"") ->  | F50: =IFERROR( IF(AND(F53>=$P54,F53<=$R54), IF(F53=$P54,VLOOKUP('ENTER DETAILS HERE_Costing Tab'!$H$70,'Master Data'!$X$5:$Z$73,3,FALSE), IF(E50+1>VLOOKUP(F49,Max_Step,2,FALSE),VLOOKUP(F49,Max_Step,2,FALSE),E50+1)),""),"") ->  | G50: =IFERROR( IF(AND(G53>=$P54,G53<=$R54), IF(G53=$P54,VLOOKUP('ENTER DETAILS HERE_Costing Tab'!$H$70,'Master Data'!$X$5:$Z$73,3,FALSE), IF(F50+1>VLOOKUP(G49,Max_Step,2,FALSE),VLOOKUP(G49,Max_Step,2,FALSE),F50+1)),""),"") ->  | H50: =IFERROR( IF(AND(H53>=$P54,H53<=$R54), IF(H53=$P54,VLOOKUP('ENTER DETAILS HERE_Costing Tab'!$H$70,'Master Data'!$X$5:$Z$73,3,FALSE), IF(G50+1>VLOOKUP(H49,Max_Step,2,FALSE),VLOOKUP(H49,Max_Step,2,FALSE),G50+1)),""),"") ->  | I50: =IFERROR( IF(AND(I53>=$P54,I53<=$R54), IF(I53=$P54,VLOOKUP('ENTER DETAILS HERE_Costing Tab'!$H$70,'Master Data'!$X$5:$Z$73,3,FALSE), IF(H50+1>VLOOKUP(I49,Max_Step,2,FALSE),VLOOKUP(I49,Max_Step,2,FALSE),H50+1)),""),"") ->  | J50: =IFERROR( IF(AND(J53>=$P54,J53<=$R54), IF(J53=$P54,VLOOKUP('ENTER DETAILS HERE_Costing Tab'!$H$70,'Master Data'!$X$5:$Z$73,3,FALSE), IF(I50+1>VLOOKUP(J49,Max_Step,2,FALSE),VLOOKUP(J49,Max_Step,2,FALSE),I50+1)),""),"") ->  | K50: =IFERROR( IF(AND(K53>=$P54,K53<=$R54), IF(K53=$P54,VLOOKUP('ENTER DETAILS HERE_Costing Tab'!$H$70,'Master Data'!$X$5:$Z$73,3,FALSE), IF(J50+1>VLOOKUP(K49,Max_Step,2,FALSE),VLOOKUP(K49,Max_Step,2,FALSE),J50+1)),""),"") ->  | L50: =IFERROR( IF(AND(L53>=$P54,L53<=$R54), IF(L53=$P54,VLOOKUP('ENTER DETAILS HERE_Costing Tab'!$H$70,'Master Data'!$X$5:$Z$73,3,FALSE), IF(K50+1>VLOOKUP(L49,Max_Step,2,FALSE),VLOOKUP(L49,Max_Step,2,FALSE),K50+1)),""),"") ->  | M50: =IFERROR( IF(AND(M53>=$P54,M53<=$R54), IF(M53=$P54,VLOOKUP('ENTER DETAILS HERE_Costing Tab'!$H$70,'Master Data'!$X$5:$Z$73,3,FALSE), IF(L50+1>VLOOKUP(M49,Max_Step,2,FALSE),VLOOKUP(M49,Max_Step,2,FALSE),L50+1)),""),"") -> 
C51: Level & Step | D51: =IF(D49="Level E",D49,IF(D49="Senior Manager",D49&" "&D50,D49&"-"&D50)) -> - | E51: =IF(E49="Level E",E49,IF(E49="Senior Manager",E49&" "&E50,E49&"-"&E50)) -> - | F51: - | G51: - | H51: - | I51: - | J51: - | K51: - | L51: - | M51: -
C52: FTE | D52: =IF(D53="",0,IF(AND(D53>=$P54,D53<=$R54),'ENTER DETAILS HERE_Costing Tab'!$N$70,0)) -> 0 | E52: =IF(E53="",0,IF(AND(E53>=$P54,E53<=$R54),'ENTER DETAILS HERE_Costing Tab'!$N$70,0)) -> 0 | F52: =IF(F53="",0,IF(AND(F53>=$P54,F53<=$R54),'ENTER DETAILS HERE_Costing Tab'!$N$70,0)) -> 0 | G52: =IF(G53="",0,IF(AND(G53>=$P54,G53<=$R54),'ENTER DETAILS HERE_Costing Tab'!$N$70,0)) -> 0 | H52: =IF(H53="",0,IF(AND(H53>=$P54,H53<=$R54),'ENTER DETAILS HERE_Costing Tab'!$N$70,0)) -> 0 | I52: =IF(I53="",0,IF(AND(I53>=$P54,I53<=$R54),'ENTER DETAILS HERE_Costing Tab'!$N$70,0)) -> 0 | J52: =IF(J53="",0,IF(AND(J53>=$P54,J53<=$R54),'ENTER DETAILS HERE_Costing Tab'!$N$70,0)) -> 0 | K52: =IF(K53="",0,IF(AND(K53>=$P54,K53<=$R54),'ENTER DETAILS HERE_Costing Tab'!$N$70,0)) -> 0 | L52: =IF(L53="",0,IF(AND(L53>=$P54,L53<=$R54),'ENTER DETAILS HERE_Costing Tab'!$N$70,0)) -> 0 | M52: =IF(M53="",0,IF(AND(M53>=$P54,M53<=$R54),'ENTER DETAILS HERE_Costing Tab'!$N$70,0)) -> 0
B53: 4 | D53: ='ENTER DETAILS HERE_Costing Tab'!$P$64 -> 1900 | E53: ='ENTER DETAILS HERE_Costing Tab'!$Q$64 ->  | F53: ='ENTER DETAILS HERE_Costing Tab'!$R$64 ->  | G53: ='ENTER DETAILS HERE_Costing Tab'!$S$64 ->  | H53: ='ENTER DETAILS HERE_Costing Tab'!$T$64 ->  | I53: ='ENTER DETAILS HERE_Costing Tab'!$U$64 ->  | J53: ='ENTER DETAILS HERE_Costing Tab'!$V$64 ->  | K53: ='ENTER DETAILS HERE_Costing Tab'!$W$64 ->  | L53: ='ENTER DETAILS HERE_Costing Tab'!$X$64 ->  | M53: ='ENTER DETAILS HERE_Costing Tab'!$Y$64 -> 
C54: Base Salary | D54: =IFERROR( IF(AND(D53>=$P54,D53<=$R54), IF(D53=$P54,(INDEX(Cont_FT_Salaries,MATCH(D51,Cont_FT_Levels,0),MATCH(D53-1,Cont_FT_Years,0))*$U54/12+INDEX(Cont_FT_Salaries,MATCH(D51,Cont_FT_Levels,0),MATCH(D53,Cont_FT_Years,0))*$V54/12), IF(D53=$R54,(INDEX(Cont_FT_Salaries,MATCH(D51,Cont_FT_Levels,0),MATCH(D53-1,Cont_FT_Years,0))*$Y54/12+INDEX(Cont_FT_Salaries,MATCH(D51,Cont_FT_Levels,0),MATCH(D53,Cont_FT_Years,0))*$Z54/12), (INDEX(Cont_FT_Salaries,MATCH(D51,Cont_FT_Levels,0),MATCH(D53-1,Cont_FT_Years,0))/2+INDEX(Cont_FT_Salaries,MATCH(D51,Cont_FT_Levels,0),MATCH(D53,Cont_FT_Years,0))/2) )),0),0)*D52 -> 0 | E54: 0 | F54: 0 | G54: 0 | H54: 0 | I54: 0 | J54: 0 | K54: 0 | L54: 0 | M54: 0 | O54: =IFERROR(VLOOKUP('ENTER DETAILS HERE_Costing Tab'!$J$70,'Master Data'!$AW$5:$AX$16,2,FALSE),0) -> 0 | P54: ='ENTER DETAILS HERE_Costing Tab'!$K$70 -> 0 | Q54: =IFERROR(VLOOKUP('ENTER DETAILS HERE_Costing Tab'!$L$70,'Master Data'!$AW$5:$AX$16,2,FALSE),0) -> 0 | R54: ='ENTER DETAILS HERE_Costing Tab'!$M$70 -> 0 | T54: =IFERROR( IF(ISBLANK($P54),0, IF($P54=$R54,$Q54-$O54+1,VLOOKUP($O54,'Master Data'!$AX$5:$BA$16,2,FALSE))),0) -> 1 | U54: =IFERROR( IF(VLOOKUP($O54,'Master Data'!$AX$5:$BA$16,3,FALSE)>$T54,$T54,VLOOKUP($O54,'Master Data'!$AX$5:$BA$16,3,FALSE)),0) -> 0 | V54: =T54-U54 -> 1 | X54: =IF($P54=$R54,0,Q54) -> 0 | Y54: =IF($X54=0,0,VLOOKUP($X54,'Master Data'!$AX$5:$BA$16,4,FALSE)) -> 0 | Z54: =X54-Y54 -> 0
C55: Loadings | D55: =IF(AND(D53>=$P54,D53<=$R54), IF(D53=$P54,'ENTER DETAILS HERE_Costing Tab'!$O$70*$T54/12, IF(D53=$R54,'ENTER DETAILS HERE_Costing Tab'!$O$70*$X54/12, 'ENTER DETAILS HERE_Costing Tab'!$O$70)),0) -> 0 | E55: =IF(AND(E53>=$P54,E53<=$R54), IF(E53=$P54,'ENTER DETAILS HERE_Costing Tab'!$O$70*$T54/12, IF(E53=$R54,'ENTER DETAILS HERE_Costing Tab'!$O$70*$X54/12, 'ENTER DETAILS HERE_Costing Tab'!$O$70)),0) -> 0 | F55: =IF(AND(F53>=$P54,F53<=$R54), IF(F53=$P54,'ENTER DETAILS HERE_Costing Tab'!$O$70*$T54/12, IF(F53=$R54,'ENTER DETAILS HERE_Costing Tab'!$O$70*$X54/12, 'ENTER DETAILS HERE_Costing Tab'!$O$70)),0) -> 0 | G55: =IF(AND(G53>=$P54,G53<=$R54), IF(G53=$P54,'ENTER DETAILS HERE_Costing Tab'!$O$70*$T54/12, IF(G53=$R54,'ENTER DETAILS HERE_Costing Tab'!$O$70*$X54/12, 'ENTER DETAILS HERE_Costing Tab'!$O$70)),0) -> 0 | H55: =IF(AND(H53>=$P54,H53<=$R54), IF(H53=$P54,'ENTER DETAILS HERE_Costing Tab'!$O$70*$T54/12, IF(H53=$R54,'ENTER DETAILS HERE_Costing Tab'!$O$70*$X54/12, 'ENTER DETAILS HERE_Costing Tab'!$O$70)),0) -> 0 | I55: =IF(AND(I53>=$P54,I53<=$R54), IF(I53=$P54,'ENTER DETAILS HERE_Costing Tab'!$O$70*$T54/12, IF(I53=$R54,'ENTER DETAILS HERE_Costing Tab'!$O$70*$X54/12, 'ENTER DETAILS HERE_Costing Tab'!$O$70)),0) -> 0 | J55: =IF(AND(J53>=$P54,J53<=$R54), IF(J53=$P54,'ENTER DETAILS HERE_Costing Tab'!$O$70*$T54/12, IF(J53=$R54,'ENTER DETAILS HERE_Costing Tab'!$O$70*$X54/12, 'ENTER DETAILS HERE_Costing Tab'!$O$70)),0) -> 0 | K55: =IF(AND(K53>=$P54,K53<=$R54), IF(K53=$P54,'ENTER DETAILS HERE_Costing Tab'!$O$70*$T54/12, IF(K53=$R54,'ENTER DETAILS HERE_Costing Tab'!$O$70*$X54/12, 'ENTER DETAILS HERE_Costing Tab'!$O$70)),0) -> 0 | L55: =IF(AND(L53>=$P54,L53<=$R54), IF(L53=$P54,'ENTER DETAILS HERE_Costing Tab'!$O$70*$T54/12, IF(L53=$R54,'ENTER DETAILS HERE_Costing Tab'!$O$70*$X54/12, 'ENTER DETAILS HERE_Costing Tab'!$O$70)),0) -> 0 | M55: =IF(AND(M53>=$P54,M53<=$R54), IF(M53=$P54,'ENTER DETAILS HERE_Costing Tab'!$O$70*$T54/12, IF(M53=$R54,'ENTER DETAILS HERE_Costing Tab'!$O$70*$X54/12, 'ENTER DETAILS HERE_Costing Tab'!$O$70)),0) -> 0
C56: AL Loading | D56: =IF(SUM(D54:D55)*'Master Data'!$BH$8>Max_AL_loading,Max_AL_loading,SUM(D54:D55)*'Master Data'!$BH$8) -> 0 | E56: =IF(SUM(E54:E55)*'Master Data'!$BH$8>Max_AL_loading,Max_AL_loading,SUM(E54:E55)*'Master Data'!$BH$8) -> 0 | F56: =IF(SUM(F54:F55)*'Master Data'!$BH$8>Max_AL_loading,Max_AL_loading,SUM(F54:F55)*'Master Data'!$BH$8) -> 0 | G56: =IF(SUM(G54:G55)*'Master Data'!$BH$8>Max_AL_loading,Max_AL_loading,SUM(G54:G55)*'Master Data'!$BH$8) -> 0 | H56: =IF(SUM(H54:H55)*'Master Data'!$BH$8>Max_AL_loading,Max_AL_loading,SUM(H54:H55)*'Master Data'!$BH$8) -> 0 | I56: =IF(SUM(I54:I55)*'Master Data'!$BH$8>Max_AL_loading,Max_AL_loading,SUM(I54:I55)*'Master Data'!$BH$8) -> 0 | J56: =IF(SUM(J54:J55)*'Master Data'!$BH$8>Max_AL_loading,Max_AL_loading,SUM(J54:J55)*'Master Data'!$BH$8) -> 0 | K56: =IF(SUM(K54:K55)*'Master Data'!$BH$8>Max_AL_loading,Max_AL_loading,SUM(K54:K55)*'Master Data'!$BH$8) -> 0 | L56: =IF(SUM(L54:L55)*'Master Data'!$BH$8>Max_AL_loading,Max_AL_loading,SUM(L54:L55)*'Master Data'!$BH$8) -> 0 | M56: =IF(SUM(M54:M55)*'Master Data'!$BH$8>Max_AL_loading,Max_AL_loading,SUM(M54:M55)*'Master Data'!$BH$8) -> 0
C57: Super | D57: =SUM(D54,D56)*'Master Data'!$BH$7 -> 0 | E57: =SUM(E54,E56)*'Master Data'!$BH$7 -> 0 | F57: =SUM(F54,F56)*'Master Data'!$BH$7 -> 0 | G57: =SUM(G54,G56)*'Master Data'!$BH$7 -> 0 | H57: =SUM(H54,H56)*'Master Data'!$BH$7 -> 0 | I57: =SUM(I54,I56)*'Master Data'!$BH$7 -> 0 | J57: =SUM(J54,J56)*'Master Data'!$BH$7 -> 0 | K57: =SUM(K54,K56)*'Master Data'!$BH$7 -> 0 | L57: =SUM(L54,L56)*'Master Data'!$BH$7 -> 0 | M57: =SUM(M54,M56)*'Master Data'!$BH$7 -> 0
C58: LSL | D58: =SUM(D54:D55)*'Master Data'!$BH$5 -> 0 | E58: =SUM(E54:E55)*'Master Data'!$BH$5 -> 0 | F58: =SUM(F54:F55)*'Master Data'!$BH$5 -> 0 | G58: =SUM(G54:G55)*'Master Data'!$BH$5 -> 0 | H58: =SUM(H54:H55)*'Master Data'!$BH$5 -> 0 | I58: =SUM(I54:I55)*'Master Data'!$BH$5 -> 0 | J58: =SUM(J54:J55)*'Master Data'!$BH$5 -> 0 | K58: =SUM(K54:K55)*'Master Data'!$BH$5 -> 0 | L58: =SUM(L54:L55)*'Master Data'!$BH$5 -> 0 | M58: =SUM(M54:M55)*'Master Data'!$BH$5 -> 0
C59: Payroll | D59: =SUM(D54:D57)*'Master Data'!$BH$6 -> 0 | E59: =SUM(E54:E57)*'Master Data'!$BH$6 -> 0 | F59: =SUM(F54:F57)*'Master Data'!$BH$6 -> 0 | G59: =SUM(G54:G57)*'Master Data'!$BH$6 -> 0 | H59: =SUM(H54:H57)*'Master Data'!$BH$6 -> 0 | I59: =SUM(I54:I57)*'Master Data'!$BH$6 -> 0 | J59: =SUM(J54:J57)*'Master Data'!$BH$6 -> 0 | K59: =SUM(K54:K57)*'Master Data'!$BH$6 -> 0 | L59: =SUM(L54:L57)*'Master Data'!$BH$6 -> 0 | M59: =SUM(M54:M57)*'Master Data'!$BH$6 -> 0
C60: Workcover | D60: =SUM(D54:D57)*'Master Data'!$BH$9 -> 0 | E60: =SUM(E54:E57)*'Master Data'!$BH$9 -> 0 | F60: =SUM(F54:F57)*'Master Data'!$BH$9 -> 0 | G60: =SUM(G54:G57)*'Master Data'!$BH$9 -> 0 | H60: =SUM(H54:H57)*'Master Data'!$BH$9 -> 0 | I60: =SUM(I54:I57)*'Master Data'!$BH$9 -> 0 | J60: =SUM(J54:J57)*'Master Data'!$BH$9 -> 0 | K60: =SUM(K54:K57)*'Master Data'!$BH$9 -> 0 | L60: =SUM(L54:L57)*'Master Data'!$BH$9 -> 0 | M60: =SUM(M54:M57)*'Master Data'!$BH$9 -> 0
C61: Additional Contributions | D61: =D54*'Master Data'!$BH$10 -> 0 | E61: =E54*'Master Data'!$BH$10 -> 0 | F61: =F54*'Master Data'!$BH$10 -> 0 | G61: =G54*'Master Data'!$BH$10 -> 0 | H61: =H54*'Master Data'!$BH$10 -> 0 | I61: =I54*'Master Data'!$BH$10 -> 0 | J61: =J54*'Master Data'!$BH$10 -> 0 | K61: =K54*'Master Data'!$BH$10 -> 0 | L61: =L54*'Master Data'!$BH$10 -> 0 | M61: =M54*'Master Data'!$BH$10 -> 0
C62: Total Salary | D62: =SUM(D54:D61) -> 0 | E62: 0 | F62: 0 | G62: 0 | H62: 0 | I62: 0 | J62: 0 | K62: 0 | L62: 0 | M62: 0
C64: Classification Level | D64: =IFERROR(IF(AND(D68>=$P69,D68<=$R69),VLOOKUP('ENTER DETAILS HERE_Costing Tab'!$H$71,'Master Data'!$X$5:$Z$73,2,FALSE),""),"") ->  | E64: =IFERROR(IF(AND(E68>=$P69,E68<=$R69),VLOOKUP('ENTER DETAILS HERE_Costing Tab'!$H$71,'Master Data'!$X$5:$Z$73,2,FALSE),""),"") ->  | F64: =IFERROR(IF(AND(F68>=$P69,F68<=$R69),VLOOKUP('ENTER DETAILS HERE_Costing Tab'!$H$71,'Master Data'!$X$5:$Z$73,2,FALSE),""),"") ->  | G64: =IFERROR(IF(AND(G68>=$P69,G68<=$R69),VLOOKUP('ENTER DETAILS HERE_Costing Tab'!$H$71,'Master Data'!$X$5:$Z$73,2,FALSE),""),"") ->  | H64: =IFERROR(IF(AND(H68>=$P69,H68<=$R69),VLOOKUP('ENTER DETAILS HERE_Costing Tab'!$H$71,'Master Data'!$X$5:$Z$73,2,FALSE),""),"") ->  | I64: =IFERROR(IF(AND(I68>=$P69,I68<=$R69),VLOOKUP('ENTER DETAILS HERE_Costing Tab'!$H$71,'Master Data'!$X$5:$Z$73,2,FALSE),""),"") ->  | J64: =IFERROR(IF(AND(J68>=$P69,J68<=$R69),VLOOKUP('ENTER DETAILS HERE_Costing Tab'!$H$71,'Master Data'!$X$5:$Z$73,2,FALSE),""),"") ->  | K64: =IFERROR(IF(AND(K68>=$P69,K68<=$R69),VLOOKUP('ENTER DETAILS HERE_Costing Tab'!$H$71,'Master Data'!$X$5:$Z$73,2,FALSE),""),"") ->  | L64: =IFERROR(IF(AND(L68>=$P69,L68<=$R69),VLOOKUP('ENTER DETAILS HERE_Costing Tab'!$H$71,'Master Data'!$X$5:$Z$73,2,FALSE),""),"") ->  | M64: =IFERROR(IF(AND(M68>=$P69,M68<=$R69),VLOOKUP('ENTER DETAILS HERE_Costing Tab'!$H$71,'Master Data'!$X$5:$Z$73,2,FALSE),""),"") -> 
C65: Step | D65: =IFERROR( IF(AND(D68>=$P69,D68<=$R69), IF(D68=$P69,VLOOKUP('ENTER DETAILS HERE_Costing Tab'!$H$71,'Master Data'!$X$5:$Z$73,3,FALSE), IF(C65+1>VLOOKUP(D64,Max_Step,2,FALSE),VLOOKUP(D64,Max_Step,2,FALSE),C65+1)),""),"") ->  | E65: =IFERROR( IF(AND(E68>=$P69,E68<=$R69), IF(E68=$P69,VLOOKUP('ENTER DETAILS HERE_Costing Tab'!$H$71,'Master Data'!$X$5:$Z$73,3,FALSE), IF(D65+1>VLOOKUP(E64,Max_Step,2,FALSE),VLOOKUP(E64,Max_Step,2,FALSE),D65+1)),""),"") ->  | F65: =IFERROR( IF(AND(F68>=$P69,F68<=$R69), IF(F68=$P69,VLOOKUP('ENTER DETAILS HERE_Costing Tab'!$H$71,'Master Data'!$X$5:$Z$73,3,FALSE), IF(E65+1>VLOOKUP(F64,Max_Step,2,FALSE),VLOOKUP(F64,Max_Step,2,FALSE),E65+1)),""),"") ->  | G65: =IFERROR( IF(AND(G68>=$P69,G68<=$R69), IF(G68=$P69,VLOOKUP('ENTER DETAILS HERE_Costing Tab'!$H$71,'Master Data'!$X$5:$Z$73,3,FALSE), IF(F65+1>VLOOKUP(G64,Max_Step,2,FALSE),VLOOKUP(G64,Max_Step,2,FALSE),F65+1)),""),"") ->  | H65: =IFERROR( IF(AND(H68>=$P69,H68<=$R69), IF(H68=$P69,VLOOKUP('ENTER DETAILS HERE_Costing Tab'!$H$71,'Master Data'!$X$5:$Z$73,3,FALSE), IF(G65+1>VLOOKUP(H64,Max_Step,2,FALSE),VLOOKUP(H64,Max_Step,2,FALSE),G65+1)),""),"") ->  | I65: =IFERROR( IF(AND(I68>=$P69,I68<=$R69), IF(I68=$P69,VLOOKUP('ENTER DETAILS HERE_Costing Tab'!$H$71,'Master Data'!$X$5:$Z$73,3,FALSE), IF(H65+1>VLOOKUP(I64,Max_Step,2,FALSE),VLOOKUP(I64,Max_Step,2,FALSE),H65+1)),""),"") ->  | J65: =IFERROR( IF(AND(J68>=$P69,J68<=$R69), IF(J68=$P69,VLOOKUP('ENTER DETAILS HERE_Costing Tab'!$H$71,'Master Data'!$X$5:$Z$73,3,FALSE), IF(I65+1>VLOOKUP(J64,Max_Step,2,FALSE),VLOOKUP(J64,Max_Step,2,FALSE),I65+1)),""),"") ->  | K65: =IFERROR( IF(AND(K68>=$P69,K68<=$R69), IF(K68=$P69,VLOOKUP('ENTER DETAILS HERE_Costing Tab'!$H$71,'Master Data'!$X$5:$Z$73,3,FALSE), IF(J65+1>VLOOKUP(K64,Max_Step,2,FALSE),VLOOKUP(K64,Max_Step,2,FALSE),J65+1)),""),"") ->  | L65: =IFERROR( IF(AND(L68>=$P69,L68<=$R69), IF(L68=$P69,VLOOKUP('ENTER DETAILS HERE_Costing Tab'!$H$71,'Master Data'!$X$5:$Z$73,3,FALSE), IF(K65+1>VLOOKUP(L64,Max_Step,2,FALSE),VLOOKUP(L64,Max_Step,2,FALSE),K65+1)),""),"") ->  | M65: =IFERROR( IF(AND(M68>=$P69,M68<=$R69), IF(M68=$P69,VLOOKUP('ENTER DETAILS HERE_Costing Tab'!$H$71,'Master Data'!$X$5:$Z$73,3,FALSE), IF(L65+1>VLOOKUP(M64,Max_Step,2,FALSE),VLOOKUP(M64,Max_Step,2,FALSE),L65+1)),""),"") -> 
C66: Level & Step | D66: =IF(D64="Level E",D64,IF(D64="Senior Manager",D64&" "&D65,D64&"-"&D65)) -> - | E66: =IF(E64="Level E",E64,IF(E64="Senior Manager",E64&" "&E65,E64&"-"&E65)) -> - | F66: - | G66: - | H66: - | I66: - | J66: - | K66: - | L66: - | M66: -
C67: FTE | D67: =IF(D68="",0,IF(AND(D68>=$P69,D68<=$R69),'ENTER DETAILS HERE_Costing Tab'!$N$71,0)) -> 0 | E67: =IF(E68="",0,IF(AND(E68>=$P69,E68<=$R69),'ENTER DETAILS HERE_Costing Tab'!$N$71,0)) -> 0 | F67: =IF(F68="",0,IF(AND(F68>=$P69,F68<=$R69),'ENTER DETAILS HERE_Costing Tab'!$N$71,0)) -> 0 | G67: =IF(G68="",0,IF(AND(G68>=$P69,G68<=$R69),'ENTER DETAILS HERE_Costing Tab'!$N$71,0)) -> 0 | H67: =IF(H68="",0,IF(AND(H68>=$P69,H68<=$R69),'ENTER DETAILS HERE_Costing Tab'!$N$71,0)) -> 0 | I67: =IF(I68="",0,IF(AND(I68>=$P69,I68<=$R69),'ENTER DETAILS HERE_Costing Tab'!$N$71,0)) -> 0 | J67: =IF(J68="",0,IF(AND(J68>=$P69,J68<=$R69),'ENTER DETAILS HERE_Costing Tab'!$N$71,0)) -> 0 | K67: =IF(K68="",0,IF(AND(K68>=$P69,K68<=$R69),'ENTER DETAILS HERE_Costing Tab'!$N$71,0)) -> 0 | L67: =IF(L68="",0,IF(AND(L68>=$P69,L68<=$R69),'ENTER DETAILS HERE_Costing Tab'!$N$71,0)) -> 0 | M67: =IF(M68="",0,IF(AND(M68>=$P69,M68<=$R69),'ENTER DETAILS HERE_Costing Tab'!$N$71,0)) -> 0
B68: 5 | D68: ='ENTER DETAILS HERE_Costing Tab'!$P$64 -> 1900 | E68: ='ENTER DETAILS HERE_Costing Tab'!$Q$64 ->  | F68: ='ENTER DETAILS HERE_Costing Tab'!$R$64 ->  | G68: ='ENTER DETAILS HERE_Costing Tab'!$S$64 ->  | H68: ='ENTER DETAILS HERE_Costing Tab'!$T$64 ->  | I68: ='ENTER DETAILS HERE_Costing Tab'!$U$64 ->  | J68: ='ENTER DETAILS HERE_Costing Tab'!$V$64 ->  | K68: ='ENTER DETAILS HERE_Costing Tab'!$W$64 ->  | L68: ='ENTER DETAILS HERE_Costing Tab'!$X$64 ->  | M68: ='ENTER DETAILS HERE_Costing Tab'!$Y$64 -> 
C69: Base Salary | D69: =IFERROR( IF(AND(D68>=$P69,D68<=$R69), IF(D68=$P69,(INDEX(Cont_FT_Salaries,MATCH(D66,Cont_FT_Levels,0),MATCH(D68-1,Cont_FT_Years,0))*$U69/12+INDEX(Cont_FT_Salaries,MATCH(D66,Cont_FT_Levels,0),MATCH(D68,Cont_FT_Years,0))*$V69/12), IF(D68=$R69,(INDEX(Cont_FT_Salaries,MATCH(D66,Cont_FT_Levels,0),MATCH(D68-1,Cont_FT_Years,0))*$Y69/12+INDEX(Cont_FT_Salaries,MATCH(D66,Cont_FT_Levels,0),MATCH(D68,Cont_FT_Years,0))*$Z69/12), (INDEX(Cont_FT_Salaries,MATCH(D66,Cont_FT_Levels,0),MATCH(D68-1,Cont_FT_Years,0))/2+INDEX(Cont_FT_Salaries,MATCH(D66,Cont_FT_Levels,0),MATCH(D68,Cont_FT_Years,0))/2) )),0),0)*D67 -> 0 | E69: 0 | F69: 0 | G69: 0 | H69: 0 | I69: 0 | J69: 0 | K69: 0 | L69: 0 | M69: 0 | O69: =IFERROR(VLOOKUP('ENTER DETAILS HERE_Costing Tab'!$J$71,'Master Data'!$AW$5:$AX$16,2,FALSE),0) -> 0 | P69: ='ENTER DETAILS HERE_Costing Tab'!$K$71 -> 0 | Q69: =IFERROR(VLOOKUP('ENTER DETAILS HERE_Costing Tab'!$L$71,'Master Data'!$AW$5:$AX$16,2,FALSE),0) -> 0 | R69: ='ENTER DETAILS HERE_Costing Tab'!$M$71 -> 0 | T69: =IFERROR( IF(ISBLANK($P69),0, IF($P69=$R69,$Q69-$O69+1,VLOOKUP($O69,'Master Data'!$AX$5:$BA$16,2,FALSE))),0) -> 1 | U69: =IFERROR( IF(VLOOKUP($O69,'Master Data'!$AX$5:$BA$16,3,FALSE)>$T69,$T69,VLOOKUP($O69,'Master Data'!$AX$5:$BA$16,3,FALSE)),0) -> 0 | V69: =T69-U69 -> 1 | X69: =IF($P69=$R69,0,Q69) -> 0 | Y69: =IF($X69=0,0,VLOOKUP($X69,'Master Data'!$AX$5:$BA$16,4,FALSE)) -> 0 | Z69: =X69-Y69 -> 0
C70: Loadings | D70: =IF(AND(D68>=$P69,D68<=$R69), IF(D68=$P69,'ENTER DETAILS HERE_Costing Tab'!$O$71*$T69/12, IF(D68=$R69,'ENTER DETAILS HERE_Costing Tab'!$O$71*$X69/12, 'ENTER DETAILS HERE_Costing Tab'!$O$71)),0) -> 0 | E70: =IF(AND(E68>=$P69,E68<=$R69), IF(E68=$P69,'ENTER DETAILS HERE_Costing Tab'!$O$71*$T69/12, IF(E68=$R69,'ENTER DETAILS HERE_Costing Tab'!$O$71*$X69/12, 'ENTER DETAILS HERE_Costing Tab'!$O$71)),0) -> 0 | F70: =IF(AND(F68>=$P69,F68<=$R69), IF(F68=$P69,'ENTER DETAILS HERE_Costing Tab'!$O$71*$T69/12, IF(F68=$R69,'ENTER DETAILS HERE_Costing Tab'!$O$71*$X69/12, 'ENTER DETAILS HERE_Costing Tab'!$O$71)),0) -> 0 | G70: =IF(AND(G68>=$P69,G68<=$R69), IF(G68=$P69,'ENTER DETAILS HERE_Costing Tab'!$O$71*$T69/12, IF(G68=$R69,'ENTER DETAILS HERE_Costing Tab'!$O$71*$X69/12, 'ENTER DETAILS HERE_Costing Tab'!$O$71)),0) -> 0 | H70: =IF(AND(H68>=$P69,H68<=$R69), IF(H68=$P69,'ENTER DETAILS HERE_Costing Tab'!$O$71*$T69/12, IF(H68=$R69,'ENTER DETAILS HERE_Costing Tab'!$O$71*$X69/12, 'ENTER DETAILS HERE_Costing Tab'!$O$71)),0) -> 0 | I70: =IF(AND(I68>=$P69,I68<=$R69), IF(I68=$P69,'ENTER DETAILS HERE_Costing Tab'!$O$71*$T69/12, IF(I68=$R69,'ENTER DETAILS HERE_Costing Tab'!$O$71*$X69/12, 'ENTER DETAILS HERE_Costing Tab'!$O$71)),0) -> 0 | J70: =IF(AND(J68>=$P69,J68<=$R69), IF(J68=$P69,'ENTER DETAILS HERE_Costing Tab'!$O$71*$T69/12, IF(J68=$R69,'ENTER DETAILS HERE_Costing Tab'!$O$71*$X69/12, 'ENTER DETAILS HERE_Costing Tab'!$O$71)),0) -> 0 | K70: =IF(AND(K68>=$P69,K68<=$R69), IF(K68=$P69,'ENTER DETAILS HERE_Costing Tab'!$O$71*$T69/12, IF(K68=$R69,'ENTER DETAILS HERE_Costing Tab'!$O$71*$X69/12, 'ENTER DETAILS HERE_Costing Tab'!$O$71)),0) -> 0 | L70: =IF(AND(L68>=$P69,L68<=$R69), IF(L68=$P69,'ENTER DETAILS HERE_Costing Tab'!$O$71*$T69/12, IF(L68=$R69,'ENTER DETAILS HERE_Costing Tab'!$O$71*$X69/12, 'ENTER DETAILS HERE_Costing Tab'!$O$71)),0) -> 0 | M70: =IF(AND(M68>=$P69,M68<=$R69), IF(M68=$P69,'ENTER DETAILS HERE_Costing Tab'!$O$71*$T69/12, IF(M68=$R69,'ENTER DETAILS HERE_Costing Tab'!$O$71*$X69/12, 'ENTER DETAILS HERE_Costing Tab'!$O$71)),0) -> 0
C71: AL Loading | D71: =IF(SUM(D69:D70)*'Master Data'!$BH$8>Max_AL_loading,Max_AL_loading,SUM(D69:D70)*'Master Data'!$BH$8) -> 0 | E71: =IF(SUM(E69:E70)*'Master Data'!$BH$8>Max_AL_loading,Max_AL_loading,SUM(E69:E70)*'Master Data'!$BH$8) -> 0 | F71: =IF(SUM(F69:F70)*'Master Data'!$BH$8>Max_AL_loading,Max_AL_loading,SUM(F69:F70)*'Master Data'!$BH$8) -> 0 | G71: =IF(SUM(G69:G70)*'Master Data'!$BH$8>Max_AL_loading,Max_AL_loading,SUM(G69:G70)*'Master Data'!$BH$8) -> 0 | H71: =IF(SUM(H69:H70)*'Master Data'!$BH$8>Max_AL_loading,Max_AL_loading,SUM(H69:H70)*'Master Data'!$BH$8) -> 0 | I71: =IF(SUM(I69:I70)*'Master Data'!$BH$8>Max_AL_loading,Max_AL_loading,SUM(I69:I70)*'Master Data'!$BH$8) -> 0 | J71: =IF(SUM(J69:J70)*'Master Data'!$BH$8>Max_AL_loading,Max_AL_loading,SUM(J69:J70)*'Master Data'!$BH$8) -> 0 | K71: =IF(SUM(K69:K70)*'Master Data'!$BH$8>Max_AL_loading,Max_AL_loading,SUM(K69:K70)*'Master Data'!$BH$8) -> 0 | L71: =IF(SUM(L69:L70)*'Master Data'!$BH$8>Max_AL_loading,Max_AL_loading,SUM(L69:L70)*'Master Data'!$BH$8) -> 0 | M71: =IF(SUM(M69:M70)*'Master Data'!$BH$8>Max_AL_loading,Max_AL_loading,SUM(M69:M70)*'Master Data'!$BH$8) -> 0
C72: Super | D72: =SUM(D69,D71)*'Master Data'!$BH$7 -> 0 | E72: =SUM(E69,E71)*'Master Data'!$BH$7 -> 0 | F72: =SUM(F69,F71)*'Master Data'!$BH$7 -> 0 | G72: =SUM(G69,G71)*'Master Data'!$BH$7 -> 0 | H72: =SUM(H69,H71)*'Master Data'!$BH$7 -> 0 | I72: =SUM(I69,I71)*'Master Data'!$BH$7 -> 0 | J72: =SUM(J69,J71)*'Master Data'!$BH$7 -> 0 | K72: =SUM(K69,K71)*'Master Data'!$BH$7 -> 0 | L72: =SUM(L69,L71)*'Master Data'!$BH$7 -> 0 | M72: =SUM(M69,M71)*'Master Data'!$BH$7 -> 0
C73: LSL | D73: =SUM(D69:D70)*'Master Data'!$BH$5 -> 0 | E73: =SUM(E69:E70)*'Master Data'!$BH$5 -> 0 | F73: =SUM(F69:F70)*'Master Data'!$BH$5 -> 0 | G73: =SUM(G69:G70)*'Master Data'!$BH$5 -> 0 | H73: =SUM(H69:H70)*'Master Data'!$BH$5 -> 0 | I73: =SUM(I69:I70)*'Master Data'!$BH$5 -> 0 | J73: =SUM(J69:J70)*'Master Data'!$BH$5 -> 0 | K73: =SUM(K69:K70)*'Master Data'!$BH$5 -> 0 | L73: =SUM(L69:L70)*'Master Data'!$BH$5 -> 0 | M73: =SUM(M69:M70)*'Master Data'!$BH$5 -> 0
C74: Payroll | D74: =SUM(D69:D72)*'Master Data'!$BH$6 -> 0 | E74: =SUM(E69:E72)*'Master Data'!$BH$6 -> 0 | F74: =SUM(F69:F72)*'Master Data'!$BH$6 -> 0 | G74: =SUM(G69:G72)*'Master Data'!$BH$6 -> 0 | H74: =SUM(H69:H72)*'Master Data'!$BH$6 -> 0 | I74: =SUM(I69:I72)*'Master Data'!$BH$6 -> 0 | J74: =SUM(J69:J72)*'Master Data'!$BH$6 -> 0 | K74: =SUM(K69:K72)*'Master Data'!$BH$6 -> 0 | L74: =SUM(L69:L72)*'Master Data'!$BH$6 -> 0 | M74: =SUM(M69:M72)*'Master Data'!$BH$6 -> 0
C75: Workcover | D75: =SUM(D69:D72)*'Master Data'!$BH$9 -> 0 | E75: =SUM(E69:E72)*'Master Data'!$BH$9 -> 0 | F75: =SUM(F69:F72)*'Master Data'!$BH$9 -> 0 | G75: =SUM(G69:G72)*'Master Data'!$BH$9 -> 0 | H75: =SUM(H69:H72)*'Master Data'!$BH$9 -> 0 | I75: =SUM(I69:I72)*'Master Data'!$BH$9 -> 0 | J75: =SUM(J69:J72)*'Master Data'!$BH$9 -> 0 | K75: =SUM(K69:K72)*'Master Data'!$BH$9 -> 0 | L75: =SUM(L69:L72)*'Master Data'!$BH$9 -> 0 | M75: =SUM(M69:M72)*'Master Data'!$BH$9 -> 0
C76: Additional Contributions | D76: =D69*'Master Data'!$BH$10 -> 0 | E76: =E69*'Master Data'!$BH$10 -> 0 | F76: =F69*'Master Data'!$BH$10 -> 0 | G76: =G69*'Master Data'!$BH$10 -> 0 | H76: =H69*'Master Data'!$BH$10 -> 0 | I76: =I69*'Master Data'!$BH$10 -> 0 | J76: =J69*'Master Data'!$BH$10 -> 0 | K76: =K69*'Master Data'!$BH$10 -> 0 | L76: =L69*'Master Data'!$BH$10 -> 0 | M76: =M69*'Master Data'!$BH$10 -> 0
C77: Total Salary | D77: =SUM(D69:D76) -> 0 | E77: 0 | F77: 0 | G77: 0 | H77: 0 | I77: 0 | J77: 0 | K77: 0 | L77: 0 | M77: 0
C79: Classification Level | D79: =IFERROR(IF(AND(D83>=$P84,D83<=$R84),VLOOKUP('ENTER DETAILS HERE_Costing Tab'!$H$72,'Master Data'!$X$5:$Z$73,2,FALSE),""),"") ->  | E79: =IFERROR(IF(AND(E83>=$P84,E83<=$R84),VLOOKUP('ENTER DETAILS HERE_Costing Tab'!$H$72,'Master Data'!$X$5:$Z$73,2,FALSE),""),"") ->  | F79: =IFERROR(IF(AND(F83>=$P84,F83<=$R84),VLOOKUP('ENTER DETAILS HERE_Costing Tab'!$H$72,'Master Data'!$X$5:$Z$73,2,FALSE),""),"") ->  | G79: =IFERROR(IF(AND(G83>=$P84,G83<=$R84),VLOOKUP('ENTER DETAILS HERE_Costing Tab'!$H$72,'Master Data'!$X$5:$Z$73,2,FALSE),""),"") ->  | H79: =IFERROR(IF(AND(H83>=$P84,H83<=$R84),VLOOKUP('ENTER DETAILS HERE_Costing Tab'!$H$72,'Master Data'!$X$5:$Z$73,2,FALSE),""),"") ->  | I79: =IFERROR(IF(AND(I83>=$P84,I83<=$R84),VLOOKUP('ENTER DETAILS HERE_Costing Tab'!$H$72,'Master Data'!$X$5:$Z$73,2,FALSE),""),"") ->  | J79: =IFERROR(IF(AND(J83>=$P84,J83<=$R84),VLOOKUP('ENTER DETAILS HERE_Costing Tab'!$H$72,'Master Data'!$X$5:$Z$73,2,FALSE),""),"") ->  | K79: =IFERROR(IF(AND(K83>=$P84,K83<=$R84),VLOOKUP('ENTER DETAILS HERE_Costing Tab'!$H$72,'Master Data'!$X$5:$Z$73,2,FALSE),""),"") ->  | L79: =IFERROR(IF(AND(L83>=$P84,L83<=$R84),VLOOKUP('ENTER DETAILS HERE_Costing Tab'!$H$72,'Master Data'!$X$5:$Z$73,2,FALSE),""),"") ->  | M79: =IFERROR(IF(AND(M83>=$P84,M83<=$R84),VLOOKUP('ENTER DETAILS HERE_Costing Tab'!$H$72,'Master Data'!$X$5:$Z$73,2,FALSE),""),"") -> 
C80: Step | D80: =IFERROR( IF(AND(D83>=$P84,D83<=$R84), IF(D83=$P84,VLOOKUP('ENTER DETAILS HERE_Costing Tab'!$H$72,'Master Data'!$X$5:$Z$73,3,FALSE), IF(C80+1>VLOOKUP(D79,Max_Step,2,FALSE),VLOOKUP(D79,Max_Step,2,FALSE),C80+1)),""),"") ->  | E80: =IFERROR( IF(AND(E83>=$P84,E83<=$R84), IF(E83=$P84,VLOOKUP('ENTER DETAILS HERE_Costing Tab'!$H$72,'Master Data'!$X$5:$Z$73,3,FALSE), IF(D80+1>VLOOKUP(E79,Max_Step,2,FALSE),VLOOKUP(E79,Max_Step,2,FALSE),D80+1)),""),"") ->  | F80: =IFERROR( IF(AND(F83>=$P84,F83<=$R84), IF(F83=$P84,VLOOKUP('ENTER DETAILS HERE_Costing Tab'!$H$72,'Master Data'!$X$5:$Z$73,3,FALSE), IF(E80+1>VLOOKUP(F79,Max_Step,2,FALSE),VLOOKUP(F79,Max_Step,2,FALSE),E80+1)),""),"") ->  | G80: =IFERROR( IF(AND(G83>=$P84,G83<=$R84), IF(G83=$P84,VLOOKUP('ENTER DETAILS HERE_Costing Tab'!$H$72,'Master Data'!$X$5:$Z$73,3,FALSE), IF(F80+1>VLOOKUP(G79,Max_Step,2,FALSE),VLOOKUP(G79,Max_Step,2,FALSE),F80+1)),""),"") ->  | H80: =IFERROR( IF(AND(H83>=$P84,H83<=$R84), IF(H83=$P84,VLOOKUP('ENTER DETAILS HERE_Costing Tab'!$H$72,'Master Data'!$X$5:$Z$73,3,FALSE), IF(G80+1>VLOOKUP(H79,Max_Step,2,FALSE),VLOOKUP(H79,Max_Step,2,FALSE),G80+1)),""),"") ->  | I80: =IFERROR( IF(AND(I83>=$P84,I83<=$R84), IF(I83=$P84,VLOOKUP('ENTER DETAILS HERE_Costing Tab'!$H$72,'Master Data'!$X$5:$Z$73,3,FALSE), IF(H80+1>VLOOKUP(I79,Max_Step,2,FALSE),VLOOKUP(I79,Max_Step,2,FALSE),H80+1)),""),"") ->  | J80: =IFERROR( IF(AND(J83>=$P84,J83<=$R84), IF(J83=$P84,VLOOKUP('ENTER DETAILS HERE_Costing Tab'!$H$72,'Master Data'!$X$5:$Z$73,3,FALSE), IF(I80+1>VLOOKUP(J79,Max_Step,2,FALSE),VLOOKUP(J79,Max_Step,2,FALSE),I80+1)),""),"") ->  | K80: =IFERROR( IF(AND(K83>=$P84,K83<=$R84), IF(K83=$P84,VLOOKUP('ENTER DETAILS HERE_Costing Tab'!$H$72,'Master Data'!$X$5:$Z$73,3,FALSE), IF(J80+1>VLOOKUP(K79,Max_Step,2,FALSE),VLOOKUP(K79,Max_Step,2,FALSE),J80+1)),""),"") ->  | L80: =IFERROR( IF(AND(L83>=$P84,L83<=$R84), IF(L83=$P84,VLOOKUP('ENTER DETAILS HERE_Costing Tab'!$H$72,'Master Data'!$X$5:$Z$73,3,FALSE), IF(K80+1>VLOOKUP(L79,Max_Step,2,FALSE),VLOOKUP(L79,Max_Step,2,FALSE),K80+1)),""),"") ->  | M80: =IFERROR( IF(AND(M83>=$P84,M83<=$R84), IF(M83=$P84,VLOOKUP('ENTER DETAILS HERE_Costing Tab'!$H$72,'Master Data'!$X$5:$Z$73,3,FALSE), IF(L80+1>VLOOKUP(M79,Max_Step,2,FALSE),VLOOKUP(M79,Max_Step,2,FALSE),L80+1)),""),"") -> 
C81: Level & Step | D81: =IF(D79="Level E",D79,IF(D79="Senior Manager",D79&" "&D80,D79&"-"&D80)) -> - | E81: =IF(E79="Level E",E79,IF(E79="Senior Manager",E79&" "&E80,E79&"-"&E80)) -> - | F81: - | G81: - | H81: - | I81: - | J81: - | K81: - | L81: - | M81: -
C82: FTE | D82: =IF(D83="",0,IF(AND(D83>=$P84,D83<=$R84),'ENTER DETAILS HERE_Costing Tab'!$N$72,0)) -> 0 | E82: =IF(E83="",0,IF(AND(E83>=$P84,E83<=$R84),'ENTER DETAILS HERE_Costing Tab'!$N$72,0)) -> 0 | F82: =IF(F83="",0,IF(AND(F83>=$P84,F83<=$R84),'ENTER DETAILS HERE_Costing Tab'!$N$72,0)) -> 0 | G82: =IF(G83="",0,IF(AND(G83>=$P84,G83<=$R84),'ENTER DETAILS HERE_Costing Tab'!$N$72,0)) -> 0 | H82: =IF(H83="",0,IF(AND(H83>=$P84,H83<=$R84),'ENTER DETAILS HERE_Costing Tab'!$N$72,0)) -> 0 | I82: =IF(I83="",0,IF(AND(I83>=$P84,I83<=$R84),'ENTER DETAILS HERE_Costing Tab'!$N$72,0)) -> 0 | J82: =IF(J83="",0,IF(AND(J83>=$P84,J83<=$R84),'ENTER DETAILS HERE_Costing Tab'!$N$72,0)) -> 0 | K82: =IF(K83="",0,IF(AND(K83>=$P84,K83<=$R84),'ENTER DETAILS HERE_Costing Tab'!$N$72,0)) -> 0 | L82: =IF(L83="",0,IF(AND(L83>=$P84,L83<=$R84),'ENTER DETAILS HERE_Costing Tab'!$N$72,0)) -> 0 | M82: =IF(M83="",0,IF(AND(M83>=$P84,M83<=$R84),'ENTER DETAILS HERE_Costing Tab'!$N$72,0)) -> 0
B83: 6 | D83: ='ENTER DETAILS HERE_Costing Tab'!$P$64 -> 1900 | E83: ='ENTER DETAILS HERE_Costing Tab'!$Q$64 ->  | F83: ='ENTER DETAILS HERE_Costing Tab'!$R$64 ->  | G83: ='ENTER DETAILS HERE_Costing Tab'!$S$64 ->  | H83: ='ENTER DETAILS HERE_Costing Tab'!$T$64 ->  | I83: ='ENTER DETAILS HERE_Costing Tab'!$U$64 ->  | J83: ='ENTER DETAILS HERE_Costing Tab'!$V$64 ->  | K83: ='ENTER DETAILS HERE_Costing Tab'!$W$64 ->  | L83: ='ENTER DETAILS HERE_Costing Tab'!$X$64 ->  | M83: ='ENTER DETAILS HERE_Costing Tab'!$Y$64 -> 
C84: Base Salary | D84: =IFERROR( IF(AND(D83>=$P84,D83<=$R84), IF(D83=$P84,(INDEX(Cont_FT_Salaries,MATCH(D81,Cont_FT_Levels,0),MATCH(D83-1,Cont_FT_Years,0))*$U84/12+INDEX(Cont_FT_Salaries,MATCH(D81,Cont_FT_Levels,0),MATCH(D83,Cont_FT_Years,0))*$V84/12), IF(D83=$R84,(INDEX(Cont_FT_Salaries,MATCH(D81,Cont_FT_Levels,0),MATCH(D83-1,Cont_FT_Years,0))*$Y84/12+INDEX(Cont_FT_Salaries,MATCH(D81,Cont_FT_Levels,0),MATCH(D83,Cont_FT_Years,0))*$Z84/12), (INDEX(Cont_FT_Salaries,MATCH(D81,Cont_FT_Levels,0),MATCH(D83-1,Cont_FT_Years,0))/2+INDEX(Cont_FT_Salaries,MATCH(D81,Cont_FT_Levels,0),MATCH(D83,Cont_FT_Years,0))/2) )),0),0)*D82 -> 0 | E84: 0 | F84: 0 | G84: 0 | H84: 0 | I84: 0 | J84: 0 | K84: 0 | L84: 0 | M84: 0 | O84: =IFERROR(VLOOKUP('ENTER DETAILS HERE_Costing Tab'!$J$72,'Master Data'!$AW$5:$AX$16,2,FALSE),0) -> 0 | P84: ='ENTER DETAILS HERE_Costing Tab'!$K$72 -> 0 | Q84: =IFERROR(VLOOKUP('ENTER DETAILS HERE_Costing Tab'!$L$72,'Master Data'!$AW$5:$AX$16,2,FALSE),0) -> 0 | R84: ='ENTER DETAILS HERE_Costing Tab'!$M$72 -> 0 | T84: =IFERROR( IF(ISBLANK($P84),0, IF($P84=$R84,$Q84-$O84+1,VLOOKUP($O84,'Master Data'!$AX$5:$BA$16,2,FALSE))),0) -> 1 | U84: =IFERROR( IF(VLOOKUP($O84,'Master Data'!$AX$5:$BA$16,3,FALSE)>$T84,$T84,VLOOKUP($O84,'Master Data'!$AX$5:$BA$16,3,FALSE)),0) -> 0 | V84: =T84-U84 -> 1 | X84: =IF($P84=$R84,0,Q84) -> 0 | Y84: =IF($X84=0,0,VLOOKUP($X84,'Master Data'!$AX$5:$BA$16,4,FALSE)) -> 0 | Z84: =X84-Y84 -> 0
C85: Loadings | D85: =IF(AND(D83>=$P84,D83<=$R84), IF(D83=$P84,'ENTER DETAILS HERE_Costing Tab'!$O$72*$T84/12, IF(D83=$R84,'ENTER DETAILS HERE_Costing Tab'!$O$72*$X84/12, 'ENTER DETAILS HERE_Costing Tab'!$O$72)),0) -> 0 | E85: =IF(AND(E83>=$P84,E83<=$R84), IF(E83=$P84,'ENTER DETAILS HERE_Costing Tab'!$O$72*$T84/12, IF(E83=$R84,'ENTER DETAILS HERE_Costing Tab'!$O$72*$X84/12, 'ENTER DETAILS HERE_Costing Tab'!$O$72)),0) -> 0 | F85: =IF(AND(F83>=$P84,F83<=$R84), IF(F83=$P84,'ENTER DETAILS HERE_Costing Tab'!$O$72*$T84/12, IF(F83=$R84,'ENTER DETAILS HERE_Costing Tab'!$O$72*$X84/12, 'ENTER DETAILS HERE_Costing Tab'!$O$72)),0) -> 0 | G85: =IF(AND(G83>=$P84,G83<=$R84), IF(G83=$P84,'ENTER DETAILS HERE_Costing Tab'!$O$72*$T84/12, IF(G83=$R84,'ENTER DETAILS HERE_Costing Tab'!$O$72*$X84/12, 'ENTER DETAILS HERE_Costing Tab'!$O$72)),0) -> 0 | H85: =IF(AND(H83>=$P84,H83<=$R84), IF(H83=$P84,'ENTER DETAILS HERE_Costing Tab'!$O$72*$T84/12, IF(H83=$R84,'ENTER DETAILS HERE_Costing Tab'!$O$72*$X84/12, 'ENTER DETAILS HERE_Costing Tab'!$O$72)),0) -> 0 | I85: =IF(AND(I83>=$P84,I83<=$R84), IF(I83=$P84,'ENTER DETAILS HERE_Costing Tab'!$O$72*$T84/12, IF(I83=$R84,'ENTER DETAILS HERE_Costing Tab'!$O$72*$X84/12, 'ENTER DETAILS HERE_Costing Tab'!$O$72)),0) -> 0 | J85: =IF(AND(J83>=$P84,J83<=$R84), IF(J83=$P84,'ENTER DETAILS HERE_Costing Tab'!$O$72*$T84/12, IF(J83=$R84,'ENTER DETAILS HERE_Costing Tab'!$O$72*$X84/12, 'ENTER DETAILS HERE_Costing Tab'!$O$72)),0) -> 0 | K85: =IF(AND(K83>=$P84,K83<=$R84), IF(K83=$P84,'ENTER DETAILS HERE_Costing Tab'!$O$72*$T84/12, IF(K83=$R84,'ENTER DETAILS HERE_Costing Tab'!$O$72*$X84/12, 'ENTER DETAILS HERE_Costing Tab'!$O$72)),0) -> 0 | L85: =IF(AND(L83>=$P84,L83<=$R84), IF(L83=$P84,'ENTER DETAILS HERE_Costing Tab'!$O$72*$T84/12, IF(L83=$R84,'ENTER DETAILS HERE_Costing Tab'!$O$72*$X84/12, 'ENTER DETAILS HERE_Costing Tab'!$O$72)),0) -> 0 | M85: =IF(AND(M83>=$P84,M83<=$R84), IF(M83=$P84,'ENTER DETAILS HERE_Costing Tab'!$O$72*$T84/12, IF(M83=$R84,'ENTER DETAILS HERE_Costing Tab'!$O$72*$X84/12, 'ENTER DETAILS HERE_Costing Tab'!$O$72)),0) -> 0
C86: AL Loading | D86: =IF(SUM(D84:D85)*'Master Data'!$BH$8>Max_AL_loading,Max_AL_loading,SUM(D84:D85)*'Master Data'!$BH$8) -> 0 | E86: =IF(SUM(E84:E85)*'Master Data'!$BH$8>Max_AL_loading,Max_AL_loading,SUM(E84:E85)*'Master Data'!$BH$8) -> 0 | F86: =IF(SUM(F84:F85)*'Master Data'!$BH$8>Max_AL_loading,Max_AL_loading,SUM(F84:F85)*'Master Data'!$BH$8) -> 0 | G86: =IF(SUM(G84:G85)*'Master Data'!$BH$8>Max_AL_loading,Max_AL_loading,SUM(G84:G85)*'Master Data'!$BH$8) -> 0 | H86: =IF(SUM(H84:H85)*'Master Data'!$BH$8>Max_AL_loading,Max_AL_loading,SUM(H84:H85)*'Master Data'!$BH$8) -> 0 | I86: =IF(SUM(I84:I85)*'Master Data'!$BH$8>Max_AL_loading,Max_AL_loading,SUM(I84:I85)*'Master Data'!$BH$8) -> 0 | J86: =IF(SUM(J84:J85)*'Master Data'!$BH$8>Max_AL_loading,Max_AL_loading,SUM(J84:J85)*'Master Data'!$BH$8) -> 0 | K86: =IF(SUM(K84:K85)*'Master Data'!$BH$8>Max_AL_loading,Max_AL_loading,SUM(K84:K85)*'Master Data'!$BH$8) -> 0 | L86: =IF(SUM(L84:L85)*'Master Data'!$BH$8>Max_AL_loading,Max_AL_loading,SUM(L84:L85)*'Master Data'!$BH$8) -> 0 | M86: =IF(SUM(M84:M85)*'Master Data'!$BH$8>Max_AL_loading,Max_AL_loading,SUM(M84:M85)*'Master Data'!$BH$8) -> 0
C87: Super | D87: =SUM(D84,D86)*'Master Data'!$BH$7 -> 0 | E87: =SUM(E84,E86)*'Master Data'!$BH$7 -> 0 | F87: =SUM(F84,F86)*'Master Data'!$BH$7 -> 0 | G87: =SUM(G84,G86)*'Master Data'!$BH$7 -> 0 | H87: =SUM(H84,H86)*'Master Data'!$BH$7 -> 0 | I87: =SUM(I84,I86)*'Master Data'!$BH$7 -> 0 | J87: =SUM(J84,J86)*'Master Data'!$BH$7 -> 0 | K87: =SUM(K84,K86)*'Master Data'!$BH$7 -> 0 | L87: =SUM(L84,L86)*'Master Data'!$BH$7 -> 0 | M87: =SUM(M84,M86)*'Master Data'!$BH$7 -> 0
C88: LSL | D88: =SUM(D84:D85)*'Master Data'!$BH$5 -> 0 | E88: =SUM(E84:E85)*'Master Data'!$BH$5 -> 0 | F88: =SUM(F84:F85)*'Master Data'!$BH$5 -> 0 | G88: =SUM(G84:G85)*'Master Data'!$BH$5 -> 0 | H88: =SUM(H84:H85)*'Master Data'!$BH$5 -> 0 | I88: =SUM(I84:I85)*'Master Data'!$BH$5 -> 0 | J88: =SUM(J84:J85)*'Master Data'!$BH$5 -> 0 | K88: =SUM(K84:K85)*'Master Data'!$BH$5 -> 0 | L88: =SUM(L84:L85)*'Master Data'!$BH$5 -> 0 | M88: =SUM(M84:M85)*'Master Data'!$BH$5 -> 0
C89: Payroll | D89: =SUM(D84:D87)*'Master Data'!$BH$6 -> 0 | E89: =SUM(E84:E87)*'Master Data'!$BH$6 -> 0 | F89: =SUM(F84:F87)*'Master Data'!$BH$6 -> 0 | G89: =SUM(G84:G87)*'Master Data'!$BH$6 -> 0 | H89: =SUM(H84:H87)*'Master Data'!$BH$6 -> 0 | I89: =SUM(I84:I87)*'Master Data'!$BH$6 -> 0 | J89: =SUM(J84:J87)*'Master Data'!$BH$6 -> 0 | K89: =SUM(K84:K87)*'Master Data'!$BH$6 -> 0 | L89: =SUM(L84:L87)*'Master Data'!$BH$6 -> 0 | M89: =SUM(M84:M87)*'Master Data'!$BH$6 -> 0
C90: Workcover | D90: =SUM(D84:D87)*'Master Data'!$BH$9 -> 0 | E90: =SUM(E84:E87)*'Master Data'!$BH$9 -> 0 | F90: =SUM(F84:F87)*'Master Data'!$BH$9 -> 0 | G90: =SUM(G84:G87)*'Master Data'!$BH$9 -> 0 | H90: =SUM(H84:H87)*'Master Data'!$BH$9 -> 0 | I90: =SUM(I84:I87)*'Master Data'!$BH$9 -> 0 | J90: =SUM(J84:J87)*'Master Data'!$BH$9 -> 0 | K90: =SUM(K84:K87)*'Master Data'!$BH$9 -> 0 | L90: =SUM(L84:L87)*'Master Data'!$BH$9 -> 0 | M90: =SUM(M84:M87)*'Master Data'!$BH$9 -> 0
C91: Additional Contributions | D91: =D84*'Master Data'!$BH$10 -> 0 | E91: =E84*'Master Data'!$BH$10 -> 0 | F91: =F84*'Master Data'!$BH$10 -> 0 | G91: =G84*'Master Data'!$BH$10 -> 0 | H91: =H84*'Master Data'!$BH$10 -> 0 | I91: =I84*'Master Data'!$BH$10 -> 0 | J91: =J84*'Master Data'!$BH$10 -> 0 | K91: =K84*'Master Data'!$BH$10 -> 0 | L91: =L84*'Master Data'!$BH$10 -> 0 | M91: =M84*'Master Data'!$BH$10 -> 0
C92: Total Salary | D92: =SUM(D84:D91) -> 0 | E92: 0 | F92: 0 | G92: 0 | H92: 0 | I92: 0 | J92: 0 | K92: 0 | L92: 0 | M92: 0
C94: Classification Level | D94: =IFERROR(IF(AND(D98>=$P99,D98<=$R99),VLOOKUP('ENTER DETAILS HERE_Costing Tab'!$H$73,'Master Data'!$X$5:$Z$73,2,FALSE),""),"") ->  | E94: =IFERROR(IF(AND(E98>=$P99,E98<=$R99),VLOOKUP('ENTER DETAILS HERE_Costing Tab'!$H$73,'Master Data'!$X$5:$Z$73,2,FALSE),""),"") ->  | F94: =IFERROR(IF(AND(F98>=$P99,F98<=$R99),VLOOKUP('ENTER DETAILS HERE_Costing Tab'!$H$73,'Master Data'!$X$5:$Z$73,2,FALSE),""),"") ->  | G94: =IFERROR(IF(AND(G98>=$P99,G98<=$R99),VLOOKUP('ENTER DETAILS HERE_Costing Tab'!$H$73,'Master Data'!$X$5:$Z$73,2,FALSE),""),"") ->  | H94: =IFERROR(IF(AND(H98>=$P99,H98<=$R99),VLOOKUP('ENTER DETAILS HERE_Costing Tab'!$H$73,'Master Data'!$X$5:$Z$73,2,FALSE),""),"") ->  | I94: =IFERROR(IF(AND(I98>=$P99,I98<=$R99),VLOOKUP('ENTER DETAILS HERE_Costing Tab'!$H$73,'Master Data'!$X$5:$Z$73,2,FALSE),""),"") ->  | J94: =IFERROR(IF(AND(J98>=$P99,J98<=$R99),VLOOKUP('ENTER DETAILS HERE_Costing Tab'!$H$73,'Master Data'!$X$5:$Z$73,2,FALSE),""),"") ->  | K94: =IFERROR(IF(AND(K98>=$P99,K98<=$R99),VLOOKUP('ENTER DETAILS HERE_Costing Tab'!$H$73,'Master Data'!$X$5:$Z$73,2,FALSE),""),"") ->  | L94: =IFERROR(IF(AND(L98>=$P99,L98<=$R99),VLOOKUP('ENTER DETAILS HERE_Costing Tab'!$H$73,'Master Data'!$X$5:$Z$73,2,FALSE),""),"") ->  | M94: =IFERROR(IF(AND(M98>=$P99,M98<=$R99),VLOOKUP('ENTER DETAILS HERE_Costing Tab'!$H$73,'Master Data'!$X$5:$Z$73,2,FALSE),""),"") -> 
C95: Step | D95: =IFERROR( IF(AND(D98>=$P99,D98<=$R99), IF(D98=$P99,VLOOKUP('ENTER DETAILS HERE_Costing Tab'!$H$73,'Master Data'!$X$5:$Z$73,3,FALSE), IF(C95+1>VLOOKUP(D94,Max_Step,2,FALSE),VLOOKUP(D94,Max_Step,2,FALSE),C95+1)),""),"") ->  | E95: =IFERROR( IF(AND(E98>=$P99,E98<=$R99), IF(E98=$P99,VLOOKUP('ENTER DETAILS HERE_Costing Tab'!$H$73,'Master Data'!$X$5:$Z$73,3,FALSE), IF(D95+1>VLOOKUP(E94,Max_Step,2,FALSE),VLOOKUP(E94,Max_Step,2,FALSE),D95+1)),""),"") ->  | F95: =IFERROR( IF(AND(F98>=$P99,F98<=$R99), IF(F98=$P99,VLOOKUP('ENTER DETAILS HERE_Costing Tab'!$H$73,'Master Data'!$X$5:$Z$73,3,FALSE), IF(E95+1>VLOOKUP(F94,Max_Step,2,FALSE),VLOOKUP(F94,Max_Step,2,FALSE),E95+1)),""),"") ->  | G95: =IFERROR( IF(AND(G98>=$P99,G98<=$R99), IF(G98=$P99,VLOOKUP('ENTER DETAILS HERE_Costing Tab'!$H$73,'Master Data'!$X$5:$Z$73,3,FALSE), IF(F95+1>VLOOKUP(G94,Max_Step,2,FALSE),VLOOKUP(G94,Max_Step,2,FALSE),F95+1)),""),"") ->  | H95: =IFERROR( IF(AND(H98>=$P99,H98<=$R99), IF(H98=$P99,VLOOKUP('ENTER DETAILS HERE_Costing Tab'!$H$73,'Master Data'!$X$5:$Z$73,3,FALSE), IF(G95+1>VLOOKUP(H94,Max_Step,2,FALSE),VLOOKUP(H94,Max_Step,2,FALSE),G95+1)),""),"") ->  | I95: =IFERROR( IF(AND(I98>=$P99,I98<=$R99), IF(I98=$P99,VLOOKUP('ENTER DETAILS HERE_Costing Tab'!$H$73,'Master Data'!$X$5:$Z$73,3,FALSE), IF(H95+1>VLOOKUP(I94,Max_Step,2,FALSE),VLOOKUP(I94,Max_Step,2,FALSE),H95+1)),""),"") ->  | J95: =IFERROR( IF(AND(J98>=$P99,J98<=$R99), IF(J98=$P99,VLOOKUP('ENTER DETAILS HERE_Costing Tab'!$H$73,'Master Data'!$X$5:$Z$73,3,FALSE), IF(I95+1>VLOOKUP(J94,Max_Step,2,FALSE),VLOOKUP(J94,Max_Step,2,FALSE),I95+1)),""),"") ->  | K95: =IFERROR( IF(AND(K98>=$P99,K98<=$R99), IF(K98=$P99,VLOOKUP('ENTER DETAILS HERE_Costing Tab'!$H$73,'Master Data'!$X$5:$Z$73,3,FALSE), IF(J95+1>VLOOKUP(K94,Max_Step,2,FALSE),VLOOKUP(K94,Max_Step,2,FALSE),J95+1)),""),"") ->  | L95: =IFERROR( IF(AND(L98>=$P99,L98<=$R99), IF(L98=$P99,VLOOKUP('ENTER DETAILS HERE_Costing Tab'!$H$73,'Master Data'!$X$5:$Z$73,3,FALSE), IF(K95+1>VLOOKUP(L94,Max_Step,2,FALSE),VLOOKUP(L94,Max_Step,2,FALSE),K95+1)),""),"") ->  | M95: =IFERROR( IF(AND(M98>=$P99,M98<=$R99), IF(M98=$P99,VLOOKUP('ENTER DETAILS HERE_Costing Tab'!$H$73,'Master Data'!$X$5:$Z$73,3,FALSE), IF(L95+1>VLOOKUP(M94,Max_Step,2,FALSE),VLOOKUP(M94,Max_Step,2,FALSE),L95+1)),""),"") -> 
C96: Level & Step | D96: =IF(D94="Level E",D94,IF(D94="Senior Manager",D94&" "&D95,D94&"-"&D95)) -> - | E96: =IF(E94="Level E",E94,IF(E94="Senior Manager",E94&" "&E95,E94&"-"&E95)) -> - | F96: - | G96: - | H96: - | I96: - | J96: - | K96: - | L96: - | M96: -
C97: FTE | D97: =IF(D98="",0,IF(AND(D98>=$P99,D98<=$R99),'ENTER DETAILS HERE_Costing Tab'!$N$73,0)) -> 0 | E97: =IF(E98="",0,IF(AND(E98>=$P99,E98<=$R99),'ENTER DETAILS HERE_Costing Tab'!$N$73,0)) -> 0 | F97: =IF(F98="",0,IF(AND(F98>=$P99,F98<=$R99),'ENTER DETAILS HERE_Costing Tab'!$N$73,0)) -> 0 | G97: =IF(G98="",0,IF(AND(G98>=$P99,G98<=$R99),'ENTER DETAILS HERE_Costing Tab'!$N$73,0)) -> 0 | H97: =IF(H98="",0,IF(AND(H98>=$P99,H98<=$R99),'ENTER DETAILS HERE_Costing Tab'!$N$73,0)) -> 0 | I97: =IF(I98="",0,IF(AND(I98>=$P99,I98<=$R99),'ENTER DETAILS HERE_Costing Tab'!$N$73,0)) -> 0 | J97: =IF(J98="",0,IF(AND(J98>=$P99,J98<=$R99),'ENTER DETAILS HERE_Costing Tab'!$N$73,0)) -> 0 | K97: =IF(K98="",0,IF(AND(K98>=$P99,K98<=$R99),'ENTER DETAILS HERE_Costing Tab'!$N$73,0)) -> 0 | L97: =IF(L98="",0,IF(AND(L98>=$P99,L98<=$R99),'ENTER DETAILS HERE_Costing Tab'!$N$73,0)) -> 0 | M97: =IF(M98="",0,IF(AND(M98>=$P99,M98<=$R99),'ENTER DETAILS HERE_Costing Tab'!$N$73,0)) -> 0
B98: 7 | D98: ='ENTER DETAILS HERE_Costing Tab'!$P$64 -> 1900 | E98: ='ENTER DETAILS HERE_Costing Tab'!$Q$64 ->  | F98: ='ENTER DETAILS HERE_Costing Tab'!$R$64 ->  | G98: ='ENTER DETAILS HERE_Costing Tab'!$S$64 ->  | H98: ='ENTER DETAILS HERE_Costing Tab'!$T$64 ->  | I98: ='ENTER DETAILS HERE_Costing Tab'!$U$64 ->  | J98: ='ENTER DETAILS HERE_Costing Tab'!$V$64 ->  | K98: ='ENTER DETAILS HERE_Costing Tab'!$W$64 ->  | L98: ='ENTER DETAILS HERE_Costing Tab'!$X$64 ->  | M98: ='ENTER DETAILS HERE_Costing Tab'!$Y$64 -> 
C99: Base Salary | D99: =IFERROR( IF(AND(D98>=$P99,D98<=$R99), IF(D98=$P99,(INDEX(Cont_FT_Salaries,MATCH(D96,Cont_FT_Levels,0),MATCH(D98-1,Cont_FT_Years,0))*$U99/12+INDEX(Cont_FT_Salaries,MATCH(D96,Cont_FT_Levels,0),MATCH(D98,Cont_FT_Years,0))*$V99/12), IF(D98=$R99,(INDEX(Cont_FT_Salaries,MATCH(D96,Cont_FT_Levels,0),MATCH(D98-1,Cont_FT_Years,0))*$Y99/12+INDEX(Cont_FT_Salaries,MATCH(D96,Cont_FT_Levels,0),MATCH(D98,Cont_FT_Years,0))*$Z99/12), (INDEX(Cont_FT_Salaries,MATCH(D96,Cont_FT_Levels,0),MATCH(D98-1,Cont_FT_Years,0))/2+INDEX(Cont_FT_Salaries,MATCH(D96,Cont_FT_Levels,0),MATCH(D98,Cont_FT_Years,0))/2) )),0),0)*D97 -> 0 | E99: 0 | F99: 0 | G99: 0 | H99: 0 | I99: 0 | J99: 0 | K99: 0 | L99: 0 | M99: 0 | O99: =IFERROR(VLOOKUP('ENTER DETAILS HERE_Costing Tab'!$J$73,'Master Data'!$AW$5:$AX$16,2,FALSE),0) -> 0 | P99: ='ENTER DETAILS HERE_Costing Tab'!$K$73 -> 0 | Q99: =IFERROR(VLOOKUP('ENTER DETAILS HERE_Costing Tab'!$L$73,'Master Data'!$AW$5:$AX$16,2,FALSE),0) -> 0 | R99: ='ENTER DETAILS HERE_Costing Tab'!$M$73 -> 0 | T99: =IFERROR( IF(ISBLANK($P99),0, IF($P99=$R99,$Q99-$O99+1,VLOOKUP($O99,'Master Data'!$AX$5:$BA$16,2,FALSE))),0) -> 1 | U99: =IFERROR( IF(VLOOKUP($O99,'Master Data'!$AX$5:$BA$16,3,FALSE)>$T99,$T99,VLOOKUP($O99,'Master Data'!$AX$5:$BA$16,3,FALSE)),0) -> 0 | V99: =T99-U99 -> 1 | X99: =IF($P99=$R99,0,Q99) -> 0 | Y99: =IF($X99=0,0,VLOOKUP($X99,'Master Data'!$AX$5:$BA$16,4,FALSE)) -> 0 | Z99: =X99-Y99 -> 0
C100: Loadings | D100: =IF(AND(D98>=$P99,D98<=$R99), IF(D98=$P99,'ENTER DETAILS HERE_Costing Tab'!$O$73*$T99/12, IF(D98=$R99,'ENTER DETAILS HERE_Costing Tab'!$O$73*$X99/12, 'ENTER DETAILS HERE_Costing Tab'!$O$73)),0) -> 0 | E100: =IF(AND(E98>=$P99,E98<=$R99), IF(E98=$P99,'ENTER DETAILS HERE_Costing Tab'!$O$73*$T99/12, IF(E98=$R99,'ENTER DETAILS HERE_Costing Tab'!$O$73*$X99/12, 'ENTER DETAILS HERE_Costing Tab'!$O$73)),0) -> 0 | F100: =IF(AND(F98>=$P99,F98<=$R99), IF(F98=$P99,'ENTER DETAILS HERE_Costing Tab'!$O$73*$T99/12, IF(F98=$R99,'ENTER DETAILS HERE_Costing Tab'!$O$73*$X99/12, 'ENTER DETAILS HERE_Costing Tab'!$O$73)),0) -> 0 | G100: =IF(AND(G98>=$P99,G98<=$R99), IF(G98=$P99,'ENTER DETAILS HERE_Costing Tab'!$O$73*$T99/12, IF(G98=$R99,'ENTER DETAILS HERE_Costing Tab'!$O$73*$X99/12, 'ENTER DETAILS HERE_Costing Tab'!$O$73)),0) -> 0 | H100: =IF(AND(H98>=$P99,H98<=$R99), IF(H98=$P99,'ENTER DETAILS HERE_Costing Tab'!$O$73*$T99/12, IF(H98=$R99,'ENTER DETAILS HERE_Costing Tab'!$O$73*$X99/12, 'ENTER DETAILS HERE_Costing Tab'!$O$73)),0) -> 0 | I100: =IF(AND(I98>=$P99,I98<=$R99), IF(I98=$P99,'ENTER DETAILS HERE_Costing Tab'!$O$73*$T99/12, IF(I98=$R99,'ENTER DETAILS HERE_Costing Tab'!$O$73*$X99/12, 'ENTER DETAILS HERE_Costing Tab'!$O$73)),0) -> 0 | J100: =IF(AND(J98>=$P99,J98<=$R99), IF(J98=$P99,'ENTER DETAILS HERE_Costing Tab'!$O$73*$T99/12, IF(J98=$R99,'ENTER DETAILS HERE_Costing Tab'!$O$73*$X99/12, 'ENTER DETAILS HERE_Costing Tab'!$O$73)),0) -> 0 | K100: =IF(AND(K98>=$P99,K98<=$R99), IF(K98=$P99,'ENTER DETAILS HERE_Costing Tab'!$O$73*$T99/12, IF(K98=$R99,'ENTER DETAILS HERE_Costing Tab'!$O$73*$X99/12, 'ENTER DETAILS HERE_Costing Tab'!$O$73)),0) -> 0 | L100: =IF(AND(L98>=$P99,L98<=$R99), IF(L98=$P99,'ENTER DETAILS HERE_Costing Tab'!$O$73*$T99/12, IF(L98=$R99,'ENTER DETAILS HERE_Costing Tab'!$O$73*$X99/12, 'ENTER DETAILS HERE_Costing Tab'!$O$73)),0) -> 0 | M100: =IF(AND(M98>=$P99,M98<=$R99), IF(M98=$P99,'ENTER DETAILS HERE_Costing Tab'!$O$73*$T99/12, IF(M98=$R99,'ENTER DETAILS HERE_Costing Tab'!$O$73*$X99/12, 'ENTER DETAILS HERE_Costing Tab'!$O$73)),0) -> 0
C101: AL Loading | D101: =IF(SUM(D99:D100)*'Master Data'!$BH$8>Max_AL_loading,Max_AL_loading,SUM(D99:D100)*'Master Data'!$BH$8) -> 0 | E101: =IF(SUM(E99:E100)*'Master Data'!$BH$8>Max_AL_loading,Max_AL_loading,SUM(E99:E100)*'Master Data'!$BH$8) -> 0 | F101: =IF(SUM(F99:F100)*'Master Data'!$BH$8>Max_AL_loading,Max_AL_loading,SUM(F99:F100)*'Master Data'!$BH$8) -> 0 | G101: =IF(SUM(G99:G100)*'Master Data'!$BH$8>Max_AL_loading,Max_AL_loading,SUM(G99:G100)*'Master Data'!$BH$8) -> 0 | H101: =IF(SUM(H99:H100)*'Master Data'!$BH$8>Max_AL_loading,Max_AL_loading,SUM(H99:H100)*'Master Data'!$BH$8) -> 0 | I101: =IF(SUM(I99:I100)*'Master Data'!$BH$8>Max_AL_loading,Max_AL_loading,SUM(I99:I100)*'Master Data'!$BH$8) -> 0 | J101: =IF(SUM(J99:J100)*'Master Data'!$BH$8>Max_AL_loading,Max_AL_loading,SUM(J99:J100)*'Master Data'!$BH$8) -> 0 | K101: =IF(SUM(K99:K100)*'Master Data'!$BH$8>Max_AL_loading,Max_AL_loading,SUM(K99:K100)*'Master Data'!$BH$8) -> 0 | L101: =IF(SUM(L99:L100)*'Master Data'!$BH$8>Max_AL_loading,Max_AL_loading,SUM(L99:L100)*'Master Data'!$BH$8) -> 0 | M101: =IF(SUM(M99:M100)*'Master Data'!$BH$8>Max_AL_loading,Max_AL_loading,SUM(M99:M100)*'Master Data'!$BH$8) -> 0
C102: Super | D102: =SUM(D99,D101)*'Master Data'!$BH$7 -> 0 | E102: =SUM(E99,E101)*'Master Data'!$BH$7 -> 0 | F102: =SUM(F99,F101)*'Master Data'!$BH$7 -> 0 | G102: =SUM(G99,G101)*'Master Data'!$BH$7 -> 0 | H102: =SUM(H99,H101)*'Master Data'!$BH$7 -> 0 | I102: =SUM(I99,I101)*'Master Data'!$BH$7 -> 0 | J102: =SUM(J99,J101)*'Master Data'!$BH$7 -> 0 | K102: =SUM(K99,K101)*'Master Data'!$BH$7 -> 0 | L102: =SUM(L99,L101)*'Master Data'!$BH$7 -> 0 | M102: =SUM(M99,M101)*'Master Data'!$BH$7 -> 0
C103: LSL | D103: =SUM(D99:D100)*'Master Data'!$BH$5 -> 0 | E103: =SUM(E99:E100)*'Master Data'!$BH$5 -> 0 | F103: =SUM(F99:F100)*'Master Data'!$BH$5 -> 0 | G103: =SUM(G99:G100)*'Master Data'!$BH$5 -> 0 | H103: =SUM(H99:H100)*'Master Data'!$BH$5 -> 0 | I103: =SUM(I99:I100)*'Master Data'!$BH$5 -> 0 | J103: =SUM(J99:J100)*'Master Data'!$BH$5 -> 0 | K103: =SUM(K99:K100)*'Master Data'!$BH$5 -> 0 | L103: =SUM(L99:L100)*'Master Data'!$BH$5 -> 0 | M103: =SUM(M99:M100)*'Master Data'!$BH$5 -> 0
C104: Payroll | D104: =SUM(D99:D102)*'Master Data'!$BH$6 -> 0 | E104: =SUM(E99:E102)*'Master Data'!$BH$6 -> 0 | F104: =SUM(F99:F102)*'Master Data'!$BH$6 -> 0 | G104: =SUM(G99:G102)*'Master Data'!$BH$6 -> 0 | H104: =SUM(H99:H102)*'Master Data'!$BH$6 -> 0 | I104: =SUM(I99:I102)*'Master Data'!$BH$6 -> 0 | J104: =SUM(J99:J102)*'Master Data'!$BH$6 -> 0 | K104: =SUM(K99:K102)*'Master Data'!$BH$6 -> 0 | L104: =SUM(L99:L102)*'Master Data'!$BH$6 -> 0 | M104: =SUM(M99:M102)*'Master Data'!$BH$6 -> 0
C105: Workcover | D105: =SUM(D99:D102)*'Master Data'!$BH$9 -> 0 | E105: =SUM(E99:E102)*'Master Data'!$BH$9 -> 0 | F105: =SUM(F99:F102)*'Master Data'!$BH$9 -> 0 | G105: =SUM(G99:G102)*'Master Data'!$BH$9 -> 0 | H105: =SUM(H99:H102)*'Master Data'!$BH$9 -> 0 | I105: =SUM(I99:I102)*'Master Data'!$BH$9 -> 0 | J105: =SUM(J99:J102)*'Master Data'!$BH$9 -> 0 | K105: =SUM(K99:K102)*'Master Data'!$BH$9 -> 0 | L105: =SUM(L99:L102)*'Master Data'!$BH$9 -> 0 | M105: =SUM(M99:M102)*'Master Data'!$BH$9 -> 0
C106: Additional Contributions | D106: =D99*'Master Data'!$BH$10 -> 0 | E106: =E99*'Master Data'!$BH$10 -> 0 | F106: =F99*'Master Data'!$BH$10 -> 0 | G106: =G99*'Master Data'!$BH$10 -> 0 | H106: =H99*'Master Data'!$BH$10 -> 0 | I106: =I99*'Master Data'!$BH$10 -> 0 | J106: =J99*'Master Data'!$BH$10 -> 0 | K106: =K99*'Master Data'!$BH$10 -> 0 | L106: =L99*'Master Data'!$BH$10 -> 0 | M106: =M99*'Master Data'!$BH$10 -> 0
C107: Total Salary | D107: =SUM(D99:D106) -> 0 | E107: 0 | F107: 0 | G107: 0 | H107: 0 | I107: 0 | J107: 0 | K107: 0 | L107: 0 | M107: 0
C109: Classification Level | D109: =IFERROR(IF(AND(D113>=$P114,D113<=$R114),VLOOKUP('ENTER DETAILS HERE_Costing Tab'!$H$74,'Master Data'!$X$5:$Z$73,2,FALSE),""),"") ->  | E109: =IFERROR(IF(AND(E113>=$P114,E113<=$R114),VLOOKUP('ENTER DETAILS HERE_Costing Tab'!$H$74,'Master Data'!$X$5:$Z$73,2,FALSE),""),"") ->  | F109: =IFERROR(IF(AND(F113>=$P114,F113<=$R114),VLOOKUP('ENTER DETAILS HERE_Costing Tab'!$H$74,'Master Data'!$X$5:$Z$73,2,FALSE),""),"") ->  | G109: =IFERROR(IF(AND(G113>=$P114,G113<=$R114),VLOOKUP('ENTER DETAILS HERE_Costing Tab'!$H$74,'Master Data'!$X$5:$Z$73,2,FALSE),""),"") ->  | H109: =IFERROR(IF(AND(H113>=$P114,H113<=$R114),VLOOKUP('ENTER DETAILS HERE_Costing Tab'!$H$74,'Master Data'!$X$5:$Z$73,2,FALSE),""),"") ->  | I109: =IFERROR(IF(AND(I113>=$P114,I113<=$R114),VLOOKUP('ENTER DETAILS HERE_Costing Tab'!$H$74,'Master Data'!$X$5:$Z$73,2,FALSE),""),"") ->  | J109: =IFERROR(IF(AND(J113>=$P114,J113<=$R114),VLOOKUP('ENTER DETAILS HERE_Costing Tab'!$H$74,'Master Data'!$X$5:$Z$73,2,FALSE),""),"") ->  | K109: =IFERROR(IF(AND(K113>=$P114,K113<=$R114),VLOOKUP('ENTER DETAILS HERE_Costing Tab'!$H$74,'Master Data'!$X$5:$Z$73,2,FALSE),""),"") ->  | L109: =IFERROR(IF(AND(L113>=$P114,L113<=$R114),VLOOKUP('ENTER DETAILS HERE_Costing Tab'!$H$74,'Master Data'!$X$5:$Z$73,2,FALSE),""),"") ->  | M109: =IFERROR(IF(AND(M113>=$P114,M113<=$R114),VLOOKUP('ENTER DETAILS HERE_Costing Tab'!$H$74,'Master Data'!$X$5:$Z$73,2,FALSE),""),"") -> 
C110: Step | D110: =IFERROR( IF(AND(D113>=$P114,D113<=$R114), IF(D113=$P114,VLOOKUP('ENTER DETAILS HERE_Costing Tab'!$H$74,'Master Data'!$X$5:$Z$73,3,FALSE), IF(C110+1>VLOOKUP(D109,Max_Step,2,FALSE),VLOOKUP(D109,Max_Step,2,FALSE),C110+1)),""),"") ->  | E110: =IFERROR( IF(AND(E113>=$P114,E113<=$R114), IF(E113=$P114,VLOOKUP('ENTER DETAILS HERE_Costing Tab'!$H$74,'Master Data'!$X$5:$Z$73,3,FALSE), IF(D110+1>VLOOKUP(E109,Max_Step,2,FALSE),VLOOKUP(E109,Max_Step,2,FALSE),D110+1)),""),"") ->  | F110: =IFERROR( IF(AND(F113>=$P114,F113<=$R114), IF(F113=$P114,VLOOKUP('ENTER DETAILS HERE_Costing Tab'!$H$74,'Master Data'!$X$5:$Z$73,3,FALSE), IF(E110+1>VLOOKUP(F109,Max_Step,2,FALSE),VLOOKUP(F109,Max_Step,2,FALSE),E110+1)),""),"") ->  | G110: =IFERROR( IF(AND(G113>=$P114,G113<=$R114), IF(G113=$P114,VLOOKUP('ENTER DETAILS HERE_Costing Tab'!$H$74,'Master Data'!$X$5:$Z$73,3,FALSE), IF(F110+1>VLOOKUP(G109,Max_Step,2,FALSE),VLOOKUP(G109,Max_Step,2,FALSE),F110+1)),""),"") ->  | H110: =IFERROR( IF(AND(H113>=$P114,H113<=$R114), IF(H113=$P114,VLOOKUP('ENTER DETAILS HERE_Costing Tab'!$H$74,'Master Data'!$X$5:$Z$73,3,FALSE), IF(G110+1>VLOOKUP(H109,Max_Step,2,FALSE),VLOOKUP(H109,Max_Step,2,FALSE),G110+1)),""),"") ->  | I110: =IFERROR( IF(AND(I113>=$P114,I113<=$R114), IF(I113=$P114,VLOOKUP('ENTER DETAILS HERE_Costing Tab'!$H$74,'Master Data'!$X$5:$Z$73,3,FALSE), IF(H110+1>VLOOKUP(I109,Max_Step,2,FALSE),VLOOKUP(I109,Max_Step,2,FALSE),H110+1)),""),"") ->  | J110: =IFERROR( IF(AND(J113>=$P114,J113<=$R114), IF(J113=$P114,VLOOKUP('ENTER DETAILS HERE_Costing Tab'!$H$74,'Master Data'!$X$5:$Z$73,3,FALSE), IF(I110+1>VLOOKUP(J109,Max_Step,2,FALSE),VLOOKUP(J109,Max_Step,2,FALSE),I110+1)),""),"") ->  | K110: =IFERROR( IF(AND(K113>=$P114,K113<=$R114), IF(K113=$P114,VLOOKUP('ENTER DETAILS HERE_Costing Tab'!$H$74,'Master Data'!$X$5:$Z$73,3,FALSE), IF(J110+1>VLOOKUP(K109,Max_Step,2,FALSE),VLOOKUP(K109,Max_Step,2,FALSE),J110+1)),""),"") ->  | L110: =IFERROR( IF(AND(L113>=$P114,L113<=$R114), IF(L113=$P114,VLOOKUP('ENTER DETAILS HERE_Costing Tab'!$H$74,'Master Data'!$X$5:$Z$73,3,FALSE), IF(K110+1>VLOOKUP(L109,Max_Step,2,FALSE),VLOOKUP(L109,Max_Step,2,FALSE),K110+1)),""),"") ->  | M110: =IFERROR( IF(AND(M113>=$P114,M113<=$R114), IF(M113=$P114,VLOOKUP('ENTER DETAILS HERE_Costing Tab'!$H$74,'Master Data'!$X$5:$Z$73,3,FALSE), IF(L110+1>VLOOKUP(M109,Max_Step,2,FALSE),VLOOKUP(M109,Max_Step,2,FALSE),L110+1)),""),"") -> 
C111: Level & Step | D111: =IF(D109="Level E",D109,IF(D109="Senior Manager",D109&" "&D110,D109&"-"&D110)) -> - | E111: =IF(E109="Level E",E109,IF(E109="Senior Manager",E109&" "&E110,E109&"-"&E110)) -> - | F111: - | G111: - | H111: - | I111: - | J111: - | K111: - | L111: - | M111: -
C112: FTE | D112: =IF(D113="",0,IF(AND(D113>=$P114,D113<=$R114),'ENTER DETAILS HERE_Costing Tab'!$N$74,0)) -> 0 | E112: =IF(E113="",0,IF(AND(E113>=$P114,E113<=$R114),'ENTER DETAILS HERE_Costing Tab'!$N$74,0)) -> 0 | F112: =IF(F113="",0,IF(AND(F113>=$P114,F113<=$R114),'ENTER DETAILS HERE_Costing Tab'!$N$74,0)) -> 0 | G112: =IF(G113="",0,IF(AND(G113>=$P114,G113<=$R114),'ENTER DETAILS HERE_Costing Tab'!$N$74,0)) -> 0 | H112: =IF(H113="",0,IF(AND(H113>=$P114,H113<=$R114),'ENTER DETAILS HERE_Costing Tab'!$N$74,0)) -> 0 | I112: =IF(I113="",0,IF(AND(I113>=$P114,I113<=$R114),'ENTER DETAILS HERE_Costing Tab'!$N$74,0)) -> 0 | J112: =IF(J113="",0,IF(AND(J113>=$P114,J113<=$R114),'ENTER DETAILS HERE_Costing Tab'!$N$74,0)) -> 0 | K112: =IF(K113="",0,IF(AND(K113>=$P114,K113<=$R114),'ENTER DETAILS HERE_Costing Tab'!$N$74,0)) -> 0 | L112: =IF(L113="",0,IF(AND(L113>=$P114,L113<=$R114),'ENTER DETAILS HERE_Costing Tab'!$N$74,0)) -> 0 | M112: =IF(M113="",0,IF(AND(M113>=$P114,M113<=$R114),'ENTER DETAILS HERE_Costing Tab'!$N$74,0)) -> 0
B113: 8 | D113: ='ENTER DETAILS HERE_Costing Tab'!$P$64 -> 1900 | E113: ='ENTER DETAILS HERE_Costing Tab'!$Q$64 ->  | F113: ='ENTER DETAILS HERE_Costing Tab'!$R$64 ->  | G113: ='ENTER DETAILS HERE_Costing Tab'!$S$64 ->  | H113: ='ENTER DETAILS HERE_Costing Tab'!$T$64 ->  | I113: ='ENTER DETAILS HERE_Costing Tab'!$U$64 ->  | J113: ='ENTER DETAILS HERE_Costing Tab'!$V$64 ->  | K113: ='ENTER DETAILS HERE_Costing Tab'!$W$64 ->  | L113: ='ENTER DETAILS HERE_Costing Tab'!$X$64 ->  | M113: ='ENTER DETAILS HERE_Costing Tab'!$Y$64 -> 
C114: Base Salary | D114: =IFERROR( IF(AND(D113>=$P114,D113<=$R114), IF(D113=$P114,(INDEX(Cont_FT_Salaries,MATCH(D111,Cont_FT_Levels,0),MATCH(D113-1,Cont_FT_Years,0))*$U114/12+INDEX(Cont_FT_Salaries,MATCH(D111,Cont_FT_Levels,0),MATCH(D113,Cont_FT_Years,0))*$V114/12), IF(D113=$R114,(INDEX(Cont_FT_Salaries,MATCH(D111,Cont_FT_Levels,0),MATCH(D113-1,Cont_FT_Years,0))*$Y114/12+INDEX(Cont_FT_Salaries,MATCH(D111,Cont_FT_Levels,0),MATCH(D113,Cont_FT_Years,0))*$Z114/12), (INDEX(Cont_FT_Salaries,MATCH(D111,Cont_FT_Levels,0),MATCH(D113-1,Cont_FT_Years,0))/2+INDEX(Cont_FT_Salaries,MATCH(D111,Cont_FT_Levels,0),MATCH(D113,Cont_FT_Years,0))/2) )),0),0)*D112 -> 0 | E114: 0 | F114: 0 | G114: 0 | H114: 0 | I114: 0 | J114: 0 | K114: 0 | L114: 0 | M114: 0 | O114: =IFERROR(VLOOKUP('ENTER DETAILS HERE_Costing Tab'!$J$74,'Master Data'!$AW$5:$AX$16,2,FALSE),0) -> 0 | P114: ='ENTER DETAILS HERE_Costing Tab'!$K$74 -> 0 | Q114: =IFERROR(VLOOKUP('ENTER DETAILS HERE_Costing Tab'!$L$74,'Master Data'!$AW$5:$AX$16,2,FALSE),0) -> 0 | R114: ='ENTER DETAILS HERE_Costing Tab'!$M$74 -> 0 | T114: =IFERROR( IF(ISBLANK($P114),0, IF($P114=$R114,$Q114-$O114+1,VLOOKUP($O114,'Master Data'!$AX$5:$BA$16,2,FALSE))),0) -> 1 | U114: =IFERROR( IF(VLOOKUP($O114,'Master Data'!$AX$5:$BA$16,3,FALSE)>$T114,$T114,VLOOKUP($O114,'Master Data'!$AX$5:$BA$16,3,FALSE)),0) -> 0 | V114: =T114-U114 -> 1 | X114: =IF($P114=$R114,0,Q114) -> 0 | Y114: =IF($X114=0,0,VLOOKUP($X114,'Master Data'!$AX$5:$BA$16,4,FALSE)) -> 0 | Z114: =X114-Y114 -> 0
C115: Loadings | D115: =IF(AND(D113>=$P114,D113<=$R114), IF(D113=$P114,'ENTER DETAILS HERE_Costing Tab'!$O$74*$T114/12, IF(D113=$R114,'ENTER DETAILS HERE_Costing Tab'!$O$74*$X114/12, 'ENTER DETAILS HERE_Costing Tab'!$O$74)),0) -> 0 | E115: =IF(AND(E113>=$P114,E113<=$R114), IF(E113=$P114,'ENTER DETAILS HERE_Costing Tab'!$O$74*$T114/12, IF(E113=$R114,'ENTER DETAILS HERE_Costing Tab'!$O$74*$X114/12, 'ENTER DETAILS HERE_Costing Tab'!$O$74)),0) -> 0 | F115: =IF(AND(F113>=$P114,F113<=$R114), IF(F113=$P114,'ENTER DETAILS HERE_Costing Tab'!$O$74*$T114/12, IF(F113=$R114,'ENTER DETAILS HERE_Costing Tab'!$O$74*$X114/12, 'ENTER DETAILS HERE_Costing Tab'!$O$74)),0) -> 0 | G115: =IF(AND(G113>=$P114,G113<=$R114), IF(G113=$P114,'ENTER DETAILS HERE_Costing Tab'!$O$74*$T114/12, IF(G113=$R114,'ENTER DETAILS HERE_Costing Tab'!$O$74*$X114/12, 'ENTER DETAILS HERE_Costing Tab'!$O$74)),0) -> 0 | H115: =IF(AND(H113>=$P114,H113<=$R114), IF(H113=$P114,'ENTER DETAILS HERE_Costing Tab'!$O$74*$T114/12, IF(H113=$R114,'ENTER DETAILS HERE_Costing Tab'!$O$74*$X114/12, 'ENTER DETAILS HERE_Costing Tab'!$O$74)),0) -> 0 | I115: =IF(AND(I113>=$P114,I113<=$R114), IF(I113=$P114,'ENTER DETAILS HERE_Costing Tab'!$O$74*$T114/12, IF(I113=$R114,'ENTER DETAILS HERE_Costing Tab'!$O$74*$X114/12, 'ENTER DETAILS HERE_Costing Tab'!$O$74)),0) -> 0 | J115: =IF(AND(J113>=$P114,J113<=$R114), IF(J113=$P114,'ENTER DETAILS HERE_Costing Tab'!$O$74*$T114/12, IF(J113=$R114,'ENTER DETAILS HERE_Costing Tab'!$O$74*$X114/12, 'ENTER DETAILS HERE_Costing Tab'!$O$74)),0) -> 0 | K115: =IF(AND(K113>=$P114,K113<=$R114), IF(K113=$P114,'ENTER DETAILS HERE_Costing Tab'!$O$74*$T114/12, IF(K113=$R114,'ENTER DETAILS HERE_Costing Tab'!$O$74*$X114/12, 'ENTER DETAILS HERE_Costing Tab'!$O$74)),0) -> 0 | L115: =IF(AND(L113>=$P114,L113<=$R114), IF(L113=$P114,'ENTER DETAILS HERE_Costing Tab'!$O$74*$T114/12, IF(L113=$R114,'ENTER DETAILS HERE_Costing Tab'!$O$74*$X114/12, 'ENTER DETAILS HERE_Costing Tab'!$O$74)),0) -> 0 | M115: =IF(AND(M113>=$P114,M113<=$R114), IF(M113=$P114,'ENTER DETAILS HERE_Costing Tab'!$O$74*$T114/12, IF(M113=$R114,'ENTER DETAILS HERE_Costing Tab'!$O$74*$X114/12, 'ENTER DETAILS HERE_Costing Tab'!$O$74)),0) -> 0
C116: AL Loading | D116: =IF(SUM(D114:D115)*'Master Data'!$BH$8>Max_AL_loading,Max_AL_loading,SUM(D114:D115)*'Master Data'!$BH$8) -> 0 | E116: =IF(SUM(E114:E115)*'Master Data'!$BH$8>Max_AL_loading,Max_AL_loading,SUM(E114:E115)*'Master Data'!$BH$8) -> 0 | F116: =IF(SUM(F114:F115)*'Master Data'!$BH$8>Max_AL_loading,Max_AL_loading,SUM(F114:F115)*'Master Data'!$BH$8) -> 0 | G116: =IF(SUM(G114:G115)*'Master Data'!$BH$8>Max_AL_loading,Max_AL_loading,SUM(G114:G115)*'Master Data'!$BH$8) -> 0 | H116: =IF(SUM(H114:H115)*'Master Data'!$BH$8>Max_AL_loading,Max_AL_loading,SUM(H114:H115)*'Master Data'!$BH$8) -> 0 | I116: =IF(SUM(I114:I115)*'Master Data'!$BH$8>Max_AL_loading,Max_AL_loading,SUM(I114:I115)*'Master Data'!$BH$8) -> 0 | J116: =IF(SUM(J114:J115)*'Master Data'!$BH$8>Max_AL_loading,Max_AL_loading,SUM(J114:J115)*'Master Data'!$BH$8) -> 0 | K116: =IF(SUM(K114:K115)*'Master Data'!$BH$8>Max_AL_loading,Max_AL_loading,SUM(K114:K115)*'Master Data'!$BH$8) -> 0 | L116: =IF(SUM(L114:L115)*'Master Data'!$BH$8>Max_AL_loading,Max_AL_loading,SUM(L114:L115)*'Master Data'!$BH$8) -> 0 | M116: =IF(SUM(M114:M115)*'Master Data'!$BH$8>Max_AL_loading,Max_AL_loading,SUM(M114:M115)*'Master Data'!$BH$8) -> 0
C117: Super | D117: =SUM(D114,D116)*'Master Data'!$BH$7 -> 0 | E117: =SUM(E114,E116)*'Master Data'!$BH$7 -> 0 | F117: =SUM(F114,F116)*'Master Data'!$BH$7 -> 0 | G117: =SUM(G114,G116)*'Master Data'!$BH$7 -> 0 | H117: =SUM(H114,H116)*'Master Data'!$BH$7 -> 0 | I117: =SUM(I114,I116)*'Master Data'!$BH$7 -> 0 | J117: =SUM(J114,J116)*'Master Data'!$BH$7 -> 0 | K117: =SUM(K114,K116)*'Master Data'!$BH$7 -> 0 | L117: =SUM(L114,L116)*'Master Data'!$BH$7 -> 0 | M117: =SUM(M114,M116)*'Master Data'!$BH$7 -> 0
C118: LSL | D118: =SUM(D114:D115)*'Master Data'!$BH$5 -> 0 | E118: =SUM(E114:E115)*'Master Data'!$BH$5 -> 0 | F118: =SUM(F114:F115)*'Master Data'!$BH$5 -> 0 | G118: =SUM(G114:G115)*'Master Data'!$BH$5 -> 0 | H118: =SUM(H114:H115)*'Master Data'!$BH$5 -> 0 | I118: =SUM(I114:I115)*'Master Data'!$BH$5 -> 0 | J118: =SUM(J114:J115)*'Master Data'!$BH$5 -> 0 | K118: =SUM(K114:K115)*'Master Data'!$BH$5 -> 0 | L118: =SUM(L114:L115)*'Master Data'!$BH$5 -> 0 | M118: =SUM(M114:M115)*'Master Data'!$BH$5 -> 0
C119: Payroll | D119: =SUM(D114:D117)*'Master Data'!$BH$6 -> 0 | E119: =SUM(E114:E117)*'Master Data'!$BH$6 -> 0 | F119: =SUM(F114:F117)*'Master Data'!$BH$6 -> 0 | G119: =SUM(G114:G117)*'Master Data'!$BH$6 -> 0 | H119: =SUM(H114:H117)*'Master Data'!$BH$6 -> 0 | I119: =SUM(I114:I117)*'Master Data'!$BH$6 -> 0 | J119: =SUM(J114:J117)*'Master Data'!$BH$6 -> 0 | K119: =SUM(K114:K117)*'Master Data'!$BH$6 -> 0 | L119: =SUM(L114:L117)*'Master Data'!$BH$6 -> 0 | M119: =SUM(M114:M117)*'Master Data'!$BH$6 -> 0
C120: Workcover | D120: =SUM(D114:D117)*'Master Data'!$BH$9 -> 0 | E120: =SUM(E114:E117)*'Master Data'!$BH$9 -> 0 | F120: =SUM(F114:F117)*'Master Data'!$BH$9 -> 0 | G120: =SUM(G114:G117)*'Master Data'!$BH$9 -> 0 | H120: =SUM(H114:H117)*'Master Data'!$BH$9 -> 0 | I120: =SUM(I114:I117)*'Master Data'!$BH$9 -> 0 | J120: =SUM(J114:J117)*'Master Data'!$BH$9 -> 0 | K120: =SUM(K114:K117)*'Master Data'!$BH$9 -> 0 | L120: =SUM(L114:L117)*'Master Data'!$BH$9 -> 0 | M120: =SUM(M114:M117)*'Master Data'!$BH$9 -> 0
C121: Additional Contributions | D121: =D114*'Master Data'!$BH$10 -> 0 | E121: =E114*'Master Data'!$BH$10 -> 0 | F121: =F114*'Master Data'!$BH$10 -> 0 | G121: =G114*'Master Data'!$BH$10 -> 0 | H121: =H114*'Master Data'!$BH$10 -> 0 | I121: =I114*'Master Data'!$BH$10 -> 0 | J121: =J114*'Master Data'!$BH$10 -> 0 | K121: =K114*'Master Data'!$BH$10 -> 0 | L121: =L114*'Master Data'!$BH$10 -> 0 | M121: =M114*'Master Data'!$BH$10 -> 0
C122: Total Salary | D122: =SUM(D114:D121) -> 0 | E122: 0 | F122: 0 | G122: 0 | H122: 0 | I122: 0 | J122: 0 | K122: 0 | L122: 0 | M122: 0
C124: Classification Level | D124: =IFERROR(IF(AND(D128>=$P129,D128<=$R129),VLOOKUP('ENTER DETAILS HERE_Costing Tab'!$H$75,'Master Data'!$X$5:$Z$73,2,FALSE),""),"") ->  | E124: =IFERROR(IF(AND(E128>=$P129,E128<=$R129),VLOOKUP('ENTER DETAILS HERE_Costing Tab'!$H$75,'Master Data'!$X$5:$Z$73,2,FALSE),""),"") ->  | F124: =IFERROR(IF(AND(F128>=$P129,F128<=$R129),VLOOKUP('ENTER DETAILS HERE_Costing Tab'!$H$75,'Master Data'!$X$5:$Z$73,2,FALSE),""),"") ->  | G124: =IFERROR(IF(AND(G128>=$P129,G128<=$R129),VLOOKUP('ENTER DETAILS HERE_Costing Tab'!$H$75,'Master Data'!$X$5:$Z$73,2,FALSE),""),"") ->  | H124: =IFERROR(IF(AND(H128>=$P129,H128<=$R129),VLOOKUP('ENTER DETAILS HERE_Costing Tab'!$H$75,'Master Data'!$X$5:$Z$73,2,FALSE),""),"") ->  | I124: =IFERROR(IF(AND(I128>=$P129,I128<=$R129),VLOOKUP('ENTER DETAILS HERE_Costing Tab'!$H$75,'Master Data'!$X$5:$Z$73,2,FALSE),""),"") ->  | J124: =IFERROR(IF(AND(J128>=$P129,J128<=$R129),VLOOKUP('ENTER DETAILS HERE_Costing Tab'!$H$75,'Master Data'!$X$5:$Z$73,2,FALSE),""),"") ->  | K124: =IFERROR(IF(AND(K128>=$P129,K128<=$R129),VLOOKUP('ENTER DETAILS HERE_Costing Tab'!$H$75,'Master Data'!$X$5:$Z$73,2,FALSE),""),"") ->  | L124: =IFERROR(IF(AND(L128>=$P129,L128<=$R129),VLOOKUP('ENTER DETAILS HERE_Costing Tab'!$H$75,'Master Data'!$X$5:$Z$73,2,FALSE),""),"") ->  | M124: =IFERROR(IF(AND(M128>=$P129,M128<=$R129),VLOOKUP('ENTER DETAILS HERE_Costing Tab'!$H$75,'Master Data'!$X$5:$Z$73,2,FALSE),""),"") -> 
C125: Step | D125: =IFERROR( IF(AND(D128>=$P129,D128<=$R129), IF(D128=$P129,VLOOKUP('ENTER DETAILS HERE_Costing Tab'!$H$75,'Master Data'!$X$5:$Z$73,3,FALSE), IF(C125+1>VLOOKUP(D124,Max_Step,2,FALSE),VLOOKUP(D124,Max_Step,2,FALSE),C125+1)),""),"") ->  | E125: =IFERROR( IF(AND(E128>=$P129,E128<=$R129), IF(E128=$P129,VLOOKUP('ENTER DETAILS HERE_Costing Tab'!$H$75,'Master Data'!$X$5:$Z$73,3,FALSE), IF(D125+1>VLOOKUP(E124,Max_Step,2,FALSE),VLOOKUP(E124,Max_Step,2,FALSE),D125+1)),""),"") ->  | F125: =IFERROR( IF(AND(F128>=$P129,F128<=$R129), IF(F128=$P129,VLOOKUP('ENTER DETAILS HERE_Costing Tab'!$H$75,'Master Data'!$X$5:$Z$73,3,FALSE), IF(E125+1>VLOOKUP(F124,Max_Step,2,FALSE),VLOOKUP(F124,Max_Step,2,FALSE),E125+1)),""),"") ->  | G125: =IFERROR( IF(AND(G128>=$P129,G128<=$R129), IF(G128=$P129,VLOOKUP('ENTER DETAILS HERE_Costing Tab'!$H$75,'Master Data'!$X$5:$Z$73,3,FALSE), IF(F125+1>VLOOKUP(G124,Max_Step,2,FALSE),VLOOKUP(G124,Max_Step,2,FALSE),F125+1)),""),"") ->  | H125: =IFERROR( IF(AND(H128>=$P129,H128<=$R129), IF(H128=$P129,VLOOKUP('ENTER DETAILS HERE_Costing Tab'!$H$75,'Master Data'!$X$5:$Z$73,3,FALSE), IF(G125+1>VLOOKUP(H124,Max_Step,2,FALSE),VLOOKUP(H124,Max_Step,2,FALSE),G125+1)),""),"") ->  | I125: =IFERROR( IF(AND(I128>=$P129,I128<=$R129), IF(I128=$P129,VLOOKUP('ENTER DETAILS HERE_Costing Tab'!$H$75,'Master Data'!$X$5:$Z$73,3,FALSE), IF(H125+1>VLOOKUP(I124,Max_Step,2,FALSE),VLOOKUP(I124,Max_Step,2,FALSE),H125+1)),""),"") ->  | J125: =IFERROR( IF(AND(J128>=$P129,J128<=$R129), IF(J128=$P129,VLOOKUP('ENTER DETAILS HERE_Costing Tab'!$H$75,'Master Data'!$X$5:$Z$73,3,FALSE), IF(I125+1>VLOOKUP(J124,Max_Step,2,FALSE),VLOOKUP(J124,Max_Step,2,FALSE),I125+1)),""),"") ->  | K125: =IFERROR( IF(AND(K128>=$P129,K128<=$R129), IF(K128=$P129,VLOOKUP('ENTER DETAILS HERE_Costing Tab'!$H$75,'Master Data'!$X$5:$Z$73,3,FALSE), IF(J125+1>VLOOKUP(K124,Max_Step,2,FALSE),VLOOKUP(K124,Max_Step,2,FALSE),J125+1)),""),"") ->  | L125: =IFERROR( IF(AND(L128>=$P129,L128<=$R129), IF(L128=$P129,VLOOKUP('ENTER DETAILS HERE_Costing Tab'!$H$75,'Master Data'!$X$5:$Z$73,3,FALSE), IF(K125+1>VLOOKUP(L124,Max_Step,2,FALSE),VLOOKUP(L124,Max_Step,2,FALSE),K125+1)),""),"") ->  | M125: =IFERROR( IF(AND(M128>=$P129,M128<=$R129), IF(M128=$P129,VLOOKUP('ENTER DETAILS HERE_Costing Tab'!$H$75,'Master Data'!$X$5:$Z$73,3,FALSE), IF(L125+1>VLOOKUP(M124,Max_Step,2,FALSE),VLOOKUP(M124,Max_Step,2,FALSE),L125+1)),""),"") -> 
C126: Level & Step | D126: =IF(D124="Level E",D124,IF(D124="Senior Manager",D124&" "&D125,D124&"-"&D125)) -> - | E126: =IF(E124="Level E",E124,IF(E124="Senior Manager",E124&" "&E125,E124&"-"&E125)) -> - | F126: - | G126: - | H126: - | I126: - | J126: - | K126: - | L126: - | M126: -
C127: FTE | D127: =IF(D128="",0,IF(AND(D128>=$P129,D128<=$R129),'ENTER DETAILS HERE_Costing Tab'!$N$75,0)) -> 0 | E127: =IF(E128="",0,IF(AND(E128>=$P129,E128<=$R129),'ENTER DETAILS HERE_Costing Tab'!$N$75,0)) -> 0 | F127: =IF(F128="",0,IF(AND(F128>=$P129,F128<=$R129),'ENTER DETAILS HERE_Costing Tab'!$N$75,0)) -> 0 | G127: =IF(G128="",0,IF(AND(G128>=$P129,G128<=$R129),'ENTER DETAILS HERE_Costing Tab'!$N$75,0)) -> 0 | H127: =IF(H128="",0,IF(AND(H128>=$P129,H128<=$R129),'ENTER DETAILS HERE_Costing Tab'!$N$75,0)) -> 0 | I127: =IF(I128="",0,IF(AND(I128>=$P129,I128<=$R129),'ENTER DETAILS HERE_Costing Tab'!$N$75,0)) -> 0 | J127: =IF(J128="",0,IF(AND(J128>=$P129,J128<=$R129),'ENTER DETAILS HERE_Costing Tab'!$N$75,0)) -> 0 | K127: =IF(K128="",0,IF(AND(K128>=$P129,K128<=$R129),'ENTER DETAILS HERE_Costing Tab'!$N$75,0)) -> 0 | L127: =IF(L128="",0,IF(AND(L128>=$P129,L128<=$R129),'ENTER DETAILS HERE_Costing Tab'!$N$75,0)) -> 0 | M127: =IF(M128="",0,IF(AND(M128>=$P129,M128<=$R129),'ENTER DETAILS HERE_Costing Tab'!$N$75,0)) -> 0
B128: 9 | D128: ='ENTER DETAILS HERE_Costing Tab'!$P$64 -> 1900 | E128: ='ENTER DETAILS HERE_Costing Tab'!$Q$64 ->  | F128: ='ENTER DETAILS HERE_Costing Tab'!$R$64 ->  | G128: ='ENTER DETAILS HERE_Costing Tab'!$S$64 ->  | H128: ='ENTER DETAILS HERE_Costing Tab'!$T$64 ->  | I128: ='ENTER DETAILS HERE_Costing Tab'!$U$64 ->  | J128: ='ENTER DETAILS HERE_Costing Tab'!$V$64 ->  | K128: ='ENTER DETAILS HERE_Costing Tab'!$W$64 ->  | L128: ='ENTER DETAILS HERE_Costing Tab'!$X$64 ->  | M128: ='ENTER DETAILS HERE_Costing Tab'!$Y$64 -> 
C129: Base Salary | D129: =IFERROR( IF(AND(D128>=$P129,D128<=$R129), IF(D128=$P129,(INDEX(Cont_FT_Salaries,MATCH(D126,Cont_FT_Levels,0),MATCH(D128-1,Cont_FT_Years,0))*$U129/12+INDEX(Cont_FT_Salaries,MATCH(D126,Cont_FT_Levels,0),MATCH(D128,Cont_FT_Years,0))*$V129/12), IF(D128=$R129,(INDEX(Cont_FT_Salaries,MATCH(D126,Cont_FT_Levels,0),MATCH(D128-1,Cont_FT_Years,0))*$Y129/12+INDEX(Cont_FT_Salaries,MATCH(D126,Cont_FT_Levels,0),MATCH(D128,Cont_FT_Years,0))*$Z129/12), (INDEX(Cont_FT_Salaries,MATCH(D126,Cont_FT_Levels,0),MATCH(D128-1,Cont_FT_Years,0))/2+INDEX(Cont_FT_Salaries,MATCH(D126,Cont_FT_Levels,0),MATCH(D128,Cont_FT_Years,0))/2) )),0),0)*D127 -> 0 | E129: 0 | F129: 0 | G129: 0 | H129: 0 | I129: 0 | J129: 0 | K129: 0 | L129: 0 | M129: 0 | O129: =IFERROR(VLOOKUP('ENTER DETAILS HERE_Costing Tab'!$J$75,'Master Data'!$AW$5:$AX$16,2,FALSE),0) -> 0 | P129: ='ENTER DETAILS HERE_Costing Tab'!$K$75 -> 0 | Q129: =IFERROR(VLOOKUP('ENTER DETAILS HERE_Costing Tab'!$L$75,'Master Data'!$AW$5:$AX$16,2,FALSE),0) -> 0 | R129: ='ENTER DETAILS HERE_Costing Tab'!$M$75 -> 0 | T129: =IFERROR( IF(ISBLANK($P129),0, IF($P129=$R129,$Q129-$O129+1,VLOOKUP($O129,'Master Data'!$AX$5:$BA$16,2,FALSE))),0) -> 1 | U129: =IFERROR( IF(VLOOKUP($O129,'Master Data'!$AX$5:$BA$16,3,FALSE)>$T129,$T129,VLOOKUP($O129,'Master Data'!$AX$5:$BA$16,3,FALSE)),0) -> 0 | V129: =T129-U129 -> 1 | X129: =IF($P129=$R129,0,Q129) -> 0 | Y129: =IF($X129=0,0,VLOOKUP($X129,'Master Data'!$AX$5:$BA$16,4,FALSE)) -> 0 | Z129: =X129-Y129 -> 0
C130: Loadings | D130: =IF(AND(D128>=$P129,D128<=$R129), IF(D128=$P129,'ENTER DETAILS HERE_Costing Tab'!$O$75*$T129/12, IF(D128=$R129,'ENTER DETAILS HERE_Costing Tab'!$O$75*$X129/12, 'ENTER DETAILS HERE_Costing Tab'!$O$75)),0) -> 0 | E130: =IF(AND(E128>=$P129,E128<=$R129), IF(E128=$P129,'ENTER DETAILS HERE_Costing Tab'!$O$75*$T129/12, IF(E128=$R129,'ENTER DETAILS HERE_Costing Tab'!$O$75*$X129/12, 'ENTER DETAILS HERE_Costing Tab'!$O$75)),0) -> 0 | F130: =IF(AND(F128>=$P129,F128<=$R129), IF(F128=$P129,'ENTER DETAILS HERE_Costing Tab'!$O$75*$T129/12, IF(F128=$R129,'ENTER DETAILS HERE_Costing Tab'!$O$75*$X129/12, 'ENTER DETAILS HERE_Costing Tab'!$O$75)),0) -> 0 | G130: =IF(AND(G128>=$P129,G128<=$R129), IF(G128=$P129,'ENTER DETAILS HERE_Costing Tab'!$O$75*$T129/12, IF(G128=$R129,'ENTER DETAILS HERE_Costing Tab'!$O$75*$X129/12, 'ENTER DETAILS HERE_Costing Tab'!$O$75)),0) -> 0 | H130: =IF(AND(H128>=$P129,H128<=$R129), IF(H128=$P129,'ENTER DETAILS HERE_Costing Tab'!$O$75*$T129/12, IF(H128=$R129,'ENTER DETAILS HERE_Costing Tab'!$O$75*$X129/12, 'ENTER DETAILS HERE_Costing Tab'!$O$75)),0) -> 0 | I130: =IF(AND(I128>=$P129,I128<=$R129), IF(I128=$P129,'ENTER DETAILS HERE_Costing Tab'!$O$75*$T129/12, IF(I128=$R129,'ENTER DETAILS HERE_Costing Tab'!$O$75*$X129/12, 'ENTER DETAILS HERE_Costing Tab'!$O$75)),0) -> 0 | J130: =IF(AND(J128>=$P129,J128<=$R129), IF(J128=$P129,'ENTER DETAILS HERE_Costing Tab'!$O$75*$T129/12, IF(J128=$R129,'ENTER DETAILS HERE_Costing Tab'!$O$75*$X129/12, 'ENTER DETAILS HERE_Costing Tab'!$O$75)),0) -> 0 | K130: =IF(AND(K128>=$P129,K128<=$R129), IF(K128=$P129,'ENTER DETAILS HERE_Costing Tab'!$O$75*$T129/12, IF(K128=$R129,'ENTER DETAILS HERE_Costing Tab'!$O$75*$X129/12, 'ENTER DETAILS HERE_Costing Tab'!$O$75)),0) -> 0 | L130: =IF(AND(L128>=$P129,L128<=$R129), IF(L128=$P129,'ENTER DETAILS HERE_Costing Tab'!$O$75*$T129/12, IF(L128=$R129,'ENTER DETAILS HERE_Costing Tab'!$O$75*$X129/12, 'ENTER DETAILS HERE_Costing Tab'!$O$75)),0) -> 0 | M130: =IF(AND(M128>=$P129,M128<=$R129), IF(M128=$P129,'ENTER DETAILS HERE_Costing Tab'!$O$75*$T129/12, IF(M128=$R129,'ENTER DETAILS HERE_Costing Tab'!$O$75*$X129/12, 'ENTER DETAILS HERE_Costing Tab'!$O$75)),0) -> 0
C131: AL Loading | D131: =IF(SUM(D129:D130)*'Master Data'!$BH$8>Max_AL_loading,Max_AL_loading,SUM(D129:D130)*'Master Data'!$BH$8) -> 0 | E131: =IF(SUM(E129:E130)*'Master Data'!$BH$8>Max_AL_loading,Max_AL_loading,SUM(E129:E130)*'Master Data'!$BH$8) -> 0 | F131: =IF(SUM(F129:F130)*'Master Data'!$BH$8>Max_AL_loading,Max_AL_loading,SUM(F129:F130)*'Master Data'!$BH$8) -> 0 | G131: =IF(SUM(G129:G130)*'Master Data'!$BH$8>Max_AL_loading,Max_AL_loading,SUM(G129:G130)*'Master Data'!$BH$8) -> 0 | H131: =IF(SUM(H129:H130)*'Master Data'!$BH$8>Max_AL_loading,Max_AL_loading,SUM(H129:H130)*'Master Data'!$BH$8) -> 0 | I131: =IF(SUM(I129:I130)*'Master Data'!$BH$8>Max_AL_loading,Max_AL_loading,SUM(I129:I130)*'Master Data'!$BH$8) -> 0 | J131: =IF(SUM(J129:J130)*'Master Data'!$BH$8>Max_AL_loading,Max_AL_loading,SUM(J129:J130)*'Master Data'!$BH$8) -> 0 | K131: =IF(SUM(K129:K130)*'Master Data'!$BH$8>Max_AL_loading,Max_AL_loading,SUM(K129:K130)*'Master Data'!$BH$8) -> 0 | L131: =IF(SUM(L129:L130)*'Master Data'!$BH$8>Max_AL_loading,Max_AL_loading,SUM(L129:L130)*'Master Data'!$BH$8) -> 0 | M131: =IF(SUM(M129:M130)*'Master Data'!$BH$8>Max_AL_loading,Max_AL_loading,SUM(M129:M130)*'Master Data'!$BH$8) -> 0
C132: Super | D132: =SUM(D129,D131)*'Master Data'!$BH$7 -> 0 | E132: =SUM(E129,E131)*'Master Data'!$BH$7 -> 0 | F132: =SUM(F129,F131)*'Master Data'!$BH$7 -> 0 | G132: =SUM(G129,G131)*'Master Data'!$BH$7 -> 0 | H132: =SUM(H129,H131)*'Master Data'!$BH$7 -> 0 | I132: =SUM(I129,I131)*'Master Data'!$BH$7 -> 0 | J132: =SUM(J129,J131)*'Master Data'!$BH$7 -> 0 | K132: =SUM(K129,K131)*'Master Data'!$BH$7 -> 0 | L132: =SUM(L129,L131)*'Master Data'!$BH$7 -> 0 | M132: =SUM(M129,M131)*'Master Data'!$BH$7 -> 0
C133: LSL | D133: =SUM(D129:D130)*'Master Data'!$BH$5 -> 0 | E133: =SUM(E129:E130)*'Master Data'!$BH$5 -> 0 | F133: =SUM(F129:F130)*'Master Data'!$BH$5 -> 0 | G133: =SUM(G129:G130)*'Master Data'!$BH$5 -> 0 | H133: =SUM(H129:H130)*'Master Data'!$BH$5 -> 0 | I133: =SUM(I129:I130)*'Master Data'!$BH$5 -> 0 | J133: =SUM(J129:J130)*'Master Data'!$BH$5 -> 0 | K133: =SUM(K129:K130)*'Master Data'!$BH$5 -> 0 | L133: =SUM(L129:L130)*'Master Data'!$BH$5 -> 0 | M133: =SUM(M129:M130)*'Master Data'!$BH$5 -> 0
C134: Payroll | D134: =SUM(D129:D132)*'Master Data'!$BH$6 -> 0 | E134: =SUM(E129:E132)*'Master Data'!$BH$6 -> 0 | F134: =SUM(F129:F132)*'Master Data'!$BH$6 -> 0 | G134: =SUM(G129:G132)*'Master Data'!$BH$6 -> 0 | H134: =SUM(H129:H132)*'Master Data'!$BH$6 -> 0 | I134: =SUM(I129:I132)*'Master Data'!$BH$6 -> 0 | J134: =SUM(J129:J132)*'Master Data'!$BH$6 -> 0 | K134: =SUM(K129:K132)*'Master Data'!$BH$6 -> 0 | L134: =SUM(L129:L132)*'Master Data'!$BH$6 -> 0 | M134: =SUM(M129:M132)*'Master Data'!$BH$6 -> 0
C135: Workcover | D135: =SUM(D129:D132)*'Master Data'!$BH$9 -> 0 | E135: =SUM(E129:E132)*'Master Data'!$BH$9 -> 0 | F135: =SUM(F129:F132)*'Master Data'!$BH$9 -> 0 | G135: =SUM(G129:G132)*'Master Data'!$BH$9 -> 0 | H135: =SUM(H129:H132)*'Master Data'!$BH$9 -> 0 | I135: =SUM(I129:I132)*'Master Data'!$BH$9 -> 0 | J135: =SUM(J129:J132)*'Master Data'!$BH$9 -> 0 | K135: =SUM(K129:K132)*'Master Data'!$BH$9 -> 0 | L135: =SUM(L129:L132)*'Master Data'!$BH$9 -> 0 | M135: =SUM(M129:M132)*'Master Data'!$BH$9 -> 0
C136: Additional Contributions | D136: =D129*'Master Data'!$BH$10 -> 0 | E136: =E129*'Master Data'!$BH$10 -> 0 | F136: =F129*'Master Data'!$BH$10 -> 0 | G136: =G129*'Master Data'!$BH$10 -> 0 | H136: =H129*'Master Data'!$BH$10 -> 0 | I136: =I129*'Master Data'!$BH$10 -> 0 | J136: =J129*'Master Data'!$BH$10 -> 0 | K136: =K129*'Master Data'!$BH$10 -> 0 | L136: =L129*'Master Data'!$BH$10 -> 0 | M136: =M129*'Master Data'!$BH$10 -> 0
C137: Total Salary | D137: =SUM(D129:D136) -> 0 | E137: 0 | F137: 0 | G137: 0 | H137: 0 | I137: 0 | J137: 0 | K137: 0 | L137: 0 | M137: 0
C139: Classification Level | D139: =IFERROR(IF(AND(D143>=$P144,D143<=$R144),VLOOKUP('ENTER DETAILS HERE_Costing Tab'!$H$76,'Master Data'!$X$5:$Z$73,2,FALSE),""),"") ->  | E139: =IFERROR(IF(AND(E143>=$P144,E143<=$R144),VLOOKUP('ENTER DETAILS HERE_Costing Tab'!$H$76,'Master Data'!$X$5:$Z$73,2,FALSE),""),"") ->  | F139: =IFERROR(IF(AND(F143>=$P144,F143<=$R144),VLOOKUP('ENTER DETAILS HERE_Costing Tab'!$H$76,'Master Data'!$X$5:$Z$73,2,FALSE),""),"") ->  | G139: =IFERROR(IF(AND(G143>=$P144,G143<=$R144),VLOOKUP('ENTER DETAILS HERE_Costing Tab'!$H$76,'Master Data'!$X$5:$Z$73,2,FALSE),""),"") ->  | H139: =IFERROR(IF(AND(H143>=$P144,H143<=$R144),VLOOKUP('ENTER DETAILS HERE_Costing Tab'!$H$76,'Master Data'!$X$5:$Z$73,2,FALSE),""),"") ->  | I139: =IFERROR(IF(AND(I143>=$P144,I143<=$R144),VLOOKUP('ENTER DETAILS HERE_Costing Tab'!$H$76,'Master Data'!$X$5:$Z$73,2,FALSE),""),"") ->  | J139: =IFERROR(IF(AND(J143>=$P144,J143<=$R144),VLOOKUP('ENTER DETAILS HERE_Costing Tab'!$H$76,'Master Data'!$X$5:$Z$73,2,FALSE),""),"") ->  | K139: =IFERROR(IF(AND(K143>=$P144,K143<=$R144),VLOOKUP('ENTER DETAILS HERE_Costing Tab'!$H$76,'Master Data'!$X$5:$Z$73,2,FALSE),""),"") ->  | L139: =IFERROR(IF(AND(L143>=$P144,L143<=$R144),VLOOKUP('ENTER DETAILS HERE_Costing Tab'!$H$76,'Master Data'!$X$5:$Z$73,2,FALSE),""),"") ->  | M139: =IFERROR(IF(AND(M143>=$P144,M143<=$R144),VLOOKUP('ENTER DETAILS HERE_Costing Tab'!$H$76,'Master Data'!$X$5:$Z$73,2,FALSE),""),"") -> 
C140: Step | D140: =IFERROR( IF(AND(D143>=$P144,D143<=$R144), IF(D143=$P144,VLOOKUP('ENTER DETAILS HERE_Costing Tab'!$H$76,'Master Data'!$X$5:$Z$73,3,FALSE), IF(C140+1>VLOOKUP(D139,Max_Step,2,FALSE),VLOOKUP(D139,Max_Step,2,FALSE),C140+1)),""),"") ->  | E140: =IFERROR( IF(AND(E143>=$P144,E143<=$R144), IF(E143=$P144,VLOOKUP('ENTER DETAILS HERE_Costing Tab'!$H$76,'Master Data'!$X$5:$Z$73,3,FALSE), IF(D140+1>VLOOKUP(E139,Max_Step,2,FALSE),VLOOKUP(E139,Max_Step,2,FALSE),D140+1)),""),"") ->  | F140: =IFERROR( IF(AND(F143>=$P144,F143<=$R144), IF(F143=$P144,VLOOKUP('ENTER DETAILS HERE_Costing Tab'!$H$76,'Master Data'!$X$5:$Z$73,3,FALSE), IF(E140+1>VLOOKUP(F139,Max_Step,2,FALSE),VLOOKUP(F139,Max_Step,2,FALSE),E140+1)),""),"") ->  | G140: =IFERROR( IF(AND(G143>=$P144,G143<=$R144), IF(G143=$P144,VLOOKUP('ENTER DETAILS HERE_Costing Tab'!$H$76,'Master Data'!$X$5:$Z$73,3,FALSE), IF(F140+1>VLOOKUP(G139,Max_Step,2,FALSE),VLOOKUP(G139,Max_Step,2,FALSE),F140+1)),""),"") ->  | H140: =IFERROR( IF(AND(H143>=$P144,H143<=$R144), IF(H143=$P144,VLOOKUP('ENTER DETAILS HERE_Costing Tab'!$H$76,'Master Data'!$X$5:$Z$73,3,FALSE), IF(G140+1>VLOOKUP(H139,Max_Step,2,FALSE),VLOOKUP(H139,Max_Step,2,FALSE),G140+1)),""),"") ->  | I140: =IFERROR( IF(AND(I143>=$P144,I143<=$R144), IF(I143=$P144,VLOOKUP('ENTER DETAILS HERE_Costing Tab'!$H$76,'Master Data'!$X$5:$Z$73,3,FALSE), IF(H140+1>VLOOKUP(I139,Max_Step,2,FALSE),VLOOKUP(I139,Max_Step,2,FALSE),H140+1)),""),"") ->  | J140: =IFERROR( IF(AND(J143>=$P144,J143<=$R144), IF(J143=$P144,VLOOKUP('ENTER DETAILS HERE_Costing Tab'!$H$76,'Master Data'!$X$5:$Z$73,3,FALSE), IF(I140+1>VLOOKUP(J139,Max_Step,2,FALSE),VLOOKUP(J139,Max_Step,2,FALSE),I140+1)),""),"") ->  | K140: =IFERROR( IF(AND(K143>=$P144,K143<=$R144), IF(K143=$P144,VLOOKUP('ENTER DETAILS HERE_Costing Tab'!$H$76,'Master Data'!$X$5:$Z$73,3,FALSE), IF(J140+1>VLOOKUP(K139,Max_Step,2,FALSE),VLOOKUP(K139,Max_Step,2,FALSE),J140+1)),""),"") ->  | L140: =IFERROR( IF(AND(L143>=$P144,L143<=$R144), IF(L143=$P144,VLOOKUP('ENTER DETAILS HERE_Costing Tab'!$H$76,'Master Data'!$X$5:$Z$73,3,FALSE), IF(K140+1>VLOOKUP(L139,Max_Step,2,FALSE),VLOOKUP(L139,Max_Step,2,FALSE),K140+1)),""),"") ->  | M140: =IFERROR( IF(AND(M143>=$P144,M143<=$R144), IF(M143=$P144,VLOOKUP('ENTER DETAILS HERE_Costing Tab'!$H$76,'Master Data'!$X$5:$Z$73,3,FALSE), IF(L140+1>VLOOKUP(M139,Max_Step,2,FALSE),VLOOKUP(M139,Max_Step,2,FALSE),L140+1)),""),"") -> 
C141: Level & Step | D141: =IF(D139="Level E",D139,IF(D139="Senior Manager",D139&" "&D140,D139&"-"&D140)) -> - | E141: =IF(E139="Level E",E139,IF(E139="Senior Manager",E139&" "&E140,E139&"-"&E140)) -> - | F141: - | G141: - | H141: - | I141: - | J141: - | K141: - | L141: - | M141: -
C142: FTE | D142: =IF(D143="",0,IF(AND(D143>=$P144,D143<=$R144),'ENTER DETAILS HERE_Costing Tab'!$N$76,0)) -> 0 | E142: =IF(E143="",0,IF(AND(E143>=$P144,E143<=$R144),'ENTER DETAILS HERE_Costing Tab'!$N$76,0)) -> 0 | F142: =IF(F143="",0,IF(AND(F143>=$P144,F143<=$R144),'ENTER DETAILS HERE_Costing Tab'!$N$76,0)) -> 0 | G142: =IF(G143="",0,IF(AND(G143>=$P144,G143<=$R144),'ENTER DETAILS HERE_Costing Tab'!$N$76,0)) -> 0 | H142: =IF(H143="",0,IF(AND(H143>=$P144,H143<=$R144),'ENTER DETAILS HERE_Costing Tab'!$N$76,0)) -> 0 | I142: =IF(I143="",0,IF(AND(I143>=$P144,I143<=$R144),'ENTER DETAILS HERE_Costing Tab'!$N$76,0)) -> 0 | J142: =IF(J143="",0,IF(AND(J143>=$P144,J143<=$R144),'ENTER DETAILS HERE_Costing Tab'!$N$76,0)) -> 0 | K142: =IF(K143="",0,IF(AND(K143>=$P144,K143<=$R144),'ENTER DETAILS HERE_Costing Tab'!$N$76,0)) -> 0 | L142: =IF(L143="",0,IF(AND(L143>=$P144,L143<=$R144),'ENTER DETAILS HERE_Costing Tab'!$N$76,0)) -> 0 | M142: =IF(M143="",0,IF(AND(M143>=$P144,M143<=$R144),'ENTER DETAILS HERE_Costing Tab'!$N$76,0)) -> 0
B143: 10 | D143: ='ENTER DETAILS HERE_Costing Tab'!$P$64 -> 1900 | E143: ='ENTER DETAILS HERE_Costing Tab'!$Q$64 ->  | F143: ='ENTER DETAILS HERE_Costing Tab'!$R$64 ->  | G143: ='ENTER DETAILS HERE_Costing Tab'!$S$64 ->  | H143: ='ENTER DETAILS HERE_Costing Tab'!$T$64 ->  | I143: ='ENTER DETAILS HERE_Costing Tab'!$U$64 ->  | J143: ='ENTER DETAILS HERE_Costing Tab'!$V$64 ->  | K143: ='ENTER DETAILS HERE_Costing Tab'!$W$64 ->  | L143: ='ENTER DETAILS HERE_Costing Tab'!$X$64 ->  | M143: ='ENTER DETAILS HERE_Costing Tab'!$Y$64 -> 
C144: Base Salary | D144: =IFERROR( IF(AND(D143>=$P144,D143<=$R144), IF(D143=$P144,(INDEX(Cont_FT_Salaries,MATCH(D141,Cont_FT_Levels,0),MATCH(D143-1,Cont_FT_Years,0))*$U144/12+INDEX(Cont_FT_Salaries,MATCH(D141,Cont_FT_Levels,0),MATCH(D143,Cont_FT_Years,0))*$V144/12), IF(D143=$R144,(INDEX(Cont_FT_Salaries,MATCH(D141,Cont_FT_Levels,0),MATCH(D143-1,Cont_FT_Years,0))*$Y144/12+INDEX(Cont_FT_Salaries,MATCH(D141,Cont_FT_Levels,0),MATCH(D143,Cont_FT_Years,0))*$Z144/12), (INDEX(Cont_FT_Salaries,MATCH(D141,Cont_FT_Levels,0),MATCH(D143-1,Cont_FT_Years,0))/2+INDEX(Cont_FT_Salaries,MATCH(D141,Cont_FT_Levels,0),MATCH(D143,Cont_FT_Years,0))/2) )),0),0)*D142 -> 0 | E144: 0 | F144: 0 | G144: 0 | H144: 0 | I144: 0 | J144: 0 | K144: 0 | L144: 0 | M144: 0 | O144: =IFERROR(VLOOKUP('ENTER DETAILS HERE_Costing Tab'!$J$76,'Master Data'!$AW$5:$AX$16,2,FALSE),0) -> 0 | P144: ='ENTER DETAILS HERE_Costing Tab'!$K$76 -> 0 | Q144: =IFERROR(VLOOKUP('ENTER DETAILS HERE_Costing Tab'!$L$76,'Master Data'!$AW$5:$AX$16,2,FALSE),0) -> 0 | R144: ='ENTER DETAILS HERE_Costing Tab'!$M$76 -> 0 | T144: =IFERROR( IF(ISBLANK($P144),0, IF($P144=$R144,$Q144-$O144+1,VLOOKUP($O144,'Master Data'!$AX$5:$BA$16,2,FALSE))),0) -> 1 | U144: =IFERROR( IF(VLOOKUP($O144,'Master Data'!$AX$5:$BA$16,3,FALSE)>$T144,$T144,VLOOKUP($O144,'Master Data'!$AX$5:$BA$16,3,FALSE)),0) -> 0 | V144: =T144-U144 -> 1 | X144: =IF($P144=$R144,0,Q144) -> 0 | Y144: =IF($X144=0,0,VLOOKUP($X144,'Master Data'!$AX$5:$BA$16,4,FALSE)) -> 0 | Z144: =X144-Y144 -> 0
C145: Loadings | D145: =IF(AND(D143>=$P144,D143<=$R144), IF(D143=$P144,'ENTER DETAILS HERE_Costing Tab'!$O$76*$T144/12, IF(D143=$R144,'ENTER DETAILS HERE_Costing Tab'!$O$76*$X144/12, 'ENTER DETAILS HERE_Costing Tab'!$O$76)),0) -> 0 | E145: =IF(AND(E143>=$P144,E143<=$R144), IF(E143=$P144,'ENTER DETAILS HERE_Costing Tab'!$O$76*$T144/12, IF(E143=$R144,'ENTER DETAILS HERE_Costing Tab'!$O$76*$X144/12, 'ENTER DETAILS HERE_Costing Tab'!$O$76)),0) -> 0 | F145: =IF(AND(F143>=$P144,F143<=$R144), IF(F143=$P144,'ENTER DETAILS HERE_Costing Tab'!$O$76*$T144/12, IF(F143=$R144,'ENTER DETAILS HERE_Costing Tab'!$O$76*$X144/12, 'ENTER DETAILS HERE_Costing Tab'!$O$76)),0) -> 0 | G145: =IF(AND(G143>=$P144,G143<=$R144), IF(G143=$P144,'ENTER DETAILS HERE_Costing Tab'!$O$76*$T144/12, IF(G143=$R144,'ENTER DETAILS HERE_Costing Tab'!$O$76*$X144/12, 'ENTER DETAILS HERE_Costing Tab'!$O$76)),0) -> 0 | H145: =IF(AND(H143>=$P144,H143<=$R144), IF(H143=$P144,'ENTER DETAILS HERE_Costing Tab'!$O$76*$T144/12, IF(H143=$R144,'ENTER DETAILS HERE_Costing Tab'!$O$76*$X144/12, 'ENTER DETAILS HERE_Costing Tab'!$O$76)),0) -> 0 | I145: =IF(AND(I143>=$P144,I143<=$R144), IF(I143=$P144,'ENTER DETAILS HERE_Costing Tab'!$O$76*$T144/12, IF(I143=$R144,'ENTER DETAILS HERE_Costing Tab'!$O$76*$X144/12, 'ENTER DETAILS HERE_Costing Tab'!$O$76)),0) -> 0 | J145: =IF(AND(J143>=$P144,J143<=$R144), IF(J143=$P144,'ENTER DETAILS HERE_Costing Tab'!$O$76*$T144/12, IF(J143=$R144,'ENTER DETAILS HERE_Costing Tab'!$O$76*$X144/12, 'ENTER DETAILS HERE_Costing Tab'!$O$76)),0) -> 0 | K145: =IF(AND(K143>=$P144,K143<=$R144), IF(K143=$P144,'ENTER DETAILS HERE_Costing Tab'!$O$76*$T144/12, IF(K143=$R144,'ENTER DETAILS HERE_Costing Tab'!$O$76*$X144/12, 'ENTER DETAILS HERE_Costing Tab'!$O$76)),0) -> 0 | L145: =IF(AND(L143>=$P144,L143<=$R144), IF(L143=$P144,'ENTER DETAILS HERE_Costing Tab'!$O$76*$T144/12, IF(L143=$R144,'ENTER DETAILS HERE_Costing Tab'!$O$76*$X144/12, 'ENTER DETAILS HERE_Costing Tab'!$O$76)),0) -> 0 | M145: =IF(AND(M143>=$P144,M143<=$R144), IF(M143=$P144,'ENTER DETAILS HERE_Costing Tab'!$O$76*$T144/12, IF(M143=$R144,'ENTER DETAILS HERE_Costing Tab'!$O$76*$X144/12, 'ENTER DETAILS HERE_Costing Tab'!$O$76)),0) -> 0
C146: AL Loading | D146: =IF(SUM(D144:D145)*'Master Data'!$BH$8>Max_AL_loading,Max_AL_loading,SUM(D144:D145)*'Master Data'!$BH$8) -> 0 | E146: =IF(SUM(E144:E145)*'Master Data'!$BH$8>Max_AL_loading,Max_AL_loading,SUM(E144:E145)*'Master Data'!$BH$8) -> 0 | F146: =IF(SUM(F144:F145)*'Master Data'!$BH$8>Max_AL_loading,Max_AL_loading,SUM(F144:F145)*'Master Data'!$BH$8) -> 0 | G146: =IF(SUM(G144:G145)*'Master Data'!$BH$8>Max_AL_loading,Max_AL_loading,SUM(G144:G145)*'Master Data'!$BH$8) -> 0 | H146: =IF(SUM(H144:H145)*'Master Data'!$BH$8>Max_AL_loading,Max_AL_loading,SUM(H144:H145)*'Master Data'!$BH$8) -> 0 | I146: =IF(SUM(I144:I145)*'Master Data'!$BH$8>Max_AL_loading,Max_AL_loading,SUM(I144:I145)*'Master Data'!$BH$8) -> 0 | J146: =IF(SUM(J144:J145)*'Master Data'!$BH$8>Max_AL_loading,Max_AL_loading,SUM(J144:J145)*'Master Data'!$BH$8) -> 0 | K146: =IF(SUM(K144:K145)*'Master Data'!$BH$8>Max_AL_loading,Max_AL_loading,SUM(K144:K145)*'Master Data'!$BH$8) -> 0 | L146: =IF(SUM(L144:L145)*'Master Data'!$BH$8>Max_AL_loading,Max_AL_loading,SUM(L144:L145)*'Master Data'!$BH$8) -> 0 | M146: =IF(SUM(M144:M145)*'Master Data'!$BH$8>Max_AL_loading,Max_AL_loading,SUM(M144:M145)*'Master Data'!$BH$8) -> 0
C147: Super | D147: =SUM(D144,D146)*'Master Data'!$BH$7 -> 0 | E147: =SUM(E144,E146)*'Master Data'!$BH$7 -> 0 | F147: =SUM(F144,F146)*'Master Data'!$BH$7 -> 0 | G147: =SUM(G144,G146)*'Master Data'!$BH$7 -> 0 | H147: =SUM(H144,H146)*'Master Data'!$BH$7 -> 0 | I147: =SUM(I144,I146)*'Master Data'!$BH$7 -> 0 | J147: =SUM(J144,J146)*'Master Data'!$BH$7 -> 0 | K147: =SUM(K144,K146)*'Master Data'!$BH$7 -> 0 | L147: =SUM(L144,L146)*'Master Data'!$BH$7 -> 0 | M147: =SUM(M144,M146)*'Master Data'!$BH$7 -> 0
C148: LSL | D148: =SUM(D144:D145)*'Master Data'!$BH$5 -> 0 | E148: =SUM(E144:E145)*'Master Data'!$BH$5 -> 0 | F148: =SUM(F144:F145)*'Master Data'!$BH$5 -> 0 | G148: =SUM(G144:G145)*'Master Data'!$BH$5 -> 0 | H148: =SUM(H144:H145)*'Master Data'!$BH$5 -> 0 | I148: =SUM(I144:I145)*'Master Data'!$BH$5 -> 0 | J148: =SUM(J144:J145)*'Master Data'!$BH$5 -> 0 | K148: =SUM(K144:K145)*'Master Data'!$BH$5 -> 0 | L148: =SUM(L144:L145)*'Master Data'!$BH$5 -> 0 | M148: =SUM(M144:M145)*'Master Data'!$BH$5 -> 0
C149: Payroll | D149: =SUM(D144:D147)*'Master Data'!$BH$6 -> 0 | E149: =SUM(E144:E147)*'Master Data'!$BH$6 -> 0 | F149: =SUM(F144:F147)*'Master Data'!$BH$6 -> 0 | G149: =SUM(G144:G147)*'Master Data'!$BH$6 -> 0 | H149: =SUM(H144:H147)*'Master Data'!$BH$6 -> 0 | I149: =SUM(I144:I147)*'Master Data'!$BH$6 -> 0 | J149: =SUM(J144:J147)*'Master Data'!$BH$6 -> 0 | K149: =SUM(K144:K147)*'Master Data'!$BH$6 -> 0 | L149: =SUM(L144:L147)*'Master Data'!$BH$6 -> 0 | M149: =SUM(M144:M147)*'Master Data'!$BH$6 -> 0
C150: Workcover | D150: =SUM(D144:D147)*'Master Data'!$BH$9 -> 0 | E150: =SUM(E144:E147)*'Master Data'!$BH$9 -> 0 | F150: =SUM(F144:F147)*'Master Data'!$BH$9 -> 0 | G150: =SUM(G144:G147)*'Master Data'!$BH$9 -> 0 | H150: =SUM(H144:H147)*'Master Data'!$BH$9 -> 0 | I150: =SUM(I144:I147)*'Master Data'!$BH$9 -> 0 | J150: =SUM(J144:J147)*'Master Data'!$BH$9 -> 0 | K150: =SUM(K144:K147)*'Master Data'!$BH$9 -> 0 | L150: =SUM(L144:L147)*'Master Data'!$BH$9 -> 0 | M150: =SUM(M144:M147)*'Master Data'!$BH$9 -> 0
C151: Additional Contributions | D151: =D144*'Master Data'!$BH$10 -> 0 | E151: =E144*'Master Data'!$BH$10 -> 0 | F151: =F144*'Master Data'!$BH$10 -> 0 | G151: =G144*'Master Data'!$BH$10 -> 0 | H151: =H144*'Master Data'!$BH$10 -> 0 | I151: =I144*'Master Data'!$BH$10 -> 0 | J151: =J144*'Master Data'!$BH$10 -> 0 | K151: =K144*'Master Data'!$BH$10 -> 0 | L151: =L144*'Master Data'!$BH$10 -> 0 | M151: =M144*'Master Data'!$BH$10 -> 0
C152: Total Salary | D152: =SUM(D144:D151) -> 0 | E152: 0 | F152: 0 | G152: 0 | H152: 0 | I152: 0 | J152: 0 | K152: 0 | L152: 0 | M152: 0
C154: Classification Level | D154: =IFERROR(IF(AND(D158>=$P159,D158<=$R159),VLOOKUP('ENTER DETAILS HERE_Costing Tab'!$H$77,'Master Data'!$X$5:$Z$73,2,FALSE),""),"") ->  | E154: =IFERROR(IF(AND(E158>=$P159,E158<=$R159),VLOOKUP('ENTER DETAILS HERE_Costing Tab'!$H$77,'Master Data'!$X$5:$Z$73,2,FALSE),""),"") ->  | F154: =IFERROR(IF(AND(F158>=$P159,F158<=$R159),VLOOKUP('ENTER DETAILS HERE_Costing Tab'!$H$77,'Master Data'!$X$5:$Z$73,2,FALSE),""),"") ->  | G154: =IFERROR(IF(AND(G158>=$P159,G158<=$R159),VLOOKUP('ENTER DETAILS HERE_Costing Tab'!$H$77,'Master Data'!$X$5:$Z$73,2,FALSE),""),"") ->  | H154: =IFERROR(IF(AND(H158>=$P159,H158<=$R159),VLOOKUP('ENTER DETAILS HERE_Costing Tab'!$H$77,'Master Data'!$X$5:$Z$73,2,FALSE),""),"") ->  | I154: =IFERROR(IF(AND(I158>=$P159,I158<=$R159),VLOOKUP('ENTER DETAILS HERE_Costing Tab'!$H$77,'Master Data'!$X$5:$Z$73,2,FALSE),""),"") ->  | J154: =IFERROR(IF(AND(J158>=$P159,J158<=$R159),VLOOKUP('ENTER DETAILS HERE_Costing Tab'!$H$77,'Master Data'!$X$5:$Z$73,2,FALSE),""),"") ->  | K154: =IFERROR(IF(AND(K158>=$P159,K158<=$R159),VLOOKUP('ENTER DETAILS HERE_Costing Tab'!$H$77,'Master Data'!$X$5:$Z$73,2,FALSE),""),"") ->  | L154: =IFERROR(IF(AND(L158>=$P159,L158<=$R159),VLOOKUP('ENTER DETAILS HERE_Costing Tab'!$H$77,'Master Data'!$X$5:$Z$73,2,FALSE),""),"") ->  | M154: =IFERROR(IF(AND(M158>=$P159,M158<=$R159),VLOOKUP('ENTER DETAILS HERE_Costing Tab'!$H$77,'Master Data'!$X$5:$Z$73,2,FALSE),""),"") -> 
C155: Step | D155: =IFERROR( IF(AND(D158>=$P159,D158<=$R159), IF(D158=$P159,VLOOKUP('ENTER DETAILS HERE_Costing Tab'!$H$77,'Master Data'!$X$5:$Z$73,3,FALSE), IF(C155+1>VLOOKUP(D154,Max_Step,2,FALSE),VLOOKUP(D154,Max_Step,2,FALSE),C155+1)),""),"") ->  | E155: =IFERROR( IF(AND(E158>=$P159,E158<=$R159), IF(E158=$P159,VLOOKUP('ENTER DETAILS HERE_Costing Tab'!$H$77,'Master Data'!$X$5:$Z$73,3,FALSE), IF(D155+1>VLOOKUP(E154,Max_Step,2,FALSE),VLOOKUP(E154,Max_Step,2,FALSE),D155+1)),""),"") ->  | F155: =IFERROR( IF(AND(F158>=$P159,F158<=$R159), IF(F158=$P159,VLOOKUP('ENTER DETAILS HERE_Costing Tab'!$H$77,'Master Data'!$X$5:$Z$73,3,FALSE), IF(E155+1>VLOOKUP(F154,Max_Step,2,FALSE),VLOOKUP(F154,Max_Step,2,FALSE),E155+1)),""),"") ->  | G155: =IFERROR( IF(AND(G158>=$P159,G158<=$R159), IF(G158=$P159,VLOOKUP('ENTER DETAILS HERE_Costing Tab'!$H$77,'Master Data'!$X$5:$Z$73,3,FALSE), IF(F155+1>VLOOKUP(G154,Max_Step,2,FALSE),VLOOKUP(G154,Max_Step,2,FALSE),F155+1)),""),"") ->  | H155: =IFERROR( IF(AND(H158>=$P159,H158<=$R159), IF(H158=$P159,VLOOKUP('ENTER DETAILS HERE_Costing Tab'!$H$77,'Master Data'!$X$5:$Z$73,3,FALSE), IF(G155+1>VLOOKUP(H154,Max_Step,2,FALSE),VLOOKUP(H154,Max_Step,2,FALSE),G155+1)),""),"") ->  | I155: =IFERROR( IF(AND(I158>=$P159,I158<=$R159), IF(I158=$P159,VLOOKUP('ENTER DETAILS HERE_Costing Tab'!$H$77,'Master Data'!$X$5:$Z$73,3,FALSE), IF(H155+1>VLOOKUP(I154,Max_Step,2,FALSE),VLOOKUP(I154,Max_Step,2,FALSE),H155+1)),""),"") ->  | J155: =IFERROR( IF(AND(J158>=$P159,J158<=$R159), IF(J158=$P159,VLOOKUP('ENTER DETAILS HERE_Costing Tab'!$H$77,'Master Data'!$X$5:$Z$73,3,FALSE), IF(I155+1>VLOOKUP(J154,Max_Step,2,FALSE),VLOOKUP(J154,Max_Step,2,FALSE),I155+1)),""),"") ->  | K155: =IFERROR( IF(AND(K158>=$P159,K158<=$R159), IF(K158=$P159,VLOOKUP('ENTER DETAILS HERE_Costing Tab'!$H$77,'Master Data'!$X$5:$Z$73,3,FALSE), IF(J155+1>VLOOKUP(K154,Max_Step,2,FALSE),VLOOKUP(K154,Max_Step,2,FALSE),J155+1)),""),"") ->  | L155: =IFERROR( IF(AND(L158>=$P159,L158<=$R159), IF(L158=$P159,VLOOKUP('ENTER DETAILS HERE_Costing Tab'!$H$77,'Master Data'!$X$5:$Z$73,3,FALSE), IF(K155+1>VLOOKUP(L154,Max_Step,2,FALSE),VLOOKUP(L154,Max_Step,2,FALSE),K155+1)),""),"") ->  | M155: =IFERROR( IF(AND(M158>=$P159,M158<=$R159), IF(M158=$P159,VLOOKUP('ENTER DETAILS HERE_Costing Tab'!$H$77,'Master Data'!$X$5:$Z$73,3,FALSE), IF(L155+1>VLOOKUP(M154,Max_Step,2,FALSE),VLOOKUP(M154,Max_Step,2,FALSE),L155+1)),""),"") -> 
C156: Level & Step | D156: =IF(D154="Level E",D154,IF(D154="Senior Manager",D154&" "&D155,D154&"-"&D155)) -> - | E156: =IF(E154="Level E",E154,IF(E154="Senior Manager",E154&" "&E155,E154&"-"&E155)) -> - | F156: - | G156: - | H156: - | I156: - | J156: - | K156: - | L156: - | M156: -
C157: FTE | D157: =IF(D158="",0,IF(AND(D158>=$P159,D158<=$R159),'ENTER DETAILS HERE_Costing Tab'!$N$77,0)) -> 0 | E157: =IF(E158="",0,IF(AND(E158>=$P159,E158<=$R159),'ENTER DETAILS HERE_Costing Tab'!$N$77,0)) -> 0 | F157: =IF(F158="",0,IF(AND(F158>=$P159,F158<=$R159),'ENTER DETAILS HERE_Costing Tab'!$N$77,0)) -> 0 | G157: =IF(G158="",0,IF(AND(G158>=$P159,G158<=$R159),'ENTER DETAILS HERE_Costing Tab'!$N$77,0)) -> 0 | H157: =IF(H158="",0,IF(AND(H158>=$P159,H158<=$R159),'ENTER DETAILS HERE_Costing Tab'!$N$77,0)) -> 0 | I157: =IF(I158="",0,IF(AND(I158>=$P159,I158<=$R159),'ENTER DETAILS HERE_Costing Tab'!$N$77,0)) -> 0 | J157: =IF(J158="",0,IF(AND(J158>=$P159,J158<=$R159),'ENTER DETAILS HERE_Costing Tab'!$N$77,0)) -> 0 | K157: =IF(K158="",0,IF(AND(K158>=$P159,K158<=$R159),'ENTER DETAILS HERE_Costing Tab'!$N$77,0)) -> 0 | L157: =IF(L158="",0,IF(AND(L158>=$P159,L158<=$R159),'ENTER DETAILS HERE_Costing Tab'!$N$77,0)) -> 0 | M157: =IF(M158="",0,IF(AND(M158>=$P159,M158<=$R159),'ENTER DETAILS HERE_Costing Tab'!$N$77,0)) -> 0
B158: 11 | D158: ='ENTER DETAILS HERE_Costing Tab'!$P$64 -> 1900 | E158: ='ENTER DETAILS HERE_Costing Tab'!$Q$64 ->  | F158: ='ENTER DETAILS HERE_Costing Tab'!$R$64 ->  | G158: ='ENTER DETAILS HERE_Costing Tab'!$S$64 ->  | H158: ='ENTER DETAILS HERE_Costing Tab'!$T$64 ->  | I158: ='ENTER DETAILS HERE_Costing Tab'!$U$64 ->  | J158: ='ENTER DETAILS HERE_Costing Tab'!$V$64 ->  | K158: ='ENTER DETAILS HERE_Costing Tab'!$W$64 ->  | L158: ='ENTER DETAILS HERE_Costing Tab'!$X$64 ->  | M158: ='ENTER DETAILS HERE_Costing Tab'!$Y$64 -> 
